Workbook

Sheet Paraméterek
A1: Kezdeti beruházás (azonnal aktivált tárgyi eszközként szerepel a mérlegben) | G1: EREDMÉNYEK (HUF)
B2: NÉV | C2: Amortizáció (év) | D2: Avultság | E2: Bekerülési érték | G2: Év száma | H2: CF | I2: MSZE | J2: =+Eredmények!B120 -> DSCR EBITDA alapon | K2: =+Eredmények!B121 -> DSCR CF alapon
B3: Gyártó csarnok építése | C3: 30 | D3: 0 | E3: 20000000 | H3: =+Eredmények!C116*1000000 -> 428946522.8
B4: Technológia fejlesztési költsége | C4: 10 | D4: 0 | E4: 198285758 | G4: 1 | H4: =Eredmények!C$112*1000000 -> 39371754.8 | I4: =Eredmények!C$95*1000000 -> 42476890.28 | J4: =Eredmények!C$121 -> 4.325598007 | K4: =Eredmények!C$120 -> 4.382021501
C5: 10 | E5: =SUM(E4:E4) -> 198285758 | G5: 2 | H5: =Eredmények!D$112*1000000 -> 39510753.75 | I5: =Eredmények!D$95*1000000 -> 46494513.96 | J5: =Eredmények!D$121 -> 5.080846287 | K5: =Eredmények!D$120 -> 5.467924676
G6: 3 | H6: =Eredmények!E$112*1000000 -> 42042736.81 | I6: =Eredmények!E$95*1000000 -> 48897632.06 | J6: =Eredmények!E$121 -> 5.476917986 | K6: =Eredmények!E$120 -> 5.752675408
A7: Pótlólagos beruházások (mindig e soron szerepelnek a mérlegben) | G7: 4 | H7: =Eredmények!F$112*1000000 -> 44676128.88 | I7: =Eredmények!F$95*1000000 -> 51399581.87 | J7: =Eredmények!F$121 -> 5.910004273 | K7: =Eredmények!F$120 -> 6.058683522
G8: 5 | H8: =Eredmények!G$112*1000000 -> 47414594.56 | I8: =Eredmények!G$95*1000000 -> 54003976.45 | J8: =Eredmények!G$121 -> 6.383739589 | K8: =Eredmények!G$120 -> 6.387491734
B9: Pótlólagos felújító beruházások 2.évtől (db/év) | C9: 1 | D9: 1 | G9: 6 | H9: =Eredmények!H$112*1000000 -> 50261924.48 | I9: =Eredmények!H$95*1000000 -> 56714553.84 | J9: =Eredmények!H$121 -> 6.90205783 | K9: =Eredmények!H$120 -> 6.740705919
B10: Pótlólagos felújító beruházások 2.évtől (Ft/db) | C10: 1000000 | G10: 7 | H10: =Eredmények!I$112*1000000 -> 61555372.87 | I10: =Eredmények!I$95*1000000 -> 59535181.32 | J10: =Eredmények!I$121 ->  | K10: =Eredmények!I$120 -> 
B11: Pótlólagos beruházások amortizációja (év) | C11: 7 | G11: 8 | H11: =Eredmények!J$112*1000000 -> 66296102.98 | I11: =Eredmények!J$95*1000000 -> 45866589.48 | J11: =Eredmények!J$121 ->  | K11: =Eredmények!J$120 -> 
B12: Pótlólagos beruházások amortizációja (Ft/negyedév) | C12: =$C$10/C11/4 -> 35714.28571 | G12: 9 | H12: =Eredmények!K$112*1000000 -> 69534383.86 | I12: =Eredmények!K$95*1000000 -> 49106184.94 | J12: =Eredmények!K$121 ->  | K12: =Eredmények!K$120 -> 
B13: Pótlólagos beruházás összege | D13: 2 | G13: 10 | H13: =Eredmények!L$112*1000000 -> 72899070.34 | I13: =Eredmények!L$95*1000000 -> 52472212.29 | J13: =Eredmények!L$121 ->  | K13: =Eredmények!L$120 -> 
A15: Műszaki adatok | E15: Teljesítmény adatok
G16: 2020-01-01 | H16: 2020-02-01 | I16: 2020-03-01 | J16: 2020-04-01 | K16: 2020-05-01 | L16: 2020-06-01 | M16: 2020-07-01 | N16: 2020-08-01 | O16: 2020-09-01 | P16: 2020-10-01 | Q16: 2020-11-01 | R16: 2020-12-01
B17: Gázmotor napi termelés (óra) | C17: 20 | E17: Átlagos külső hőmérséklet (Celsius) | F17: 0 | G17: -1.35 | H17: 0.95 | I17: 5 | J17: 11 | K17: 15.15 | L17: 17 | M17: 20.5 | N17: 21 | O17: 15.7 | P17: 9.7 | Q17: 4.9 | R17: -0.02
B18: Szárító heti termelési nap | C18: 7 | E18: Átlagos külső hőmérséklet módosított (Celsius) | G18: =+G17+$F$17 -> -1.35 | H18: =+H17+$F$17 -> 0.95 | I18: 5 | J18: 11 | K18: 15.15 | L18: 17 | M18: 20.5 | N18: 21 | O18: 15.7 | P18: 9.7 | Q18: 4.9 | R18: -0.02
B19: Daráló heti termelési nap | C19: 5 | E19: Kiadott motorblokk hőteljesítmény (kW) | G19: 350 | H19: =+G19 -> 350 | I19: =+H19 -> 350 | J19: 350 | K19: 350 | L19: 350 | M19: 350 | N19: 350 | O19: 350 | P19: 350 | Q19: 350 | R19: 350
B20: Daráló termelési kapacitása (t/h) | C20: 15 | E20: Átlagos hő önfogyasztás (kW) | G20: =IF(G18<=17,-0.1714*G18^2-5.0644*G18+137.77,0) -> 144.2945635 | H20: =IF(H18<=17,-0.1714*H18^2-5.0644*H18+137.77,0) -> 132.8041315 | I20: 108.163 | J20: 61.3222 | K20: 21.7041835 | L20: 2.1406 | M20: 0 | N20: 0 | O20: 16.010534 | P20: 72.518294 | Q20: 108.839126 | R20: 137.8712194
B21: Daráló napi max működési óraszám | C21: 6 | E21: Kiadott szárítási hőteljesítmény, előszárító(kW) | G21: =+G19-G20 -> 205.7054365 | H21: =+H19-H20 -> 217.1958685 | I21: 241.837 | J21: 288.6778 | K21: 328.2958165 | L21: 347.8594 | M21: 350 | N21: 350 | O21: 333.989466 | P21: 277.481706 | Q21: 241.160874 | R21: 212.1287806
B22: Daráló villamos energia fogyasztása óránként (kW) | C22: =+I116 -> 67.5 | E22: Fajlagos szárítási teljesítmény,előszárító (l/kW) | G22: =IF(G23=0.5,-0.0006*G18^2 + 0.0341*G18 + 0.5976,-0.0012*G18^2 + 0.0701*G18 + 0.1558) -> 0.5504715 | H22: =IF(H23=0.5,-0.0006*H18^2 + 0.0341*H18 + 0.5976,-0.0012*H18^2 + 0.0701*H18 + 0.1558) -> 0.6294535 | I22: 0.7531 | J22: 0.9001 | K22: 0.9765015 | L22: 1.0039 | M22: 1.08855 | N22: 1.0987 | O22: 0.985076 | P22: 0.871916 | Q22: 0.750284 | R22: 0.59691776
B23: Szárító villamos energia fogyasztása óránként (kW) | C23: =+SUM(I84:I102) -> 75 | E23: Előszárító opt. ventilátor telj. (%) | G23: =IF(G18>20,1,0.5) -> 0.5 | H23: =IF(H18>20,1,0.5) -> 0.5 | I23: 0.5 | J23: 0.5 | K23: 0.5 | L23: 0.5 | M23: 1 | N23: 1 | O23: 0.5 | P23: 0.5 | Q23: 0.5 | R23: 0.5
B24: Szárító üzem rendelkezésre állás | C24: 0.9 | E24: Kiadott füstgáz hőteljesítmény (kW) | G24: =0.75*1.11*((500-(G25/0.75/1.11))-110) -> 309 | H24: =0.75*1.11*((500-(H25/0.75/1.11))-110) -> 310.15 | I24: 312.175 | J24: 315.175 | K24: 317.25 | L24: 318.175 | M24: 319.925 | N24: 320.175 | O24: 317.525 | P24: 314.525 | Q24: 312.125 | R24: 309.665
E25: Hőveszteség (kW) | G25: =-0.5*G18+15 -> 15.675 | H25: =-0.5*H18+15 -> 14.525 | I25: 12.5 | J25: 9.5 | K25: 7.425 | L25: 6.5 | M25: 4.75 | N25: 4.5 | O25: 7.15 | P25: 10.15 | Q25: 12.55 | R25: 15.01
B26: Tömörítő egység kapacitása (kg/óra) | C26: 600 | E26: Kiadott szárítási hőteljesítmény, dobszárító(kW) | G26: =+G24-G25 -> 293.325 | H26: =+H24-H25 -> 295.625 | I26: 299.675 | J26: 305.675 | K26: 309.825 | L26: 311.675 | M26: 315.175 | N26: 315.675 | O26: 310.375 | P26: 304.375 | Q26: 299.575 | R26: 294.655
B27: Tömörítő heti termelési nap | C27: 7 | E27: Fajlagos szárítási teljesítmény,dobszárító (l/kW) | G27: 1.2 | H27: 1.2 | I27: 1.2 | J27: 1.2 | K27: 1.2 | L27: 1.2 | M27: 1.2 | N27: 1.2 | O27: 1.2 | P27: 1.2 | Q27: 1.2 | R27: 1.2
B28: Tömörítő napi működési óraszám | C28: 12 | E28: Szárítási összteljesítmény (l/óra) | G28: =+G21*G22+G26*G27 -> 465.2249802 | H28: =+H21*H22+H26*H27 -> 491.4646996 | I28: 541.7374447 | J28: 626.6488878 | K28: 692.3713573 | L28: 723.2260517 | M28: 759.2025 | N28: 763.355 | O28: 701.4550072 | P28: 607.1907392 | Q28: 540.4291452 | R28: 480.2094365
B29: Tömörítő villamos energia fogyasztása óránként (kW) | C29: =+SUM(I103:I115) -> 113.25 | E29: Havi gázmotor működési óraszám | G29: =+(EOMONTH(G16,0)-G16+1)*$C$17 -> 620 | H29: 580 | I29: 620 | J29: 600 | K29: =+(EOMONTH(K16,0)-K16+1)*$C$17 -> 620 | L29: 600 | M29: 620 | N29: 620 | O29: 600 | P29: 620 | Q29: 600 | R29: 620
B30: Tömörítő egység rendelkezésre állás | C30: 0.9 | E30: Havi szárító max működési óraszám | G30: =+G29/7*$C$18*$C$24 -> 558 | H30: 522 | I30: 558 | J30: 540 | K30: =+K29/7*$C$18*$C$24 -> 558 | L30: 540 | M30: 558 | N30: 558 | O30: 540 | P30: 558 | Q30: 540 | R30: 558
E31: Szárítási összteljesítmény (t/hó) | G31: =+G28*G30/1000 -> 259.5955389 | H31: =+H28*H30/1000 -> 256.5445732 | I31: 302.2894941 | J31: 338.3903994 | K31: 386.3432173 | L31: 390.5420679 | M31: 423.634995 | N31: 425.95209 | O31: 378.7857039 | P31: 338.8124325 | Q31: 291.8317384 | R31: 267.9568656
E32: Tömörítő egység max működési óraszám | G32: =+(EOMONTH(G16,0)-G16+1)/7*$C$27*$C$28*$C$30 -> 334.8 | H32: 313.2 | I32: 334.8 | J32: 324 | K32: 334.8 | L32: 324 | M32: 334.8 | N32: 334.8 | O32: 324 | P32: 334.8 | Q32: 324 | R32: 334.8
E33: Tömörítési összteljesítmény (t/hó) | G33: =+G32*$C$26/1000 -> 200.88 | H33: 187.92 | I33: 200.88 | J33: 194.4 | K33: 200.88 | L33: 194.4 | M33: 200.88 | N33: 200.88 | O33: 194.4 | P33: 200.88 | Q33: 194.4 | R33: 200.88
E34: Elődaráló egység max működési óraszám | G34: =+(EOMONTH(G16,0)-G16+1)/7*$C$19*$C$21 -> 132.8571429 | H34: 124.2857143 | I34: 132.8571429 | J34: 128.5714286 | K34: 132.8571429 | L34: 128.5714286 | M34: 132.8571429 | N34: 132.8571429 | O34: 128.5714286 | P34: 132.8571429 | Q34: 128.5714286 | R34: 132.8571429
E35: Elődáráló összteljesítmény (t/hó) | G35: =+G34*$C$20 -> 1992.857143 | H35: 1864.285714 | I35: 1992.857143 | J35: 1928.571429 | K35: 1992.857143 | L35: 1928.571429 | M35: 1992.857143 | N35: 1992.857143 | O35: 1928.571429 | P35: 1992.857143 | Q35: 1928.571429 | R35: 1992.857143
A37: Értékesítési adatok | C37: =+C50 -> 98383270.26 | E37: Előállított termék mennyiségek
B38: Értékesítési ár (Ft/kg) | F38: Összesen | G38: =+G50 -> Jan. | H38: Febr. | I38: Márc. | J38: Ápr. | K38: Máj. | L38: Jún. | M38: Júl. | N38: Aug. | O38: Szept. | P38: Okt. | Q38: Nov. | R38: Dec. | T38: =(Paraméterek!L61)*(100-Paraméterek!L61)*0+Eredmények!C116 -> 428.9465228
B39: =+F51 -> Pelletált szeparátum | C39: 35 | E39: =+F51 -> Pelletált szeparátum | F39: =+SUM(G39:R39) -> 525 | G39: =+(G51*$K60+$L60/12)*($G60+$M60)/($H60+$N60) -> 31.25 | H39: =+(H51*$K60+$L60/12)*($G60+$M60)/($H60+$N60) -> 25 | I39: 31.25 | J39: 31.25 | K39: 31.25 | L39: 31.25 | M39: 31.25 | N39: 31.25 | O39: 31.25 | P39: 93.75 | Q39: 78.125 | R39: 78.125
B40: =+F52 -> Kukorica pellet | C40: 37 | E40: =+F52 -> Kukorica pellet | F40: =+SUM(G40:R40) -> 0 | G40: =+(G52*$K61+$L61/12)*($G61+$M61)/($H61+$N61) -> 0 | H40: 0 | I40: 0 | J40: 0 | K40: 0 | L40: 0 | M40: 0 | N40: 0 | O40: 0 | P40: 0 | Q40: 0 | R40: 0
B41: =+F53 -> Szárított szeparátum | C41: 20 | E41: =+F53 -> Szárított szeparátum | F41: 762.195122 | G41: =+(G53*$K62+$L62/12)*($G62+$M62)/($H62+$N62) -> 60.97560976 | H41: 60.97560976 | I41: 60.97560976 | J41: 91.46341463 | K41: 91.46341463 | L41: 91.46341463 | M41: 106.7073171 | N41: 106.7073171 | O41: 91.46341463 | P41: 4.332577657e-15 | Q41: 0 | R41: 0
B42: =+F54 -> Szalma pellet | C42: 40 | E42: =+F54 -> Szalma pellet | F42: 1448.275862 | G42: =+(G54*$K63+$L63/12)*($G63+$M63)/($H63+$N63) -> 160.9195402 | H42: 160.9195402 | I42: 160.9195402 | J42: 160.9195402 | K42: 160.9195402 | L42: 160.9195402 | M42: 160.9195402 | N42: 160.9195402 | O42: 160.9195402 | P42: 0 | Q42: 0 | R42: 0
B43: =+F55 -> Cukorrépa pellet | C43: 60 | E43: =+F55 -> Cukorrépa pellet | F43: 113.8888889 | G43: =+(G55*$K64+$L64/12)*($G64+$M64)/($H64+$N64) -> 0 | H43: 0 | I43: 0 | J43: 0 | K43: 0 | L43: 0 | M43: 0 | N43: 0 | O43: 0 | P43: 44.44444444 | Q43: 41.66666667 | R43: 27.77777778
B44: Árbevétel (Ft) | E44: Összesen (t) | F44: 2849.359873 | G44: =+SUM(G39:G43) -> 253.14515 | H44: =+SUM(H39:H43) -> 246.89515 | I44: 253.14515 | J44: 283.6329549 | K44: 283.6329549 | L44: 283.6329549 | M44: 298.8768573 | N44: 298.8768573 | O44: 283.6329549 | P44: 138.1944444 | Q44: 119.7916667 | R44: 105.9027778
B45: =+B39 -> Pelletált szeparátum | C45: =+C39*F39*1000 -> 18375000 | E45: Tömörített mennyiség össz (t) | F45: 2087.164751 | G45: =+SUMPRODUCT($J$60:$J$64,G39:G43) -> 192.1695402 | H45: 185.9195402 | I45: 192.1695402 | J45: 192.1695402 | K45: 192.1695402 | L45: 192.1695402 | M45: 192.1695402 | N45: 192.1695402 | O45: 192.1695402 | P45: 138.1944444 | Q45: 119.7916667 | R45: 105.9027778
B46: =+B40 -> Kukorica pellet | C46: =+C40*F40*1000 -> 0 | E46: Elszárított víz összesen (t) | F46: =+F65-S44 -> 6390 | G46: =+SUMPRODUCT(G51:G55,$K$60:$K$64)+SUM($L$60:$L$64)/12-G44 -> 246.85485 | H46: =+SUMPRODUCT(H51:H55,$K$60:$K$64)+SUM($L$60:$L$64)/12-H44 -> 233.10485 | I46: 246.85485 | J46: 316.3670451 | K46: 316.3670451 | L46: 316.3670451 | M46: 351.1231427 | N46: 351.1231427 | O46: 316.3670451 | P46: 321.8055556 | Q46: 280.2083333 | R46: 244.0972222
B47: =+B41 -> Szárított szeparátum | C47: =+C41*F41*1000 -> 15243902.44 | E47: Elődarált mennyiség összesen | F47: =+SUM(G47:R47) -> 1448.275862 | G47: =+SUMPRODUCT($I$60:$I$64,G39:G43) -> 160.9195402 | H47: =+SUMPRODUCT($I$60:$I$64,H39:H43) -> 160.9195402 | I47: 160.9195402 | J47: 160.9195402 | K47: 160.9195402 | L47: 160.9195402 | M47: 160.9195402 | N47: 160.9195402 | O47: 160.9195402 | P47: 0 | Q47: 0 | R47: 0
B48: =+B42 -> Szalma pellet | C48: =+C42*F42*1000 -> 57931034.48
B49: =+B43 -> Cukorrépa pellet | C49: =+C43*F43*1000 -> 6833333.333 | E49: Feldolgozott alapanyag mennyiségek
B50: Éves bevétel | C50: =+SUM(C45:C49) -> 98383270.26 | E50: Alapanyag | F50: Termék | G50: Jan. | H50: Febr. | I50: Márc. | J50: Ápr. | K50: Máj. | L50: Jún. | M50: Júl. | N50: Aug. | O50: Szept. | P50: Okt. | Q50: Nov. | R50: Dec.
E51: Fermentlé szilárd szeparátum | F51: Pelletált szeparátum | G51: 100 | H51: 80 | I51: 100 | J51: 100 | K51: 100 | L51: 100 | M51: 100 | N51: 100 | O51: 100 | P51: 300 | Q51: 250 | R51: 250
B52: Működési negyedévek száma 2020-ban | C52: 4 | E52: Silótető | F52: Kukorica pellet | G52: 0 | H52: 0 | I52: 0 | J52: 0 | K52: 0 | L52: 0 | M52: 0 | N52: 0 | O52: 0 | P52: 0 | Q52: 0 | R52: 0
B53: Bevétel típusa | D53: 2 | E53: Fermentlé szilárd szeparátum | F53: Szárított szeparátum | G53: 200 | H53: 200 | I53: 200 | J53: 300 | K53: 300 | L53: 300 | M53: 350 | N53: 350 | O53: 300 | P53: 1.421085472e-14 | Q53: 0 | R53: 0
E54: Hulladék nedves szalma | F54: Szalma pellet | G54: 200 | H54: 200 | I54: 200 | J54: 200 | K54: 200 | L54: 200 | M54: 200 | N54: 200 | O54: 200 | P54: 0 | Q54: 0 | R54: 0
E55: Cukorrépaszelet | F55: Cukorrépa pellet | G55: 0 | H55: 0 | I55: 0 | J55: 0 | K55: 0 | L55: 0 | M55: 0 | N55: 0 | O55: 0 | P55: 160 | Q55: 150 | R55: 100
E56: Összesen | G56: =+SUM(G51:G55) -> 500 | H56: =+SUM(H51:H55) -> 480 | I56: 500 | J56: 600 | K56: 600 | L56: 600 | M56: 650 | N56: 650 | O56: 600 | P56: 460 | Q56: 400 | R56: 350
A58: Termelési költségek | C58: =+C71+C79+C82+C87+C92+C95+C99+C108+C113 -> 46029042.01 | E58: Alapanyag paraméterek
A59: Anyagjellegű ráfordítások | C59: Vételár szállítással (Ft/kg) | E59: Alapanyag | F59: Felhasználás (t/év) | G59: Alapanyag sz.a. tartalom | H59: Termék sz.a. tartalom | I59: Darálás szükséges | J59: Pelletálás szükséges | K59: Menny. Korr1 | L59: Menny.Korr2 | M59: Min.Korr1 | N59: Min.Korr2
B60: =+E51 -> Fermentlé szilárd szeparátum | C60: 0 | E60: =+E51 -> Fermentlé szilárd szeparátum | F60: =+SUM(G51:R51)*K60+L60 -> 1680 | G60: 0.25 | H60: 0.8 | I60: 0 | J60: 1 | K60: 1 | L60: 0 | M60: 0 | N60: 0
B61: =+E52 -> Silótető | C61: 2.5 | E61: =+E52 -> Silótető | F61: =+SUM(G52:R52)*K61+L61 -> 0 | G61: 0.3 | H61: 0.85 | I61: 0 | J61: 1 | K61: 1 | L61: 0 | M61: 0 | N61: 0
B62: =+E53 -> Fermentlé szilárd szeparátum | C62: 0 | E62: =+E53 -> Fermentlé szilárd szeparátum | F62: =+SUM(G53:R53)*K62+L62 -> 2500 | G62: 0.25 | H62: 0.82 | I62: 0 | J62: 0 | K62: 1 | L62: 0 | M62: 0 | N62: 0
B63: =+E54 -> Hulladék nedves szalma | C63: 2 | E63: =+E54 -> Hulladék nedves szalma | F63: =+SUM(G54:R54)*K63+L63 -> 1800 | G63: 0.7 | H63: 0.87 | I63: 1 | J63: 1 | K63: 1 | L63: 0 | M63: 0 | N63: 0
B64: =+E55 -> Cukorrépaszelet | C64: 7 | E64: =+E55 -> Cukorrépaszelet | F64: =+SUM(G55:R55)*K64+L64 -> 410 | G64: 0.25 | H64: 0.9 | I64: 0 | J64: 1 | K64: 1 | L64: 0 | M64: 0 | N64: 0
E65: Összesen | F65: =+SUM(F60:F64) -> 6390 | H65: 0 | J65: 0
B66: =+B60 -> Fermentlé szilárd szeparátum | C66: =+C60*F60*1000 -> 0
B67: =+B61 -> Silótető | C67: =+C61*F61*1000 -> 0 | E67: Üzemórák, fogyasztások
B68: =+B62 -> Fermentlé szilárd szeparátum | C68: =+C62*F62*1000 -> 0 | F68: Összesen | G68: =+G38 -> Jan. | H68: Febr. | I68: Márc. | J68: Ápr. | K68: Máj. | L68: Jún. | M68: Júl. | N68: Aug. | O68: Szept. | P68: Okt. | Q68: Nov. | R68: Dec. | S68: napi max | T68: napi átlag
B69: =+B63 -> Hulladék nedves szalma | C69: =+C63*F63*1000 -> 3600000 | E69: Havi szárító működési óraszám | F69: =+SUM(G69:R69) -> 5790.095158 | G69: =+G46/G31*G30 -> 530.6139191 | H69: =+H46/H31*H30 -> 474.3063951 | I69: 455.6724894 | J69: 504.8553525 | K69: =+K46/K31*K30 -> 456.932601 | L69: 437.4386741 | M69: 462.4894448 | N69: 459.9735938 | O69: 451.0154492 | P69: 529.9908823 | Q69: 518.4922683 | R69: 508.3140889 | S69: =+S72*C17*C24 -> 17.28307561 | T69: =+F69/365 -> 15.86327441
B70: =+B64 -> Cukorrépaszelet | C70: =+C64*F64*1000 -> 2870000 | E70: Havi tömörítő működési óraszám | F70: =+SUM(G70:R70) -> 3478.607918 | G70: =+G45/G33*G32 -> 320.282567 | H70: 309.8659004 | I70: 320.282567 | J70: 320.282567 | K70: 320.282567 | L70: 320.282567 | M70: 320.282567 | N70: 320.282567 | O70: 320.282567 | P70: 230.3240741 | Q70: 199.6527778 | R70: =+R45/R33*R32 -> 176.5046296 | S70: =+S73*C28*C30 -> 10.68503105 | T70: =+F70/365 -> 9.530432653
B71: Alapanyag költség (Ft) | C71: =+SUM(C66:C70) -> 6470000 | E71: Elődaráló működési óraszám | F71: =+SUM(G71:R71) -> 96.55172414 | G71: =+G47/$C$20 -> 10.72796935 | H71: 10.72796935 | I71: 10.72796935 | J71: 10.72796935 | K71: 10.72796935 | L71: 10.72796935 | M71: 10.72796935 | N71: 10.72796935 | O71: 10.72796935 | P71: 0 | Q71: 0 | R71: 0 | S71: =+S74*C21 -> 0.5179019686 | T71: =+F71/365 -> 0.2645252716
E72: Szárító kihasználtság | F72: =+AVERAGE(G72:R72) -> 0.8791118084 | G72: =+G69/G30 -> 0.950921002 | H72: =+H69/H30 -> 0.9086329409 | I72: 0.8166173645 | J72: 0.9349173195 | K72: 0.8188756291 | L72: 0.8100716188 | M72: 0.8288341304 | N72: 0.8243254369 | O72: 0.8352137947 | P72: 0.9498044485 | Q72: 0.9601708672 | R72: 0.9109571486 | S72: =+MAX(G72:R72) -> 0.9601708672
B73: Beépített összteljesítmény (kW) | C73: =+SUM(H84:H116) -> 270.95 | E73: Tömörítő kihasználtság | F73: =+AVERAGE(G73:R73) -> 0.880789857 | G73: =+G70/G32 -> 0.9566384918 | H73: =+H70/H32 -> 0.9893547266 | I73: 0.9566384918 | J73: 0.9885264415 | K73: 0.9566384918 | L73: 0.9885264415 | M73: 0.9566384918 | N73: 0.9566384918 | O73: 0.9885264415 | P73: 0.6879452631 | Q73: 0.6162122771 | R73: 0.5271942343 | S73: =+MAX(G73:R73) -> 0.9893547266
B74: Kapacitás lekötés teljesítmény %-ában | C74: 1 | E74: Elődaráló kihasználtság | F74: =+AVERAGE(G74:R74) -> 0.06169808846 | G74: =+G71/G34 -> 0.08074815639 | H74: =+H71/H34 -> 0.08631699476 | I74: 0.08074815639 | J74: 0.0834397616 | K74: 0.08074815639 | L74: 0.0834397616 | M74: 0.08074815639 | N74: 0.08074815639 | O74: 0.0834397616 | P74: 0 | Q74: 0 | R74: 0 | S74: =+MAX(G74:R74) -> 0.08631699476
B75: Villamos energia lekötés (kW) | C75: =+C73*C74 -> 270.95 | E75: Szárító villamos energia fogyasztása (kWh) | F75: =+SUM(G75:R75) -> 434147.1369 | G75: =+G69*$C$23-((1-G23)*SUM($I$85:$I$86)) -> 39785.04393 | H75: 35561.97964 | I75: 34164.4367 | J75: 37853.15144 | K75: 34258.94508 | L75: 32796.90056 | M75: 34686.70836 | N75: 34498.01954 | O75: 33815.15869 | P75: 39738.31617 | Q75: 38875.92012 | R75: 38112.55667
B76: Kapacitás lekötés díja (Ft/kW/év) | C76: 8000 | E76: Tömörítő villamos energia fogyasztása (kWh) | F76: =+SUM(G76:R76) -> 393952.3467 | G76: =+G70*$C$29 -> 36272.00072 | H76: 35092.31322 | I76: 36272.00072 | J76: 36272.00072 | K76: 36272.00072 | L76: 36272.00072 | M76: 36272.00072 | N76: 36272.00072 | O76: 36272.00072 | P76: 26084.20139 | Q76: 22610.67708 | R76: 19989.14931
B77: RHD fogyasztás alapján (Ft/kWh) | C77: 5 | E77: Elődaráló villamos energia fogyasztása (kWh) | F77: =+SUM(G77:R77) -> 6517.241379 | G77: =+G71*$C$22 -> 724.137931 | H77: 724.137931 | I77: 724.137931 | J77: 724.137931 | K77: 724.137931 | L77: 724.137931 | M77: 724.137931 | N77: 724.137931 | O77: 724.137931 | P77: 0 | Q77: 0 | R77: 0
B78: Villamos energia ár (Ft/kWh) | C78: 20 | E78: Összes villamos energia fogyasztás (kWh) | F78: =+SUM(G78:R78) -> 834616.725 | G78: =+SUM(G75:G77) -> 76781.18258 | H78: =+SUM(H75:H77) -> 71378.43079 | I78: 71160.57535 | J78: 74849.29009 | K78: 71255.08373 | L78: 69793.03921 | M78: 71682.84701 | N78: 71494.15818 | O78: 70811.29734 | P78: 65822.51756 | Q78: 61486.5972 | R78: 58101.70598
B79: Villamos energia éves díja (Ft) | C79: =+C76*C75+F78*(C77+C78) -> 23033018.13 | E79: Összes hasznos hőfogyasztás (kWh) | F79: =+SUM(G79:R79) -> 3385724.207 | G79: =+G69*(G21+G26) -> 264792.4957 | H79: 243234.2175 | I79: 246752.1211 | J79: 300062.1924 | K79: 291578.2044 | L79: 288505.8535 | M79: 307636.4164 | N79: 306192.9221 | O79: 290618.3291 | P79: 308378.749 | Q79: 280367.3699 | R79: 257605.3357
B81: Hőenergia költsége (Ft/GJ) | C81: 20
B82: Hőenergia éves díja (Ft) | C82: =+F79*C81*3.6/1000 -> 243772.1429 | E82: Beépített motorok teljesítmény adatai
E83: megnevezés | F83: sorszám | G83: Me. | H83: Beép. telj. | I83: Átl.telj.
B84: Értékesített termék átlagos távolsága egy irányban (km) | C84: 50 | E84: távhő szivattyú | F84: 1 | G84: kW | H84: 5.5 | I84: =+H84 -> 5.5
B85: Szállító eszköz rakomány súlya (t) | C85: 25 | E85: Fliegl ventilátor 1 | F85: 2 | G85: kW | H85: 11 | I85: 11
B86: Szállítási költség (Ft/km) | C86: 300 | E86: Fliegl ventilátor 2 | F86: 3 | G86: kW | H86: 11 | I86: =+H86 -> 11
B87: Éves szállítási költség (Ft) | C87: =F44/C85*C84*C86*2 -> 3419231.847 | E87: Tolópad H. szivattyú | F87: 4 | G87: kW | H87: 5.5 | I87: 5.5
E88: potyadék gyűjtő | F88: 5 | G88: kW | H88: 1.1 | I88: 1.1
B89: Rakodógép szolgáltatás díja (Ft/h) | C89: 10000 | E89: potyadék csiga | F89: 6 | G89: kW | H89: 1.1 | I89: 1.1
B90: Alapanyag rakodási teljesítmény (t/h) | C90: 50 | E90: száraz anyag gyűjtő | F90: 7 | G90: kW | H90: 1.1 | I90: 1.1
B91: Végtermék rakodási teljesítmény (t/h) | C91: 30 | E91: kiadagoló csiga | F91: 8 | G91: kW | H91: 1.1 | I91: 1.1
B92: Éves rakodási költség | C92: =C89*(F65/C90+F44/C91) -> 2227786.624 | E92: cellás kiadagoló | F92: 9 | G92: kW | H92: 1.1 | I92: 1.1
E93: kis bolygató csiga | F93: 10 | G93: kW | H93: 2.2 | I93: 2.2
B94: Éves karbantartási költség (Ft) | C94: 2500000 | E94: cellás beadagoló | F94: 11 | G94: kW | H94: 2.2 | I94: 2.2
B95: Éves karbantartási költség (Ft) | C95: =+C94 -> 2500000 | E95: dobforgató | F95: 12 | G95: kW | H95: 4 | I95: 4
E96: dob kiadagoló | F96: 13 | G96: kW | H96: 2.2 | I96: 2.2
B97: Bérelt telephely területe (m2) | C97: 500 | E97: 18 m szalag | F97: 14 | G97: kW | H97: 2.2 | I97: 2.2
B98: Bérleti díj (Ft/m2/hó) | C98: 50 | E98: füstgáz ventilátor | F98: 15 | G98: kW | H98: 11 | I98: 11
B99: Ingatlan bérlet éves költsége | C99: =+C97*C98*12 -> 300000 | E99: füstgáz ciklon | F99: 16 | G99: kW | H99: 1.5 | I99: 1.5
E100: füstgáz ciklon csiga | F100: 17 | G100: kW | H100: 2.2 | I100: 2.2
A101: Bérjellegű ráfordítások | E101: 8 m csiga | F101: 18 | G101: kW | H101: 3 | I101: 3
B102: Bérköltség és járulékai (Ft/hó) | C102: =+C105*C106*12 -> 8608432.5 | E102: 30m3 puffer bolygató | F102: 19 | G102: kW | H102: 6 | I102: 6
B103: Bérköltség (Ft/hó) | C103: =SUMPRODUCT(Paraméterek!G121:G124,Paraméterek!F121:F124) -> 417500 | E103: 30m3 puffer kiadagoló | F103: 20 | G103: kW | H103: 6 | I103: 6
B104: Járulékok (Ft/hó) | C104: =SUMPRODUCT(Paraméterek!H121:H124,Paraméterek!F121:F124) -> 77237.5 | E104: 6 m szalag | F104: 21 | G104: kW | H104: 1.5 | I104: 1.5
B105: Alkalmazottak száma | C105: =Paraméterek!F125 -> 1.45 | E105: kalapácsos daráló | F105: 22 | G105: kW | H105: 22 | I105: =H105*0.9 -> 19.8
B106: Alkalmazottak havi bruttó bére járulékkal (Ft/hó) | C106: =+C103+C104 -> 494737.5 | E106: daráló ciklon | F106: 23 | G106: kW | H106: 1.5 | I106: 1.5
B107: Személyi jellegű egyéb ráfordítások | C107: 50000 | E107: daráló ventilátor | F107: 24 | G107: kW | H107: 7.5 | I107: 7.5
B108: Éves bérköltség | C108: =+(C106+C107)*12 -> 6536850 | E108: 9m szalag | F108: 25 | G108: kW | H108: 3 | I108: 3
E109: 10m3 puffer kiadagoló | F109: 26 | G109: kW | H109: 6 | I109: 6
A110: Egyéb ráfordítások | E110: pelletáló csiga | F110: 27 | G110: kW | H110: 2.2 | I110: 2.2
B111: Egyéb ráfordítások fix havi díj(Ft) | C111: 100000 | E111: pelletáló | F111: 28 | G111: kW | H111: 55 | I111: =H111*0.9 -> 49.5
B112: Egyéb ráfordítások NÁB %-ban | C112: 0.001 | D112: NÁB százalékában | E112: 10m szalag | F112: 29 | G112: kW | H112: 3 | I112: 3
B113: Éves egyéb ráfordítás | C113: =+C111*12+C112*C37 -> 1298383.27 | E113: pellet tálca | F113: 30 | G113: kW | H113: 0.75 | I113: 0.75
E114: hűtő ciklon | F114: 31 | G114: kW | H114: 1.5 | I114: 1.5
E115: hűtő ventilátor | F115: 32 | G115: kW | H115: 11 | I115: 11
A116: Működési ererdmény | C116: =+C37-C58 -> 52354228.24 | E116: Rotogrind elődaráló | F116: 33 | G116: kW | H116: 75 | I116: =H116*0.9 -> 67.5
A119: Finanszírozás | E119: Alkalmazottak
E120: Munkakör | F120: fő | G120: Bruttó havi bér/fő | H120: Járulékok | I120: Teljes költség/fő
B121: Beruházás összege: | C121: =+E5+E3 -> 218285758 | E121: Ügyvezető | F121: 0.1 | G121: 600000 | H121: =G121*Paraméterek!$C$158 -> 111000 | I121: =+G121+H121 -> 711000
B122: Állami támogatás (Ft) | C122: 127869312.3 | E122: Mérnök | F122: 0.25 | G122: 450000 | H122: =G122*Paraméterek!$C$158 -> 83250 | I122: =+G122+H122 -> 533250
B123: Állami támogatás elhatárolása (év) | C123: 7 | E123: Adminisztrátor | F123: 0.1 | G123: 250000 | H123: =G123*Paraméterek!$C$158 -> 46250 | I123: =+G123+H123 -> 296250
B124: Beruházás önerő | C124: =C125/C121 -> 0.1851538372 | D124: 1 | E124: Segédmunkás | F124: 1 | G124: 220000 | H124: =G124*Paraméterek!$C$158 -> 40700 | I124: =+G124+H124 -> 260700
B125: Beruházás önerő (Ft) - tagi kölcsön | C125: =+C121-C122-C127 -> 40416445.7 | E125: Összesen | F125: =SUM(F121:F124) -> 1.45
B127: Finanszírozási igény (Ft) | C127: 50000000
B128: Finanszírozási igény (Hiteldeviza) | C128: =$C$127/INDEX(Makroadatok!C15:C18,D124,1) -> 50000000
B129: Hiteldeviza | D129: 3
B130: Hitelösszeg a 0. Évben (Ft) | C130: =+INDEX(Makroadatok!C15:C18,D124,1)*C128 -> 50000000 | D130: 1
B131: Futamidő (év) | C131: 6
B132: Hitel típusa
B133: Ha fix, éves kamat | C133: 0.035
B134: Ha változó, kamatfelár (%) | C134: 0.02
B135: Törlesztési periódus
B136: Betéti kamat mértéke Benchmarkhoz | C136: -0.01
D137: 1
B138: ÁFA-finanszírozás összege (Hiteldeviza) | C138: =(($E$3+$E$5)*$C$140)/INDEX(Makroadatok!$C$15:$C$18,$D$124) -> 0
B139: ÁFA-finanszírozás összege (HUF) | C139: =(E3+E5)*C140 -> 0
B140: ÁFA-kulcs | C140: 0
B141: ÁFA-finanszírozás ideje (hónap) | C141: 3 | D141: 3
B142: ÁFA-hitel kamata
D143: 1
B144: Állami támogatás összege (Hiteldeviza) | C144: =C122/INDEX(Makroadatok!$C$15:$C$18,$D$124) -> 127869312.3
B145: Állami támogatás folyósítása (hónap) | C145: 5
B146: Folyósítás gyakorisága (hónap)
B147: Folyósított összegek | C147: =MIN($C$144,$C$144/IF($D$141=1,$C$145,IF($D$141=2,$C$145/3,1))) -> 127869312.3
B148: Hitel kamata
B150: Garancia mértéke | C150: =C122 -> 127869312.3
B151: Garancia díja | C151: 0
A154: Egyéb
B156: Jegyzett tőke (Ft) | C156: 3000000
B157: Társasági adókulcs | C157: 0.09
B158: Bérjárulékok | C158: 0.185
B159: Iparűzési adó kulcs | C159: 0.02

Sheet Eredmények
B1: Mérleg, Eredménykimutatás, CF (millió HUF) | C1: 1 | D1: 2 | E1: 3 | F1: 4 | G1: 5 | H1: 6 | I1: 7 | J1: 8 | K1: 9 | L1: 10 | M1: 11 | N1: 12 | O1: x
C2: 2020 | D2: 2021 | E2: 2022 | F2: 2023 | G2: 2024 | H2: 2025 | I2: 2026 | J2: 2027 | K2: 2028 | L2: 2029 | M2: 2030 | N2: 2031 | O2: x
B3: Eszközök | O3: x
A4: 3 | B4: Befektetett eszközök | C4: =INDEX(Negyedéves!$A$75:$BS$502,$A4,3+Eredmények!C$1*4+(Paraméterek!$C$52-4))/1000000 -> 197.7905155 | D4: =INDEX(Negyedéves!$A$75:$BS$502,$A4,3+Eredmények!D$1*4+(Paraméterek!$C$52-4))/1000000 -> 178.1738978 | E4: =INDEX(Negyedéves!$A$75:$BS$502,$A4,3+Eredmények!E$1*4+(Paraméterek!$C$52-4))/1000000 -> 158.4284151 | F4: =INDEX(Negyedéves!$A$75:$BS$502,$A4,3+Eredmények!F$1*4+(Paraméterek!$C$52-4))/1000000 -> 138.5514902 | G4: =INDEX(Negyedéves!$A$75:$BS$502,$A4,3+Eredmények!G$1*4+(Paraméterek!$C$52-4))/1000000 -> 118.5404941 | H4: =INDEX(Negyedéves!$A$75:$BS$502,$A4,3+Eredmények!H$1*4+(Paraméterek!$C$52-4))/1000000 -> 98.39274551 | I4: =INDEX(Negyedéves!$A$75:$BS$502,$A4,3+Eredmények!I$1*4+(Paraméterek!$C$52-4))/1000000 -> 78.10550934 | J4: =INDEX(Negyedéves!$A$75:$BS$502,$A4,3+Eredmények!J$1*4+(Paraméterek!$C$52-4))/1000000 -> 57.67599585 | K4: =INDEX(Negyedéves!$A$75:$BS$502,$A4,3+Eredmények!K$1*4+(Paraméterek!$C$52-4))/1000000 -> 37.24779693 | L4: =INDEX(Negyedéves!$A$75:$BS$502,$A4,3+Eredmények!L$1*4+(Paraméterek!$C$52-4))/1000000 -> 16.82093889 | M4: =INDEX(Negyedéves!$A$75:$BS$502,$A4,3+Eredmények!M$1*4+(Paraméterek!$C$52-4))/1000000 -> 16.22402433 | N4: =INDEX(Negyedéves!$A$75:$BS$502,$A4,3+Eredmények!N$1*4+(Paraméterek!$C$52-4))/1000000 -> 15.62850482 | O4: x
A5: 4 | B5: Immateriális javak | C5: =INDEX(Negyedéves!$A$75:$BS$502,$A5,3+Eredmények!C$1*4+(Paraméterek!$C$52-4))/1000000 -> 0 | D5: =INDEX(Negyedéves!$A$75:$BS$502,$A5,3+Eredmények!D$1*4+(Paraméterek!$C$52-4))/1000000 -> 0 | E5: =INDEX(Negyedéves!$A$75:$BS$502,$A5,3+Eredmények!E$1*4+(Paraméterek!$C$52-4))/1000000 -> 0 | F5: =INDEX(Negyedéves!$A$75:$BS$502,$A5,3+Eredmények!F$1*4+(Paraméterek!$C$52-4))/1000000 -> 0 | G5: =INDEX(Negyedéves!$A$75:$BS$502,$A5,3+Eredmények!G$1*4+(Paraméterek!$C$52-4))/1000000 -> 0 | H5: =INDEX(Negyedéves!$A$75:$BS$502,$A5,3+Eredmények!H$1*4+(Paraméterek!$C$52-4))/1000000 -> 0 | I5: =INDEX(Negyedéves!$A$75:$BS$502,$A5,3+Eredmények!I$1*4+(Paraméterek!$C$52-4))/1000000 -> 0 | J5: =INDEX(Negyedéves!$A$75:$BS$502,$A5,3+Eredmények!J$1*4+(Paraméterek!$C$52-4))/1000000 -> 0 | K5: =INDEX(Negyedéves!$A$75:$BS$502,$A5,3+Eredmények!K$1*4+(Paraméterek!$C$52-4))/1000000 -> 0 | L5: =INDEX(Negyedéves!$A$75:$BS$502,$A5,3+Eredmények!L$1*4+(Paraméterek!$C$52-4))/1000000 -> 0 | M5: =INDEX(Negyedéves!$A$75:$BS$502,$A5,3+Eredmények!M$1*4+(Paraméterek!$C$52-4))/1000000 -> 0 | N5: =INDEX(Negyedéves!$A$75:$BS$502,$A5,3+Eredmények!N$1*4+(Paraméterek!$C$52-4))/1000000 -> 0 | O5: x
A6: 5 | B6: Vagyoni értékű jogok | C6: =INDEX(Negyedéves!$A$75:$BS$502,$A6,3+Eredmények!C$1*4+(Paraméterek!$C$52-4))/1000000 -> 0 | D6: =INDEX(Negyedéves!$A$75:$BS$502,$A6,3+Eredmények!D$1*4+(Paraméterek!$C$52-4))/1000000 -> 0 | E6: =INDEX(Negyedéves!$A$75:$BS$502,$A6,3+Eredmények!E$1*4+(Paraméterek!$C$52-4))/1000000 -> 0 | F6: =INDEX(Negyedéves!$A$75:$BS$502,$A6,3+Eredmények!F$1*4+(Paraméterek!$C$52-4))/1000000 -> 0 | G6: =INDEX(Negyedéves!$A$75:$BS$502,$A6,3+Eredmények!G$1*4+(Paraméterek!$C$52-4))/1000000 -> 0 | H6: =INDEX(Negyedéves!$A$75:$BS$502,$A6,3+Eredmények!H$1*4+(Paraméterek!$C$52-4))/1000000 -> 0 | I6: =INDEX(Negyedéves!$A$75:$BS$502,$A6,3+Eredmények!I$1*4+(Paraméterek!$C$52-4))/1000000 -> 0 | J6: =INDEX(Negyedéves!$A$75:$BS$502,$A6,3+Eredmények!J$1*4+(Paraméterek!$C$52-4))/1000000 -> 0 | K6: =INDEX(Negyedéves!$A$75:$BS$502,$A6,3+Eredmények!K$1*4+(Paraméterek!$C$52-4))/1000000 -> 0 | L6: =INDEX(Negyedéves!$A$75:$BS$502,$A6,3+Eredmények!L$1*4+(Paraméterek!$C$52-4))/1000000 -> 0 | M6: =INDEX(Negyedéves!$A$75:$BS$502,$A6,3+Eredmények!M$1*4+(Paraméterek!$C$52-4))/1000000 -> 0 | N6: =INDEX(Negyedéves!$A$75:$BS$502,$A6,3+Eredmények!N$1*4+(Paraméterek!$C$52-4))/1000000 -> 0 | O6: x
A7: 6 | B7: Szellemi termékek | C7: =INDEX(Negyedéves!$A$75:$BS$502,$A7,3+Eredmények!C$1*4+(Paraméterek!$C$52-4))/1000000 -> 0 | D7: =INDEX(Negyedéves!$A$75:$BS$502,$A7,3+Eredmények!D$1*4+(Paraméterek!$C$52-4))/1000000 -> 0 | E7: =INDEX(Negyedéves!$A$75:$BS$502,$A7,3+Eredmények!E$1*4+(Paraméterek!$C$52-4))/1000000 -> 0 | F7: =INDEX(Negyedéves!$A$75:$BS$502,$A7,3+Eredmények!F$1*4+(Paraméterek!$C$52-4))/1000000 -> 0 | G7: =INDEX(Negyedéves!$A$75:$BS$502,$A7,3+Eredmények!G$1*4+(Paraméterek!$C$52-4))/1000000 -> 0 | H7: =INDEX(Negyedéves!$A$75:$BS$502,$A7,3+Eredmények!H$1*4+(Paraméterek!$C$52-4))/1000000 -> 0 | I7: =INDEX(Negyedéves!$A$75:$BS$502,$A7,3+Eredmények!I$1*4+(Paraméterek!$C$52-4))/1000000 -> 0 | J7: =INDEX(Negyedéves!$A$75:$BS$502,$A7,3+Eredmények!J$1*4+(Paraméterek!$C$52-4))/1000000 -> 0 | K7: =INDEX(Negyedéves!$A$75:$BS$502,$A7,3+Eredmények!K$1*4+(Paraméterek!$C$52-4))/1000000 -> 0 | L7: =INDEX(Negyedéves!$A$75:$BS$502,$A7,3+Eredmények!L$1*4+(Paraméterek!$C$52-4))/1000000 -> 0 | M7: =INDEX(Negyedéves!$A$75:$BS$502,$A7,3+Eredmények!M$1*4+(Paraméterek!$C$52-4))/1000000 -> 0 | N7: =INDEX(Negyedéves!$A$75:$BS$502,$A7,3+Eredmények!N$1*4+(Paraméterek!$C$52-4))/1000000 -> 0 | O7: x
A8: 7 | B8: Tárgyi eszközök | C8: =INDEX(Negyedéves!$A$75:$BS$502,$A8,3+Eredmények!C$1*4+(Paraméterek!$C$52-4))/1000000 -> 197.7905155 | D8: =INDEX(Negyedéves!$A$75:$BS$502,$A8,3+Eredmények!D$1*4+(Paraméterek!$C$52-4))/1000000 -> 178.1738978 | E8: =INDEX(Negyedéves!$A$75:$BS$502,$A8,3+Eredmények!E$1*4+(Paraméterek!$C$52-4))/1000000 -> 158.4284151 | F8: =INDEX(Negyedéves!$A$75:$BS$502,$A8,3+Eredmények!F$1*4+(Paraméterek!$C$52-4))/1000000 -> 138.5514902 | G8: =INDEX(Negyedéves!$A$75:$BS$502,$A8,3+Eredmények!G$1*4+(Paraméterek!$C$52-4))/1000000 -> 118.5404941 | H8: =INDEX(Negyedéves!$A$75:$BS$502,$A8,3+Eredmények!H$1*4+(Paraméterek!$C$52-4))/1000000 -> 98.39274551 | I8: =INDEX(Negyedéves!$A$75:$BS$502,$A8,3+Eredmények!I$1*4+(Paraméterek!$C$52-4))/1000000 -> 78.10550934 | J8: =INDEX(Negyedéves!$A$75:$BS$502,$A8,3+Eredmények!J$1*4+(Paraméterek!$C$52-4))/1000000 -> 57.67599585 | K8: =INDEX(Negyedéves!$A$75:$BS$502,$A8,3+Eredmények!K$1*4+(Paraméterek!$C$52-4))/1000000 -> 37.24779693 | L8: =INDEX(Negyedéves!$A$75:$BS$502,$A8,3+Eredmények!L$1*4+(Paraméterek!$C$52-4))/1000000 -> 16.82093889 | M8: =INDEX(Negyedéves!$A$75:$BS$502,$A8,3+Eredmények!M$1*4+(Paraméterek!$C$52-4))/1000000 -> 16.22402433 | N8: =INDEX(Negyedéves!$A$75:$BS$502,$A8,3+Eredmények!N$1*4+(Paraméterek!$C$52-4))/1000000 -> 15.62850482 | O8: x
A9: 8 | B9: Ingatlanok és kapcs. vagyonértékű jogok | C9: =INDEX(Negyedéves!$A$75:$BS$502,$A9,3+Eredmények!C$1*4+(Paraméterek!$C$52-4))/1000000 -> 19.33333333 | D9: =INDEX(Negyedéves!$A$75:$BS$502,$A9,3+Eredmények!D$1*4+(Paraméterek!$C$52-4))/1000000 -> 18.66666667 | E9: =INDEX(Negyedéves!$A$75:$BS$502,$A9,3+Eredmények!E$1*4+(Paraméterek!$C$52-4))/1000000 -> 18 | F9: =INDEX(Negyedéves!$A$75:$BS$502,$A9,3+Eredmények!F$1*4+(Paraméterek!$C$52-4))/1000000 -> 17.33333333 | G9: =INDEX(Negyedéves!$A$75:$BS$502,$A9,3+Eredmények!G$1*4+(Paraméterek!$C$52-4))/1000000 -> 16.66666667 | H9: =INDEX(Negyedéves!$A$75:$BS$502,$A9,3+Eredmények!H$1*4+(Paraméterek!$C$52-4))/1000000 -> 16 | I9: =INDEX(Negyedéves!$A$75:$BS$502,$A9,3+Eredmények!I$1*4+(Paraméterek!$C$52-4))/1000000 -> 15.33333333 | J9: =INDEX(Negyedéves!$A$75:$BS$502,$A9,3+Eredmények!J$1*4+(Paraméterek!$C$52-4))/1000000 -> 14.66666667 | K9: =INDEX(Negyedéves!$A$75:$BS$502,$A9,3+Eredmények!K$1*4+(Paraméterek!$C$52-4))/1000000 -> 14 | L9: =INDEX(Negyedéves!$A$75:$BS$502,$A9,3+Eredmények!L$1*4+(Paraméterek!$C$52-4))/1000000 -> 13.33333333 | M9: =INDEX(Negyedéves!$A$75:$BS$502,$A9,3+Eredmények!M$1*4+(Paraméterek!$C$52-4))/1000000 -> 12.66666667 | N9: =INDEX(Negyedéves!$A$75:$BS$502,$A9,3+Eredmények!N$1*4+(Paraméterek!$C$52-4))/1000000 -> 12 | O9: x
A10: 9 | B10: Műszaki gépek+egyéb berendezések | C10: =INDEX(Negyedéves!$A$75:$BS$502,$A10,3+Eredmények!C$1*4+(Paraméterek!$C$52-4))/1000000 -> 178.4571822 | D10: =INDEX(Negyedéves!$A$75:$BS$502,$A10,3+Eredmények!D$1*4+(Paraméterek!$C$52-4))/1000000 -> 158.6286064 | E10: =INDEX(Negyedéves!$A$75:$BS$502,$A10,3+Eredmények!E$1*4+(Paraméterek!$C$52-4))/1000000 -> 138.8000306 | F10: =INDEX(Negyedéves!$A$75:$BS$502,$A10,3+Eredmények!F$1*4+(Paraméterek!$C$52-4))/1000000 -> 118.9714548 | G10: =INDEX(Negyedéves!$A$75:$BS$502,$A10,3+Eredmények!G$1*4+(Paraméterek!$C$52-4))/1000000 -> 99.142879 | H10: =INDEX(Negyedéves!$A$75:$BS$502,$A10,3+Eredmények!H$1*4+(Paraméterek!$C$52-4))/1000000 -> 79.3143032 | I10: =INDEX(Negyedéves!$A$75:$BS$502,$A10,3+Eredmények!I$1*4+(Paraméterek!$C$52-4))/1000000 -> 59.4857274 | J10: =INDEX(Negyedéves!$A$75:$BS$502,$A10,3+Eredmények!J$1*4+(Paraméterek!$C$52-4))/1000000 -> 39.6571516 | K10: =INDEX(Negyedéves!$A$75:$BS$502,$A10,3+Eredmények!K$1*4+(Paraméterek!$C$52-4))/1000000 -> 19.8285758 | L10: =INDEX(Negyedéves!$A$75:$BS$502,$A10,3+Eredmények!L$1*4+(Paraméterek!$C$52-4))/1000000 -> 8.381903172e-14 | M10: =INDEX(Negyedéves!$A$75:$BS$502,$A10,3+Eredmények!M$1*4+(Paraméterek!$C$52-4))/1000000 -> 8.381903172e-14 | N10: =INDEX(Negyedéves!$A$75:$BS$502,$A10,3+Eredmények!N$1*4+(Paraméterek!$C$52-4))/1000000 -> 8.381903172e-14 | O10: x
A11: 10 | B11: Beruházások, felújítások | C11: =INDEX(Negyedéves!$A$75:$BS$502,$A11,3+Eredmények!C$1*4+(Paraméterek!$C$52-4))/1000000 -> 0 | D11: =INDEX(Negyedéves!$A$75:$BS$502,$A11,3+Eredmények!D$1*4+(Paraméterek!$C$52-4))/1000000 -> 0.8786247345 | E11: =INDEX(Negyedéves!$A$75:$BS$502,$A11,3+Eredmények!E$1*4+(Paraméterek!$C$52-4))/1000000 -> 1.628384508 | F11: =INDEX(Negyedéves!$A$75:$BS$502,$A11,3+Eredmények!F$1*4+(Paraméterek!$C$52-4))/1000000 -> 2.246702021 | G11: =INDEX(Negyedéves!$A$75:$BS$502,$A11,3+Eredmények!G$1*4+(Paraméterek!$C$52-4))/1000000 -> 2.730948429 | H11: =INDEX(Negyedéves!$A$75:$BS$502,$A11,3+Eredmények!H$1*4+(Paraméterek!$C$52-4))/1000000 -> 3.078442309 | I11: =INDEX(Negyedéves!$A$75:$BS$502,$A11,3+Eredmények!I$1*4+(Paraméterek!$C$52-4))/1000000 -> 3.286448611 | J11: =INDEX(Negyedéves!$A$75:$BS$502,$A11,3+Eredmények!J$1*4+(Paraméterek!$C$52-4))/1000000 -> 3.352177583 | K11: =INDEX(Negyedéves!$A$75:$BS$502,$A11,3+Eredmények!K$1*4+(Paraméterek!$C$52-4))/1000000 -> 3.419221134 | L11: =INDEX(Negyedéves!$A$75:$BS$502,$A11,3+Eredmények!L$1*4+(Paraméterek!$C$52-4))/1000000 -> 3.487605557 | M11: =INDEX(Negyedéves!$A$75:$BS$502,$A11,3+Eredmények!M$1*4+(Paraméterek!$C$52-4))/1000000 -> 3.557357668 | N11: =INDEX(Negyedéves!$A$75:$BS$502,$A11,3+Eredmények!N$1*4+(Paraméterek!$C$52-4))/1000000 -> 3.628504822 | O11: x
A12: 11 | B12: Befektetett pénzügyi eszközök | C12: =INDEX(Negyedéves!$A$75:$BS$502,$A12,3+Eredmények!C$1*4+(Paraméterek!$C$52-4))/1000000 -> 0 | D12: =INDEX(Negyedéves!$A$75:$BS$502,$A12,3+Eredmények!D$1*4+(Paraméterek!$C$52-4))/1000000 -> 0 | E12: =INDEX(Negyedéves!$A$75:$BS$502,$A12,3+Eredmények!E$1*4+(Paraméterek!$C$52-4))/1000000 -> 0 | F12: =INDEX(Negyedéves!$A$75:$BS$502,$A12,3+Eredmények!F$1*4+(Paraméterek!$C$52-4))/1000000 -> 0 | G12: =INDEX(Negyedéves!$A$75:$BS$502,$A12,3+Eredmények!G$1*4+(Paraméterek!$C$52-4))/1000000 -> 0 | H12: =INDEX(Negyedéves!$A$75:$BS$502,$A12,3+Eredmények!H$1*4+(Paraméterek!$C$52-4))/1000000 -> 0 | I12: =INDEX(Negyedéves!$A$75:$BS$502,$A12,3+Eredmények!I$1*4+(Paraméterek!$C$52-4))/1000000 -> 0 | J12: =INDEX(Negyedéves!$A$75:$BS$502,$A12,3+Eredmények!J$1*4+(Paraméterek!$C$52-4))/1000000 -> 0 | K12: =INDEX(Negyedéves!$A$75:$BS$502,$A12,3+Eredmények!K$1*4+(Paraméterek!$C$52-4))/1000000 -> 0 | L12: =INDEX(Negyedéves!$A$75:$BS$502,$A12,3+Eredmények!L$1*4+(Paraméterek!$C$52-4))/1000000 -> 0 | M12: =INDEX(Negyedéves!$A$75:$BS$502,$A12,3+Eredmények!M$1*4+(Paraméterek!$C$52-4))/1000000 -> 0 | N12: =INDEX(Negyedéves!$A$75:$BS$502,$A12,3+Eredmények!N$1*4+(Paraméterek!$C$52-4))/1000000 -> 0 | O12: x
A13: 12 | B13: Egyéb tartósan adott kölcsön | C13: =INDEX(Negyedéves!$A$75:$BS$502,$A13,3+Eredmények!C$1*4+(Paraméterek!$C$52-4))/1000000 -> 0 | D13: =INDEX(Negyedéves!$A$75:$BS$502,$A13,3+Eredmények!D$1*4+(Paraméterek!$C$52-4))/1000000 -> 0 | E13: =INDEX(Negyedéves!$A$75:$BS$502,$A13,3+Eredmények!E$1*4+(Paraméterek!$C$52-4))/1000000 -> 0 | F13: =INDEX(Negyedéves!$A$75:$BS$502,$A13,3+Eredmények!F$1*4+(Paraméterek!$C$52-4))/1000000 -> 0 | G13: =INDEX(Negyedéves!$A$75:$BS$502,$A13,3+Eredmények!G$1*4+(Paraméterek!$C$52-4))/1000000 -> 0 | H13: =INDEX(Negyedéves!$A$75:$BS$502,$A13,3+Eredmények!H$1*4+(Paraméterek!$C$52-4))/1000000 -> 0 | I13: =INDEX(Negyedéves!$A$75:$BS$502,$A13,3+Eredmények!I$1*4+(Paraméterek!$C$52-4))/1000000 -> 0 | J13: =INDEX(Negyedéves!$A$75:$BS$502,$A13,3+Eredmények!J$1*4+(Paraméterek!$C$52-4))/1000000 -> 0 | K13: =INDEX(Negyedéves!$A$75:$BS$502,$A13,3+Eredmények!K$1*4+(Paraméterek!$C$52-4))/1000000 -> 0 | L13: =INDEX(Negyedéves!$A$75:$BS$502,$A13,3+Eredmények!L$1*4+(Paraméterek!$C$52-4))/1000000 -> 0 | M13: =INDEX(Negyedéves!$A$75:$BS$502,$A13,3+Eredmények!M$1*4+(Paraméterek!$C$52-4))/1000000 -> 0 | N13: =INDEX(Negyedéves!$A$75:$BS$502,$A13,3+Eredmények!N$1*4+(Paraméterek!$C$52-4))/1000000 -> 0 | O13: x
A14: 13 | B14: Forgóeszközök | C14: =INDEX(Negyedéves!$A$75:$BS$502,$A14,3+Eredmények!C$1*4+(Paraméterek!$C$52-4))/1000000 -> 39.3717548 | D14: =INDEX(Negyedéves!$A$75:$BS$502,$A14,3+Eredmények!D$1*4+(Paraméterek!$C$52-4))/1000000 -> 78.88250855 | E14: =INDEX(Negyedéves!$A$75:$BS$502,$A14,3+Eredmények!E$1*4+(Paraméterek!$C$52-4))/1000000 -> 120.9252454 | F14: =INDEX(Negyedéves!$A$75:$BS$502,$A14,3+Eredmények!F$1*4+(Paraméterek!$C$52-4))/1000000 -> 165.6013742 | G14: =INDEX(Negyedéves!$A$75:$BS$502,$A14,3+Eredmények!G$1*4+(Paraméterek!$C$52-4))/1000000 -> 213.0159688 | H14: =INDEX(Negyedéves!$A$75:$BS$502,$A14,3+Eredmények!H$1*4+(Paraméterek!$C$52-4))/1000000 -> 263.2778933 | I14: =INDEX(Negyedéves!$A$75:$BS$502,$A14,3+Eredmények!I$1*4+(Paraméterek!$C$52-4))/1000000 -> 324.8332661 | J14: =INDEX(Negyedéves!$A$75:$BS$502,$A14,3+Eredmények!J$1*4+(Paraméterek!$C$52-4))/1000000 -> 391.1293691 | K14: =INDEX(Negyedéves!$A$75:$BS$502,$A14,3+Eredmények!K$1*4+(Paraméterek!$C$52-4))/1000000 -> 460.663753 | L14: =INDEX(Negyedéves!$A$75:$BS$502,$A14,3+Eredmények!L$1*4+(Paraméterek!$C$52-4))/1000000 -> 533.5628233 | M14: =INDEX(Negyedéves!$A$75:$BS$502,$A14,3+Eredmények!M$1*4+(Paraméterek!$C$52-4))/1000000 -> 608.151501 | N14: =INDEX(Negyedéves!$A$75:$BS$502,$A14,3+Eredmények!N$1*4+(Paraméterek!$C$52-4))/1000000 -> 686.3131636 | O14: x
A15: 14 | B15: Készletek | C15: =INDEX(Negyedéves!$A$75:$BS$502,$A15,3+Eredmények!C$1*4+(Paraméterek!$C$52-4))/1000000 -> 0 | D15: =INDEX(Negyedéves!$A$75:$BS$502,$A15,3+Eredmények!D$1*4+(Paraméterek!$C$52-4))/1000000 -> 0 | E15: =INDEX(Negyedéves!$A$75:$BS$502,$A15,3+Eredmények!E$1*4+(Paraméterek!$C$52-4))/1000000 -> 0 | F15: =INDEX(Negyedéves!$A$75:$BS$502,$A15,3+Eredmények!F$1*4+(Paraméterek!$C$52-4))/1000000 -> 0 | G15: =INDEX(Negyedéves!$A$75:$BS$502,$A15,3+Eredmények!G$1*4+(Paraméterek!$C$52-4))/1000000 -> 0 | H15: =INDEX(Negyedéves!$A$75:$BS$502,$A15,3+Eredmények!H$1*4+(Paraméterek!$C$52-4))/1000000 -> 0 | I15: =INDEX(Negyedéves!$A$75:$BS$502,$A15,3+Eredmények!I$1*4+(Paraméterek!$C$52-4))/1000000 -> 0 | J15: =INDEX(Negyedéves!$A$75:$BS$502,$A15,3+Eredmények!J$1*4+(Paraméterek!$C$52-4))/1000000 -> 0 | K15: =INDEX(Negyedéves!$A$75:$BS$502,$A15,3+Eredmények!K$1*4+(Paraméterek!$C$52-4))/1000000 -> 0 | L15: =INDEX(Negyedéves!$A$75:$BS$502,$A15,3+Eredmények!L$1*4+(Paraméterek!$C$52-4))/1000000 -> 0 | M15: =INDEX(Negyedéves!$A$75:$BS$502,$A15,3+Eredmények!M$1*4+(Paraméterek!$C$52-4))/1000000 -> 0 | N15: =INDEX(Negyedéves!$A$75:$BS$502,$A15,3+Eredmények!N$1*4+(Paraméterek!$C$52-4))/1000000 -> 0 | O15: x
A16: 15 | B16: Követelések | C16: =INDEX(Negyedéves!$A$75:$BS$502,$A16,3+Eredmények!C$1*4+(Paraméterek!$C$52-4))/1000000 -> 0 | D16: =INDEX(Negyedéves!$A$75:$BS$502,$A16,3+Eredmények!D$1*4+(Paraméterek!$C$52-4))/1000000 -> 0 | E16: =INDEX(Negyedéves!$A$75:$BS$502,$A16,3+Eredmények!E$1*4+(Paraméterek!$C$52-4))/1000000 -> 0 | F16: =INDEX(Negyedéves!$A$75:$BS$502,$A16,3+Eredmények!F$1*4+(Paraméterek!$C$52-4))/1000000 -> 0 | G16: =INDEX(Negyedéves!$A$75:$BS$502,$A16,3+Eredmények!G$1*4+(Paraméterek!$C$52-4))/1000000 -> 0 | H16: =INDEX(Negyedéves!$A$75:$BS$502,$A16,3+Eredmények!H$1*4+(Paraméterek!$C$52-4))/1000000 -> 0 | I16: =INDEX(Negyedéves!$A$75:$BS$502,$A16,3+Eredmények!I$1*4+(Paraméterek!$C$52-4))/1000000 -> 0 | J16: =INDEX(Negyedéves!$A$75:$BS$502,$A16,3+Eredmények!J$1*4+(Paraméterek!$C$52-4))/1000000 -> 0 | K16: =INDEX(Negyedéves!$A$75:$BS$502,$A16,3+Eredmények!K$1*4+(Paraméterek!$C$52-4))/1000000 -> 0 | L16: =INDEX(Negyedéves!$A$75:$BS$502,$A16,3+Eredmények!L$1*4+(Paraméterek!$C$52-4))/1000000 -> 0 | M16: =INDEX(Negyedéves!$A$75:$BS$502,$A16,3+Eredmények!M$1*4+(Paraméterek!$C$52-4))/1000000 -> 0 | N16: =INDEX(Negyedéves!$A$75:$BS$502,$A16,3+Eredmények!N$1*4+(Paraméterek!$C$52-4))/1000000 -> 0 | O16: x
A17: 16 | B17: Követelések áruszállításból és szolgáltatásból | C17: =INDEX(Negyedéves!$A$75:$BS$502,$A17,3+Eredmények!C$1*4+(Paraméterek!$C$52-4))/1000000 -> 0 | D17: =INDEX(Negyedéves!$A$75:$BS$502,$A17,3+Eredmények!D$1*4+(Paraméterek!$C$52-4))/1000000 -> 0 | E17: =INDEX(Negyedéves!$A$75:$BS$502,$A17,3+Eredmények!E$1*4+(Paraméterek!$C$52-4))/1000000 -> 0 | F17: =INDEX(Negyedéves!$A$75:$BS$502,$A17,3+Eredmények!F$1*4+(Paraméterek!$C$52-4))/1000000 -> 0 | G17: =INDEX(Negyedéves!$A$75:$BS$502,$A17,3+Eredmények!G$1*4+(Paraméterek!$C$52-4))/1000000 -> 0 | H17: =INDEX(Negyedéves!$A$75:$BS$502,$A17,3+Eredmények!H$1*4+(Paraméterek!$C$52-4))/1000000 -> 0 | I17: =INDEX(Negyedéves!$A$75:$BS$502,$A17,3+Eredmények!I$1*4+(Paraméterek!$C$52-4))/1000000 -> 0 | J17: =INDEX(Negyedéves!$A$75:$BS$502,$A17,3+Eredmények!J$1*4+(Paraméterek!$C$52-4))/1000000 -> 0 | K17: =INDEX(Negyedéves!$A$75:$BS$502,$A17,3+Eredmények!K$1*4+(Paraméterek!$C$52-4))/1000000 -> 0 | L17: =INDEX(Negyedéves!$A$75:$BS$502,$A17,3+Eredmények!L$1*4+(Paraméterek!$C$52-4))/1000000 -> 0 | M17: =INDEX(Negyedéves!$A$75:$BS$502,$A17,3+Eredmények!M$1*4+(Paraméterek!$C$52-4))/1000000 -> 0 | N17: =INDEX(Negyedéves!$A$75:$BS$502,$A17,3+Eredmények!N$1*4+(Paraméterek!$C$52-4))/1000000 -> 0 | O17: x
A18: 17 | B18: Egyéb követelések | C18: =INDEX(Negyedéves!$A$75:$BS$502,$A18,3+Eredmények!C$1*4+(Paraméterek!$C$52-4))/1000000 -> 0 | D18: =INDEX(Negyedéves!$A$75:$BS$502,$A18,3+Eredmények!D$1*4+(Paraméterek!$C$52-4))/1000000 -> 0 | E18: =INDEX(Negyedéves!$A$75:$BS$502,$A18,3+Eredmények!E$1*4+(Paraméterek!$C$52-4))/1000000 -> 0 | F18: =INDEX(Negyedéves!$A$75:$BS$502,$A18,3+Eredmények!F$1*4+(Paraméterek!$C$52-4))/1000000 -> 0 | G18: =INDEX(Negyedéves!$A$75:$BS$502,$A18,3+Eredmények!G$1*4+(Paraméterek!$C$52-4))/1000000 -> 0 | H18: =INDEX(Negyedéves!$A$75:$BS$502,$A18,3+Eredmények!H$1*4+(Paraméterek!$C$52-4))/1000000 -> 0 | I18: =INDEX(Negyedéves!$A$75:$BS$502,$A18,3+Eredmények!I$1*4+(Paraméterek!$C$52-4))/1000000 -> 0 | J18: =INDEX(Negyedéves!$A$75:$BS$502,$A18,3+Eredmények!J$1*4+(Paraméterek!$C$52-4))/1000000 -> 0 | K18: =INDEX(Negyedéves!$A$75:$BS$502,$A18,3+Eredmények!K$1*4+(Paraméterek!$C$52-4))/1000000 -> 0 | L18: =INDEX(Negyedéves!$A$75:$BS$502,$A18,3+Eredmények!L$1*4+(Paraméterek!$C$52-4))/1000000 -> 0 | M18: =INDEX(Negyedéves!$A$75:$BS$502,$A18,3+Eredmények!M$1*4+(Paraméterek!$C$52-4))/1000000 -> 0 | N18: =INDEX(Negyedéves!$A$75:$BS$502,$A18,3+Eredmények!N$1*4+(Paraméterek!$C$52-4))/1000000 -> 0 | O18: x
A19: 18 | B19: Állami támogatás | C19: =INDEX(Negyedéves!$A$75:$BS$502,$A19,3+Eredmények!C$1*4+(Paraméterek!$C$52-4))/1000000 -> 0 | D19: =INDEX(Negyedéves!$A$75:$BS$502,$A19,3+Eredmények!D$1*4+(Paraméterek!$C$52-4))/1000000 -> 0 | E19: =INDEX(Negyedéves!$A$75:$BS$502,$A19,3+Eredmények!E$1*4+(Paraméterek!$C$52-4))/1000000 -> 0 | F19: =INDEX(Negyedéves!$A$75:$BS$502,$A19,3+Eredmények!F$1*4+(Paraméterek!$C$52-4))/1000000 -> 0 | G19: =INDEX(Negyedéves!$A$75:$BS$502,$A19,3+Eredmények!G$1*4+(Paraméterek!$C$52-4))/1000000 -> 0 | H19: =INDEX(Negyedéves!$A$75:$BS$502,$A19,3+Eredmények!H$1*4+(Paraméterek!$C$52-4))/1000000 -> 0 | I19: =INDEX(Negyedéves!$A$75:$BS$502,$A19,3+Eredmények!I$1*4+(Paraméterek!$C$52-4))/1000000 -> 0 | J19: =INDEX(Negyedéves!$A$75:$BS$502,$A19,3+Eredmények!J$1*4+(Paraméterek!$C$52-4))/1000000 -> 0 | K19: =INDEX(Negyedéves!$A$75:$BS$502,$A19,3+Eredmények!K$1*4+(Paraméterek!$C$52-4))/1000000 -> 0 | L19: =INDEX(Negyedéves!$A$75:$BS$502,$A19,3+Eredmények!L$1*4+(Paraméterek!$C$52-4))/1000000 -> 0 | M19: =INDEX(Negyedéves!$A$75:$BS$502,$A19,3+Eredmények!M$1*4+(Paraméterek!$C$52-4))/1000000 -> 0 | N19: =INDEX(Negyedéves!$A$75:$BS$502,$A19,3+Eredmények!N$1*4+(Paraméterek!$C$52-4))/1000000 -> 0 | O19: x
A20: 19 | B20: Értékpapírok | C20: =INDEX(Negyedéves!$A$75:$BS$502,$A20,3+Eredmények!C$1*4+(Paraméterek!$C$52-4))/1000000 -> 0 | D20: =INDEX(Negyedéves!$A$75:$BS$502,$A20,3+Eredmények!D$1*4+(Paraméterek!$C$52-4))/1000000 -> 0 | E20: =INDEX(Negyedéves!$A$75:$BS$502,$A20,3+Eredmények!E$1*4+(Paraméterek!$C$52-4))/1000000 -> 0 | F20: =INDEX(Negyedéves!$A$75:$BS$502,$A20,3+Eredmények!F$1*4+(Paraméterek!$C$52-4))/1000000 -> 0 | G20: =INDEX(Negyedéves!$A$75:$BS$502,$A20,3+Eredmények!G$1*4+(Paraméterek!$C$52-4))/1000000 -> 0 | H20: =INDEX(Negyedéves!$A$75:$BS$502,$A20,3+Eredmények!H$1*4+(Paraméterek!$C$52-4))/1000000 -> 0 | I20: =INDEX(Negyedéves!$A$75:$BS$502,$A20,3+Eredmények!I$1*4+(Paraméterek!$C$52-4))/1000000 -> 0 | J20: =INDEX(Negyedéves!$A$75:$BS$502,$A20,3+Eredmények!J$1*4+(Paraméterek!$C$52-4))/1000000 -> 0 | K20: =INDEX(Negyedéves!$A$75:$BS$502,$A20,3+Eredmények!K$1*4+(Paraméterek!$C$52-4))/1000000 -> 0 | L20: =INDEX(Negyedéves!$A$75:$BS$502,$A20,3+Eredmények!L$1*4+(Paraméterek!$C$52-4))/1000000 -> 0 | M20: =INDEX(Negyedéves!$A$75:$BS$502,$A20,3+Eredmények!M$1*4+(Paraméterek!$C$52-4))/1000000 -> 0 | N20: =INDEX(Negyedéves!$A$75:$BS$502,$A20,3+Eredmények!N$1*4+(Paraméterek!$C$52-4))/1000000 -> 0 | O20: x
A21: 20 | B21: Pénzeszközök | C21: =INDEX(Negyedéves!$A$75:$BS$502,$A21,3+Eredmények!C$1*4+(Paraméterek!$C$52-4))/1000000 -> 39.3717548 | D21: =INDEX(Negyedéves!$A$75:$BS$502,$A21,3+Eredmények!D$1*4+(Paraméterek!$C$52-4))/1000000 -> 78.88250855 | E21: =INDEX(Negyedéves!$A$75:$BS$502,$A21,3+Eredmények!E$1*4+(Paraméterek!$C$52-4))/1000000 -> 120.9252454 | F21: =INDEX(Negyedéves!$A$75:$BS$502,$A21,3+Eredmények!F$1*4+(Paraméterek!$C$52-4))/1000000 -> 165.6013742 | G21: =INDEX(Negyedéves!$A$75:$BS$502,$A21,3+Eredmények!G$1*4+(Paraméterek!$C$52-4))/1000000 -> 213.0159688 | H21: =INDEX(Negyedéves!$A$75:$BS$502,$A21,3+Eredmények!H$1*4+(Paraméterek!$C$52-4))/1000000 -> 263.2778933 | I21: =INDEX(Negyedéves!$A$75:$BS$502,$A21,3+Eredmények!I$1*4+(Paraméterek!$C$52-4))/1000000 -> 324.8332661 | J21: =INDEX(Negyedéves!$A$75:$BS$502,$A21,3+Eredmények!J$1*4+(Paraméterek!$C$52-4))/1000000 -> 391.1293691 | K21: =INDEX(Negyedéves!$A$75:$BS$502,$A21,3+Eredmények!K$1*4+(Paraméterek!$C$52-4))/1000000 -> 460.663753 | L21: =INDEX(Negyedéves!$A$75:$BS$502,$A21,3+Eredmények!L$1*4+(Paraméterek!$C$52-4))/1000000 -> 533.5628233 | M21: =INDEX(Negyedéves!$A$75:$BS$502,$A21,3+Eredmények!M$1*4+(Paraméterek!$C$52-4))/1000000 -> 608.151501 | N21: =INDEX(Negyedéves!$A$75:$BS$502,$A21,3+Eredmények!N$1*4+(Paraméterek!$C$52-4))/1000000 -> 686.3131636 | O21: x
A22: 21 | B22: AIE | C22: =INDEX(Negyedéves!$A$75:$BS$502,$A22,3+Eredmények!C$1*4+(Paraméterek!$C$52-4))/1000000 -> 0 | D22: =INDEX(Negyedéves!$A$75:$BS$502,$A22,3+Eredmények!D$1*4+(Paraméterek!$C$52-4))/1000000 -> 0 | E22: =INDEX(Negyedéves!$A$75:$BS$502,$A22,3+Eredmények!E$1*4+(Paraméterek!$C$52-4))/1000000 -> 0 | F22: =INDEX(Negyedéves!$A$75:$BS$502,$A22,3+Eredmények!F$1*4+(Paraméterek!$C$52-4))/1000000 -> 0 | G22: =INDEX(Negyedéves!$A$75:$BS$502,$A22,3+Eredmények!G$1*4+(Paraméterek!$C$52-4))/1000000 -> 0 | H22: =INDEX(Negyedéves!$A$75:$BS$502,$A22,3+Eredmények!H$1*4+(Paraméterek!$C$52-4))/1000000 -> 0 | I22: =INDEX(Negyedéves!$A$75:$BS$502,$A22,3+Eredmények!I$1*4+(Paraméterek!$C$52-4))/1000000 -> 0 | J22: =INDEX(Negyedéves!$A$75:$BS$502,$A22,3+Eredmények!J$1*4+(Paraméterek!$C$52-4))/1000000 -> 0 | K22: =INDEX(Negyedéves!$A$75:$BS$502,$A22,3+Eredmények!K$1*4+(Paraméterek!$C$52-4))/1000000 -> 0 | L22: =INDEX(Negyedéves!$A$75:$BS$502,$A22,3+Eredmények!L$1*4+(Paraméterek!$C$52-4))/1000000 -> 0 | M22: =INDEX(Negyedéves!$A$75:$BS$502,$A22,3+Eredmények!M$1*4+(Paraméterek!$C$52-4))/1000000 -> 0 | N22: =INDEX(Negyedéves!$A$75:$BS$502,$A22,3+Eredmények!N$1*4+(Paraméterek!$C$52-4))/1000000 -> 0 | O22: x
A23: 22 | B23: Bevételek AIE | C23: =INDEX(Negyedéves!$A$75:$BS$502,$A23,3+Eredmények!C$1*4+(Paraméterek!$C$52-4))/1000000 -> 0 | D23: =INDEX(Negyedéves!$A$75:$BS$502,$A23,3+Eredmények!D$1*4+(Paraméterek!$C$52-4))/1000000 -> 0 | E23: =INDEX(Negyedéves!$A$75:$BS$502,$A23,3+Eredmények!E$1*4+(Paraméterek!$C$52-4))/1000000 -> 0 | F23: =INDEX(Negyedéves!$A$75:$BS$502,$A23,3+Eredmények!F$1*4+(Paraméterek!$C$52-4))/1000000 -> 0 | G23: =INDEX(Negyedéves!$A$75:$BS$502,$A23,3+Eredmények!G$1*4+(Paraméterek!$C$52-4))/1000000 -> 0 | H23: =INDEX(Negyedéves!$A$75:$BS$502,$A23,3+Eredmények!H$1*4+(Paraméterek!$C$52-4))/1000000 -> 0 | I23: =INDEX(Negyedéves!$A$75:$BS$502,$A23,3+Eredmények!I$1*4+(Paraméterek!$C$52-4))/1000000 -> 0 | J23: =INDEX(Negyedéves!$A$75:$BS$502,$A23,3+Eredmények!J$1*4+(Paraméterek!$C$52-4))/1000000 -> 0 | K23: =INDEX(Negyedéves!$A$75:$BS$502,$A23,3+Eredmények!K$1*4+(Paraméterek!$C$52-4))/1000000 -> 0 | L23: =INDEX(Negyedéves!$A$75:$BS$502,$A23,3+Eredmények!L$1*4+(Paraméterek!$C$52-4))/1000000 -> 0 | M23: =INDEX(Negyedéves!$A$75:$BS$502,$A23,3+Eredmények!M$1*4+(Paraméterek!$C$52-4))/1000000 -> 0 | N23: =INDEX(Negyedéves!$A$75:$BS$502,$A23,3+Eredmények!N$1*4+(Paraméterek!$C$52-4))/1000000 -> 0 | O23: x
A24: 23 | B24: Költségek, ráfordítások AIE | C24: =INDEX(Negyedéves!$A$75:$BS$502,$A24,3+Eredmények!C$1*4+(Paraméterek!$C$52-4))/1000000 -> 0 | D24: =INDEX(Negyedéves!$A$75:$BS$502,$A24,3+Eredmények!D$1*4+(Paraméterek!$C$52-4))/1000000 -> 0 | E24: =INDEX(Negyedéves!$A$75:$BS$502,$A24,3+Eredmények!E$1*4+(Paraméterek!$C$52-4))/1000000 -> 0 | F24: =INDEX(Negyedéves!$A$75:$BS$502,$A24,3+Eredmények!F$1*4+(Paraméterek!$C$52-4))/1000000 -> 0 | G24: =INDEX(Negyedéves!$A$75:$BS$502,$A24,3+Eredmények!G$1*4+(Paraméterek!$C$52-4))/1000000 -> 0 | H24: =INDEX(Negyedéves!$A$75:$BS$502,$A24,3+Eredmények!H$1*4+(Paraméterek!$C$52-4))/1000000 -> 0 | I24: =INDEX(Negyedéves!$A$75:$BS$502,$A24,3+Eredmények!I$1*4+(Paraméterek!$C$52-4))/1000000 -> 0 | J24: =INDEX(Negyedéves!$A$75:$BS$502,$A24,3+Eredmények!J$1*4+(Paraméterek!$C$52-4))/1000000 -> 0 | K24: =INDEX(Negyedéves!$A$75:$BS$502,$A24,3+Eredmények!K$1*4+(Paraméterek!$C$52-4))/1000000 -> 0 | L24: =INDEX(Negyedéves!$A$75:$BS$502,$A24,3+Eredmények!L$1*4+(Paraméterek!$C$52-4))/1000000 -> 0 | M24: =INDEX(Negyedéves!$A$75:$BS$502,$A24,3+Eredmények!M$1*4+(Paraméterek!$C$52-4))/1000000 -> 0 | N24: =INDEX(Negyedéves!$A$75:$BS$502,$A24,3+Eredmények!N$1*4+(Paraméterek!$C$52-4))/1000000 -> 0 | O24: x
A25: 24 | B25: Összes eszköz | C25: =C4+C14+C22 -> 237.1622703 | D25: =D4+D14+D22 -> 257.0564064 | E25: 279.3536605 | F25: 304.1528644 | G25: 331.5564629 | H25: 361.6706388 | I25: 402.9387755 | J25: 448.805365 | K25: 497.9115499 | L25: 550.3837622 | M25: 624.3755253 | N25: 701.9416684 | O25: x
A26: 25 | O26: x
A27: 26 | B27: Források | O27: x
A28: 27 | B28: Saját tőke | C28: =C32+C31+C30+C29 -> 45.47689028 | D28: =D32+D31+D30+D29 -> 49.49451396 | E28: 51.89763206 | F28: 54.39958187 | G28: 57.00397645 | H28: 59.71455384 | I28: 62.53518132 | J28: 48.86658948 | K28: 52.10618494 | L28: 55.47221229 | M28: 76.9917631 | N28: 80.56614313 | O28: x
A29: 28 | B29: Jegyzett tőke | C29: =INDEX(Negyedéves!$A$75:$BS$502,$A29,3+Eredmények!C$1*4+(Paraméterek!$C$52-4))/1000000 -> 3 | D29: =INDEX(Negyedéves!$A$75:$BS$502,$A29,3+Eredmények!D$1*4+(Paraméterek!$C$52-4))/1000000 -> 3 | E29: =INDEX(Negyedéves!$A$75:$BS$502,$A29,3+Eredmények!E$1*4+(Paraméterek!$C$52-4))/1000000 -> 3 | F29: =INDEX(Negyedéves!$A$75:$BS$502,$A29,3+Eredmények!F$1*4+(Paraméterek!$C$52-4))/1000000 -> 3 | G29: =INDEX(Negyedéves!$A$75:$BS$502,$A29,3+Eredmények!G$1*4+(Paraméterek!$C$52-4))/1000000 -> 3 | H29: =INDEX(Negyedéves!$A$75:$BS$502,$A29,3+Eredmények!H$1*4+(Paraméterek!$C$52-4))/1000000 -> 3 | I29: =INDEX(Negyedéves!$A$75:$BS$502,$A29,3+Eredmények!I$1*4+(Paraméterek!$C$52-4))/1000000 -> 3 | J29: =INDEX(Negyedéves!$A$75:$BS$502,$A29,3+Eredmények!J$1*4+(Paraméterek!$C$52-4))/1000000 -> 3 | K29: =INDEX(Negyedéves!$A$75:$BS$502,$A29,3+Eredmények!K$1*4+(Paraméterek!$C$52-4))/1000000 -> 3 | L29: =INDEX(Negyedéves!$A$75:$BS$502,$A29,3+Eredmények!L$1*4+(Paraméterek!$C$52-4))/1000000 -> 3 | M29: =INDEX(Negyedéves!$A$75:$BS$502,$A29,3+Eredmények!M$1*4+(Paraméterek!$C$52-4))/1000000 -> 3 | N29: =INDEX(Negyedéves!$A$75:$BS$502,$A29,3+Eredmények!N$1*4+(Paraméterek!$C$52-4))/1000000 -> 3 | O29: x
A30: 29 | B30: Tőketartalék | C30: =INDEX(Negyedéves!$A$75:$BS$502,$A30,3+Eredmények!C$1*4+(Paraméterek!$C$52-4))/1000000 -> 0 | D30: =INDEX(Negyedéves!$A$75:$BS$502,$A30,3+Eredmények!D$1*4+(Paraméterek!$C$52-4))/1000000 -> 0 | E30: =INDEX(Negyedéves!$A$75:$BS$502,$A30,3+Eredmények!E$1*4+(Paraméterek!$C$52-4))/1000000 -> 0 | F30: =INDEX(Negyedéves!$A$75:$BS$502,$A30,3+Eredmények!F$1*4+(Paraméterek!$C$52-4))/1000000 -> 0 | G30: =INDEX(Negyedéves!$A$75:$BS$502,$A30,3+Eredmények!G$1*4+(Paraméterek!$C$52-4))/1000000 -> 0 | H30: =INDEX(Negyedéves!$A$75:$BS$502,$A30,3+Eredmények!H$1*4+(Paraméterek!$C$52-4))/1000000 -> 0 | I30: =INDEX(Negyedéves!$A$75:$BS$502,$A30,3+Eredmények!I$1*4+(Paraméterek!$C$52-4))/1000000 -> 0 | J30: =INDEX(Negyedéves!$A$75:$BS$502,$A30,3+Eredmények!J$1*4+(Paraméterek!$C$52-4))/1000000 -> 0 | K30: =INDEX(Negyedéves!$A$75:$BS$502,$A30,3+Eredmények!K$1*4+(Paraméterek!$C$52-4))/1000000 -> 0 | L30: =INDEX(Negyedéves!$A$75:$BS$502,$A30,3+Eredmények!L$1*4+(Paraméterek!$C$52-4))/1000000 -> 0 | M30: =INDEX(Negyedéves!$A$75:$BS$502,$A30,3+Eredmények!M$1*4+(Paraméterek!$C$52-4))/1000000 -> 0 | N30: =INDEX(Negyedéves!$A$75:$BS$502,$A30,3+Eredmények!N$1*4+(Paraméterek!$C$52-4))/1000000 -> 0 | O30: x
A31: 30 | B31: Eredménytartalék | C31: 0 | D31: 0 | E31: 0 | F31: 0 | G31: 0 | H31: 0 | I31: 0 | J31: 0 | K31: 0 | L31: 0 | M31: 0 | N31: 0 | O31: x
A32: 31 | B32: MSZE | C32: =C95 -> 42.47689028 | D32: =D95 -> 46.49451396 | E32: 48.89763206 | F32: 51.39958187 | G32: 54.00397645 | H32: 56.71455384 | I32: 59.53518132 | J32: 45.86658948 | K32: 49.10618494 | L32: 52.47221229 | M32: 73.9917631 | N32: 77.56614313 | O32: x
A33: 32 | B33: Céltartalékok | C33: =INDEX(Negyedéves!$A$75:$BS$502,$A33,3+Eredmények!C$1*4+(Paraméterek!$C$52-4))/1000000 -> 0 | D33: =INDEX(Negyedéves!$A$75:$BS$502,$A33,3+Eredmények!D$1*4+(Paraméterek!$C$52-4))/1000000 -> 0 | E33: =INDEX(Negyedéves!$A$75:$BS$502,$A33,3+Eredmények!E$1*4+(Paraméterek!$C$52-4))/1000000 -> 0 | F33: =INDEX(Negyedéves!$A$75:$BS$502,$A33,3+Eredmények!F$1*4+(Paraméterek!$C$52-4))/1000000 -> 0 | G33: =INDEX(Negyedéves!$A$75:$BS$502,$A33,3+Eredmények!G$1*4+(Paraméterek!$C$52-4))/1000000 -> 0 | H33: =INDEX(Negyedéves!$A$75:$BS$502,$A33,3+Eredmények!H$1*4+(Paraméterek!$C$52-4))/1000000 -> 0 | I33: =INDEX(Negyedéves!$A$75:$BS$502,$A33,3+Eredmények!I$1*4+(Paraméterek!$C$52-4))/1000000 -> 0 | J33: =INDEX(Negyedéves!$A$75:$BS$502,$A33,3+Eredmények!J$1*4+(Paraméterek!$C$52-4))/1000000 -> 0 | K33: =INDEX(Negyedéves!$A$75:$BS$502,$A33,3+Eredmények!K$1*4+(Paraméterek!$C$52-4))/1000000 -> 0 | L33: =INDEX(Negyedéves!$A$75:$BS$502,$A33,3+Eredmények!L$1*4+(Paraméterek!$C$52-4))/1000000 -> 0 | M33: =INDEX(Negyedéves!$A$75:$BS$502,$A33,3+Eredmények!M$1*4+(Paraméterek!$C$52-4))/1000000 -> 0 | N33: =INDEX(Negyedéves!$A$75:$BS$502,$A33,3+Eredmények!N$1*4+(Paraméterek!$C$52-4))/1000000 -> 0 | O33: x
A34: 33 | B34: Kötelezettségek | C34: =INDEX(Negyedéves!$A$75:$BS$502,$A34,3+Eredmények!C$1*4+(Paraméterek!$C$52-4))/1000000 -> 82.08311237 | D34: =INDEX(Negyedéves!$A$75:$BS$502,$A34,3+Eredmények!D$1*4+(Paraméterek!$C$52-4))/1000000 -> 73.74977903 | E34: =INDEX(Negyedéves!$A$75:$BS$502,$A34,3+Eredmények!E$1*4+(Paraméterek!$C$52-4))/1000000 -> 65.4164457 | F34: =INDEX(Negyedéves!$A$75:$BS$502,$A34,3+Eredmények!F$1*4+(Paraméterek!$C$52-4))/1000000 -> 57.08311237 | G34: =INDEX(Negyedéves!$A$75:$BS$502,$A34,3+Eredmények!G$1*4+(Paraméterek!$C$52-4))/1000000 -> 48.74977903 | H34: =INDEX(Negyedéves!$A$75:$BS$502,$A34,3+Eredmények!H$1*4+(Paraméterek!$C$52-4))/1000000 -> 40.4164457 | I34: =INDEX(Negyedéves!$A$75:$BS$502,$A34,3+Eredmények!I$1*4+(Paraméterek!$C$52-4))/1000000 -> 40.4164457 | J34: =INDEX(Negyedéves!$A$75:$BS$502,$A34,3+Eredmények!J$1*4+(Paraméterek!$C$52-4))/1000000 -> 40.4164457 | K34: =INDEX(Negyedéves!$A$75:$BS$502,$A34,3+Eredmények!K$1*4+(Paraméterek!$C$52-4))/1000000 -> 40.4164457 | L34: =INDEX(Negyedéves!$A$75:$BS$502,$A34,3+Eredmények!L$1*4+(Paraméterek!$C$52-4))/1000000 -> 40.4164457 | M34: =INDEX(Negyedéves!$A$75:$BS$502,$A34,3+Eredmények!M$1*4+(Paraméterek!$C$52-4))/1000000 -> 40.4164457 | N34: =INDEX(Negyedéves!$A$75:$BS$502,$A34,3+Eredmények!N$1*4+(Paraméterek!$C$52-4))/1000000 -> 40.4164457 | O34: x
A35: 34 | B35: Hátrasorolt kötelezettségek | C35: =INDEX(Negyedéves!$A$75:$BS$502,$A35,3+Eredmények!C$1*4+(Paraméterek!$C$52-4))/1000000 -> 40.4164457 | D35: =INDEX(Negyedéves!$A$75:$BS$502,$A35,3+Eredmények!D$1*4+(Paraméterek!$C$52-4))/1000000 -> 40.4164457 | E35: =INDEX(Negyedéves!$A$75:$BS$502,$A35,3+Eredmények!E$1*4+(Paraméterek!$C$52-4))/1000000 -> 40.4164457 | F35: =INDEX(Negyedéves!$A$75:$BS$502,$A35,3+Eredmények!F$1*4+(Paraméterek!$C$52-4))/1000000 -> 40.4164457 | G35: =INDEX(Negyedéves!$A$75:$BS$502,$A35,3+Eredmények!G$1*4+(Paraméterek!$C$52-4))/1000000 -> 40.4164457 | H35: =INDEX(Negyedéves!$A$75:$BS$502,$A35,3+Eredmények!H$1*4+(Paraméterek!$C$52-4))/1000000 -> 40.4164457 | I35: =INDEX(Negyedéves!$A$75:$BS$502,$A35,3+Eredmények!I$1*4+(Paraméterek!$C$52-4))/1000000 -> 40.4164457 | J35: =INDEX(Negyedéves!$A$75:$BS$502,$A35,3+Eredmények!J$1*4+(Paraméterek!$C$52-4))/1000000 -> 40.4164457 | K35: =INDEX(Negyedéves!$A$75:$BS$502,$A35,3+Eredmények!K$1*4+(Paraméterek!$C$52-4))/1000000 -> 40.4164457 | L35: =INDEX(Negyedéves!$A$75:$BS$502,$A35,3+Eredmények!L$1*4+(Paraméterek!$C$52-4))/1000000 -> 40.4164457 | M35: =INDEX(Negyedéves!$A$75:$BS$502,$A35,3+Eredmények!M$1*4+(Paraméterek!$C$52-4))/1000000 -> 40.4164457 | N35: =INDEX(Negyedéves!$A$75:$BS$502,$A35,3+Eredmények!N$1*4+(Paraméterek!$C$52-4))/1000000 -> 40.4164457 | O35: x
A36: 35 | B36: Hosszú lejáratú kötelezettségek | C36: =INDEX(Negyedéves!$A$75:$BS$502,$A36,3+Eredmények!C$1*4+(Paraméterek!$C$52-4))/1000000 -> 41.66666667 | D36: =INDEX(Negyedéves!$A$75:$BS$502,$A36,3+Eredmények!D$1*4+(Paraméterek!$C$52-4))/1000000 -> 33.33333333 | E36: =INDEX(Negyedéves!$A$75:$BS$502,$A36,3+Eredmények!E$1*4+(Paraméterek!$C$52-4))/1000000 -> 25 | F36: =INDEX(Negyedéves!$A$75:$BS$502,$A36,3+Eredmények!F$1*4+(Paraméterek!$C$52-4))/1000000 -> 16.66666667 | G36: =INDEX(Negyedéves!$A$75:$BS$502,$A36,3+Eredmények!G$1*4+(Paraméterek!$C$52-4))/1000000 -> 8.333333333 | H36: =INDEX(Negyedéves!$A$75:$BS$502,$A36,3+Eredmények!H$1*4+(Paraméterek!$C$52-4))/1000000 -> -8.847564459e-15 | I36: =INDEX(Negyedéves!$A$75:$BS$502,$A36,3+Eredmények!I$1*4+(Paraméterek!$C$52-4))/1000000 -> -8.847564459e-15 | J36: =INDEX(Negyedéves!$A$75:$BS$502,$A36,3+Eredmények!J$1*4+(Paraméterek!$C$52-4))/1000000 -> -8.847564459e-15 | K36: =INDEX(Negyedéves!$A$75:$BS$502,$A36,3+Eredmények!K$1*4+(Paraméterek!$C$52-4))/1000000 -> -8.847564459e-15 | L36: =INDEX(Negyedéves!$A$75:$BS$502,$A36,3+Eredmények!L$1*4+(Paraméterek!$C$52-4))/1000000 -> -8.847564459e-15 | M36: =INDEX(Negyedéves!$A$75:$BS$502,$A36,3+Eredmények!M$1*4+(Paraméterek!$C$52-4))/1000000 -> -8.847564459e-15 | N36: =INDEX(Negyedéves!$A$75:$BS$502,$A36,3+Eredmények!N$1*4+(Paraméterek!$C$52-4))/1000000 -> -8.847564459e-15 | O36: x
A37: 36 | B37: Beruházási és fejlesztési hitelek | C37: =INDEX(Negyedéves!$A$75:$BS$502,$A37,3+Eredmények!C$1*4+(Paraméterek!$C$52-4))/1000000 -> 41.66666667 | D37: =INDEX(Negyedéves!$A$75:$BS$502,$A37,3+Eredmények!D$1*4+(Paraméterek!$C$52-4))/1000000 -> 33.33333333 | E37: =INDEX(Negyedéves!$A$75:$BS$502,$A37,3+Eredmények!E$1*4+(Paraméterek!$C$52-4))/1000000 -> 25 | F37: =INDEX(Negyedéves!$A$75:$BS$502,$A37,3+Eredmények!F$1*4+(Paraméterek!$C$52-4))/1000000 -> 16.66666667 | G37: =INDEX(Negyedéves!$A$75:$BS$502,$A37,3+Eredmények!G$1*4+(Paraméterek!$C$52-4))/1000000 -> 8.333333333 | H37: =INDEX(Negyedéves!$A$75:$BS$502,$A37,3+Eredmények!H$1*4+(Paraméterek!$C$52-4))/1000000 -> -8.847564459e-15 | I37: =INDEX(Negyedéves!$A$75:$BS$502,$A37,3+Eredmények!I$1*4+(Paraméterek!$C$52-4))/1000000 -> -8.847564459e-15 | J37: =INDEX(Negyedéves!$A$75:$BS$502,$A37,3+Eredmények!J$1*4+(Paraméterek!$C$52-4))/1000000 -> -8.847564459e-15 | K37: =INDEX(Negyedéves!$A$75:$BS$502,$A37,3+Eredmények!K$1*4+(Paraméterek!$C$52-4))/1000000 -> -8.847564459e-15 | L37: =INDEX(Negyedéves!$A$75:$BS$502,$A37,3+Eredmények!L$1*4+(Paraméterek!$C$52-4))/1000000 -> -8.847564459e-15 | M37: =INDEX(Negyedéves!$A$75:$BS$502,$A37,3+Eredmények!M$1*4+(Paraméterek!$C$52-4))/1000000 -> -8.847564459e-15 | N37: =INDEX(Negyedéves!$A$75:$BS$502,$A37,3+Eredmények!N$1*4+(Paraméterek!$C$52-4))/1000000 -> -8.847564459e-15 | O37: x
A38: 37 | B38: Rövid lejáratú kötelezettségek | C38: =INDEX(Negyedéves!$A$75:$BS$502,$A38,3+Eredmények!C$1*4+(Paraméterek!$C$52-4))/1000000 -> 0 | D38: =INDEX(Negyedéves!$A$75:$BS$502,$A38,3+Eredmények!D$1*4+(Paraméterek!$C$52-4))/1000000 -> 0 | E38: =INDEX(Negyedéves!$A$75:$BS$502,$A38,3+Eredmények!E$1*4+(Paraméterek!$C$52-4))/1000000 -> 0 | F38: =INDEX(Negyedéves!$A$75:$BS$502,$A38,3+Eredmények!F$1*4+(Paraméterek!$C$52-4))/1000000 -> 0 | G38: =INDEX(Negyedéves!$A$75:$BS$502,$A38,3+Eredmények!G$1*4+(Paraméterek!$C$52-4))/1000000 -> 0 | H38: =INDEX(Negyedéves!$A$75:$BS$502,$A38,3+Eredmények!H$1*4+(Paraméterek!$C$52-4))/1000000 -> 0 | I38: =INDEX(Negyedéves!$A$75:$BS$502,$A38,3+Eredmények!I$1*4+(Paraméterek!$C$52-4))/1000000 -> -6.053596735e-15 | J38: =INDEX(Negyedéves!$A$75:$BS$502,$A38,3+Eredmények!J$1*4+(Paraméterek!$C$52-4))/1000000 -> -6.053596735e-15 | K38: =INDEX(Negyedéves!$A$75:$BS$502,$A38,3+Eredmények!K$1*4+(Paraméterek!$C$52-4))/1000000 -> -6.053596735e-15 | L38: =INDEX(Negyedéves!$A$75:$BS$502,$A38,3+Eredmények!L$1*4+(Paraméterek!$C$52-4))/1000000 -> -6.053596735e-15 | M38: =INDEX(Negyedéves!$A$75:$BS$502,$A38,3+Eredmények!M$1*4+(Paraméterek!$C$52-4))/1000000 -> 5.355104804e-14 | N38: =INDEX(Negyedéves!$A$75:$BS$502,$A38,3+Eredmények!N$1*4+(Paraméterek!$C$52-4))/1000000 -> 5.355104804e-14 | O38: x
A39: 38 | B39: Rövid lejáratú hitelek | C39: =INDEX(Negyedéves!$A$75:$BS$502,$A39,3+Eredmények!C$1*4+(Paraméterek!$C$52-4))/1000000 -> 0 | D39: =INDEX(Negyedéves!$A$75:$BS$502,$A39,3+Eredmények!D$1*4+(Paraméterek!$C$52-4))/1000000 -> 0 | E39: =INDEX(Negyedéves!$A$75:$BS$502,$A39,3+Eredmények!E$1*4+(Paraméterek!$C$52-4))/1000000 -> 0 | F39: =INDEX(Negyedéves!$A$75:$BS$502,$A39,3+Eredmények!F$1*4+(Paraméterek!$C$52-4))/1000000 -> 0 | G39: =INDEX(Negyedéves!$A$75:$BS$502,$A39,3+Eredmények!G$1*4+(Paraméterek!$C$52-4))/1000000 -> 0 | H39: =INDEX(Negyedéves!$A$75:$BS$502,$A39,3+Eredmények!H$1*4+(Paraméterek!$C$52-4))/1000000 -> 0 | I39: =INDEX(Negyedéves!$A$75:$BS$502,$A39,3+Eredmények!I$1*4+(Paraméterek!$C$52-4))/1000000 -> -6.053596735e-15 | J39: =INDEX(Negyedéves!$A$75:$BS$502,$A39,3+Eredmények!J$1*4+(Paraméterek!$C$52-4))/1000000 -> -6.053596735e-15 | K39: =INDEX(Negyedéves!$A$75:$BS$502,$A39,3+Eredmények!K$1*4+(Paraméterek!$C$52-4))/1000000 -> -6.053596735e-15 | L39: =INDEX(Negyedéves!$A$75:$BS$502,$A39,3+Eredmények!L$1*4+(Paraméterek!$C$52-4))/1000000 -> -6.053596735e-15 | M39: =INDEX(Negyedéves!$A$75:$BS$502,$A39,3+Eredmények!M$1*4+(Paraméterek!$C$52-4))/1000000 -> 5.355104804e-14 | N39: =INDEX(Negyedéves!$A$75:$BS$502,$A39,3+Eredmények!N$1*4+(Paraméterek!$C$52-4))/1000000 -> 5.355104804e-14 | O39: x
A40: 39 | B40: Vevőktől kapott előlegek | C40: =INDEX(Negyedéves!$A$75:$BS$502,$A40,3+Eredmények!C$1*4+(Paraméterek!$C$52-4))/1000000 -> 0 | D40: =INDEX(Negyedéves!$A$75:$BS$502,$A40,3+Eredmények!D$1*4+(Paraméterek!$C$52-4))/1000000 -> 0 | E40: =INDEX(Negyedéves!$A$75:$BS$502,$A40,3+Eredmények!E$1*4+(Paraméterek!$C$52-4))/1000000 -> 0 | F40: =INDEX(Negyedéves!$A$75:$BS$502,$A40,3+Eredmények!F$1*4+(Paraméterek!$C$52-4))/1000000 -> 0 | G40: =INDEX(Negyedéves!$A$75:$BS$502,$A40,3+Eredmények!G$1*4+(Paraméterek!$C$52-4))/1000000 -> 0 | H40: =INDEX(Negyedéves!$A$75:$BS$502,$A40,3+Eredmények!H$1*4+(Paraméterek!$C$52-4))/1000000 -> 0 | I40: =INDEX(Negyedéves!$A$75:$BS$502,$A40,3+Eredmények!I$1*4+(Paraméterek!$C$52-4))/1000000 -> 0 | J40: =INDEX(Negyedéves!$A$75:$BS$502,$A40,3+Eredmények!J$1*4+(Paraméterek!$C$52-4))/1000000 -> 0 | K40: =INDEX(Negyedéves!$A$75:$BS$502,$A40,3+Eredmények!K$1*4+(Paraméterek!$C$52-4))/1000000 -> 0 | L40: =INDEX(Negyedéves!$A$75:$BS$502,$A40,3+Eredmények!L$1*4+(Paraméterek!$C$52-4))/1000000 -> 0 | M40: =INDEX(Negyedéves!$A$75:$BS$502,$A40,3+Eredmények!M$1*4+(Paraméterek!$C$52-4))/1000000 -> 0 | N40: =INDEX(Negyedéves!$A$75:$BS$502,$A40,3+Eredmények!N$1*4+(Paraméterek!$C$52-4))/1000000 -> 0 | O40: x
A41: 40 | B41: Kötelezettségekáruszállításból és szolgáltatásból | C41: =INDEX(Negyedéves!$A$75:$BS$502,$A41,3+Eredmények!C$1*4+(Paraméterek!$C$52-4))/1000000 -> 0 | D41: =INDEX(Negyedéves!$A$75:$BS$502,$A41,3+Eredmények!D$1*4+(Paraméterek!$C$52-4))/1000000 -> 0 | E41: =INDEX(Negyedéves!$A$75:$BS$502,$A41,3+Eredmények!E$1*4+(Paraméterek!$C$52-4))/1000000 -> 0 | F41: =INDEX(Negyedéves!$A$75:$BS$502,$A41,3+Eredmények!F$1*4+(Paraméterek!$C$52-4))/1000000 -> 0 | G41: =INDEX(Negyedéves!$A$75:$BS$502,$A41,3+Eredmények!G$1*4+(Paraméterek!$C$52-4))/1000000 -> 0 | H41: =INDEX(Negyedéves!$A$75:$BS$502,$A41,3+Eredmények!H$1*4+(Paraméterek!$C$52-4))/1000000 -> 0 | I41: =INDEX(Negyedéves!$A$75:$BS$502,$A41,3+Eredmények!I$1*4+(Paraméterek!$C$52-4))/1000000 -> 0 | J41: =INDEX(Negyedéves!$A$75:$BS$502,$A41,3+Eredmények!J$1*4+(Paraméterek!$C$52-4))/1000000 -> 0 | K41: =INDEX(Negyedéves!$A$75:$BS$502,$A41,3+Eredmények!K$1*4+(Paraméterek!$C$52-4))/1000000 -> 0 | L41: =INDEX(Negyedéves!$A$75:$BS$502,$A41,3+Eredmények!L$1*4+(Paraméterek!$C$52-4))/1000000 -> 0 | M41: =INDEX(Negyedéves!$A$75:$BS$502,$A41,3+Eredmények!M$1*4+(Paraméterek!$C$52-4))/1000000 -> 0 | N41: =INDEX(Negyedéves!$A$75:$BS$502,$A41,3+Eredmények!N$1*4+(Paraméterek!$C$52-4))/1000000 -> 0 | O41: x
A42: 41 | B42: Állami támogatás hitele | C42: =INDEX(Negyedéves!$A$75:$BS$502,$A42,3+Eredmények!C$1*4+(Paraméterek!$C$52-4))/1000000 -> 0 | D42: =INDEX(Negyedéves!$A$75:$BS$502,$A42,3+Eredmények!D$1*4+(Paraméterek!$C$52-4))/1000000 -> 0 | E42: =INDEX(Negyedéves!$A$75:$BS$502,$A42,3+Eredmények!E$1*4+(Paraméterek!$C$52-4))/1000000 -> 0 | F42: =INDEX(Negyedéves!$A$75:$BS$502,$A42,3+Eredmények!F$1*4+(Paraméterek!$C$52-4))/1000000 -> 0 | G42: =INDEX(Negyedéves!$A$75:$BS$502,$A42,3+Eredmények!G$1*4+(Paraméterek!$C$52-4))/1000000 -> 0 | H42: =INDEX(Negyedéves!$A$75:$BS$502,$A42,3+Eredmények!H$1*4+(Paraméterek!$C$52-4))/1000000 -> 0 | I42: =INDEX(Negyedéves!$A$75:$BS$502,$A42,3+Eredmények!I$1*4+(Paraméterek!$C$52-4))/1000000 -> 0 | J42: =INDEX(Negyedéves!$A$75:$BS$502,$A42,3+Eredmények!J$1*4+(Paraméterek!$C$52-4))/1000000 -> 0 | K42: =INDEX(Negyedéves!$A$75:$BS$502,$A42,3+Eredmények!K$1*4+(Paraméterek!$C$52-4))/1000000 -> 0 | L42: =INDEX(Negyedéves!$A$75:$BS$502,$A42,3+Eredmények!L$1*4+(Paraméterek!$C$52-4))/1000000 -> 0 | M42: =INDEX(Negyedéves!$A$75:$BS$502,$A42,3+Eredmények!M$1*4+(Paraméterek!$C$52-4))/1000000 -> 0 | N42: =INDEX(Negyedéves!$A$75:$BS$502,$A42,3+Eredmények!N$1*4+(Paraméterek!$C$52-4))/1000000 -> 0 | O42: x
A43: 42 | B43: ÁFA-hitel | C43: =INDEX(Negyedéves!$A$75:$BS$502,$A43,3+Eredmények!C$1*4+(Paraméterek!$C$52-4))/1000000 -> 0 | D43: =INDEX(Negyedéves!$A$75:$BS$502,$A43,3+Eredmények!D$1*4+(Paraméterek!$C$52-4))/1000000 -> 0 | E43: =INDEX(Negyedéves!$A$75:$BS$502,$A43,3+Eredmények!E$1*4+(Paraméterek!$C$52-4))/1000000 -> 0 | F43: =INDEX(Negyedéves!$A$75:$BS$502,$A43,3+Eredmények!F$1*4+(Paraméterek!$C$52-4))/1000000 -> 0 | G43: =INDEX(Negyedéves!$A$75:$BS$502,$A43,3+Eredmények!G$1*4+(Paraméterek!$C$52-4))/1000000 -> 0 | H43: =INDEX(Negyedéves!$A$75:$BS$502,$A43,3+Eredmények!H$1*4+(Paraméterek!$C$52-4))/1000000 -> 0 | I43: =INDEX(Negyedéves!$A$75:$BS$502,$A43,3+Eredmények!I$1*4+(Paraméterek!$C$52-4))/1000000 -> 0 | J43: =INDEX(Negyedéves!$A$75:$BS$502,$A43,3+Eredmények!J$1*4+(Paraméterek!$C$52-4))/1000000 -> 0 | K43: =INDEX(Negyedéves!$A$75:$BS$502,$A43,3+Eredmények!K$1*4+(Paraméterek!$C$52-4))/1000000 -> 0 | L43: =INDEX(Negyedéves!$A$75:$BS$502,$A43,3+Eredmények!L$1*4+(Paraméterek!$C$52-4))/1000000 -> 0 | M43: =INDEX(Negyedéves!$A$75:$BS$502,$A43,3+Eredmények!M$1*4+(Paraméterek!$C$52-4))/1000000 -> 0 | N43: =INDEX(Negyedéves!$A$75:$BS$502,$A43,3+Eredmények!N$1*4+(Paraméterek!$C$52-4))/1000000 -> 0 | O43: x
A44: 43 | B44: Passzív időbeli elhatárolások | C44: =INDEX(Negyedéves!$A$75:$BS$502,$A44,3+Eredmények!C$1*4+(Paraméterek!$C$52-4))/1000000 -> 109.6022677 | D44: =INDEX(Negyedéves!$A$75:$BS$502,$A44,3+Eredmények!D$1*4+(Paraméterek!$C$52-4))/1000000 -> 91.33522307 | E44: =INDEX(Negyedéves!$A$75:$BS$502,$A44,3+Eredmények!E$1*4+(Paraméterek!$C$52-4))/1000000 -> 73.06817846 | F44: =INDEX(Negyedéves!$A$75:$BS$502,$A44,3+Eredmények!F$1*4+(Paraméterek!$C$52-4))/1000000 -> 54.80113384 | G44: =INDEX(Negyedéves!$A$75:$BS$502,$A44,3+Eredmények!G$1*4+(Paraméterek!$C$52-4))/1000000 -> 36.53408923 | H44: =INDEX(Negyedéves!$A$75:$BS$502,$A44,3+Eredmények!H$1*4+(Paraméterek!$C$52-4))/1000000 -> 18.26704461 | I44: =INDEX(Negyedéves!$A$75:$BS$502,$A44,3+Eredmények!I$1*4+(Paraméterek!$C$52-4))/1000000 -> 0 | J44: =INDEX(Negyedéves!$A$75:$BS$502,$A44,3+Eredmények!J$1*4+(Paraméterek!$C$52-4))/1000000 -> 0 | K44: =INDEX(Negyedéves!$A$75:$BS$502,$A44,3+Eredmények!K$1*4+(Paraméterek!$C$52-4))/1000000 -> 0 | L44: =INDEX(Negyedéves!$A$75:$BS$502,$A44,3+Eredmények!L$1*4+(Paraméterek!$C$52-4))/1000000 -> 0 | M44: =INDEX(Negyedéves!$A$75:$BS$502,$A44,3+Eredmények!M$1*4+(Paraméterek!$C$52-4))/1000000 -> 0 | N44: =INDEX(Negyedéves!$A$75:$BS$502,$A44,3+Eredmények!N$1*4+(Paraméterek!$C$52-4))/1000000 -> 0 | O44: x
A45: 44 | B45: PIE bevételekre | C45: =INDEX(Negyedéves!$A$75:$BS$502,$A45,3+Eredmények!C$1*4+(Paraméterek!$C$52-4))/1000000 -> 109.6022677 | D45: =INDEX(Negyedéves!$A$75:$BS$502,$A45,3+Eredmények!D$1*4+(Paraméterek!$C$52-4))/1000000 -> 91.33522307 | E45: =INDEX(Negyedéves!$A$75:$BS$502,$A45,3+Eredmények!E$1*4+(Paraméterek!$C$52-4))/1000000 -> 73.06817846 | F45: =INDEX(Negyedéves!$A$75:$BS$502,$A45,3+Eredmények!F$1*4+(Paraméterek!$C$52-4))/1000000 -> 54.80113384 | G45: =INDEX(Negyedéves!$A$75:$BS$502,$A45,3+Eredmények!G$1*4+(Paraméterek!$C$52-4))/1000000 -> 36.53408923 | H45: =INDEX(Negyedéves!$A$75:$BS$502,$A45,3+Eredmények!H$1*4+(Paraméterek!$C$52-4))/1000000 -> 18.26704461 | I45: =INDEX(Negyedéves!$A$75:$BS$502,$A45,3+Eredmények!I$1*4+(Paraméterek!$C$52-4))/1000000 -> 0 | J45: =INDEX(Negyedéves!$A$75:$BS$502,$A45,3+Eredmények!J$1*4+(Paraméterek!$C$52-4))/1000000 -> 0 | K45: =INDEX(Negyedéves!$A$75:$BS$502,$A45,3+Eredmények!K$1*4+(Paraméterek!$C$52-4))/1000000 -> 0 | L45: =INDEX(Negyedéves!$A$75:$BS$502,$A45,3+Eredmények!L$1*4+(Paraméterek!$C$52-4))/1000000 -> 0 | M45: =INDEX(Negyedéves!$A$75:$BS$502,$A45,3+Eredmények!M$1*4+(Paraméterek!$C$52-4))/1000000 -> 0 | N45: =INDEX(Negyedéves!$A$75:$BS$502,$A45,3+Eredmények!N$1*4+(Paraméterek!$C$52-4))/1000000 -> 0 | O45: x
A46: 45 | B46: PIE költségekre, ráfordításokra | C46: =INDEX(Negyedéves!$A$75:$BS$502,$A46,3+Eredmények!C$1*4+(Paraméterek!$C$52-4))/1000000 -> 0 | D46: =INDEX(Negyedéves!$A$75:$BS$502,$A46,3+Eredmények!D$1*4+(Paraméterek!$C$52-4))/1000000 -> 0 | E46: =INDEX(Negyedéves!$A$75:$BS$502,$A46,3+Eredmények!E$1*4+(Paraméterek!$C$52-4))/1000000 -> 0 | F46: =INDEX(Negyedéves!$A$75:$BS$502,$A46,3+Eredmények!F$1*4+(Paraméterek!$C$52-4))/1000000 -> 0 | G46: =INDEX(Negyedéves!$A$75:$BS$502,$A46,3+Eredmények!G$1*4+(Paraméterek!$C$52-4))/1000000 -> 0 | H46: =INDEX(Negyedéves!$A$75:$BS$502,$A46,3+Eredmények!H$1*4+(Paraméterek!$C$52-4))/1000000 -> 0 | I46: =INDEX(Negyedéves!$A$75:$BS$502,$A46,3+Eredmények!I$1*4+(Paraméterek!$C$52-4))/1000000 -> 0 | J46: =INDEX(Negyedéves!$A$75:$BS$502,$A46,3+Eredmények!J$1*4+(Paraméterek!$C$52-4))/1000000 -> 0 | K46: =INDEX(Negyedéves!$A$75:$BS$502,$A46,3+Eredmények!K$1*4+(Paraméterek!$C$52-4))/1000000 -> 0 | L46: =INDEX(Negyedéves!$A$75:$BS$502,$A46,3+Eredmények!L$1*4+(Paraméterek!$C$52-4))/1000000 -> 0 | M46: =INDEX(Negyedéves!$A$75:$BS$502,$A46,3+Eredmények!M$1*4+(Paraméterek!$C$52-4))/1000000 -> 0 | N46: =INDEX(Negyedéves!$A$75:$BS$502,$A46,3+Eredmények!N$1*4+(Paraméterek!$C$52-4))/1000000 -> 0 | O46: x
A47: 46 | B47: Halasztott bevételek | C47: =INDEX(Negyedéves!$A$75:$BS$502,$A47,3+Eredmények!C$1*4+(Paraméterek!$C$52-4))/1000000 -> 0 | D47: =INDEX(Negyedéves!$A$75:$BS$502,$A47,3+Eredmények!D$1*4+(Paraméterek!$C$52-4))/1000000 -> 0 | E47: =INDEX(Negyedéves!$A$75:$BS$502,$A47,3+Eredmények!E$1*4+(Paraméterek!$C$52-4))/1000000 -> 0 | F47: =INDEX(Negyedéves!$A$75:$BS$502,$A47,3+Eredmények!F$1*4+(Paraméterek!$C$52-4))/1000000 -> 0 | G47: =INDEX(Negyedéves!$A$75:$BS$502,$A47,3+Eredmények!G$1*4+(Paraméterek!$C$52-4))/1000000 -> 0 | H47: =INDEX(Negyedéves!$A$75:$BS$502,$A47,3+Eredmények!H$1*4+(Paraméterek!$C$52-4))/1000000 -> 0 | I47: =INDEX(Negyedéves!$A$75:$BS$502,$A47,3+Eredmények!I$1*4+(Paraméterek!$C$52-4))/1000000 -> 0 | J47: =INDEX(Negyedéves!$A$75:$BS$502,$A47,3+Eredmények!J$1*4+(Paraméterek!$C$52-4))/1000000 -> 0 | K47: =INDEX(Negyedéves!$A$75:$BS$502,$A47,3+Eredmények!K$1*4+(Paraméterek!$C$52-4))/1000000 -> 0 | L47: =INDEX(Negyedéves!$A$75:$BS$502,$A47,3+Eredmények!L$1*4+(Paraméterek!$C$52-4))/1000000 -> 0 | M47: =INDEX(Negyedéves!$A$75:$BS$502,$A47,3+Eredmények!M$1*4+(Paraméterek!$C$52-4))/1000000 -> 0 | N47: =INDEX(Negyedéves!$A$75:$BS$502,$A47,3+Eredmények!N$1*4+(Paraméterek!$C$52-4))/1000000 -> 0 | O47: x
A48: 47 | B48: Összes forrás | C48: =C28+C33+C34+C44 -> 237.1622703 | D48: =D28+D33+D34+D44 -> 214.5795161 | E48: 190.3822562 | F48: 166.2838281 | G48: 142.2878447 | H48: 118.3980442 | I48: 102.951627 | J48: 89.28303518 | K48: 92.52263064 | L48: 95.88865799 | M48: 117.4082088 | N48: 120.9825888 | O48: x
O49: x
O50: x
B51: Eredménykimutatás | O51: x
A52: 0 | B52: Belföldi értékesítés | C52: =SUM(OFFSET(Negyedéves!$A$125,$A52,3+(C$1-1)*4+IF(C$1=1,0,(Paraméterek!$C$52-4)),1,IF(C$1=1,Paraméterek!$C$52,4)))/1000000 -> 99.61001702 | D52: =SUM(OFFSET(Negyedéves!$A$125,$A52,3+(D$1-1)*4+IF(D$1=1,0,(Paraméterek!$C$52-4)),1,IF(D$1=1,Paraméterek!$C$52,4)))/1000000 -> 101.6022174 | E52: =SUM(OFFSET(Negyedéves!$A$125,$A52,3+(E$1-1)*4+IF(E$1=1,0,(Paraméterek!$C$52-4)),1,IF(E$1=1,Paraméterek!$C$52,4)))/1000000 -> 103.6342617 | F52: =SUM(OFFSET(Negyedéves!$A$125,$A52,3+(F$1-1)*4+IF(F$1=1,0,(Paraméterek!$C$52-4)),1,IF(F$1=1,Paraméterek!$C$52,4)))/1000000 -> 105.7069469 | G52: =SUM(OFFSET(Negyedéves!$A$125,$A52,3+(G$1-1)*4+IF(G$1=1,0,(Paraméterek!$C$52-4)),1,IF(G$1=1,Paraméterek!$C$52,4)))/1000000 -> 107.8210859 | H52: =SUM(OFFSET(Negyedéves!$A$125,$A52,3+(H$1-1)*4+IF(H$1=1,0,(Paraméterek!$C$52-4)),1,IF(H$1=1,Paraméterek!$C$52,4)))/1000000 -> 109.9775076 | I52: =SUM(OFFSET(Negyedéves!$A$125,$A52,3+(I$1-1)*4+IF(I$1=1,0,(Paraméterek!$C$52-4)),1,IF(I$1=1,Paraméterek!$C$52,4)))/1000000 -> 112.1770577 | J52: =SUM(OFFSET(Negyedéves!$A$125,$A52,3+(J$1-1)*4+IF(J$1=1,0,(Paraméterek!$C$52-4)),1,IF(J$1=1,Paraméterek!$C$52,4)))/1000000 -> 114.4205989 | K52: =SUM(OFFSET(Negyedéves!$A$125,$A52,3+(K$1-1)*4+IF(K$1=1,0,(Paraméterek!$C$52-4)),1,IF(K$1=1,Paraméterek!$C$52,4)))/1000000 -> 116.7090109 | L52: =SUM(OFFSET(Negyedéves!$A$125,$A52,3+(L$1-1)*4+IF(L$1=1,0,(Paraméterek!$C$52-4)),1,IF(L$1=1,Paraméterek!$C$52,4)))/1000000 -> 119.0431911 | M52: =SUM(OFFSET(Negyedéves!$A$125,$A52,3+(M$1-1)*4+IF(M$1=1,0,(Paraméterek!$C$52-4)),1,IF(M$1=1,Paraméterek!$C$52,4)))/1000000 -> 121.4240549 | N52: =SUM(OFFSET(Negyedéves!$A$125,$A52,3+(N$1-1)*4+IF(N$1=1,0,(Paraméterek!$C$52-4)),1,IF(N$1=1,Paraméterek!$C$52,4)))/1000000 -> 123.852536 | O52: x
A53: 1 | B53: Exportértékesítés | C53: =SUM(OFFSET(Negyedéves!$A$125,$A53,3+(C$1-1)*4+IF(C$1=1,0,(Paraméterek!$C$52-4)),1,IF(C$1=1,Paraméterek!$C$52,4)))/1000000 -> 0 | D53: =SUM(OFFSET(Negyedéves!$A$125,$A53,3+(D$1-1)*4+IF(D$1=1,0,(Paraméterek!$C$52-4)),1,IF(D$1=1,Paraméterek!$C$52,4)))/1000000 -> 0 | E53: =SUM(OFFSET(Negyedéves!$A$125,$A53,3+(E$1-1)*4+IF(E$1=1,0,(Paraméterek!$C$52-4)),1,IF(E$1=1,Paraméterek!$C$52,4)))/1000000 -> 0 | F53: =SUM(OFFSET(Negyedéves!$A$125,$A53,3+(F$1-1)*4+IF(F$1=1,0,(Paraméterek!$C$52-4)),1,IF(F$1=1,Paraméterek!$C$52,4)))/1000000 -> 0 | G53: =SUM(OFFSET(Negyedéves!$A$125,$A53,3+(G$1-1)*4+IF(G$1=1,0,(Paraméterek!$C$52-4)),1,IF(G$1=1,Paraméterek!$C$52,4)))/1000000 -> 0 | H53: =SUM(OFFSET(Negyedéves!$A$125,$A53,3+(H$1-1)*4+IF(H$1=1,0,(Paraméterek!$C$52-4)),1,IF(H$1=1,Paraméterek!$C$52,4)))/1000000 -> 0 | I53: =SUM(OFFSET(Negyedéves!$A$125,$A53,3+(I$1-1)*4+IF(I$1=1,0,(Paraméterek!$C$52-4)),1,IF(I$1=1,Paraméterek!$C$52,4)))/1000000 -> 0 | J53: =SUM(OFFSET(Negyedéves!$A$125,$A53,3+(J$1-1)*4+IF(J$1=1,0,(Paraméterek!$C$52-4)),1,IF(J$1=1,Paraméterek!$C$52,4)))/1000000 -> 0 | K53: =SUM(OFFSET(Negyedéves!$A$125,$A53,3+(K$1-1)*4+IF(K$1=1,0,(Paraméterek!$C$52-4)),1,IF(K$1=1,Paraméterek!$C$52,4)))/1000000 -> 0 | L53: =SUM(OFFSET(Negyedéves!$A$125,$A53,3+(L$1-1)*4+IF(L$1=1,0,(Paraméterek!$C$52-4)),1,IF(L$1=1,Paraméterek!$C$52,4)))/1000000 -> 0 | M53: =SUM(OFFSET(Negyedéves!$A$125,$A53,3+(M$1-1)*4+IF(M$1=1,0,(Paraméterek!$C$52-4)),1,IF(M$1=1,Paraméterek!$C$52,4)))/1000000 -> 0 | N53: =SUM(OFFSET(Negyedéves!$A$125,$A53,3+(N$1-1)*4+IF(N$1=1,0,(Paraméterek!$C$52-4)),1,IF(N$1=1,Paraméterek!$C$52,4)))/1000000 -> 0 | O53: x
A54: 2 | B54: Értékesítés nettó árbevétele | C54: =SUM(OFFSET(Negyedéves!$A$125,$A54,3+(C$1-1)*4+IF(C$1=1,0,(Paraméterek!$C$52-4)),1,IF(C$1=1,Paraméterek!$C$52,4)))/1000000 -> 99.61001702 | D54: =SUM(OFFSET(Negyedéves!$A$125,$A54,3+(D$1-1)*4+IF(D$1=1,0,(Paraméterek!$C$52-4)),1,IF(D$1=1,Paraméterek!$C$52,4)))/1000000 -> 101.6022174 | E54: =SUM(OFFSET(Negyedéves!$A$125,$A54,3+(E$1-1)*4+IF(E$1=1,0,(Paraméterek!$C$52-4)),1,IF(E$1=1,Paraméterek!$C$52,4)))/1000000 -> 103.6342617 | F54: =SUM(OFFSET(Negyedéves!$A$125,$A54,3+(F$1-1)*4+IF(F$1=1,0,(Paraméterek!$C$52-4)),1,IF(F$1=1,Paraméterek!$C$52,4)))/1000000 -> 105.7069469 | G54: =SUM(OFFSET(Negyedéves!$A$125,$A54,3+(G$1-1)*4+IF(G$1=1,0,(Paraméterek!$C$52-4)),1,IF(G$1=1,Paraméterek!$C$52,4)))/1000000 -> 107.8210859 | H54: =SUM(OFFSET(Negyedéves!$A$125,$A54,3+(H$1-1)*4+IF(H$1=1,0,(Paraméterek!$C$52-4)),1,IF(H$1=1,Paraméterek!$C$52,4)))/1000000 -> 109.9775076 | I54: =SUM(OFFSET(Negyedéves!$A$125,$A54,3+(I$1-1)*4+IF(I$1=1,0,(Paraméterek!$C$52-4)),1,IF(I$1=1,Paraméterek!$C$52,4)))/1000000 -> 112.1770577 | J54: =SUM(OFFSET(Negyedéves!$A$125,$A54,3+(J$1-1)*4+IF(J$1=1,0,(Paraméterek!$C$52-4)),1,IF(J$1=1,Paraméterek!$C$52,4)))/1000000 -> 114.4205989 | K54: =SUM(OFFSET(Negyedéves!$A$125,$A54,3+(K$1-1)*4+IF(K$1=1,0,(Paraméterek!$C$52-4)),1,IF(K$1=1,Paraméterek!$C$52,4)))/1000000 -> 116.7090109 | L54: =SUM(OFFSET(Negyedéves!$A$125,$A54,3+(L$1-1)*4+IF(L$1=1,0,(Paraméterek!$C$52-4)),1,IF(L$1=1,Paraméterek!$C$52,4)))/1000000 -> 119.0431911 | M54: =SUM(OFFSET(Negyedéves!$A$125,$A54,3+(M$1-1)*4+IF(M$1=1,0,(Paraméterek!$C$52-4)),1,IF(M$1=1,Paraméterek!$C$52,4)))/1000000 -> 121.4240549 | N54: =SUM(OFFSET(Negyedéves!$A$125,$A54,3+(N$1-1)*4+IF(N$1=1,0,(Paraméterek!$C$52-4)),1,IF(N$1=1,Paraméterek!$C$52,4)))/1000000 -> 123.852536 | O54: x
A55: 3 | B55: Aktivált saját teljesítmények értéke | C55: =SUM(OFFSET(Negyedéves!$A$125,$A55,3+(C$1-1)*4+IF(C$1=1,0,(Paraméterek!$C$52-4)),1,IF(C$1=1,Paraméterek!$C$52,4)))/1000000 -> 0 | D55: =SUM(OFFSET(Negyedéves!$A$125,$A55,3+(D$1-1)*4+IF(D$1=1,0,(Paraméterek!$C$52-4)),1,IF(D$1=1,Paraméterek!$C$52,4)))/1000000 -> 0 | E55: =SUM(OFFSET(Negyedéves!$A$125,$A55,3+(E$1-1)*4+IF(E$1=1,0,(Paraméterek!$C$52-4)),1,IF(E$1=1,Paraméterek!$C$52,4)))/1000000 -> 0 | F55: =SUM(OFFSET(Negyedéves!$A$125,$A55,3+(F$1-1)*4+IF(F$1=1,0,(Paraméterek!$C$52-4)),1,IF(F$1=1,Paraméterek!$C$52,4)))/1000000 -> 0 | G55: =SUM(OFFSET(Negyedéves!$A$125,$A55,3+(G$1-1)*4+IF(G$1=1,0,(Paraméterek!$C$52-4)),1,IF(G$1=1,Paraméterek!$C$52,4)))/1000000 -> 0 | H55: =SUM(OFFSET(Negyedéves!$A$125,$A55,3+(H$1-1)*4+IF(H$1=1,0,(Paraméterek!$C$52-4)),1,IF(H$1=1,Paraméterek!$C$52,4)))/1000000 -> 0 | I55: =SUM(OFFSET(Negyedéves!$A$125,$A55,3+(I$1-1)*4+IF(I$1=1,0,(Paraméterek!$C$52-4)),1,IF(I$1=1,Paraméterek!$C$52,4)))/1000000 -> 0 | J55: =SUM(OFFSET(Negyedéves!$A$125,$A55,3+(J$1-1)*4+IF(J$1=1,0,(Paraméterek!$C$52-4)),1,IF(J$1=1,Paraméterek!$C$52,4)))/1000000 -> 0 | K55: =SUM(OFFSET(Negyedéves!$A$125,$A55,3+(K$1-1)*4+IF(K$1=1,0,(Paraméterek!$C$52-4)),1,IF(K$1=1,Paraméterek!$C$52,4)))/1000000 -> 0 | L55: =SUM(OFFSET(Negyedéves!$A$125,$A55,3+(L$1-1)*4+IF(L$1=1,0,(Paraméterek!$C$52-4)),1,IF(L$1=1,Paraméterek!$C$52,4)))/1000000 -> 0 | M55: =SUM(OFFSET(Negyedéves!$A$125,$A55,3+(M$1-1)*4+IF(M$1=1,0,(Paraméterek!$C$52-4)),1,IF(M$1=1,Paraméterek!$C$52,4)))/1000000 -> 0 | N55: =SUM(OFFSET(Negyedéves!$A$125,$A55,3+(N$1-1)*4+IF(N$1=1,0,(Paraméterek!$C$52-4)),1,IF(N$1=1,Paraméterek!$C$52,4)))/1000000 -> 0 | O55: x
A56: 4 | B56: Egyéb bevételek | C56: =SUM(OFFSET(Negyedéves!$A$125,$A56,3+(C$1-1)*4+IF(C$1=1,0,(Paraméterek!$C$52-4)),1,IF(C$1=1,Paraméterek!$C$52,4)))/1000000 -> 0 | D56: =SUM(OFFSET(Negyedéves!$A$125,$A56,3+(D$1-1)*4+IF(D$1=1,0,(Paraméterek!$C$52-4)),1,IF(D$1=1,Paraméterek!$C$52,4)))/1000000 -> 0 | E56: =SUM(OFFSET(Negyedéves!$A$125,$A56,3+(E$1-1)*4+IF(E$1=1,0,(Paraméterek!$C$52-4)),1,IF(E$1=1,Paraméterek!$C$52,4)))/1000000 -> 0 | F56: =SUM(OFFSET(Negyedéves!$A$125,$A56,3+(F$1-1)*4+IF(F$1=1,0,(Paraméterek!$C$52-4)),1,IF(F$1=1,Paraméterek!$C$52,4)))/1000000 -> 0 | G56: =SUM(OFFSET(Negyedéves!$A$125,$A56,3+(G$1-1)*4+IF(G$1=1,0,(Paraméterek!$C$52-4)),1,IF(G$1=1,Paraméterek!$C$52,4)))/1000000 -> 0 | H56: =SUM(OFFSET(Negyedéves!$A$125,$A56,3+(H$1-1)*4+IF(H$1=1,0,(Paraméterek!$C$52-4)),1,IF(H$1=1,Paraméterek!$C$52,4)))/1000000 -> 0 | I56: =SUM(OFFSET(Negyedéves!$A$125,$A56,3+(I$1-1)*4+IF(I$1=1,0,(Paraméterek!$C$52-4)),1,IF(I$1=1,Paraméterek!$C$52,4)))/1000000 -> 0 | J56: =SUM(OFFSET(Negyedéves!$A$125,$A56,3+(J$1-1)*4+IF(J$1=1,0,(Paraméterek!$C$52-4)),1,IF(J$1=1,Paraméterek!$C$52,4)))/1000000 -> 0 | K56: =SUM(OFFSET(Negyedéves!$A$125,$A56,3+(K$1-1)*4+IF(K$1=1,0,(Paraméterek!$C$52-4)),1,IF(K$1=1,Paraméterek!$C$52,4)))/1000000 -> 0 | L56: =SUM(OFFSET(Negyedéves!$A$125,$A56,3+(L$1-1)*4+IF(L$1=1,0,(Paraméterek!$C$52-4)),1,IF(L$1=1,Paraméterek!$C$52,4)))/1000000 -> 0 | M56: =SUM(OFFSET(Negyedéves!$A$125,$A56,3+(M$1-1)*4+IF(M$1=1,0,(Paraméterek!$C$52-4)),1,IF(M$1=1,Paraméterek!$C$52,4)))/1000000 -> 0 | N56: =SUM(OFFSET(Negyedéves!$A$125,$A56,3+(N$1-1)*4+IF(N$1=1,0,(Paraméterek!$C$52-4)),1,IF(N$1=1,Paraméterek!$C$52,4)))/1000000 -> 0 | O56: x
A57: 5 | B57: ebből: visszaírt értékvesztés | C57: =SUM(OFFSET(Negyedéves!$A$125,$A57,3+(C$1-1)*4+IF(C$1=1,0,(Paraméterek!$C$52-4)),1,IF(C$1=1,Paraméterek!$C$52,4)))/1000000 -> 0 | D57: =SUM(OFFSET(Negyedéves!$A$125,$A57,3+(D$1-1)*4+IF(D$1=1,0,(Paraméterek!$C$52-4)),1,IF(D$1=1,Paraméterek!$C$52,4)))/1000000 -> 0 | E57: =SUM(OFFSET(Negyedéves!$A$125,$A57,3+(E$1-1)*4+IF(E$1=1,0,(Paraméterek!$C$52-4)),1,IF(E$1=1,Paraméterek!$C$52,4)))/1000000 -> 0 | F57: =SUM(OFFSET(Negyedéves!$A$125,$A57,3+(F$1-1)*4+IF(F$1=1,0,(Paraméterek!$C$52-4)),1,IF(F$1=1,Paraméterek!$C$52,4)))/1000000 -> 0 | G57: =SUM(OFFSET(Negyedéves!$A$125,$A57,3+(G$1-1)*4+IF(G$1=1,0,(Paraméterek!$C$52-4)),1,IF(G$1=1,Paraméterek!$C$52,4)))/1000000 -> 0 | H57: =SUM(OFFSET(Negyedéves!$A$125,$A57,3+(H$1-1)*4+IF(H$1=1,0,(Paraméterek!$C$52-4)),1,IF(H$1=1,Paraméterek!$C$52,4)))/1000000 -> 0 | I57: =SUM(OFFSET(Negyedéves!$A$125,$A57,3+(I$1-1)*4+IF(I$1=1,0,(Paraméterek!$C$52-4)),1,IF(I$1=1,Paraméterek!$C$52,4)))/1000000 -> 0 | J57: =SUM(OFFSET(Negyedéves!$A$125,$A57,3+(J$1-1)*4+IF(J$1=1,0,(Paraméterek!$C$52-4)),1,IF(J$1=1,Paraméterek!$C$52,4)))/1000000 -> 0 | K57: =SUM(OFFSET(Negyedéves!$A$125,$A57,3+(K$1-1)*4+IF(K$1=1,0,(Paraméterek!$C$52-4)),1,IF(K$1=1,Paraméterek!$C$52,4)))/1000000 -> 0 | L57: =SUM(OFFSET(Negyedéves!$A$125,$A57,3+(L$1-1)*4+IF(L$1=1,0,(Paraméterek!$C$52-4)),1,IF(L$1=1,Paraméterek!$C$52,4)))/1000000 -> 0 | M57: =SUM(OFFSET(Negyedéves!$A$125,$A57,3+(M$1-1)*4+IF(M$1=1,0,(Paraméterek!$C$52-4)),1,IF(M$1=1,Paraméterek!$C$52,4)))/1000000 -> 0 | N57: =SUM(OFFSET(Negyedéves!$A$125,$A57,3+(N$1-1)*4+IF(N$1=1,0,(Paraméterek!$C$52-4)),1,IF(N$1=1,Paraméterek!$C$52,4)))/1000000 -> 0 | O57: x
A58: 6 | B58: Anyagköltség | C58: =SUM(OFFSET(Negyedéves!$A$125,$A58,3+(C$1-1)*4+IF(C$1=1,0,(Paraméterek!$C$52-4)),1,IF(C$1=1,Paraméterek!$C$52,4)))/1000000 -> 30.11770474 | D58: =SUM(OFFSET(Negyedéves!$A$125,$A58,3+(D$1-1)*4+IF(D$1=1,0,(Paraméterek!$C$52-4)),1,IF(D$1=1,Paraméterek!$C$52,4)))/1000000 -> 30.72005883 | E58: =SUM(OFFSET(Negyedéves!$A$125,$A58,3+(E$1-1)*4+IF(E$1=1,0,(Paraméterek!$C$52-4)),1,IF(E$1=1,Paraméterek!$C$52,4)))/1000000 -> 31.33446001 | F58: =SUM(OFFSET(Negyedéves!$A$125,$A58,3+(F$1-1)*4+IF(F$1=1,0,(Paraméterek!$C$52-4)),1,IF(F$1=1,Paraméterek!$C$52,4)))/1000000 -> 31.96114921 | G58: =SUM(OFFSET(Negyedéves!$A$125,$A58,3+(G$1-1)*4+IF(G$1=1,0,(Paraméterek!$C$52-4)),1,IF(G$1=1,Paraméterek!$C$52,4)))/1000000 -> 32.6003722 | H58: =SUM(OFFSET(Negyedéves!$A$125,$A58,3+(H$1-1)*4+IF(H$1=1,0,(Paraméterek!$C$52-4)),1,IF(H$1=1,Paraméterek!$C$52,4)))/1000000 -> 33.25237964 | I58: =SUM(OFFSET(Negyedéves!$A$125,$A58,3+(I$1-1)*4+IF(I$1=1,0,(Paraméterek!$C$52-4)),1,IF(I$1=1,Paraméterek!$C$52,4)))/1000000 -> 33.91742723 | J58: =SUM(OFFSET(Negyedéves!$A$125,$A58,3+(J$1-1)*4+IF(J$1=1,0,(Paraméterek!$C$52-4)),1,IF(J$1=1,Paraméterek!$C$52,4)))/1000000 -> 34.59577578 | K58: =SUM(OFFSET(Negyedéves!$A$125,$A58,3+(K$1-1)*4+IF(K$1=1,0,(Paraméterek!$C$52-4)),1,IF(K$1=1,Paraméterek!$C$52,4)))/1000000 -> 35.28769129 | L58: =SUM(OFFSET(Negyedéves!$A$125,$A58,3+(L$1-1)*4+IF(L$1=1,0,(Paraméterek!$C$52-4)),1,IF(L$1=1,Paraméterek!$C$52,4)))/1000000 -> 35.99344512 | M58: =SUM(OFFSET(Negyedéves!$A$125,$A58,3+(M$1-1)*4+IF(M$1=1,0,(Paraméterek!$C$52-4)),1,IF(M$1=1,Paraméterek!$C$52,4)))/1000000 -> 36.71331402 | N58: =SUM(OFFSET(Negyedéves!$A$125,$A58,3+(N$1-1)*4+IF(N$1=1,0,(Paraméterek!$C$52-4)),1,IF(N$1=1,Paraméterek!$C$52,4)))/1000000 -> 37.4475803 | O58: x
A59: 7 | B59: Igénybe vett szolgáltatások értéke | C59: =SUM(OFFSET(Negyedéves!$A$125,$A59,3+(C$1-1)*4+IF(C$1=1,0,(Paraméterek!$C$52-4)),1,IF(C$1=1,Paraméterek!$C$52,4)))/1000000 -> 8.55234484 | D59: =SUM(OFFSET(Negyedéves!$A$125,$A59,3+(D$1-1)*4+IF(D$1=1,0,(Paraméterek!$C$52-4)),1,IF(D$1=1,Paraméterek!$C$52,4)))/1000000 -> 8.723391737 | E59: =SUM(OFFSET(Negyedéves!$A$125,$A59,3+(E$1-1)*4+IF(E$1=1,0,(Paraméterek!$C$52-4)),1,IF(E$1=1,Paraméterek!$C$52,4)))/1000000 -> 8.897859572 | F59: =SUM(OFFSET(Negyedéves!$A$125,$A59,3+(F$1-1)*4+IF(F$1=1,0,(Paraméterek!$C$52-4)),1,IF(F$1=1,Paraméterek!$C$52,4)))/1000000 -> 9.075816763 | G59: =SUM(OFFSET(Negyedéves!$A$125,$A59,3+(G$1-1)*4+IF(G$1=1,0,(Paraméterek!$C$52-4)),1,IF(G$1=1,Paraméterek!$C$52,4)))/1000000 -> 9.257333098 | H59: =SUM(OFFSET(Negyedéves!$A$125,$A59,3+(H$1-1)*4+IF(H$1=1,0,(Paraméterek!$C$52-4)),1,IF(H$1=1,Paraméterek!$C$52,4)))/1000000 -> 9.44247976 | I59: =SUM(OFFSET(Negyedéves!$A$125,$A59,3+(I$1-1)*4+IF(I$1=1,0,(Paraméterek!$C$52-4)),1,IF(I$1=1,Paraméterek!$C$52,4)))/1000000 -> 9.631329356 | J59: =SUM(OFFSET(Negyedéves!$A$125,$A59,3+(J$1-1)*4+IF(J$1=1,0,(Paraméterek!$C$52-4)),1,IF(J$1=1,Paraméterek!$C$52,4)))/1000000 -> 9.823955943 | K59: =SUM(OFFSET(Negyedéves!$A$125,$A59,3+(K$1-1)*4+IF(K$1=1,0,(Paraméterek!$C$52-4)),1,IF(K$1=1,Paraméterek!$C$52,4)))/1000000 -> 10.02043506 | L59: =SUM(OFFSET(Negyedéves!$A$125,$A59,3+(L$1-1)*4+IF(L$1=1,0,(Paraméterek!$C$52-4)),1,IF(L$1=1,Paraméterek!$C$52,4)))/1000000 -> 10.22084376 | M59: =SUM(OFFSET(Negyedéves!$A$125,$A59,3+(M$1-1)*4+IF(M$1=1,0,(Paraméterek!$C$52-4)),1,IF(M$1=1,Paraméterek!$C$52,4)))/1000000 -> 10.42526064 | N59: =SUM(OFFSET(Negyedéves!$A$125,$A59,3+(N$1-1)*4+IF(N$1=1,0,(Paraméterek!$C$52-4)),1,IF(N$1=1,Paraméterek!$C$52,4)))/1000000 -> 10.63376585 | O59: x
A60: 8 | B60: Egyéb szolgáltatások értéke | C60: =SUM(OFFSET(Negyedéves!$A$125,$A60,3+(C$1-1)*4+IF(C$1=1,0,(Paraméterek!$C$52-4)),1,IF(C$1=1,Paraméterek!$C$52,4)))/1000000 -> 0 | D60: =SUM(OFFSET(Negyedéves!$A$125,$A60,3+(D$1-1)*4+IF(D$1=1,0,(Paraméterek!$C$52-4)),1,IF(D$1=1,Paraméterek!$C$52,4)))/1000000 -> 0 | E60: =SUM(OFFSET(Negyedéves!$A$125,$A60,3+(E$1-1)*4+IF(E$1=1,0,(Paraméterek!$C$52-4)),1,IF(E$1=1,Paraméterek!$C$52,4)))/1000000 -> 0 | F60: =SUM(OFFSET(Negyedéves!$A$125,$A60,3+(F$1-1)*4+IF(F$1=1,0,(Paraméterek!$C$52-4)),1,IF(F$1=1,Paraméterek!$C$52,4)))/1000000 -> 0 | G60: =SUM(OFFSET(Negyedéves!$A$125,$A60,3+(G$1-1)*4+IF(G$1=1,0,(Paraméterek!$C$52-4)),1,IF(G$1=1,Paraméterek!$C$52,4)))/1000000 -> 0 | H60: =SUM(OFFSET(Negyedéves!$A$125,$A60,3+(H$1-1)*4+IF(H$1=1,0,(Paraméterek!$C$52-4)),1,IF(H$1=1,Paraméterek!$C$52,4)))/1000000 -> 0 | I60: =SUM(OFFSET(Negyedéves!$A$125,$A60,3+(I$1-1)*4+IF(I$1=1,0,(Paraméterek!$C$52-4)),1,IF(I$1=1,Paraméterek!$C$52,4)))/1000000 -> 0 | J60: =SUM(OFFSET(Negyedéves!$A$125,$A60,3+(J$1-1)*4+IF(J$1=1,0,(Paraméterek!$C$52-4)),1,IF(J$1=1,Paraméterek!$C$52,4)))/1000000 -> 0 | K60: =SUM(OFFSET(Negyedéves!$A$125,$A60,3+(K$1-1)*4+IF(K$1=1,0,(Paraméterek!$C$52-4)),1,IF(K$1=1,Paraméterek!$C$52,4)))/1000000 -> 0 | L60: =SUM(OFFSET(Negyedéves!$A$125,$A60,3+(L$1-1)*4+IF(L$1=1,0,(Paraméterek!$C$52-4)),1,IF(L$1=1,Paraméterek!$C$52,4)))/1000000 -> 0 | M60: =SUM(OFFSET(Negyedéves!$A$125,$A60,3+(M$1-1)*4+IF(M$1=1,0,(Paraméterek!$C$52-4)),1,IF(M$1=1,Paraméterek!$C$52,4)))/1000000 -> 0 | N60: =SUM(OFFSET(Negyedéves!$A$125,$A60,3+(N$1-1)*4+IF(N$1=1,0,(Paraméterek!$C$52-4)),1,IF(N$1=1,Paraméterek!$C$52,4)))/1000000 -> 0 | O60: x
A61: 9 | B61: Eladott áruk beszerzési értéke | C61: =SUM(OFFSET(Negyedéves!$A$125,$A61,3+(C$1-1)*4+IF(C$1=1,0,(Paraméterek!$C$52-4)),1,IF(C$1=1,Paraméterek!$C$52,4)))/1000000 -> 0 | D61: =SUM(OFFSET(Negyedéves!$A$125,$A61,3+(D$1-1)*4+IF(D$1=1,0,(Paraméterek!$C$52-4)),1,IF(D$1=1,Paraméterek!$C$52,4)))/1000000 -> 0 | E61: =SUM(OFFSET(Negyedéves!$A$125,$A61,3+(E$1-1)*4+IF(E$1=1,0,(Paraméterek!$C$52-4)),1,IF(E$1=1,Paraméterek!$C$52,4)))/1000000 -> 0 | F61: =SUM(OFFSET(Negyedéves!$A$125,$A61,3+(F$1-1)*4+IF(F$1=1,0,(Paraméterek!$C$52-4)),1,IF(F$1=1,Paraméterek!$C$52,4)))/1000000 -> 0 | G61: =SUM(OFFSET(Negyedéves!$A$125,$A61,3+(G$1-1)*4+IF(G$1=1,0,(Paraméterek!$C$52-4)),1,IF(G$1=1,Paraméterek!$C$52,4)))/1000000 -> 0 | H61: =SUM(OFFSET(Negyedéves!$A$125,$A61,3+(H$1-1)*4+IF(H$1=1,0,(Paraméterek!$C$52-4)),1,IF(H$1=1,Paraméterek!$C$52,4)))/1000000 -> 0 | I61: =SUM(OFFSET(Negyedéves!$A$125,$A61,3+(I$1-1)*4+IF(I$1=1,0,(Paraméterek!$C$52-4)),1,IF(I$1=1,Paraméterek!$C$52,4)))/1000000 -> 0 | J61: =SUM(OFFSET(Negyedéves!$A$125,$A61,3+(J$1-1)*4+IF(J$1=1,0,(Paraméterek!$C$52-4)),1,IF(J$1=1,Paraméterek!$C$52,4)))/1000000 -> 0 | K61: =SUM(OFFSET(Negyedéves!$A$125,$A61,3+(K$1-1)*4+IF(K$1=1,0,(Paraméterek!$C$52-4)),1,IF(K$1=1,Paraméterek!$C$52,4)))/1000000 -> 0 | L61: =SUM(OFFSET(Negyedéves!$A$125,$A61,3+(L$1-1)*4+IF(L$1=1,0,(Paraméterek!$C$52-4)),1,IF(L$1=1,Paraméterek!$C$52,4)))/1000000 -> 0 | M61: =SUM(OFFSET(Negyedéves!$A$125,$A61,3+(M$1-1)*4+IF(M$1=1,0,(Paraméterek!$C$52-4)),1,IF(M$1=1,Paraméterek!$C$52,4)))/1000000 -> 0 | N61: =SUM(OFFSET(Negyedéves!$A$125,$A61,3+(N$1-1)*4+IF(N$1=1,0,(Paraméterek!$C$52-4)),1,IF(N$1=1,Paraméterek!$C$52,4)))/1000000 -> 0 | O61: x
A62: 10 | B62: Eladott szolgáltatások értéke | C62: =SUM(OFFSET(Negyedéves!$A$125,$A62,3+(C$1-1)*4+IF(C$1=1,0,(Paraméterek!$C$52-4)),1,IF(C$1=1,Paraméterek!$C$52,4)))/1000000 -> 0 | D62: =SUM(OFFSET(Negyedéves!$A$125,$A62,3+(D$1-1)*4+IF(D$1=1,0,(Paraméterek!$C$52-4)),1,IF(D$1=1,Paraméterek!$C$52,4)))/1000000 -> 0 | E62: =SUM(OFFSET(Negyedéves!$A$125,$A62,3+(E$1-1)*4+IF(E$1=1,0,(Paraméterek!$C$52-4)),1,IF(E$1=1,Paraméterek!$C$52,4)))/1000000 -> 0 | F62: =SUM(OFFSET(Negyedéves!$A$125,$A62,3+(F$1-1)*4+IF(F$1=1,0,(Paraméterek!$C$52-4)),1,IF(F$1=1,Paraméterek!$C$52,4)))/1000000 -> 0 | G62: =SUM(OFFSET(Negyedéves!$A$125,$A62,3+(G$1-1)*4+IF(G$1=1,0,(Paraméterek!$C$52-4)),1,IF(G$1=1,Paraméterek!$C$52,4)))/1000000 -> 0 | H62: =SUM(OFFSET(Negyedéves!$A$125,$A62,3+(H$1-1)*4+IF(H$1=1,0,(Paraméterek!$C$52-4)),1,IF(H$1=1,Paraméterek!$C$52,4)))/1000000 -> 0 | I62: =SUM(OFFSET(Negyedéves!$A$125,$A62,3+(I$1-1)*4+IF(I$1=1,0,(Paraméterek!$C$52-4)),1,IF(I$1=1,Paraméterek!$C$52,4)))/1000000 -> 0 | J62: =SUM(OFFSET(Negyedéves!$A$125,$A62,3+(J$1-1)*4+IF(J$1=1,0,(Paraméterek!$C$52-4)),1,IF(J$1=1,Paraméterek!$C$52,4)))/1000000 -> 0 | K62: =SUM(OFFSET(Negyedéves!$A$125,$A62,3+(K$1-1)*4+IF(K$1=1,0,(Paraméterek!$C$52-4)),1,IF(K$1=1,Paraméterek!$C$52,4)))/1000000 -> 0 | L62: =SUM(OFFSET(Negyedéves!$A$125,$A62,3+(L$1-1)*4+IF(L$1=1,0,(Paraméterek!$C$52-4)),1,IF(L$1=1,Paraméterek!$C$52,4)))/1000000 -> 0 | M62: =SUM(OFFSET(Negyedéves!$A$125,$A62,3+(M$1-1)*4+IF(M$1=1,0,(Paraméterek!$C$52-4)),1,IF(M$1=1,Paraméterek!$C$52,4)))/1000000 -> 0 | N62: =SUM(OFFSET(Negyedéves!$A$125,$A62,3+(N$1-1)*4+IF(N$1=1,0,(Paraméterek!$C$52-4)),1,IF(N$1=1,Paraméterek!$C$52,4)))/1000000 -> 0 | O62: x
A63: 11 | B63: Anyagjellegű ráfordítások | C63: =SUM(OFFSET(Negyedéves!$A$125,$A63,3+(C$1-1)*4+IF(C$1=1,0,(Paraméterek!$C$52-4)),1,IF(C$1=1,Paraméterek!$C$52,4)))/1000000 -> 38.67004958 | D63: =SUM(OFFSET(Negyedéves!$A$125,$A63,3+(D$1-1)*4+IF(D$1=1,0,(Paraméterek!$C$52-4)),1,IF(D$1=1,Paraméterek!$C$52,4)))/1000000 -> 39.44345057 | E63: =SUM(OFFSET(Negyedéves!$A$125,$A63,3+(E$1-1)*4+IF(E$1=1,0,(Paraméterek!$C$52-4)),1,IF(E$1=1,Paraméterek!$C$52,4)))/1000000 -> 40.23231958 | F63: =SUM(OFFSET(Negyedéves!$A$125,$A63,3+(F$1-1)*4+IF(F$1=1,0,(Paraméterek!$C$52-4)),1,IF(F$1=1,Paraméterek!$C$52,4)))/1000000 -> 41.03696597 | G63: =SUM(OFFSET(Negyedéves!$A$125,$A63,3+(G$1-1)*4+IF(G$1=1,0,(Paraméterek!$C$52-4)),1,IF(G$1=1,Paraméterek!$C$52,4)))/1000000 -> 41.85770529 | H63: =SUM(OFFSET(Negyedéves!$A$125,$A63,3+(H$1-1)*4+IF(H$1=1,0,(Paraméterek!$C$52-4)),1,IF(H$1=1,Paraméterek!$C$52,4)))/1000000 -> 42.6948594 | I63: =SUM(OFFSET(Negyedéves!$A$125,$A63,3+(I$1-1)*4+IF(I$1=1,0,(Paraméterek!$C$52-4)),1,IF(I$1=1,Paraméterek!$C$52,4)))/1000000 -> 43.54875659 | J63: =SUM(OFFSET(Negyedéves!$A$125,$A63,3+(J$1-1)*4+IF(J$1=1,0,(Paraméterek!$C$52-4)),1,IF(J$1=1,Paraméterek!$C$52,4)))/1000000 -> 44.41973172 | K63: =SUM(OFFSET(Negyedéves!$A$125,$A63,3+(K$1-1)*4+IF(K$1=1,0,(Paraméterek!$C$52-4)),1,IF(K$1=1,Paraméterek!$C$52,4)))/1000000 -> 45.30812635 | L63: =SUM(OFFSET(Negyedéves!$A$125,$A63,3+(L$1-1)*4+IF(L$1=1,0,(Paraméterek!$C$52-4)),1,IF(L$1=1,Paraméterek!$C$52,4)))/1000000 -> 46.21428888 | M63: =SUM(OFFSET(Negyedéves!$A$125,$A63,3+(M$1-1)*4+IF(M$1=1,0,(Paraméterek!$C$52-4)),1,IF(M$1=1,Paraméterek!$C$52,4)))/1000000 -> 47.13857466 | N63: =SUM(OFFSET(Negyedéves!$A$125,$A63,3+(N$1-1)*4+IF(N$1=1,0,(Paraméterek!$C$52-4)),1,IF(N$1=1,Paraméterek!$C$52,4)))/1000000 -> 48.08134615 | O63: x
A64: 12 | B64: Bérköltség | C64: =SUM(OFFSET(Negyedéves!$A$125,$A64,3+(C$1-1)*4+IF(C$1=1,0,(Paraméterek!$C$52-4)),1,IF(C$1=1,Paraméterek!$C$52,4)))/1000000 -> 5.01 | D64: =SUM(OFFSET(Negyedéves!$A$125,$A64,3+(D$1-1)*4+IF(D$1=1,0,(Paraméterek!$C$52-4)),1,IF(D$1=1,Paraméterek!$C$52,4)))/1000000 -> 5.1102 | E64: =SUM(OFFSET(Negyedéves!$A$125,$A64,3+(E$1-1)*4+IF(E$1=1,0,(Paraméterek!$C$52-4)),1,IF(E$1=1,Paraméterek!$C$52,4)))/1000000 -> 5.212404 | F64: =SUM(OFFSET(Negyedéves!$A$125,$A64,3+(F$1-1)*4+IF(F$1=1,0,(Paraméterek!$C$52-4)),1,IF(F$1=1,Paraméterek!$C$52,4)))/1000000 -> 5.31665208 | G64: =SUM(OFFSET(Negyedéves!$A$125,$A64,3+(G$1-1)*4+IF(G$1=1,0,(Paraméterek!$C$52-4)),1,IF(G$1=1,Paraméterek!$C$52,4)))/1000000 -> 5.422985122 | H64: =SUM(OFFSET(Negyedéves!$A$125,$A64,3+(H$1-1)*4+IF(H$1=1,0,(Paraméterek!$C$52-4)),1,IF(H$1=1,Paraméterek!$C$52,4)))/1000000 -> 5.531444824 | I64: =SUM(OFFSET(Negyedéves!$A$125,$A64,3+(I$1-1)*4+IF(I$1=1,0,(Paraméterek!$C$52-4)),1,IF(I$1=1,Paraméterek!$C$52,4)))/1000000 -> 5.642073721 | J64: =SUM(OFFSET(Negyedéves!$A$125,$A64,3+(J$1-1)*4+IF(J$1=1,0,(Paraméterek!$C$52-4)),1,IF(J$1=1,Paraméterek!$C$52,4)))/1000000 -> 5.754915195 | K64: =SUM(OFFSET(Negyedéves!$A$125,$A64,3+(K$1-1)*4+IF(K$1=1,0,(Paraméterek!$C$52-4)),1,IF(K$1=1,Paraméterek!$C$52,4)))/1000000 -> 5.870013499 | L64: =SUM(OFFSET(Negyedéves!$A$125,$A64,3+(L$1-1)*4+IF(L$1=1,0,(Paraméterek!$C$52-4)),1,IF(L$1=1,Paraméterek!$C$52,4)))/1000000 -> 5.987413769 | M64: =SUM(OFFSET(Negyedéves!$A$125,$A64,3+(M$1-1)*4+IF(M$1=1,0,(Paraméterek!$C$52-4)),1,IF(M$1=1,Paraméterek!$C$52,4)))/1000000 -> 6.107162044 | N64: =SUM(OFFSET(Negyedéves!$A$125,$A64,3+(N$1-1)*4+IF(N$1=1,0,(Paraméterek!$C$52-4)),1,IF(N$1=1,Paraméterek!$C$52,4)))/1000000 -> 6.229305285 | O64: x
A65: 13 | B65: Személyi jellegű egyéb kifizetések | C65: =SUM(OFFSET(Negyedéves!$A$125,$A65,3+(C$1-1)*4+IF(C$1=1,0,(Paraméterek!$C$52-4)),1,IF(C$1=1,Paraméterek!$C$52,4)))/1000000 -> 0.6 | D65: =SUM(OFFSET(Negyedéves!$A$125,$A65,3+(D$1-1)*4+IF(D$1=1,0,(Paraméterek!$C$52-4)),1,IF(D$1=1,Paraméterek!$C$52,4)))/1000000 -> 0.612 | E65: =SUM(OFFSET(Negyedéves!$A$125,$A65,3+(E$1-1)*4+IF(E$1=1,0,(Paraméterek!$C$52-4)),1,IF(E$1=1,Paraméterek!$C$52,4)))/1000000 -> 0.62424 | F65: =SUM(OFFSET(Negyedéves!$A$125,$A65,3+(F$1-1)*4+IF(F$1=1,0,(Paraméterek!$C$52-4)),1,IF(F$1=1,Paraméterek!$C$52,4)))/1000000 -> 0.6367248 | G65: =SUM(OFFSET(Negyedéves!$A$125,$A65,3+(G$1-1)*4+IF(G$1=1,0,(Paraméterek!$C$52-4)),1,IF(G$1=1,Paraméterek!$C$52,4)))/1000000 -> 0.649459296 | H65: =SUM(OFFSET(Negyedéves!$A$125,$A65,3+(H$1-1)*4+IF(H$1=1,0,(Paraméterek!$C$52-4)),1,IF(H$1=1,Paraméterek!$C$52,4)))/1000000 -> 0.6624484819 | I65: =SUM(OFFSET(Negyedéves!$A$125,$A65,3+(I$1-1)*4+IF(I$1=1,0,(Paraméterek!$C$52-4)),1,IF(I$1=1,Paraméterek!$C$52,4)))/1000000 -> 0.6756974516 | J65: =SUM(OFFSET(Negyedéves!$A$125,$A65,3+(J$1-1)*4+IF(J$1=1,0,(Paraméterek!$C$52-4)),1,IF(J$1=1,Paraméterek!$C$52,4)))/1000000 -> 0.6892114006 | K65: =SUM(OFFSET(Negyedéves!$A$125,$A65,3+(K$1-1)*4+IF(K$1=1,0,(Paraméterek!$C$52-4)),1,IF(K$1=1,Paraméterek!$C$52,4)))/1000000 -> 0.7029956286 | L65: =SUM(OFFSET(Negyedéves!$A$125,$A65,3+(L$1-1)*4+IF(L$1=1,0,(Paraméterek!$C$52-4)),1,IF(L$1=1,Paraméterek!$C$52,4)))/1000000 -> 0.7170555412 | M65: =SUM(OFFSET(Negyedéves!$A$125,$A65,3+(M$1-1)*4+IF(M$1=1,0,(Paraméterek!$C$52-4)),1,IF(M$1=1,Paraméterek!$C$52,4)))/1000000 -> 0.731396652 | N65: =SUM(OFFSET(Negyedéves!$A$125,$A65,3+(N$1-1)*4+IF(N$1=1,0,(Paraméterek!$C$52-4)),1,IF(N$1=1,Paraméterek!$C$52,4)))/1000000 -> 0.746024585 | O65: x
A66: 14 | B66: Bérjárulékok | C66: =SUM(OFFSET(Negyedéves!$A$125,$A66,3+(C$1-1)*4+IF(C$1=1,0,(Paraméterek!$C$52-4)),1,IF(C$1=1,Paraméterek!$C$52,4)))/1000000 -> 0.92685 | D66: =SUM(OFFSET(Negyedéves!$A$125,$A66,3+(D$1-1)*4+IF(D$1=1,0,(Paraméterek!$C$52-4)),1,IF(D$1=1,Paraméterek!$C$52,4)))/1000000 -> 0.945387 | E66: =SUM(OFFSET(Negyedéves!$A$125,$A66,3+(E$1-1)*4+IF(E$1=1,0,(Paraméterek!$C$52-4)),1,IF(E$1=1,Paraméterek!$C$52,4)))/1000000 -> 0.96429474 | F66: =SUM(OFFSET(Negyedéves!$A$125,$A66,3+(F$1-1)*4+IF(F$1=1,0,(Paraméterek!$C$52-4)),1,IF(F$1=1,Paraméterek!$C$52,4)))/1000000 -> 0.9835806348 | G66: =SUM(OFFSET(Negyedéves!$A$125,$A66,3+(G$1-1)*4+IF(G$1=1,0,(Paraméterek!$C$52-4)),1,IF(G$1=1,Paraméterek!$C$52,4)))/1000000 -> 1.003252247 | H66: =SUM(OFFSET(Negyedéves!$A$125,$A66,3+(H$1-1)*4+IF(H$1=1,0,(Paraméterek!$C$52-4)),1,IF(H$1=1,Paraméterek!$C$52,4)))/1000000 -> 1.023317292 | I66: =SUM(OFFSET(Negyedéves!$A$125,$A66,3+(I$1-1)*4+IF(I$1=1,0,(Paraméterek!$C$52-4)),1,IF(I$1=1,Paraméterek!$C$52,4)))/1000000 -> 1.043783638 | J66: =SUM(OFFSET(Negyedéves!$A$125,$A66,3+(J$1-1)*4+IF(J$1=1,0,(Paraméterek!$C$52-4)),1,IF(J$1=1,Paraméterek!$C$52,4)))/1000000 -> 1.064659311 | K66: =SUM(OFFSET(Negyedéves!$A$125,$A66,3+(K$1-1)*4+IF(K$1=1,0,(Paraméterek!$C$52-4)),1,IF(K$1=1,Paraméterek!$C$52,4)))/1000000 -> 1.085952497 | L66: =SUM(OFFSET(Negyedéves!$A$125,$A66,3+(L$1-1)*4+IF(L$1=1,0,(Paraméterek!$C$52-4)),1,IF(L$1=1,Paraméterek!$C$52,4)))/1000000 -> 1.107671547 | M66: =SUM(OFFSET(Negyedéves!$A$125,$A66,3+(M$1-1)*4+IF(M$1=1,0,(Paraméterek!$C$52-4)),1,IF(M$1=1,Paraméterek!$C$52,4)))/1000000 -> 1.129824978 | N66: =SUM(OFFSET(Negyedéves!$A$125,$A66,3+(N$1-1)*4+IF(N$1=1,0,(Paraméterek!$C$52-4)),1,IF(N$1=1,Paraméterek!$C$52,4)))/1000000 -> 1.152421478 | O66: x
A67: 15 | B67: Személyi jellegű ráfordítások | C67: =SUM(OFFSET(Negyedéves!$A$125,$A67,3+(C$1-1)*4+IF(C$1=1,0,(Paraméterek!$C$52-4)),1,IF(C$1=1,Paraméterek!$C$52,4)))/1000000 -> 6.53685 | D67: =SUM(OFFSET(Negyedéves!$A$125,$A67,3+(D$1-1)*4+IF(D$1=1,0,(Paraméterek!$C$52-4)),1,IF(D$1=1,Paraméterek!$C$52,4)))/1000000 -> 6.667587 | E67: =SUM(OFFSET(Negyedéves!$A$125,$A67,3+(E$1-1)*4+IF(E$1=1,0,(Paraméterek!$C$52-4)),1,IF(E$1=1,Paraméterek!$C$52,4)))/1000000 -> 6.80093874 | F67: =SUM(OFFSET(Negyedéves!$A$125,$A67,3+(F$1-1)*4+IF(F$1=1,0,(Paraméterek!$C$52-4)),1,IF(F$1=1,Paraméterek!$C$52,4)))/1000000 -> 6.936957515 | G67: =SUM(OFFSET(Negyedéves!$A$125,$A67,3+(G$1-1)*4+IF(G$1=1,0,(Paraméterek!$C$52-4)),1,IF(G$1=1,Paraméterek!$C$52,4)))/1000000 -> 7.075696665 | H67: =SUM(OFFSET(Negyedéves!$A$125,$A67,3+(H$1-1)*4+IF(H$1=1,0,(Paraméterek!$C$52-4)),1,IF(H$1=1,Paraméterek!$C$52,4)))/1000000 -> 7.217210598 | I67: =SUM(OFFSET(Negyedéves!$A$125,$A67,3+(I$1-1)*4+IF(I$1=1,0,(Paraméterek!$C$52-4)),1,IF(I$1=1,Paraméterek!$C$52,4)))/1000000 -> 7.36155481 | J67: =SUM(OFFSET(Negyedéves!$A$125,$A67,3+(J$1-1)*4+IF(J$1=1,0,(Paraméterek!$C$52-4)),1,IF(J$1=1,Paraméterek!$C$52,4)))/1000000 -> 7.508785907 | K67: =SUM(OFFSET(Negyedéves!$A$125,$A67,3+(K$1-1)*4+IF(K$1=1,0,(Paraméterek!$C$52-4)),1,IF(K$1=1,Paraméterek!$C$52,4)))/1000000 -> 7.658961625 | L67: =SUM(OFFSET(Negyedéves!$A$125,$A67,3+(L$1-1)*4+IF(L$1=1,0,(Paraméterek!$C$52-4)),1,IF(L$1=1,Paraméterek!$C$52,4)))/1000000 -> 7.812140857 | M67: =SUM(OFFSET(Negyedéves!$A$125,$A67,3+(M$1-1)*4+IF(M$1=1,0,(Paraméterek!$C$52-4)),1,IF(M$1=1,Paraméterek!$C$52,4)))/1000000 -> 7.968383674 | N67: =SUM(OFFSET(Negyedéves!$A$125,$A67,3+(N$1-1)*4+IF(N$1=1,0,(Paraméterek!$C$52-4)),1,IF(N$1=1,Paraméterek!$C$52,4)))/1000000 -> 8.127751348 | O67: x
A68: 16 | B68: Értékcsökkenési leírás | C68: =SUM(OFFSET(Negyedéves!$A$125,$A68,3+(C$1-1)*4+IF(C$1=1,0,(Paraméterek!$C$52-4)),1,IF(C$1=1,Paraméterek!$C$52,4)))/1000000 -> 20.49524247 | D68: =SUM(OFFSET(Negyedéves!$A$125,$A68,3+(D$1-1)*4+IF(D$1=1,0,(Paraméterek!$C$52-4)),1,IF(D$1=1,Paraméterek!$C$52,4)))/1000000 -> 20.64167992 | E68: =SUM(OFFSET(Negyedéves!$A$125,$A68,3+(E$1-1)*4+IF(E$1=1,0,(Paraméterek!$C$52-4)),1,IF(E$1=1,Paraméterek!$C$52,4)))/1000000 -> 20.79104613 | F68: =SUM(OFFSET(Negyedéves!$A$125,$A68,3+(F$1-1)*4+IF(F$1=1,0,(Paraméterek!$C$52-4)),1,IF(F$1=1,Paraméterek!$C$52,4)))/1000000 -> 20.94339966 | G68: =SUM(OFFSET(Negyedéves!$A$125,$A68,3+(G$1-1)*4+IF(G$1=1,0,(Paraméterek!$C$52-4)),1,IF(G$1=1,Paraméterek!$C$52,4)))/1000000 -> 21.09880026 | H68: =SUM(OFFSET(Negyedéves!$A$125,$A68,3+(H$1-1)*4+IF(H$1=1,0,(Paraméterek!$C$52-4)),1,IF(H$1=1,Paraméterek!$C$52,4)))/1000000 -> 21.25730887 | I68: =SUM(OFFSET(Negyedéves!$A$125,$A68,3+(I$1-1)*4+IF(I$1=1,0,(Paraméterek!$C$52-4)),1,IF(I$1=1,Paraméterek!$C$52,4)))/1000000 -> 21.41898765 | J68: =SUM(OFFSET(Negyedéves!$A$125,$A68,3+(J$1-1)*4+IF(J$1=1,0,(Paraméterek!$C$52-4)),1,IF(J$1=1,Paraméterek!$C$52,4)))/1000000 -> 21.58390001 | K68: =SUM(OFFSET(Negyedéves!$A$125,$A68,3+(K$1-1)*4+IF(K$1=1,0,(Paraméterek!$C$52-4)),1,IF(K$1=1,Paraméterek!$C$52,4)))/1000000 -> 21.60567316 | L68: =SUM(OFFSET(Negyedéves!$A$125,$A68,3+(L$1-1)*4+IF(L$1=1,0,(Paraméterek!$C$52-4)),1,IF(L$1=1,Paraméterek!$C$52,4)))/1000000 -> 21.62788178 | M68: =SUM(OFFSET(Negyedéves!$A$125,$A68,3+(M$1-1)*4+IF(M$1=1,0,(Paraméterek!$C$52-4)),1,IF(M$1=1,Paraméterek!$C$52,4)))/1000000 -> 1.821958761 | N68: =SUM(OFFSET(Negyedéves!$A$125,$A68,3+(N$1-1)*4+IF(N$1=1,0,(Paraméterek!$C$52-4)),1,IF(N$1=1,Paraméterek!$C$52,4)))/1000000 -> 1.845064603 | O68: x
A69: 17 | B69: Egyéb ráfordítások | C69: =SUM(OFFSET(Negyedéves!$A$125,$A69,3+(C$1-1)*4+IF(C$1=1,0,(Paraméterek!$C$52-4)),1,IF(C$1=1,Paraméterek!$C$52,4)))/1000000 -> 2.524364884 | D69: =SUM(OFFSET(Negyedéves!$A$125,$A69,3+(D$1-1)*4+IF(D$1=1,0,(Paraméterek!$C$52-4)),1,IF(D$1=1,Paraméterek!$C$52,4)))/1000000 -> 2.550733071 | E69: =SUM(OFFSET(Negyedéves!$A$125,$A69,3+(E$1-1)*4+IF(E$1=1,0,(Paraméterek!$C$52-4)),1,IF(E$1=1,Paraméterek!$C$52,4)))/1000000 -> 2.577628622 | F69: =SUM(OFFSET(Negyedéves!$A$125,$A69,3+(F$1-1)*4+IF(F$1=1,0,(Paraméterek!$C$52-4)),1,IF(F$1=1,Paraméterek!$C$52,4)))/1000000 -> 2.605062084 | G69: =SUM(OFFSET(Negyedéves!$A$125,$A69,3+(G$1-1)*4+IF(G$1=1,0,(Paraméterek!$C$52-4)),1,IF(G$1=1,Paraméterek!$C$52,4)))/1000000 -> 2.633044215 | H69: =SUM(OFFSET(Negyedéves!$A$125,$A69,3+(H$1-1)*4+IF(H$1=1,0,(Paraméterek!$C$52-4)),1,IF(H$1=1,Paraméterek!$C$52,4)))/1000000 -> 2.661585989 | I69: =SUM(OFFSET(Negyedéves!$A$125,$A69,3+(I$1-1)*4+IF(I$1=1,0,(Paraméterek!$C$52-4)),1,IF(I$1=1,Paraméterek!$C$52,4)))/1000000 -> 2.690698599 | J69: =SUM(OFFSET(Negyedéves!$A$125,$A69,3+(J$1-1)*4+IF(J$1=1,0,(Paraméterek!$C$52-4)),1,IF(J$1=1,Paraméterek!$C$52,4)))/1000000 -> 2.72039346 | K69: =SUM(OFFSET(Negyedéves!$A$125,$A69,3+(K$1-1)*4+IF(K$1=1,0,(Paraméterek!$C$52-4)),1,IF(K$1=1,Paraméterek!$C$52,4)))/1000000 -> 2.750682219 | L69: =SUM(OFFSET(Negyedéves!$A$125,$A69,3+(L$1-1)*4+IF(L$1=1,0,(Paraméterek!$C$52-4)),1,IF(L$1=1,Paraméterek!$C$52,4)))/1000000 -> 2.781576753 | M69: =SUM(OFFSET(Negyedéves!$A$125,$A69,3+(M$1-1)*4+IF(M$1=1,0,(Paraméterek!$C$52-4)),1,IF(M$1=1,Paraméterek!$C$52,4)))/1000000 -> 2.813089178 | N69: =SUM(OFFSET(Negyedéves!$A$125,$A69,3+(N$1-1)*4+IF(N$1=1,0,(Paraméterek!$C$52-4)),1,IF(N$1=1,Paraméterek!$C$52,4)))/1000000 -> 2.845231851 | O69: x
A70: 18 | B70: ebből: értékvesztés | C70: =SUM(OFFSET(Negyedéves!$A$125,$A70,3+(C$1-1)*4+IF(C$1=1,0,(Paraméterek!$C$52-4)),1,IF(C$1=1,Paraméterek!$C$52,4)))/1000000 -> 0 | D70: =SUM(OFFSET(Negyedéves!$A$125,$A70,3+(D$1-1)*4+IF(D$1=1,0,(Paraméterek!$C$52-4)),1,IF(D$1=1,Paraméterek!$C$52,4)))/1000000 -> 0 | E70: =SUM(OFFSET(Negyedéves!$A$125,$A70,3+(E$1-1)*4+IF(E$1=1,0,(Paraméterek!$C$52-4)),1,IF(E$1=1,Paraméterek!$C$52,4)))/1000000 -> 0 | F70: =SUM(OFFSET(Negyedéves!$A$125,$A70,3+(F$1-1)*4+IF(F$1=1,0,(Paraméterek!$C$52-4)),1,IF(F$1=1,Paraméterek!$C$52,4)))/1000000 -> 0 | G70: =SUM(OFFSET(Negyedéves!$A$125,$A70,3+(G$1-1)*4+IF(G$1=1,0,(Paraméterek!$C$52-4)),1,IF(G$1=1,Paraméterek!$C$52,4)))/1000000 -> 0 | H70: =SUM(OFFSET(Negyedéves!$A$125,$A70,3+(H$1-1)*4+IF(H$1=1,0,(Paraméterek!$C$52-4)),1,IF(H$1=1,Paraméterek!$C$52,4)))/1000000 -> 0 | I70: =SUM(OFFSET(Negyedéves!$A$125,$A70,3+(I$1-1)*4+IF(I$1=1,0,(Paraméterek!$C$52-4)),1,IF(I$1=1,Paraméterek!$C$52,4)))/1000000 -> 0 | J70: =SUM(OFFSET(Negyedéves!$A$125,$A70,3+(J$1-1)*4+IF(J$1=1,0,(Paraméterek!$C$52-4)),1,IF(J$1=1,Paraméterek!$C$52,4)))/1000000 -> 0 | K70: =SUM(OFFSET(Negyedéves!$A$125,$A70,3+(K$1-1)*4+IF(K$1=1,0,(Paraméterek!$C$52-4)),1,IF(K$1=1,Paraméterek!$C$52,4)))/1000000 -> 0 | L70: =SUM(OFFSET(Negyedéves!$A$125,$A70,3+(L$1-1)*4+IF(L$1=1,0,(Paraméterek!$C$52-4)),1,IF(L$1=1,Paraméterek!$C$52,4)))/1000000 -> 0 | M70: =SUM(OFFSET(Negyedéves!$A$125,$A70,3+(M$1-1)*4+IF(M$1=1,0,(Paraméterek!$C$52-4)),1,IF(M$1=1,Paraméterek!$C$52,4)))/1000000 -> 0 | N70: =SUM(OFFSET(Negyedéves!$A$125,$A70,3+(N$1-1)*4+IF(N$1=1,0,(Paraméterek!$C$52-4)),1,IF(N$1=1,Paraméterek!$C$52,4)))/1000000 -> 0 | O70: x
A71: 19 | B71: Üzemi (üzleti) tevékenység eredménye | C71: =SUM(OFFSET(Negyedéves!$A$125,$A71,3+(C$1-1)*4+IF(C$1=1,0,(Paraméterek!$C$52-4)),1,IF(C$1=1,Paraméterek!$C$52,4)))/1000000 -> 31.38351009 | D71: =SUM(OFFSET(Negyedéves!$A$125,$A71,3+(D$1-1)*4+IF(D$1=1,0,(Paraméterek!$C$52-4)),1,IF(D$1=1,Paraméterek!$C$52,4)))/1000000 -> 32.29876679 | E71: =SUM(OFFSET(Negyedéves!$A$125,$A71,3+(E$1-1)*4+IF(E$1=1,0,(Paraméterek!$C$52-4)),1,IF(E$1=1,Paraméterek!$C$52,4)))/1000000 -> 33.23232863 | F71: =SUM(OFFSET(Negyedéves!$A$125,$A71,3+(F$1-1)*4+IF(F$1=1,0,(Paraméterek!$C$52-4)),1,IF(F$1=1,Paraméterek!$C$52,4)))/1000000 -> 34.18456171 | G71: =SUM(OFFSET(Negyedéves!$A$125,$A71,3+(G$1-1)*4+IF(G$1=1,0,(Paraméterek!$C$52-4)),1,IF(G$1=1,Paraméterek!$C$52,4)))/1000000 -> 35.15583945 | H71: =SUM(OFFSET(Negyedéves!$A$125,$A71,3+(H$1-1)*4+IF(H$1=1,0,(Paraméterek!$C$52-4)),1,IF(H$1=1,Paraméterek!$C$52,4)))/1000000 -> 36.14654274 | I71: =SUM(OFFSET(Negyedéves!$A$125,$A71,3+(I$1-1)*4+IF(I$1=1,0,(Paraméterek!$C$52-4)),1,IF(I$1=1,Paraméterek!$C$52,4)))/1000000 -> 37.1570601 | J71: =SUM(OFFSET(Negyedéves!$A$125,$A71,3+(J$1-1)*4+IF(J$1=1,0,(Paraméterek!$C$52-4)),1,IF(J$1=1,Paraméterek!$C$52,4)))/1000000 -> 38.18778781 | K71: =SUM(OFFSET(Negyedéves!$A$125,$A71,3+(K$1-1)*4+IF(K$1=1,0,(Paraméterek!$C$52-4)),1,IF(K$1=1,Paraméterek!$C$52,4)))/1000000 -> 39.38556752 | L71: =SUM(OFFSET(Negyedéves!$A$125,$A71,3+(L$1-1)*4+IF(L$1=1,0,(Paraméterek!$C$52-4)),1,IF(L$1=1,Paraméterek!$C$52,4)))/1000000 -> 40.60730283 | M71: =SUM(OFFSET(Negyedéves!$A$125,$A71,3+(M$1-1)*4+IF(M$1=1,0,(Paraméterek!$C$52-4)),1,IF(M$1=1,Paraméterek!$C$52,4)))/1000000 -> 61.68204865 | N71: =SUM(OFFSET(Negyedéves!$A$125,$A71,3+(N$1-1)*4+IF(N$1=1,0,(Paraméterek!$C$52-4)),1,IF(N$1=1,Paraméterek!$C$52,4)))/1000000 -> 62.95314207 | O71: x
A72: 20 | B72: Kapott osztalék és részesedés | C72: =SUM(OFFSET(Negyedéves!$A$125,$A72,3+(C$1-1)*4+IF(C$1=1,0,(Paraméterek!$C$52-4)),1,IF(C$1=1,Paraméterek!$C$52,4)))/1000000 -> 0 | D72: =SUM(OFFSET(Negyedéves!$A$125,$A72,3+(D$1-1)*4+IF(D$1=1,0,(Paraméterek!$C$52-4)),1,IF(D$1=1,Paraméterek!$C$52,4)))/1000000 -> 0 | E72: =SUM(OFFSET(Negyedéves!$A$125,$A72,3+(E$1-1)*4+IF(E$1=1,0,(Paraméterek!$C$52-4)),1,IF(E$1=1,Paraméterek!$C$52,4)))/1000000 -> 0 | F72: =SUM(OFFSET(Negyedéves!$A$125,$A72,3+(F$1-1)*4+IF(F$1=1,0,(Paraméterek!$C$52-4)),1,IF(F$1=1,Paraméterek!$C$52,4)))/1000000 -> 0 | G72: =SUM(OFFSET(Negyedéves!$A$125,$A72,3+(G$1-1)*4+IF(G$1=1,0,(Paraméterek!$C$52-4)),1,IF(G$1=1,Paraméterek!$C$52,4)))/1000000 -> 0 | H72: =SUM(OFFSET(Negyedéves!$A$125,$A72,3+(H$1-1)*4+IF(H$1=1,0,(Paraméterek!$C$52-4)),1,IF(H$1=1,Paraméterek!$C$52,4)))/1000000 -> 0 | I72: =SUM(OFFSET(Negyedéves!$A$125,$A72,3+(I$1-1)*4+IF(I$1=1,0,(Paraméterek!$C$52-4)),1,IF(I$1=1,Paraméterek!$C$52,4)))/1000000 -> 0 | J72: =SUM(OFFSET(Negyedéves!$A$125,$A72,3+(J$1-1)*4+IF(J$1=1,0,(Paraméterek!$C$52-4)),1,IF(J$1=1,Paraméterek!$C$52,4)))/1000000 -> 0 | K72: =SUM(OFFSET(Negyedéves!$A$125,$A72,3+(K$1-1)*4+IF(K$1=1,0,(Paraméterek!$C$52-4)),1,IF(K$1=1,Paraméterek!$C$52,4)))/1000000 -> 0 | L72: =SUM(OFFSET(Negyedéves!$A$125,$A72,3+(L$1-1)*4+IF(L$1=1,0,(Paraméterek!$C$52-4)),1,IF(L$1=1,Paraméterek!$C$52,4)))/1000000 -> 0 | M72: =SUM(OFFSET(Negyedéves!$A$125,$A72,3+(M$1-1)*4+IF(M$1=1,0,(Paraméterek!$C$52-4)),1,IF(M$1=1,Paraméterek!$C$52,4)))/1000000 -> 0 | N72: =SUM(OFFSET(Negyedéves!$A$125,$A72,3+(N$1-1)*4+IF(N$1=1,0,(Paraméterek!$C$52-4)),1,IF(N$1=1,Paraméterek!$C$52,4)))/1000000 -> 0 | O72: x
A73: 21 | B73: Részesedések értékesítésének árfolyamnyeresége | C73: =SUM(OFFSET(Negyedéves!$A$125,$A73,3+(C$1-1)*4+IF(C$1=1,0,(Paraméterek!$C$52-4)),1,IF(C$1=1,Paraméterek!$C$52,4)))/1000000 -> 0 | D73: =SUM(OFFSET(Negyedéves!$A$125,$A73,3+(D$1-1)*4+IF(D$1=1,0,(Paraméterek!$C$52-4)),1,IF(D$1=1,Paraméterek!$C$52,4)))/1000000 -> 0 | E73: =SUM(OFFSET(Negyedéves!$A$125,$A73,3+(E$1-1)*4+IF(E$1=1,0,(Paraméterek!$C$52-4)),1,IF(E$1=1,Paraméterek!$C$52,4)))/1000000 -> 0 | F73: =SUM(OFFSET(Negyedéves!$A$125,$A73,3+(F$1-1)*4+IF(F$1=1,0,(Paraméterek!$C$52-4)),1,IF(F$1=1,Paraméterek!$C$52,4)))/1000000 -> 0 | G73: =SUM(OFFSET(Negyedéves!$A$125,$A73,3+(G$1-1)*4+IF(G$1=1,0,(Paraméterek!$C$52-4)),1,IF(G$1=1,Paraméterek!$C$52,4)))/1000000 -> 0 | H73: =SUM(OFFSET(Negyedéves!$A$125,$A73,3+(H$1-1)*4+IF(H$1=1,0,(Paraméterek!$C$52-4)),1,IF(H$1=1,Paraméterek!$C$52,4)))/1000000 -> 0 | I73: =SUM(OFFSET(Negyedéves!$A$125,$A73,3+(I$1-1)*4+IF(I$1=1,0,(Paraméterek!$C$52-4)),1,IF(I$1=1,Paraméterek!$C$52,4)))/1000000 -> 0 | J73: =SUM(OFFSET(Negyedéves!$A$125,$A73,3+(J$1-1)*4+IF(J$1=1,0,(Paraméterek!$C$52-4)),1,IF(J$1=1,Paraméterek!$C$52,4)))/1000000 -> 0 | K73: =SUM(OFFSET(Negyedéves!$A$125,$A73,3+(K$1-1)*4+IF(K$1=1,0,(Paraméterek!$C$52-4)),1,IF(K$1=1,Paraméterek!$C$52,4)))/1000000 -> 0 | L73: =SUM(OFFSET(Negyedéves!$A$125,$A73,3+(L$1-1)*4+IF(L$1=1,0,(Paraméterek!$C$52-4)),1,IF(L$1=1,Paraméterek!$C$52,4)))/1000000 -> 0 | M73: =SUM(OFFSET(Negyedéves!$A$125,$A73,3+(M$1-1)*4+IF(M$1=1,0,(Paraméterek!$C$52-4)),1,IF(M$1=1,Paraméterek!$C$52,4)))/1000000 -> 0 | N73: =SUM(OFFSET(Negyedéves!$A$125,$A73,3+(N$1-1)*4+IF(N$1=1,0,(Paraméterek!$C$52-4)),1,IF(N$1=1,Paraméterek!$C$52,4)))/1000000 -> 0 | O73: x
A74: 22 | B74: Befektetett pénzügyi eszközök kamatai, árfolyamnyeresége | C74: =SUM(OFFSET(Negyedéves!$A$125,$A74,3+(C$1-1)*4+IF(C$1=1,0,(Paraméterek!$C$52-4)),1,IF(C$1=1,Paraméterek!$C$52,4)))/1000000 -> 0.5327325126 | D74: =SUM(OFFSET(Negyedéves!$A$125,$A74,3+(D$1-1)*4+IF(D$1=1,0,(Paraméterek!$C$52-4)),1,IF(D$1=1,Paraméterek!$C$52,4)))/1000000 -> 1.876019412 | E74: =SUM(OFFSET(Negyedéves!$A$125,$A74,3+(E$1-1)*4+IF(E$1=1,0,(Paraméterek!$C$52-4)),1,IF(E$1=1,Paraméterek!$C$52,4)))/1000000 -> 3.291580028 | F74: =SUM(OFFSET(Negyedéves!$A$125,$A74,3+(F$1-1)*4+IF(F$1=1,0,(Paraméterek!$C$52-4)),1,IF(F$1=1,Paraméterek!$C$52,4)))/1000000 -> 4.79707568 | G74: =SUM(OFFSET(Negyedéves!$A$125,$A74,3+(G$1-1)*4+IF(G$1=1,0,(Paraméterek!$C$52-4)),1,IF(G$1=1,Paraméterek!$C$52,4)))/1000000 -> 6.396103332 | H74: =SUM(OFFSET(Negyedéves!$A$125,$A74,3+(H$1-1)*4+IF(H$1=1,0,(Paraméterek!$C$52-4)),1,IF(H$1=1,Paraméterek!$C$52,4)))/1000000 -> 8.092389848 | I74: =SUM(OFFSET(Negyedéves!$A$125,$A74,3+(I$1-1)*4+IF(I$1=1,0,(Paraméterek!$C$52-4)),1,IF(I$1=1,Paraméterek!$C$52,4)))/1000000 -> 9.999171463 | J74: =SUM(OFFSET(Negyedéves!$A$125,$A74,3+(J$1-1)*4+IF(J$1=1,0,(Paraméterek!$C$52-4)),1,IF(J$1=1,Paraméterek!$C$52,4)))/1000000 -> 12.21505778 | K74: =SUM(OFFSET(Negyedéves!$A$125,$A74,3+(K$1-1)*4+IF(K$1=1,0,(Paraméterek!$C$52-4)),1,IF(K$1=1,Paraméterek!$C$52,4)))/1000000 -> 14.57727308 | L74: =SUM(OFFSET(Negyedéves!$A$125,$A74,3+(L$1-1)*4+IF(L$1=1,0,(Paraméterek!$C$52-4)),1,IF(L$1=1,Paraméterek!$C$52,4)))/1000000 -> 17.05446892 | M74: =SUM(OFFSET(Negyedéves!$A$125,$A74,3+(M$1-1)*4+IF(M$1=1,0,(Paraméterek!$C$52-4)),1,IF(M$1=1,Paraméterek!$C$52,4)))/1000000 -> 19.62758113 | N74: =SUM(OFFSET(Negyedéves!$A$125,$A74,3+(N$1-1)*4+IF(N$1=1,0,(Paraméterek!$C$52-4)),1,IF(N$1=1,Paraméterek!$C$52,4)))/1000000 -> 22.28437786 | O74: x
A75: 23 | B75: Egyéb kamatok és kamatjellegű bevételek | C75: =SUM(OFFSET(Negyedéves!$A$125,$A75,3+(C$1-1)*4+IF(C$1=1,0,(Paraméterek!$C$52-4)),1,IF(C$1=1,Paraméterek!$C$52,4)))/1000000 -> 0 | D75: =SUM(OFFSET(Negyedéves!$A$125,$A75,3+(D$1-1)*4+IF(D$1=1,0,(Paraméterek!$C$52-4)),1,IF(D$1=1,Paraméterek!$C$52,4)))/1000000 -> 0 | E75: =SUM(OFFSET(Negyedéves!$A$125,$A75,3+(E$1-1)*4+IF(E$1=1,0,(Paraméterek!$C$52-4)),1,IF(E$1=1,Paraméterek!$C$52,4)))/1000000 -> 0 | F75: =SUM(OFFSET(Negyedéves!$A$125,$A75,3+(F$1-1)*4+IF(F$1=1,0,(Paraméterek!$C$52-4)),1,IF(F$1=1,Paraméterek!$C$52,4)))/1000000 -> 0 | G75: =SUM(OFFSET(Negyedéves!$A$125,$A75,3+(G$1-1)*4+IF(G$1=1,0,(Paraméterek!$C$52-4)),1,IF(G$1=1,Paraméterek!$C$52,4)))/1000000 -> 0 | H75: =SUM(OFFSET(Negyedéves!$A$125,$A75,3+(H$1-1)*4+IF(H$1=1,0,(Paraméterek!$C$52-4)),1,IF(H$1=1,Paraméterek!$C$52,4)))/1000000 -> 0 | I75: =SUM(OFFSET(Negyedéves!$A$125,$A75,3+(I$1-1)*4+IF(I$1=1,0,(Paraméterek!$C$52-4)),1,IF(I$1=1,Paraméterek!$C$52,4)))/1000000 -> 0 | J75: =SUM(OFFSET(Negyedéves!$A$125,$A75,3+(J$1-1)*4+IF(J$1=1,0,(Paraméterek!$C$52-4)),1,IF(J$1=1,Paraméterek!$C$52,4)))/1000000 -> 0 | K75: =SUM(OFFSET(Negyedéves!$A$125,$A75,3+(K$1-1)*4+IF(K$1=1,0,(Paraméterek!$C$52-4)),1,IF(K$1=1,Paraméterek!$C$52,4)))/1000000 -> 0 | L75: =SUM(OFFSET(Negyedéves!$A$125,$A75,3+(L$1-1)*4+IF(L$1=1,0,(Paraméterek!$C$52-4)),1,IF(L$1=1,Paraméterek!$C$52,4)))/1000000 -> 0 | M75: =SUM(OFFSET(Negyedéves!$A$125,$A75,3+(M$1-1)*4+IF(M$1=1,0,(Paraméterek!$C$52-4)),1,IF(M$1=1,Paraméterek!$C$52,4)))/1000000 -> 0 | N75: =SUM(OFFSET(Negyedéves!$A$125,$A75,3+(N$1-1)*4+IF(N$1=1,0,(Paraméterek!$C$52-4)),1,IF(N$1=1,Paraméterek!$C$52,4)))/1000000 -> 0 | O75: x
A76: 24 | B76: Pénzügyi műveletek egyéb bevételei | C76: =SUM(OFFSET(Negyedéves!$A$125,$A76,3+(C$1-1)*4+IF(C$1=1,0,(Paraméterek!$C$52-4)),1,IF(C$1=1,Paraméterek!$C$52,4)))/1000000 -> 0 | D76: =SUM(OFFSET(Negyedéves!$A$125,$A76,3+(D$1-1)*4+IF(D$1=1,0,(Paraméterek!$C$52-4)),1,IF(D$1=1,Paraméterek!$C$52,4)))/1000000 -> 0 | E76: =SUM(OFFSET(Negyedéves!$A$125,$A76,3+(E$1-1)*4+IF(E$1=1,0,(Paraméterek!$C$52-4)),1,IF(E$1=1,Paraméterek!$C$52,4)))/1000000 -> 0 | F76: =SUM(OFFSET(Negyedéves!$A$125,$A76,3+(F$1-1)*4+IF(F$1=1,0,(Paraméterek!$C$52-4)),1,IF(F$1=1,Paraméterek!$C$52,4)))/1000000 -> 0 | G76: =SUM(OFFSET(Negyedéves!$A$125,$A76,3+(G$1-1)*4+IF(G$1=1,0,(Paraméterek!$C$52-4)),1,IF(G$1=1,Paraméterek!$C$52,4)))/1000000 -> 0 | H76: =SUM(OFFSET(Negyedéves!$A$125,$A76,3+(H$1-1)*4+IF(H$1=1,0,(Paraméterek!$C$52-4)),1,IF(H$1=1,Paraméterek!$C$52,4)))/1000000 -> 0 | I76: =SUM(OFFSET(Negyedéves!$A$125,$A76,3+(I$1-1)*4+IF(I$1=1,0,(Paraméterek!$C$52-4)),1,IF(I$1=1,Paraméterek!$C$52,4)))/1000000 -> 0 | J76: =SUM(OFFSET(Negyedéves!$A$125,$A76,3+(J$1-1)*4+IF(J$1=1,0,(Paraméterek!$C$52-4)),1,IF(J$1=1,Paraméterek!$C$52,4)))/1000000 -> 0 | K76: =SUM(OFFSET(Negyedéves!$A$125,$A76,3+(K$1-1)*4+IF(K$1=1,0,(Paraméterek!$C$52-4)),1,IF(K$1=1,Paraméterek!$C$52,4)))/1000000 -> 0 | L76: =SUM(OFFSET(Negyedéves!$A$125,$A76,3+(L$1-1)*4+IF(L$1=1,0,(Paraméterek!$C$52-4)),1,IF(L$1=1,Paraméterek!$C$52,4)))/1000000 -> 0 | M76: =SUM(OFFSET(Negyedéves!$A$125,$A76,3+(M$1-1)*4+IF(M$1=1,0,(Paraméterek!$C$52-4)),1,IF(M$1=1,Paraméterek!$C$52,4)))/1000000 -> 0 | N76: =SUM(OFFSET(Negyedéves!$A$125,$A76,3+(N$1-1)*4+IF(N$1=1,0,(Paraméterek!$C$52-4)),1,IF(N$1=1,Paraméterek!$C$52,4)))/1000000 -> 0 | O76: x
A77: 25 | B77: Pénzügyi műveletek bevételei | C77: =SUM(OFFSET(Negyedéves!$A$125,$A77,3+(C$1-1)*4+IF(C$1=1,0,(Paraméterek!$C$52-4)),1,IF(C$1=1,Paraméterek!$C$52,4)))/1000000 -> 0.5327325126 | D77: =SUM(OFFSET(Negyedéves!$A$125,$A77,3+(D$1-1)*4+IF(D$1=1,0,(Paraméterek!$C$52-4)),1,IF(D$1=1,Paraméterek!$C$52,4)))/1000000 -> 1.876019412 | E77: =SUM(OFFSET(Negyedéves!$A$125,$A77,3+(E$1-1)*4+IF(E$1=1,0,(Paraméterek!$C$52-4)),1,IF(E$1=1,Paraméterek!$C$52,4)))/1000000 -> 3.291580028 | F77: =SUM(OFFSET(Negyedéves!$A$125,$A77,3+(F$1-1)*4+IF(F$1=1,0,(Paraméterek!$C$52-4)),1,IF(F$1=1,Paraméterek!$C$52,4)))/1000000 -> 4.79707568 | G77: =SUM(OFFSET(Negyedéves!$A$125,$A77,3+(G$1-1)*4+IF(G$1=1,0,(Paraméterek!$C$52-4)),1,IF(G$1=1,Paraméterek!$C$52,4)))/1000000 -> 6.396103332 | H77: =SUM(OFFSET(Negyedéves!$A$125,$A77,3+(H$1-1)*4+IF(H$1=1,0,(Paraméterek!$C$52-4)),1,IF(H$1=1,Paraméterek!$C$52,4)))/1000000 -> 8.092389848 | I77: =SUM(OFFSET(Negyedéves!$A$125,$A77,3+(I$1-1)*4+IF(I$1=1,0,(Paraméterek!$C$52-4)),1,IF(I$1=1,Paraméterek!$C$52,4)))/1000000 -> 9.999171463 | J77: =SUM(OFFSET(Negyedéves!$A$125,$A77,3+(J$1-1)*4+IF(J$1=1,0,(Paraméterek!$C$52-4)),1,IF(J$1=1,Paraméterek!$C$52,4)))/1000000 -> 12.21505778 | K77: =SUM(OFFSET(Negyedéves!$A$125,$A77,3+(K$1-1)*4+IF(K$1=1,0,(Paraméterek!$C$52-4)),1,IF(K$1=1,Paraméterek!$C$52,4)))/1000000 -> 14.57727308 | L77: =SUM(OFFSET(Negyedéves!$A$125,$A77,3+(L$1-1)*4+IF(L$1=1,0,(Paraméterek!$C$52-4)),1,IF(L$1=1,Paraméterek!$C$52,4)))/1000000 -> 17.05446892 | M77: =SUM(OFFSET(Negyedéves!$A$125,$A77,3+(M$1-1)*4+IF(M$1=1,0,(Paraméterek!$C$52-4)),1,IF(M$1=1,Paraméterek!$C$52,4)))/1000000 -> 19.62758113 | N77: =SUM(OFFSET(Negyedéves!$A$125,$A77,3+(N$1-1)*4+IF(N$1=1,0,(Paraméterek!$C$52-4)),1,IF(N$1=1,Paraméterek!$C$52,4)))/1000000 -> 22.28437786 | O77: x
A78: 26 | B78: Befektetett pénzügyi eszközök kamatai, árfolyamvesztesége | C78: =SUM(OFFSET(Negyedéves!$A$125,$A78,3+(C$1-1)*4+IF(C$1=1,0,(Paraméterek!$C$52-4)),1,IF(C$1=1,Paraméterek!$C$52,4)))/1000000 -> 0 | D78: =SUM(OFFSET(Negyedéves!$A$125,$A78,3+(D$1-1)*4+IF(D$1=1,0,(Paraméterek!$C$52-4)),1,IF(D$1=1,Paraméterek!$C$52,4)))/1000000 -> 0 | E78: =SUM(OFFSET(Negyedéves!$A$125,$A78,3+(E$1-1)*4+IF(E$1=1,0,(Paraméterek!$C$52-4)),1,IF(E$1=1,Paraméterek!$C$52,4)))/1000000 -> 0 | F78: =SUM(OFFSET(Negyedéves!$A$125,$A78,3+(F$1-1)*4+IF(F$1=1,0,(Paraméterek!$C$52-4)),1,IF(F$1=1,Paraméterek!$C$52,4)))/1000000 -> 0 | G78: =SUM(OFFSET(Negyedéves!$A$125,$A78,3+(G$1-1)*4+IF(G$1=1,0,(Paraméterek!$C$52-4)),1,IF(G$1=1,Paraméterek!$C$52,4)))/1000000 -> 0 | H78: =SUM(OFFSET(Negyedéves!$A$125,$A78,3+(H$1-1)*4+IF(H$1=1,0,(Paraméterek!$C$52-4)),1,IF(H$1=1,Paraméterek!$C$52,4)))/1000000 -> 0 | I78: =SUM(OFFSET(Negyedéves!$A$125,$A78,3+(I$1-1)*4+IF(I$1=1,0,(Paraméterek!$C$52-4)),1,IF(I$1=1,Paraméterek!$C$52,4)))/1000000 -> 0 | J78: =SUM(OFFSET(Negyedéves!$A$125,$A78,3+(J$1-1)*4+IF(J$1=1,0,(Paraméterek!$C$52-4)),1,IF(J$1=1,Paraméterek!$C$52,4)))/1000000 -> 0 | K78: =SUM(OFFSET(Negyedéves!$A$125,$A78,3+(K$1-1)*4+IF(K$1=1,0,(Paraméterek!$C$52-4)),1,IF(K$1=1,Paraméterek!$C$52,4)))/1000000 -> 0 | L78: =SUM(OFFSET(Negyedéves!$A$125,$A78,3+(L$1-1)*4+IF(L$1=1,0,(Paraméterek!$C$52-4)),1,IF(L$1=1,Paraméterek!$C$52,4)))/1000000 -> 0 | M78: =SUM(OFFSET(Negyedéves!$A$125,$A78,3+(M$1-1)*4+IF(M$1=1,0,(Paraméterek!$C$52-4)),1,IF(M$1=1,Paraméterek!$C$52,4)))/1000000 -> 0 | N78: =SUM(OFFSET(Negyedéves!$A$125,$A78,3+(N$1-1)*4+IF(N$1=1,0,(Paraméterek!$C$52-4)),1,IF(N$1=1,Paraméterek!$C$52,4)))/1000000 -> 0 | O78: x
A79: 27 | B79: ebből: kapcsolt vállalkozásoknak adott | C79: =SUM(OFFSET(Negyedéves!$A$125,$A79,3+(C$1-1)*4+IF(C$1=1,0,(Paraméterek!$C$52-4)),1,IF(C$1=1,Paraméterek!$C$52,4)))/1000000 -> 0 | D79: =SUM(OFFSET(Negyedéves!$A$125,$A79,3+(D$1-1)*4+IF(D$1=1,0,(Paraméterek!$C$52-4)),1,IF(D$1=1,Paraméterek!$C$52,4)))/1000000 -> 0 | E79: =SUM(OFFSET(Negyedéves!$A$125,$A79,3+(E$1-1)*4+IF(E$1=1,0,(Paraméterek!$C$52-4)),1,IF(E$1=1,Paraméterek!$C$52,4)))/1000000 -> 0 | F79: =SUM(OFFSET(Negyedéves!$A$125,$A79,3+(F$1-1)*4+IF(F$1=1,0,(Paraméterek!$C$52-4)),1,IF(F$1=1,Paraméterek!$C$52,4)))/1000000 -> 0 | G79: =SUM(OFFSET(Negyedéves!$A$125,$A79,3+(G$1-1)*4+IF(G$1=1,0,(Paraméterek!$C$52-4)),1,IF(G$1=1,Paraméterek!$C$52,4)))/1000000 -> 0 | H79: =SUM(OFFSET(Negyedéves!$A$125,$A79,3+(H$1-1)*4+IF(H$1=1,0,(Paraméterek!$C$52-4)),1,IF(H$1=1,Paraméterek!$C$52,4)))/1000000 -> 0 | I79: =SUM(OFFSET(Negyedéves!$A$125,$A79,3+(I$1-1)*4+IF(I$1=1,0,(Paraméterek!$C$52-4)),1,IF(I$1=1,Paraméterek!$C$52,4)))/1000000 -> 0 | J79: =SUM(OFFSET(Negyedéves!$A$125,$A79,3+(J$1-1)*4+IF(J$1=1,0,(Paraméterek!$C$52-4)),1,IF(J$1=1,Paraméterek!$C$52,4)))/1000000 -> 0 | K79: =SUM(OFFSET(Negyedéves!$A$125,$A79,3+(K$1-1)*4+IF(K$1=1,0,(Paraméterek!$C$52-4)),1,IF(K$1=1,Paraméterek!$C$52,4)))/1000000 -> 0 | L79: =SUM(OFFSET(Negyedéves!$A$125,$A79,3+(L$1-1)*4+IF(L$1=1,0,(Paraméterek!$C$52-4)),1,IF(L$1=1,Paraméterek!$C$52,4)))/1000000 -> 0 | M79: =SUM(OFFSET(Negyedéves!$A$125,$A79,3+(M$1-1)*4+IF(M$1=1,0,(Paraméterek!$C$52-4)),1,IF(M$1=1,Paraméterek!$C$52,4)))/1000000 -> 0 | N79: =SUM(OFFSET(Negyedéves!$A$125,$A79,3+(N$1-1)*4+IF(N$1=1,0,(Paraméterek!$C$52-4)),1,IF(N$1=1,Paraméterek!$C$52,4)))/1000000 -> 0 | O79: x
A80: 28 | B80: Fizetendő kamatok és kamatjellegű ráfordítások | C80: =SUM(OFFSET(Negyedéves!$A$125,$A80,3+(C$1-1)*4+IF(C$1=1,0,(Paraméterek!$C$52-4)),1,IF(C$1=1,Paraméterek!$C$52,4)))/1000000 -> 3.505385804 | D80: =SUM(OFFSET(Negyedéves!$A$125,$A80,3+(D$1-1)*4+IF(D$1=1,0,(Paraméterek!$C$52-4)),1,IF(D$1=1,Paraméterek!$C$52,4)))/1000000 -> 1.348958333 | E80: =SUM(OFFSET(Negyedéves!$A$125,$A80,3+(E$1-1)*4+IF(E$1=1,0,(Paraméterek!$C$52-4)),1,IF(E$1=1,Paraméterek!$C$52,4)))/1000000 -> 1.057291667 | F80: =SUM(OFFSET(Negyedéves!$A$125,$A80,3+(F$1-1)*4+IF(F$1=1,0,(Paraméterek!$C$52-4)),1,IF(F$1=1,Paraméterek!$C$52,4)))/1000000 -> 0.765625 | G80: =SUM(OFFSET(Negyedéves!$A$125,$A80,3+(G$1-1)*4+IF(G$1=1,0,(Paraméterek!$C$52-4)),1,IF(G$1=1,Paraméterek!$C$52,4)))/1000000 -> 0.4739583333 | H80: =SUM(OFFSET(Negyedéves!$A$125,$A80,3+(H$1-1)*4+IF(H$1=1,0,(Paraméterek!$C$52-4)),1,IF(H$1=1,Paraméterek!$C$52,4)))/1000000 -> 0.1822916667 | I80: =SUM(OFFSET(Negyedéves!$A$125,$A80,3+(I$1-1)*4+IF(I$1=1,0,(Paraméterek!$C$52-4)),1,IF(I$1=1,Paraméterek!$C$52,4)))/1000000 -> -5.401670933e-16 | J80: =SUM(OFFSET(Negyedéves!$A$125,$A80,3+(J$1-1)*4+IF(J$1=1,0,(Paraméterek!$C$52-4)),1,IF(J$1=1,Paraméterek!$C$52,4)))/1000000 -> -5.820766091e-16 | K80: =SUM(OFFSET(Negyedéves!$A$125,$A80,3+(K$1-1)*4+IF(K$1=1,0,(Paraméterek!$C$52-4)),1,IF(K$1=1,Paraméterek!$C$52,4)))/1000000 -> -5.820766091e-16 | L80: =SUM(OFFSET(Negyedéves!$A$125,$A80,3+(L$1-1)*4+IF(L$1=1,0,(Paraméterek!$C$52-4)),1,IF(L$1=1,Paraméterek!$C$52,4)))/1000000 -> 8.847564459e-17 | M80: =SUM(OFFSET(Negyedéves!$A$125,$A80,3+(M$1-1)*4+IF(M$1=1,0,(Paraméterek!$C$52-4)),1,IF(M$1=1,Paraméterek!$C$52,4)))/1000000 -> 1.429580152e-15 | N80: =SUM(OFFSET(Negyedéves!$A$125,$A80,3+(N$1-1)*4+IF(N$1=1,0,(Paraméterek!$C$52-4)),1,IF(N$1=1,Paraméterek!$C$52,4)))/1000000 -> 2.100132406e-15 | O80: x
A81: 29 | B81: ebből: kapcsolt vállalkozásoknak adott | C81: =SUM(OFFSET(Negyedéves!$A$125,$A81,3+(C$1-1)*4+IF(C$1=1,0,(Paraméterek!$C$52-4)),1,IF(C$1=1,Paraméterek!$C$52,4)))/1000000 -> 0 | D81: =SUM(OFFSET(Negyedéves!$A$125,$A81,3+(D$1-1)*4+IF(D$1=1,0,(Paraméterek!$C$52-4)),1,IF(D$1=1,Paraméterek!$C$52,4)))/1000000 -> 0 | E81: =SUM(OFFSET(Negyedéves!$A$125,$A81,3+(E$1-1)*4+IF(E$1=1,0,(Paraméterek!$C$52-4)),1,IF(E$1=1,Paraméterek!$C$52,4)))/1000000 -> 0 | F81: =SUM(OFFSET(Negyedéves!$A$125,$A81,3+(F$1-1)*4+IF(F$1=1,0,(Paraméterek!$C$52-4)),1,IF(F$1=1,Paraméterek!$C$52,4)))/1000000 -> 0 | G81: =SUM(OFFSET(Negyedéves!$A$125,$A81,3+(G$1-1)*4+IF(G$1=1,0,(Paraméterek!$C$52-4)),1,IF(G$1=1,Paraméterek!$C$52,4)))/1000000 -> 0 | H81: =SUM(OFFSET(Negyedéves!$A$125,$A81,3+(H$1-1)*4+IF(H$1=1,0,(Paraméterek!$C$52-4)),1,IF(H$1=1,Paraméterek!$C$52,4)))/1000000 -> 0 | I81: =SUM(OFFSET(Negyedéves!$A$125,$A81,3+(I$1-1)*4+IF(I$1=1,0,(Paraméterek!$C$52-4)),1,IF(I$1=1,Paraméterek!$C$52,4)))/1000000 -> 0 | J81: =SUM(OFFSET(Negyedéves!$A$125,$A81,3+(J$1-1)*4+IF(J$1=1,0,(Paraméterek!$C$52-4)),1,IF(J$1=1,Paraméterek!$C$52,4)))/1000000 -> 0 | K81: =SUM(OFFSET(Negyedéves!$A$125,$A81,3+(K$1-1)*4+IF(K$1=1,0,(Paraméterek!$C$52-4)),1,IF(K$1=1,Paraméterek!$C$52,4)))/1000000 -> 0 | L81: =SUM(OFFSET(Negyedéves!$A$125,$A81,3+(L$1-1)*4+IF(L$1=1,0,(Paraméterek!$C$52-4)),1,IF(L$1=1,Paraméterek!$C$52,4)))/1000000 -> 0 | M81: =SUM(OFFSET(Negyedéves!$A$125,$A81,3+(M$1-1)*4+IF(M$1=1,0,(Paraméterek!$C$52-4)),1,IF(M$1=1,Paraméterek!$C$52,4)))/1000000 -> 0 | N81: =SUM(OFFSET(Negyedéves!$A$125,$A81,3+(N$1-1)*4+IF(N$1=1,0,(Paraméterek!$C$52-4)),1,IF(N$1=1,Paraméterek!$C$52,4)))/1000000 -> 0 | O81: x
A82: 30 | B82: Részesedések, értékpapírok árfolyamvesztesége | C82: =SUM(OFFSET(Negyedéves!$A$125,$A82,3+(C$1-1)*4+IF(C$1=1,0,(Paraméterek!$C$52-4)),1,IF(C$1=1,Paraméterek!$C$52,4)))/1000000 -> 0 | D82: =SUM(OFFSET(Negyedéves!$A$125,$A82,3+(D$1-1)*4+IF(D$1=1,0,(Paraméterek!$C$52-4)),1,IF(D$1=1,Paraméterek!$C$52,4)))/1000000 -> 0 | E82: =SUM(OFFSET(Negyedéves!$A$125,$A82,3+(E$1-1)*4+IF(E$1=1,0,(Paraméterek!$C$52-4)),1,IF(E$1=1,Paraméterek!$C$52,4)))/1000000 -> 0 | F82: =SUM(OFFSET(Negyedéves!$A$125,$A82,3+(F$1-1)*4+IF(F$1=1,0,(Paraméterek!$C$52-4)),1,IF(F$1=1,Paraméterek!$C$52,4)))/1000000 -> 0 | G82: =SUM(OFFSET(Negyedéves!$A$125,$A82,3+(G$1-1)*4+IF(G$1=1,0,(Paraméterek!$C$52-4)),1,IF(G$1=1,Paraméterek!$C$52,4)))/1000000 -> 0 | H82: =SUM(OFFSET(Negyedéves!$A$125,$A82,3+(H$1-1)*4+IF(H$1=1,0,(Paraméterek!$C$52-4)),1,IF(H$1=1,Paraméterek!$C$52,4)))/1000000 -> 0 | I82: =SUM(OFFSET(Negyedéves!$A$125,$A82,3+(I$1-1)*4+IF(I$1=1,0,(Paraméterek!$C$52-4)),1,IF(I$1=1,Paraméterek!$C$52,4)))/1000000 -> 0 | J82: =SUM(OFFSET(Negyedéves!$A$125,$A82,3+(J$1-1)*4+IF(J$1=1,0,(Paraméterek!$C$52-4)),1,IF(J$1=1,Paraméterek!$C$52,4)))/1000000 -> 0 | K82: =SUM(OFFSET(Negyedéves!$A$125,$A82,3+(K$1-1)*4+IF(K$1=1,0,(Paraméterek!$C$52-4)),1,IF(K$1=1,Paraméterek!$C$52,4)))/1000000 -> 0 | L82: =SUM(OFFSET(Negyedéves!$A$125,$A82,3+(L$1-1)*4+IF(L$1=1,0,(Paraméterek!$C$52-4)),1,IF(L$1=1,Paraméterek!$C$52,4)))/1000000 -> 0 | M82: =SUM(OFFSET(Negyedéves!$A$125,$A82,3+(M$1-1)*4+IF(M$1=1,0,(Paraméterek!$C$52-4)),1,IF(M$1=1,Paraméterek!$C$52,4)))/1000000 -> 0 | N82: =SUM(OFFSET(Negyedéves!$A$125,$A82,3+(N$1-1)*4+IF(N$1=1,0,(Paraméterek!$C$52-4)),1,IF(N$1=1,Paraméterek!$C$52,4)))/1000000 -> 0 | O82: x
A83: 31 | B83: Pénzügyi műveletek egyéb ráfordításai | C83: =SUM(OFFSET(Negyedéves!$A$125,$A83,3+(C$1-1)*4+IF(C$1=1,0,(Paraméterek!$C$52-4)),1,IF(C$1=1,Paraméterek!$C$52,4)))/1000000 -> 0 | D83: =SUM(OFFSET(Negyedéves!$A$125,$A83,3+(D$1-1)*4+IF(D$1=1,0,(Paraméterek!$C$52-4)),1,IF(D$1=1,Paraméterek!$C$52,4)))/1000000 -> 0 | E83: =SUM(OFFSET(Negyedéves!$A$125,$A83,3+(E$1-1)*4+IF(E$1=1,0,(Paraméterek!$C$52-4)),1,IF(E$1=1,Paraméterek!$C$52,4)))/1000000 -> 0 | F83: =SUM(OFFSET(Negyedéves!$A$125,$A83,3+(F$1-1)*4+IF(F$1=1,0,(Paraméterek!$C$52-4)),1,IF(F$1=1,Paraméterek!$C$52,4)))/1000000 -> 0 | G83: =SUM(OFFSET(Negyedéves!$A$125,$A83,3+(G$1-1)*4+IF(G$1=1,0,(Paraméterek!$C$52-4)),1,IF(G$1=1,Paraméterek!$C$52,4)))/1000000 -> 0 | H83: =SUM(OFFSET(Negyedéves!$A$125,$A83,3+(H$1-1)*4+IF(H$1=1,0,(Paraméterek!$C$52-4)),1,IF(H$1=1,Paraméterek!$C$52,4)))/1000000 -> 0 | I83: =SUM(OFFSET(Negyedéves!$A$125,$A83,3+(I$1-1)*4+IF(I$1=1,0,(Paraméterek!$C$52-4)),1,IF(I$1=1,Paraméterek!$C$52,4)))/1000000 -> 0 | J83: =SUM(OFFSET(Negyedéves!$A$125,$A83,3+(J$1-1)*4+IF(J$1=1,0,(Paraméterek!$C$52-4)),1,IF(J$1=1,Paraméterek!$C$52,4)))/1000000 -> 0 | K83: =SUM(OFFSET(Negyedéves!$A$125,$A83,3+(K$1-1)*4+IF(K$1=1,0,(Paraméterek!$C$52-4)),1,IF(K$1=1,Paraméterek!$C$52,4)))/1000000 -> 0 | L83: =SUM(OFFSET(Negyedéves!$A$125,$A83,3+(L$1-1)*4+IF(L$1=1,0,(Paraméterek!$C$52-4)),1,IF(L$1=1,Paraméterek!$C$52,4)))/1000000 -> 0 | M83: =SUM(OFFSET(Negyedéves!$A$125,$A83,3+(M$1-1)*4+IF(M$1=1,0,(Paraméterek!$C$52-4)),1,IF(M$1=1,Paraméterek!$C$52,4)))/1000000 -> 0 | N83: =SUM(OFFSET(Negyedéves!$A$125,$A83,3+(N$1-1)*4+IF(N$1=1,0,(Paraméterek!$C$52-4)),1,IF(N$1=1,Paraméterek!$C$52,4)))/1000000 -> 0 | O83: x
A84: 32 | B84: Pénzügyi műveletek ráfordításai | C84: =SUM(OFFSET(Negyedéves!$A$125,$A84,3+(C$1-1)*4+IF(C$1=1,0,(Paraméterek!$C$52-4)),1,IF(C$1=1,Paraméterek!$C$52,4)))/1000000 -> 3.505385804 | D84: =SUM(OFFSET(Negyedéves!$A$125,$A84,3+(D$1-1)*4+IF(D$1=1,0,(Paraméterek!$C$52-4)),1,IF(D$1=1,Paraméterek!$C$52,4)))/1000000 -> 1.348958333 | E84: =SUM(OFFSET(Negyedéves!$A$125,$A84,3+(E$1-1)*4+IF(E$1=1,0,(Paraméterek!$C$52-4)),1,IF(E$1=1,Paraméterek!$C$52,4)))/1000000 -> 1.057291667 | F84: =SUM(OFFSET(Negyedéves!$A$125,$A84,3+(F$1-1)*4+IF(F$1=1,0,(Paraméterek!$C$52-4)),1,IF(F$1=1,Paraméterek!$C$52,4)))/1000000 -> 0.765625 | G84: =SUM(OFFSET(Negyedéves!$A$125,$A84,3+(G$1-1)*4+IF(G$1=1,0,(Paraméterek!$C$52-4)),1,IF(G$1=1,Paraméterek!$C$52,4)))/1000000 -> 0.4739583333 | H84: =SUM(OFFSET(Negyedéves!$A$125,$A84,3+(H$1-1)*4+IF(H$1=1,0,(Paraméterek!$C$52-4)),1,IF(H$1=1,Paraméterek!$C$52,4)))/1000000 -> 0.1822916667 | I84: =SUM(OFFSET(Negyedéves!$A$125,$A84,3+(I$1-1)*4+IF(I$1=1,0,(Paraméterek!$C$52-4)),1,IF(I$1=1,Paraméterek!$C$52,4)))/1000000 -> -5.401670933e-16 | J84: =SUM(OFFSET(Negyedéves!$A$125,$A84,3+(J$1-1)*4+IF(J$1=1,0,(Paraméterek!$C$52-4)),1,IF(J$1=1,Paraméterek!$C$52,4)))/1000000 -> -5.820766091e-16 | K84: =SUM(OFFSET(Negyedéves!$A$125,$A84,3+(K$1-1)*4+IF(K$1=1,0,(Paraméterek!$C$52-4)),1,IF(K$1=1,Paraméterek!$C$52,4)))/1000000 -> -5.820766091e-16 | L84: =SUM(OFFSET(Negyedéves!$A$125,$A84,3+(L$1-1)*4+IF(L$1=1,0,(Paraméterek!$C$52-4)),1,IF(L$1=1,Paraméterek!$C$52,4)))/1000000 -> 8.847564459e-17 | M84: =SUM(OFFSET(Negyedéves!$A$125,$A84,3+(M$1-1)*4+IF(M$1=1,0,(Paraméterek!$C$52-4)),1,IF(M$1=1,Paraméterek!$C$52,4)))/1000000 -> 1.429580152e-15 | N84: =SUM(OFFSET(Negyedéves!$A$125,$A84,3+(N$1-1)*4+IF(N$1=1,0,(Paraméterek!$C$52-4)),1,IF(N$1=1,Paraméterek!$C$52,4)))/1000000 -> 2.100132406e-15 | O84: x
A85: 33 | B85: Pénzügyi műveletek eredménye | C85: =SUM(OFFSET(Negyedéves!$A$125,$A85,3+(C$1-1)*4+IF(C$1=1,0,(Paraméterek!$C$52-4)),1,IF(C$1=1,Paraméterek!$C$52,4)))/1000000 -> -2.972653292 | D85: =SUM(OFFSET(Negyedéves!$A$125,$A85,3+(D$1-1)*4+IF(D$1=1,0,(Paraméterek!$C$52-4)),1,IF(D$1=1,Paraméterek!$C$52,4)))/1000000 -> 0.5270610786 | E85: =SUM(OFFSET(Negyedéves!$A$125,$A85,3+(E$1-1)*4+IF(E$1=1,0,(Paraméterek!$C$52-4)),1,IF(E$1=1,Paraméterek!$C$52,4)))/1000000 -> 2.234288362 | F85: =SUM(OFFSET(Negyedéves!$A$125,$A85,3+(F$1-1)*4+IF(F$1=1,0,(Paraméterek!$C$52-4)),1,IF(F$1=1,Paraméterek!$C$52,4)))/1000000 -> 4.03145068 | G85: =SUM(OFFSET(Negyedéves!$A$125,$A85,3+(G$1-1)*4+IF(G$1=1,0,(Paraméterek!$C$52-4)),1,IF(G$1=1,Paraméterek!$C$52,4)))/1000000 -> 5.922144998 | H85: =SUM(OFFSET(Negyedéves!$A$125,$A85,3+(H$1-1)*4+IF(H$1=1,0,(Paraméterek!$C$52-4)),1,IF(H$1=1,Paraméterek!$C$52,4)))/1000000 -> 7.910098181 | I85: =SUM(OFFSET(Negyedéves!$A$125,$A85,3+(I$1-1)*4+IF(I$1=1,0,(Paraméterek!$C$52-4)),1,IF(I$1=1,Paraméterek!$C$52,4)))/1000000 -> 9.999171463 | J85: =SUM(OFFSET(Negyedéves!$A$125,$A85,3+(J$1-1)*4+IF(J$1=1,0,(Paraméterek!$C$52-4)),1,IF(J$1=1,Paraméterek!$C$52,4)))/1000000 -> 12.21505778 | K85: =SUM(OFFSET(Negyedéves!$A$125,$A85,3+(K$1-1)*4+IF(K$1=1,0,(Paraméterek!$C$52-4)),1,IF(K$1=1,Paraméterek!$C$52,4)))/1000000 -> 14.57727308 | L85: =SUM(OFFSET(Negyedéves!$A$125,$A85,3+(L$1-1)*4+IF(L$1=1,0,(Paraméterek!$C$52-4)),1,IF(L$1=1,Paraméterek!$C$52,4)))/1000000 -> 17.05446892 | M85: =SUM(OFFSET(Negyedéves!$A$125,$A85,3+(M$1-1)*4+IF(M$1=1,0,(Paraméterek!$C$52-4)),1,IF(M$1=1,Paraméterek!$C$52,4)))/1000000 -> 19.62758113 | N85: =SUM(OFFSET(Negyedéves!$A$125,$A85,3+(N$1-1)*4+IF(N$1=1,0,(Paraméterek!$C$52-4)),1,IF(N$1=1,Paraméterek!$C$52,4)))/1000000 -> 22.28437786 | O85: x
A86: 34 | B86: Szokásos vállalkozási eredmény | C86: =SUM(OFFSET(Negyedéves!$A$125,$A86,3+(C$1-1)*4+IF(C$1=1,0,(Paraméterek!$C$52-4)),1,IF(C$1=1,Paraméterek!$C$52,4)))/1000000 -> 28.4108568 | D86: =SUM(OFFSET(Negyedéves!$A$125,$A86,3+(D$1-1)*4+IF(D$1=1,0,(Paraméterek!$C$52-4)),1,IF(D$1=1,Paraméterek!$C$52,4)))/1000000 -> 32.82582787 | E86: =SUM(OFFSET(Negyedéves!$A$125,$A86,3+(E$1-1)*4+IF(E$1=1,0,(Paraméterek!$C$52-4)),1,IF(E$1=1,Paraméterek!$C$52,4)))/1000000 -> 35.466617 | F86: =SUM(OFFSET(Negyedéves!$A$125,$A86,3+(F$1-1)*4+IF(F$1=1,0,(Paraméterek!$C$52-4)),1,IF(F$1=1,Paraméterek!$C$52,4)))/1000000 -> 38.21601239 | G86: =SUM(OFFSET(Negyedéves!$A$125,$A86,3+(G$1-1)*4+IF(G$1=1,0,(Paraméterek!$C$52-4)),1,IF(G$1=1,Paraméterek!$C$52,4)))/1000000 -> 41.07798445 | H86: =SUM(OFFSET(Negyedéves!$A$125,$A86,3+(H$1-1)*4+IF(H$1=1,0,(Paraméterek!$C$52-4)),1,IF(H$1=1,Paraméterek!$C$52,4)))/1000000 -> 44.05664092 | I86: =SUM(OFFSET(Negyedéves!$A$125,$A86,3+(I$1-1)*4+IF(I$1=1,0,(Paraméterek!$C$52-4)),1,IF(I$1=1,Paraméterek!$C$52,4)))/1000000 -> 47.15623156 | J86: =SUM(OFFSET(Negyedéves!$A$125,$A86,3+(J$1-1)*4+IF(J$1=1,0,(Paraméterek!$C$52-4)),1,IF(J$1=1,Paraméterek!$C$52,4)))/1000000 -> 50.40284558 | K86: =SUM(OFFSET(Negyedéves!$A$125,$A86,3+(K$1-1)*4+IF(K$1=1,0,(Paraméterek!$C$52-4)),1,IF(K$1=1,Paraméterek!$C$52,4)))/1000000 -> 53.9628406 | L86: =SUM(OFFSET(Negyedéves!$A$125,$A86,3+(L$1-1)*4+IF(L$1=1,0,(Paraméterek!$C$52-4)),1,IF(L$1=1,Paraméterek!$C$52,4)))/1000000 -> 57.66177175 | M86: =SUM(OFFSET(Negyedéves!$A$125,$A86,3+(M$1-1)*4+IF(M$1=1,0,(Paraméterek!$C$52-4)),1,IF(M$1=1,Paraméterek!$C$52,4)))/1000000 -> 81.30962978 | N86: =SUM(OFFSET(Negyedéves!$A$125,$A86,3+(N$1-1)*4+IF(N$1=1,0,(Paraméterek!$C$52-4)),1,IF(N$1=1,Paraméterek!$C$52,4)))/1000000 -> 85.23751993 | O86: x
A87: 35 | B87: Rendkívüli bevételek | C87: =SUM(OFFSET(Negyedéves!$A$125,$A87,3+(C$1-1)*4+IF(C$1=1,0,(Paraméterek!$C$52-4)),1,IF(C$1=1,Paraméterek!$C$52,4)))/1000000 -> 18.26704461 | D87: =SUM(OFFSET(Negyedéves!$A$125,$A87,3+(D$1-1)*4+IF(D$1=1,0,(Paraméterek!$C$52-4)),1,IF(D$1=1,Paraméterek!$C$52,4)))/1000000 -> 18.26704461 | E87: =SUM(OFFSET(Negyedéves!$A$125,$A87,3+(E$1-1)*4+IF(E$1=1,0,(Paraméterek!$C$52-4)),1,IF(E$1=1,Paraméterek!$C$52,4)))/1000000 -> 18.26704461 | F87: =SUM(OFFSET(Negyedéves!$A$125,$A87,3+(F$1-1)*4+IF(F$1=1,0,(Paraméterek!$C$52-4)),1,IF(F$1=1,Paraméterek!$C$52,4)))/1000000 -> 18.26704461 | G87: =SUM(OFFSET(Negyedéves!$A$125,$A87,3+(G$1-1)*4+IF(G$1=1,0,(Paraméterek!$C$52-4)),1,IF(G$1=1,Paraméterek!$C$52,4)))/1000000 -> 18.26704461 | H87: =SUM(OFFSET(Negyedéves!$A$125,$A87,3+(H$1-1)*4+IF(H$1=1,0,(Paraméterek!$C$52-4)),1,IF(H$1=1,Paraméterek!$C$52,4)))/1000000 -> 18.26704461 | I87: =SUM(OFFSET(Negyedéves!$A$125,$A87,3+(I$1-1)*4+IF(I$1=1,0,(Paraméterek!$C$52-4)),1,IF(I$1=1,Paraméterek!$C$52,4)))/1000000 -> 18.26704461 | J87: =SUM(OFFSET(Negyedéves!$A$125,$A87,3+(J$1-1)*4+IF(J$1=1,0,(Paraméterek!$C$52-4)),1,IF(J$1=1,Paraméterek!$C$52,4)))/1000000 -> 0 | K87: =SUM(OFFSET(Negyedéves!$A$125,$A87,3+(K$1-1)*4+IF(K$1=1,0,(Paraméterek!$C$52-4)),1,IF(K$1=1,Paraméterek!$C$52,4)))/1000000 -> 0 | L87: =SUM(OFFSET(Negyedéves!$A$125,$A87,3+(L$1-1)*4+IF(L$1=1,0,(Paraméterek!$C$52-4)),1,IF(L$1=1,Paraméterek!$C$52,4)))/1000000 -> 0 | M87: =SUM(OFFSET(Negyedéves!$A$125,$A87,3+(M$1-1)*4+IF(M$1=1,0,(Paraméterek!$C$52-4)),1,IF(M$1=1,Paraméterek!$C$52,4)))/1000000 -> 0 | N87: =SUM(OFFSET(Negyedéves!$A$125,$A87,3+(N$1-1)*4+IF(N$1=1,0,(Paraméterek!$C$52-4)),1,IF(N$1=1,Paraméterek!$C$52,4)))/1000000 -> 0 | O87: x
A88: 36 | B88: Rendkívüli ráfordítások | C88: =SUM(OFFSET(Negyedéves!$A$125,$A88,3+(C$1-1)*4+IF(C$1=1,0,(Paraméterek!$C$52-4)),1,IF(C$1=1,Paraméterek!$C$52,4)))/1000000 -> 0 | D88: =SUM(OFFSET(Negyedéves!$A$125,$A88,3+(D$1-1)*4+IF(D$1=1,0,(Paraméterek!$C$52-4)),1,IF(D$1=1,Paraméterek!$C$52,4)))/1000000 -> 0 | E88: =SUM(OFFSET(Negyedéves!$A$125,$A88,3+(E$1-1)*4+IF(E$1=1,0,(Paraméterek!$C$52-4)),1,IF(E$1=1,Paraméterek!$C$52,4)))/1000000 -> 0 | F88: =SUM(OFFSET(Negyedéves!$A$125,$A88,3+(F$1-1)*4+IF(F$1=1,0,(Paraméterek!$C$52-4)),1,IF(F$1=1,Paraméterek!$C$52,4)))/1000000 -> 0 | G88: =SUM(OFFSET(Negyedéves!$A$125,$A88,3+(G$1-1)*4+IF(G$1=1,0,(Paraméterek!$C$52-4)),1,IF(G$1=1,Paraméterek!$C$52,4)))/1000000 -> 0 | H88: =SUM(OFFSET(Negyedéves!$A$125,$A88,3+(H$1-1)*4+IF(H$1=1,0,(Paraméterek!$C$52-4)),1,IF(H$1=1,Paraméterek!$C$52,4)))/1000000 -> 0 | I88: =SUM(OFFSET(Negyedéves!$A$125,$A88,3+(I$1-1)*4+IF(I$1=1,0,(Paraméterek!$C$52-4)),1,IF(I$1=1,Paraméterek!$C$52,4)))/1000000 -> 0 | J88: =SUM(OFFSET(Negyedéves!$A$125,$A88,3+(J$1-1)*4+IF(J$1=1,0,(Paraméterek!$C$52-4)),1,IF(J$1=1,Paraméterek!$C$52,4)))/1000000 -> 0 | K88: =SUM(OFFSET(Negyedéves!$A$125,$A88,3+(K$1-1)*4+IF(K$1=1,0,(Paraméterek!$C$52-4)),1,IF(K$1=1,Paraméterek!$C$52,4)))/1000000 -> 0 | L88: =SUM(OFFSET(Negyedéves!$A$125,$A88,3+(L$1-1)*4+IF(L$1=1,0,(Paraméterek!$C$52-4)),1,IF(L$1=1,Paraméterek!$C$52,4)))/1000000 -> 0 | M88: =SUM(OFFSET(Negyedéves!$A$125,$A88,3+(M$1-1)*4+IF(M$1=1,0,(Paraméterek!$C$52-4)),1,IF(M$1=1,Paraméterek!$C$52,4)))/1000000 -> 0 | N88: =SUM(OFFSET(Negyedéves!$A$125,$A88,3+(N$1-1)*4+IF(N$1=1,0,(Paraméterek!$C$52-4)),1,IF(N$1=1,Paraméterek!$C$52,4)))/1000000 -> 0 | O88: x
A89: 37 | B89: Rendkívüli eredmény | C89: =SUM(OFFSET(Negyedéves!$A$125,$A89,3+(C$1-1)*4+IF(C$1=1,0,(Paraméterek!$C$52-4)),1,IF(C$1=1,Paraméterek!$C$52,4)))/1000000 -> 18.26704461 | D89: =SUM(OFFSET(Negyedéves!$A$125,$A89,3+(D$1-1)*4+IF(D$1=1,0,(Paraméterek!$C$52-4)),1,IF(D$1=1,Paraméterek!$C$52,4)))/1000000 -> 18.26704461 | E89: =SUM(OFFSET(Negyedéves!$A$125,$A89,3+(E$1-1)*4+IF(E$1=1,0,(Paraméterek!$C$52-4)),1,IF(E$1=1,Paraméterek!$C$52,4)))/1000000 -> 18.26704461 | F89: =SUM(OFFSET(Negyedéves!$A$125,$A89,3+(F$1-1)*4+IF(F$1=1,0,(Paraméterek!$C$52-4)),1,IF(F$1=1,Paraméterek!$C$52,4)))/1000000 -> 18.26704461 | G89: =SUM(OFFSET(Negyedéves!$A$125,$A89,3+(G$1-1)*4+IF(G$1=1,0,(Paraméterek!$C$52-4)),1,IF(G$1=1,Paraméterek!$C$52,4)))/1000000 -> 18.26704461 | H89: =SUM(OFFSET(Negyedéves!$A$125,$A89,3+(H$1-1)*4+IF(H$1=1,0,(Paraméterek!$C$52-4)),1,IF(H$1=1,Paraméterek!$C$52,4)))/1000000 -> 18.26704461 | I89: =SUM(OFFSET(Negyedéves!$A$125,$A89,3+(I$1-1)*4+IF(I$1=1,0,(Paraméterek!$C$52-4)),1,IF(I$1=1,Paraméterek!$C$52,4)))/1000000 -> 18.26704461 | J89: =SUM(OFFSET(Negyedéves!$A$125,$A89,3+(J$1-1)*4+IF(J$1=1,0,(Paraméterek!$C$52-4)),1,IF(J$1=1,Paraméterek!$C$52,4)))/1000000 -> 0 | K89: =SUM(OFFSET(Negyedéves!$A$125,$A89,3+(K$1-1)*4+IF(K$1=1,0,(Paraméterek!$C$52-4)),1,IF(K$1=1,Paraméterek!$C$52,4)))/1000000 -> 0 | L89: =SUM(OFFSET(Negyedéves!$A$125,$A89,3+(L$1-1)*4+IF(L$1=1,0,(Paraméterek!$C$52-4)),1,IF(L$1=1,Paraméterek!$C$52,4)))/1000000 -> 0 | M89: =SUM(OFFSET(Negyedéves!$A$125,$A89,3+(M$1-1)*4+IF(M$1=1,0,(Paraméterek!$C$52-4)),1,IF(M$1=1,Paraméterek!$C$52,4)))/1000000 -> 0 | N89: =SUM(OFFSET(Negyedéves!$A$125,$A89,3+(N$1-1)*4+IF(N$1=1,0,(Paraméterek!$C$52-4)),1,IF(N$1=1,Paraméterek!$C$52,4)))/1000000 -> 0 | O89: x
A90: 38 | B90: Adózás előtti eredmény | C90: =SUM(OFFSET(Negyedéves!$A$125,$A90,3+(C$1-1)*4+IF(C$1=1,0,(Paraméterek!$C$52-4)),1,IF(C$1=1,Paraméterek!$C$52,4)))/1000000 -> 46.67790141 | D90: =SUM(OFFSET(Negyedéves!$A$125,$A90,3+(D$1-1)*4+IF(D$1=1,0,(Paraméterek!$C$52-4)),1,IF(D$1=1,Paraméterek!$C$52,4)))/1000000 -> 51.09287249 | E90: =SUM(OFFSET(Negyedéves!$A$125,$A90,3+(E$1-1)*4+IF(E$1=1,0,(Paraméterek!$C$52-4)),1,IF(E$1=1,Paraméterek!$C$52,4)))/1000000 -> 53.73366161 | F90: =SUM(OFFSET(Negyedéves!$A$125,$A90,3+(F$1-1)*4+IF(F$1=1,0,(Paraméterek!$C$52-4)),1,IF(F$1=1,Paraméterek!$C$52,4)))/1000000 -> 56.483057 | G90: =SUM(OFFSET(Negyedéves!$A$125,$A90,3+(G$1-1)*4+IF(G$1=1,0,(Paraméterek!$C$52-4)),1,IF(G$1=1,Paraméterek!$C$52,4)))/1000000 -> 59.34502906 | H90: =SUM(OFFSET(Negyedéves!$A$125,$A90,3+(H$1-1)*4+IF(H$1=1,0,(Paraméterek!$C$52-4)),1,IF(H$1=1,Paraméterek!$C$52,4)))/1000000 -> 62.32368554 | I90: =SUM(OFFSET(Negyedéves!$A$125,$A90,3+(I$1-1)*4+IF(I$1=1,0,(Paraméterek!$C$52-4)),1,IF(I$1=1,Paraméterek!$C$52,4)))/1000000 -> 65.42327618 | J90: =SUM(OFFSET(Negyedéves!$A$125,$A90,3+(J$1-1)*4+IF(J$1=1,0,(Paraméterek!$C$52-4)),1,IF(J$1=1,Paraméterek!$C$52,4)))/1000000 -> 50.40284558 | K90: =SUM(OFFSET(Negyedéves!$A$125,$A90,3+(K$1-1)*4+IF(K$1=1,0,(Paraméterek!$C$52-4)),1,IF(K$1=1,Paraméterek!$C$52,4)))/1000000 -> 53.9628406 | L90: =SUM(OFFSET(Negyedéves!$A$125,$A90,3+(L$1-1)*4+IF(L$1=1,0,(Paraméterek!$C$52-4)),1,IF(L$1=1,Paraméterek!$C$52,4)))/1000000 -> 57.66177175 | M90: =SUM(OFFSET(Negyedéves!$A$125,$A90,3+(M$1-1)*4+IF(M$1=1,0,(Paraméterek!$C$52-4)),1,IF(M$1=1,Paraméterek!$C$52,4)))/1000000 -> 81.30962978 | N90: =SUM(OFFSET(Negyedéves!$A$125,$A90,3+(N$1-1)*4+IF(N$1=1,0,(Paraméterek!$C$52-4)),1,IF(N$1=1,Paraméterek!$C$52,4)))/1000000 -> 85.23751993 | O90: x
A91: 39 | B91: Adófizetési kötelezettség | C91: =SUM(OFFSET(Negyedéves!$A$125,$A91,3+(C$1-1)*4+IF(C$1=1,0,(Paraméterek!$C$52-4)),1,IF(C$1=1,Paraméterek!$C$52,4)))/1000000 -> 4.201011127 | D91: =SUM(OFFSET(Negyedéves!$A$125,$A91,3+(D$1-1)*4+IF(D$1=1,0,(Paraméterek!$C$52-4)),1,IF(D$1=1,Paraméterek!$C$52,4)))/1000000 -> 4.598358524 | E91: =SUM(OFFSET(Negyedéves!$A$125,$A91,3+(E$1-1)*4+IF(E$1=1,0,(Paraméterek!$C$52-4)),1,IF(E$1=1,Paraméterek!$C$52,4)))/1000000 -> 4.836029545 | F91: =SUM(OFFSET(Negyedéves!$A$125,$A91,3+(F$1-1)*4+IF(F$1=1,0,(Paraméterek!$C$52-4)),1,IF(F$1=1,Paraméterek!$C$52,4)))/1000000 -> 5.08347513 | G91: =SUM(OFFSET(Negyedéves!$A$125,$A91,3+(G$1-1)*4+IF(G$1=1,0,(Paraméterek!$C$52-4)),1,IF(G$1=1,Paraméterek!$C$52,4)))/1000000 -> 5.341052615 | H91: =SUM(OFFSET(Negyedéves!$A$125,$A91,3+(H$1-1)*4+IF(H$1=1,0,(Paraméterek!$C$52-4)),1,IF(H$1=1,Paraméterek!$C$52,4)))/1000000 -> 5.609131698 | I91: =SUM(OFFSET(Negyedéves!$A$125,$A91,3+(I$1-1)*4+IF(I$1=1,0,(Paraméterek!$C$52-4)),1,IF(I$1=1,Paraméterek!$C$52,4)))/1000000 -> 5.888094856 | J91: =SUM(OFFSET(Negyedéves!$A$125,$A91,3+(J$1-1)*4+IF(J$1=1,0,(Paraméterek!$C$52-4)),1,IF(J$1=1,Paraméterek!$C$52,4)))/1000000 -> 4.536256103 | K91: =SUM(OFFSET(Negyedéves!$A$125,$A91,3+(K$1-1)*4+IF(K$1=1,0,(Paraméterek!$C$52-4)),1,IF(K$1=1,Paraméterek!$C$52,4)))/1000000 -> 4.856655654 | L91: =SUM(OFFSET(Negyedéves!$A$125,$A91,3+(L$1-1)*4+IF(L$1=1,0,(Paraméterek!$C$52-4)),1,IF(L$1=1,Paraméterek!$C$52,4)))/1000000 -> 5.189559457 | M91: =SUM(OFFSET(Negyedéves!$A$125,$A91,3+(M$1-1)*4+IF(M$1=1,0,(Paraméterek!$C$52-4)),1,IF(M$1=1,Paraméterek!$C$52,4)))/1000000 -> 7.31786668 | N91: =SUM(OFFSET(Negyedéves!$A$125,$A91,3+(N$1-1)*4+IF(N$1=1,0,(Paraméterek!$C$52-4)),1,IF(N$1=1,Paraméterek!$C$52,4)))/1000000 -> 7.671376793 | O91: x
A92: 40 | B92: Adózott eredmény | C92: =SUM(OFFSET(Negyedéves!$A$125,$A92,3+(C$1-1)*4+IF(C$1=1,0,(Paraméterek!$C$52-4)),1,IF(C$1=1,Paraméterek!$C$52,4)))/1000000 -> 42.47689028 | D92: =SUM(OFFSET(Negyedéves!$A$125,$A92,3+(D$1-1)*4+IF(D$1=1,0,(Paraméterek!$C$52-4)),1,IF(D$1=1,Paraméterek!$C$52,4)))/1000000 -> 46.49451396 | E92: =SUM(OFFSET(Negyedéves!$A$125,$A92,3+(E$1-1)*4+IF(E$1=1,0,(Paraméterek!$C$52-4)),1,IF(E$1=1,Paraméterek!$C$52,4)))/1000000 -> 48.89763206 | F92: =SUM(OFFSET(Negyedéves!$A$125,$A92,3+(F$1-1)*4+IF(F$1=1,0,(Paraméterek!$C$52-4)),1,IF(F$1=1,Paraméterek!$C$52,4)))/1000000 -> 51.39958187 | G92: =SUM(OFFSET(Negyedéves!$A$125,$A92,3+(G$1-1)*4+IF(G$1=1,0,(Paraméterek!$C$52-4)),1,IF(G$1=1,Paraméterek!$C$52,4)))/1000000 -> 54.00397645 | H92: =SUM(OFFSET(Negyedéves!$A$125,$A92,3+(H$1-1)*4+IF(H$1=1,0,(Paraméterek!$C$52-4)),1,IF(H$1=1,Paraméterek!$C$52,4)))/1000000 -> 56.71455384 | I92: =SUM(OFFSET(Negyedéves!$A$125,$A92,3+(I$1-1)*4+IF(I$1=1,0,(Paraméterek!$C$52-4)),1,IF(I$1=1,Paraméterek!$C$52,4)))/1000000 -> 59.53518132 | J92: =SUM(OFFSET(Negyedéves!$A$125,$A92,3+(J$1-1)*4+IF(J$1=1,0,(Paraméterek!$C$52-4)),1,IF(J$1=1,Paraméterek!$C$52,4)))/1000000 -> 45.86658948 | K92: =SUM(OFFSET(Negyedéves!$A$125,$A92,3+(K$1-1)*4+IF(K$1=1,0,(Paraméterek!$C$52-4)),1,IF(K$1=1,Paraméterek!$C$52,4)))/1000000 -> 49.10618494 | L92: =SUM(OFFSET(Negyedéves!$A$125,$A92,3+(L$1-1)*4+IF(L$1=1,0,(Paraméterek!$C$52-4)),1,IF(L$1=1,Paraméterek!$C$52,4)))/1000000 -> 52.47221229 | M92: =SUM(OFFSET(Negyedéves!$A$125,$A92,3+(M$1-1)*4+IF(M$1=1,0,(Paraméterek!$C$52-4)),1,IF(M$1=1,Paraméterek!$C$52,4)))/1000000 -> 73.9917631 | N92: =SUM(OFFSET(Negyedéves!$A$125,$A92,3+(N$1-1)*4+IF(N$1=1,0,(Paraméterek!$C$52-4)),1,IF(N$1=1,Paraméterek!$C$52,4)))/1000000 -> 77.56614313 | O92: x
A93: 41 | B93: Eredménytartalék igénybevétele osztalékra, részesedésre | C93: =SUM(OFFSET(Negyedéves!$A$125,$A93,3+(C$1-1)*4+IF(C$1=1,0,(Paraméterek!$C$52-4)),1,IF(C$1=1,Paraméterek!$C$52,4)))/1000000 -> 0 | D93: =SUM(OFFSET(Negyedéves!$A$125,$A93,3+(D$1-1)*4+IF(D$1=1,0,(Paraméterek!$C$52-4)),1,IF(D$1=1,Paraméterek!$C$52,4)))/1000000 -> 0 | E93: =SUM(OFFSET(Negyedéves!$A$125,$A93,3+(E$1-1)*4+IF(E$1=1,0,(Paraméterek!$C$52-4)),1,IF(E$1=1,Paraméterek!$C$52,4)))/1000000 -> 0 | F93: =SUM(OFFSET(Negyedéves!$A$125,$A93,3+(F$1-1)*4+IF(F$1=1,0,(Paraméterek!$C$52-4)),1,IF(F$1=1,Paraméterek!$C$52,4)))/1000000 -> 0 | G93: =SUM(OFFSET(Negyedéves!$A$125,$A93,3+(G$1-1)*4+IF(G$1=1,0,(Paraméterek!$C$52-4)),1,IF(G$1=1,Paraméterek!$C$52,4)))/1000000 -> 0 | H93: =SUM(OFFSET(Negyedéves!$A$125,$A93,3+(H$1-1)*4+IF(H$1=1,0,(Paraméterek!$C$52-4)),1,IF(H$1=1,Paraméterek!$C$52,4)))/1000000 -> 0 | I93: =SUM(OFFSET(Negyedéves!$A$125,$A93,3+(I$1-1)*4+IF(I$1=1,0,(Paraméterek!$C$52-4)),1,IF(I$1=1,Paraméterek!$C$52,4)))/1000000 -> 0 | J93: =SUM(OFFSET(Negyedéves!$A$125,$A93,3+(J$1-1)*4+IF(J$1=1,0,(Paraméterek!$C$52-4)),1,IF(J$1=1,Paraméterek!$C$52,4)))/1000000 -> 0 | K93: =SUM(OFFSET(Negyedéves!$A$125,$A93,3+(K$1-1)*4+IF(K$1=1,0,(Paraméterek!$C$52-4)),1,IF(K$1=1,Paraméterek!$C$52,4)))/1000000 -> 0 | L93: =SUM(OFFSET(Negyedéves!$A$125,$A93,3+(L$1-1)*4+IF(L$1=1,0,(Paraméterek!$C$52-4)),1,IF(L$1=1,Paraméterek!$C$52,4)))/1000000 -> 0 | M93: =SUM(OFFSET(Negyedéves!$A$125,$A93,3+(M$1-1)*4+IF(M$1=1,0,(Paraméterek!$C$52-4)),1,IF(M$1=1,Paraméterek!$C$52,4)))/1000000 -> 0 | N93: =SUM(OFFSET(Negyedéves!$A$125,$A93,3+(N$1-1)*4+IF(N$1=1,0,(Paraméterek!$C$52-4)),1,IF(N$1=1,Paraméterek!$C$52,4)))/1000000 -> 0 | O93: x
A94: 42 | B94: Jóváhagyott osztalék, részesedés | C94: =SUM(OFFSET(Negyedéves!$A$125,$A94,3+(C$1-1)*4+IF(C$1=1,0,(Paraméterek!$C$52-4)),1,IF(C$1=1,Paraméterek!$C$52,4)))/1000000 -> 0 | D94: =SUM(OFFSET(Negyedéves!$A$125,$A94,3+(D$1-1)*4+IF(D$1=1,0,(Paraméterek!$C$52-4)),1,IF(D$1=1,Paraméterek!$C$52,4)))/1000000 -> 0 | E94: =SUM(OFFSET(Negyedéves!$A$125,$A94,3+(E$1-1)*4+IF(E$1=1,0,(Paraméterek!$C$52-4)),1,IF(E$1=1,Paraméterek!$C$52,4)))/1000000 -> 0 | F94: =SUM(OFFSET(Negyedéves!$A$125,$A94,3+(F$1-1)*4+IF(F$1=1,0,(Paraméterek!$C$52-4)),1,IF(F$1=1,Paraméterek!$C$52,4)))/1000000 -> 0 | G94: =SUM(OFFSET(Negyedéves!$A$125,$A94,3+(G$1-1)*4+IF(G$1=1,0,(Paraméterek!$C$52-4)),1,IF(G$1=1,Paraméterek!$C$52,4)))/1000000 -> 0 | H94: =SUM(OFFSET(Negyedéves!$A$125,$A94,3+(H$1-1)*4+IF(H$1=1,0,(Paraméterek!$C$52-4)),1,IF(H$1=1,Paraméterek!$C$52,4)))/1000000 -> 0 | I94: =SUM(OFFSET(Negyedéves!$A$125,$A94,3+(I$1-1)*4+IF(I$1=1,0,(Paraméterek!$C$52-4)),1,IF(I$1=1,Paraméterek!$C$52,4)))/1000000 -> 0 | J94: =SUM(OFFSET(Negyedéves!$A$125,$A94,3+(J$1-1)*4+IF(J$1=1,0,(Paraméterek!$C$52-4)),1,IF(J$1=1,Paraméterek!$C$52,4)))/1000000 -> 0 | K94: =SUM(OFFSET(Negyedéves!$A$125,$A94,3+(K$1-1)*4+IF(K$1=1,0,(Paraméterek!$C$52-4)),1,IF(K$1=1,Paraméterek!$C$52,4)))/1000000 -> 0 | L94: =SUM(OFFSET(Negyedéves!$A$125,$A94,3+(L$1-1)*4+IF(L$1=1,0,(Paraméterek!$C$52-4)),1,IF(L$1=1,Paraméterek!$C$52,4)))/1000000 -> 0 | M94: =SUM(OFFSET(Negyedéves!$A$125,$A94,3+(M$1-1)*4+IF(M$1=1,0,(Paraméterek!$C$52-4)),1,IF(M$1=1,Paraméterek!$C$52,4)))/1000000 -> 0 | N94: =SUM(OFFSET(Negyedéves!$A$125,$A94,3+(N$1-1)*4+IF(N$1=1,0,(Paraméterek!$C$52-4)),1,IF(N$1=1,Paraméterek!$C$52,4)))/1000000 -> 0 | O94: x
A95: 43 | B95: Mérleg szerinti eredmény | C95: =SUM(OFFSET(Negyedéves!$A$125,$A95,3+(C$1-1)*4+IF(C$1=1,0,(Paraméterek!$C$52-4)),1,IF(C$1=1,Paraméterek!$C$52,4)))/1000000 -> 42.47689028 | D95: =SUM(OFFSET(Negyedéves!$A$125,$A95,3+(D$1-1)*4+IF(D$1=1,0,(Paraméterek!$C$52-4)),1,IF(D$1=1,Paraméterek!$C$52,4)))/1000000 -> 46.49451396 | E95: =SUM(OFFSET(Negyedéves!$A$125,$A95,3+(E$1-1)*4+IF(E$1=1,0,(Paraméterek!$C$52-4)),1,IF(E$1=1,Paraméterek!$C$52,4)))/1000000 -> 48.89763206 | F95: =SUM(OFFSET(Negyedéves!$A$125,$A95,3+(F$1-1)*4+IF(F$1=1,0,(Paraméterek!$C$52-4)),1,IF(F$1=1,Paraméterek!$C$52,4)))/1000000 -> 51.39958187 | G95: =SUM(OFFSET(Negyedéves!$A$125,$A95,3+(G$1-1)*4+IF(G$1=1,0,(Paraméterek!$C$52-4)),1,IF(G$1=1,Paraméterek!$C$52,4)))/1000000 -> 54.00397645 | H95: =SUM(OFFSET(Negyedéves!$A$125,$A95,3+(H$1-1)*4+IF(H$1=1,0,(Paraméterek!$C$52-4)),1,IF(H$1=1,Paraméterek!$C$52,4)))/1000000 -> 56.71455384 | I95: =SUM(OFFSET(Negyedéves!$A$125,$A95,3+(I$1-1)*4+IF(I$1=1,0,(Paraméterek!$C$52-4)),1,IF(I$1=1,Paraméterek!$C$52,4)))/1000000 -> 59.53518132 | J95: =SUM(OFFSET(Negyedéves!$A$125,$A95,3+(J$1-1)*4+IF(J$1=1,0,(Paraméterek!$C$52-4)),1,IF(J$1=1,Paraméterek!$C$52,4)))/1000000 -> 45.86658948 | K95: =SUM(OFFSET(Negyedéves!$A$125,$A95,3+(K$1-1)*4+IF(K$1=1,0,(Paraméterek!$C$52-4)),1,IF(K$1=1,Paraméterek!$C$52,4)))/1000000 -> 49.10618494 | L95: =SUM(OFFSET(Negyedéves!$A$125,$A95,3+(L$1-1)*4+IF(L$1=1,0,(Paraméterek!$C$52-4)),1,IF(L$1=1,Paraméterek!$C$52,4)))/1000000 -> 52.47221229 | M95: =SUM(OFFSET(Negyedéves!$A$125,$A95,3+(M$1-1)*4+IF(M$1=1,0,(Paraméterek!$C$52-4)),1,IF(M$1=1,Paraméterek!$C$52,4)))/1000000 -> 73.9917631 | N95: =SUM(OFFSET(Negyedéves!$A$125,$A95,3+(N$1-1)*4+IF(N$1=1,0,(Paraméterek!$C$52-4)),1,IF(N$1=1,Paraméterek!$C$52,4)))/1000000 -> 77.56614313 | O95: x
C96: =C95/C54 -> 0.4264319147 | D96: =D95/D54 -> 0.4576131818 | E96: 0.4718288263 | F96: 0.4862460166 | G96: 0.5008665606 | H96: 0.5156923 | I96: 0.5307251101 | J96: 0.4008595473 | K96: 0.4207574426 | L96: 0.4407829781 | M96: 0.6093665966 | N96: 0.6262781985 | O96: x
B97: Cash-flow | O97: x
B98: MSZE | C98: =C95 -> 42.47689028 | D98: =D95 -> 46.49451396 | E98: 48.89763206 | F98: 51.39958187 | G98: 54.00397645 | H98: 56.71455384 | I98: 59.53518132 | J98: 45.86658948 | K98: 49.10618494 | L98: 52.47221229 | M98: 73.9917631 | N98: 77.56614313 | O98: x
B99: Szállítók ÁV | C99: =+(C40+C41) -> 0 | D99: =+(D40+D41) -> 0 | E99: 0 | F99: 0 | G99: 0 | H99: 0 | I99: 0 | J99: 0 | K99: 0 | L99: 0 | M99: 0 | N99: 0
B100: Forgóeszközök ÁV | C100: =-(C15+C16+C20) -> 0 | D100: =-(D15+D16+D20) -> 0 | E100: 0 | F100: 0 | G100: 0 | H100: 0 | I100: 0 | J100: 0 | K100: 0 | L100: 0 | M100: 0 | N100: 0 | O100: x
B101: Amortizáció | C101: =C68 -> 20.49524247 | D101: =D68 -> 20.64167992 | E101: 20.79104613 | F101: 20.94339966 | G101: 21.09880026 | H101: 21.25730887 | I101: 21.41898765 | J101: 21.58390001 | K101: 21.60567316 | L101: 21.62788178 | M101: 1.821958761 | N101: 1.845064603
B102: Működési CF | C102: =SUM(C98:C101) -> 62.97213275 | D102: =SUM(D98:D101) -> 67.13619389 | E102: 69.68867819 | F102: 72.34298153 | G102: 75.1027767 | H102: 77.97186271 | I102: 80.95416897 | J102: 67.45048949 | K102: 70.71185811 | L102: 74.10009407 | M102: 75.81372186 | N102: 79.41120774 | O102: x
B103: Befektetett eszközök ÁV | C103: =-(C8) -> -197.7905155 | D103: =-(D8) -> -178.1738978 | E103: -158.4284151 | F103: -138.5514902 | G103: -118.5404941 | H103: -98.39274551 | I103: -78.10550934 | J103: -57.67599585 | K103: -37.24779693 | L103: -16.82093889 | M103: -16.22402433 | N103: -15.62850482 | O103: x
B104: Amortizáció | C104: =-C68 -> -20.49524247 | D104: =-D68 -> -20.64167992 | E104: -20.79104613 | F104: -20.94339966 | G104: -21.09880026 | H104: -21.25730887 | I104: -21.41898765 | J104: -21.58390001 | K104: -21.60567316 | L104: -21.62788178 | M104: -1.821958761 | N104: -1.845064603
B105: Befektetési CF | C105: =SUM(C103:C104) -> -218.285758 | D105: =SUM(D103:D104) -> -198.8155777 | E105: -179.2194612 | F105: -159.4948898 | G105: -139.6392944 | H105: -119.6500544 | I105: -99.524497 | J105: -79.25989586 | K105: -58.8534701 | L105: -38.44882067 | M105: -18.0459831 | N105: -17.47356943 | O105: x
B106: Saját tőke ÁV | C106: =+(C28-C95) -> 3 | D106: =+(D28-D95) -> 3 | E106: 3 | F106: 3 | G106: 3 | H106: 3 | I106: 3 | J106: 3 | K106: 3 | L106: 3 | M106: 3 | N106: 3 | O106: x
B107: Hátrasorolt kötelezettségek ÁV | C107: =+(C35) -> 40.4164457 | D107: =+(D35) -> 40.4164457 | E107: 40.4164457 | F107: 40.4164457 | G107: 40.4164457 | H107: 40.4164457 | I107: 40.4164457 | J107: 40.4164457 | K107: 40.4164457 | L107: 40.4164457 | M107: 40.4164457 | N107: 40.4164457
B108: Hosszú lejáratú kötelezettségek ÁV | C108: =+(C36) -> 41.66666667 | D108: =+(D36) -> 33.33333333 | E108: 25 | F108: 16.66666667 | G108: 8.333333333 | H108: -8.847564459e-15 | I108: -8.847564459e-15 | J108: -8.847564459e-15 | K108: -8.847564459e-15 | L108: -8.847564459e-15 | M108: -8.847564459e-15 | N108: -8.847564459e-15 | O108: x
B109: Rövid lejáratú hitelek ÁV | C109: =C39 -> 0 | D109: =D39 -> 0 | E109: 0 | F109: 0 | G109: 0 | H109: 0 | I109: -6.053596735e-15 | J109: -6.053596735e-15 | K109: -6.053596735e-15 | L109: -6.053596735e-15 | M109: 5.355104804e-14 | N109: 5.355104804e-14
B110: Időbeli elhatárolások ÁV | C110: =-(C22)+(C44) -> 109.6022677 | D110: =-(D22)+(D44) -> 91.33522307 | E110: 73.06817846 | F110: 54.80113384 | G110: 36.53408923 | H110: 18.26704461 | I110: 0 | J110: 0 | K110: 0 | L110: 0 | M110: 0 | N110: 0 | O110: x
B111: Finanszírozási CF | C111: =SUM(C106:C110) -> 194.6853801 | D111: =SUM(D106:D110) -> 168.0850021 | E111: 141.4846242 | F111: 114.8842462 | G111: 88.28386826 | H111: 61.68349031 | I111: 43.4164457 | J111: 43.4164457 | K111: 43.4164457 | L111: 43.4164457 | M111: 43.4164457 | N111: 43.4164457 | O111: x
B112: Vállalati CF | C112: =C21 -> 39.3717548 | D112: =D21-C21 -> 39.51075375 | E112: =E21-D21 -> 42.04273681 | F112: 44.67612888 | G112: 47.41459456 | H112: 50.26192448 | I112: 61.55537287 | J112: 66.29610298 | K112: 69.53438386 | L112: 72.89907034 | M112: 74.58867765 | N112: 78.16166265 | O112: x
O113: x
B114: Vállalatértékelés | O114: x
B115: CF jelenértékek | C115: =C$112/(1+Makroadatok!D$8+Makroadatok!D$10)^Eredmények!C$1 -> 36.79603253 | D115: =D$112/(1+Makroadatok!E$8+Makroadatok!E$10)^Eredmények!D$1 -> 34.51022251 | E115: =E$112/(1+Makroadatok!F$8+Makroadatok!F$10)^Eredmények!E$1 -> 34.3193968 | F115: =F$112/(1+Makroadatok!G$8+Makroadatok!G$10)^Eredmények!F$1 -> 34.08320482 | G115: =G$112/(1+Makroadatok!H$8+Makroadatok!H$10)^Eredmények!G$1 -> 33.80595062 | H115: =H$112/(1+Makroadatok!I$8+Makroadatok!I$10)^Eredmények!H$1 -> 33.49164253 | I115: =I$112/(1+Makroadatok!J$8+Makroadatok!J$10)^Eredmények!I$1 -> 38.33359257 | J115: =J$112/(1+Makroadatok!K$8+Makroadatok!K$10)^Eredmények!J$1 -> 38.58493553 | K115: =K$112/(1+Makroadatok!L$8+Makroadatok!L$10)^Eredmények!K$1 -> 37.82209765 | L115: =L$112/(1+Makroadatok!M$8+Makroadatok!M$10)^Eredmények!L$1 -> 37.0581908 | M115: =M$112/(1+Makroadatok!N$8+Makroadatok!N$10)^Eredmények!M$1 -> 35.43654344 | N115: =N$112/(1+Makroadatok!O$8+Makroadatok!O$10)^Eredmények!N$1 -> 34.70471297 | O115: x
B116: NPV CF (12Y) | C116: =SUM(C115:N115) -> 428.9465228 | O116: x
O117: x
B118: Beruházási hitel adósságszolgálat | C118: =+ROUND((Paraméterek!$C$127/1000000-C37+C80),3) -> 11.839 | D118: =+ROUND((C37-D37+D80),3) -> 9.682 | E118: =+ROUND((D37-E37+E80),3) -> 9.391 | F118: 9.099 | G118: 8.807 | H118: 8.516 | I118: 0 | J118: 0 | K118: 0 | L118: 0 | M118: 0 | N118: 0
B119: EBITDA | C119: =+C71+C68 -> 51.87875255 | D119: =+D71+D68 -> 52.94044672 | E119: =+E71+E68 -> 54.02337476 | F119: 55.12796137 | G119: 56.2546397 | H119: 57.40385161 | I119: 58.57604775 | J119: 59.77168782 | K119: 60.99124068 | L119: 62.23518461 | M119: 63.50400741 | N119: 64.79820667 | O119: x
B120: DSCR EBITDA alapon | C120: =++IF(C118=0,"",C119/C118) -> 4.382021501 | D120: =++IF(D118=0,"",D119/D118) -> 5.467924676 | E120: 5.752675408 | F120: 6.058683522 | G120: 6.387491734 | H120: 6.740705919 | I120: =++IF(I118=0,"",I119/I118) ->  | O120: x
B121: DSCR CF alapon | C121: =+IF(C118=0,"",(C112+C118)/C118) -> 4.325598007 | D121: =+IF(D118=0,"",(D112+D118)/D118) -> 5.080846287 | E121: 5.476917986 | F121: 5.910004273 | G121: 6.383739589 | H121: 6.90205783 | O121: x
O122: x
O123: x
O124: x
O125: x
O126: x
O127: x
O128: x
O129: x
O130: x
O131: x
O132: x
O133: x
O134: x
O135: x
O136: x
O137: x
O138: x
O139: x
O140: x
O141: x
O142: x
O143: x
O144: x
O145: x
O146: x
O147: x
O148: x
O149: x
O150: x
O151: x
O152: x
O153: x
O154: x
O155: x
O156: x
O157: x

Sheet Negyedéves
A1: Negyedév sorszám | C1: 0 | D1: =C$1+1 -> 1 | E1: =D$1+1 -> 2 | F1: 3 | G1: 4 | H1: 5 | I1: 6 | J1: 7 | K1: 8 | L1: 9 | M1: 10 | N1: 11 | O1: 12 | P1: 13 | Q1: 14 | R1: 15 | S1: 16 | T1: 17 | U1: 18 | V1: 19 | W1: 20 | X1: 21 | Y1: 22 | Z1: 23 | AA1: 24 | AB1: 25 | AC1: 26 | AD1: 27 | AE1: 28 | AF1: 29 | AG1: 30 | AH1: 31 | AI1: 32 | AJ1: 33 | AK1: 34 | AL1: 35 | AM1: 36 | AN1: 37 | AO1: 38 | AP1: 39 | AQ1: 40 | AR1: 41 | AS1: 42 | AT1: 43 | AU1: 44 | AV1: 45 | AW1: 46 | AX1: 47 | AY1: 48 | AZ1: 49 | BA1: 50 | BB1: 51 | BC1: 52 | BD1: 53 | BE1: 54 | BF1: 55 | BG1: 56 | BH1: 57 | BI1: 58 | BJ1: 59 | BK1: 60 | BL1: 61 | BM1: 62 | BN1: 63 | BO1: 64 | BP1: 65 | BQ1: =BP$1+1 -> 66 | BR1: 67 | BS1: 68 | BT1: x
A2: Tényleges negyedév | C2: 0 | D2: =-(Paraméterek!$C$52-4)+1 -> 1 | E2: =D$2+1 -> 2 | F2: =E$2+1 -> 3 | G2: 4 | H2: 5 | I2: 6 | J2: 7 | K2: 8 | L2: 9 | M2: 10 | N2: 11 | O2: 12 | P2: 13 | Q2: 14 | R2: 15 | S2: 16 | T2: 17 | U2: 18 | V2: 19 | W2: 20 | X2: 21 | Y2: 22 | Z2: 23 | AA2: 24 | AB2: 25 | AC2: 26 | AD2: 27 | AE2: 28 | AF2: 29 | AG2: 30 | AH2: 31 | AI2: 32 | AJ2: 33 | AK2: 34 | AL2: 35 | AM2: 36 | AN2: 37 | AO2: 38 | AP2: 39 | AQ2: 40 | AR2: 41 | AS2: 42 | AT2: 43 | AU2: 44 | AV2: 45 | AW2: 46 | AX2: 47 | AY2: 48 | AZ2: 49 | BA2: 50 | BB2: 51 | BC2: 52 | BD2: 53 | BE2: 54 | BF2: 55 | BG2: 56 | BH2: 57 | BI2: 58 | BJ2: 59 | BK2: 60 | BL2: 61 | BM2: 62 | BN2: 63 | BO2: 64 | BP2: 65 | BQ2: 66 | BR2: =BQ$2+1 -> 67 | BS2: 68 | BT2: 69
A3: Év | D3: =2020+ROUNDUP(D2/4,0)-1 -> 2020 | E3: =2020+ROUNDUP(E2/4,0)-1 -> 2020 | F3: 2020 | G3: 2020 | H3: 2021 | I3: 2021 | J3: 2021 | K3: 2021 | L3: 2022 | M3: 2022 | N3: 2022 | O3: 2022 | P3: 2023 | Q3: 2023 | R3: 2023 | S3: 2023 | T3: 2024 | U3: 2024 | V3: 2024 | W3: 2024 | X3: 2025 | Y3: 2025 | Z3: 2025 | AA3: 2025 | AB3: 2026 | AC3: 2026 | AD3: 2026 | AE3: 2026 | AF3: 2027 | AG3: 2027 | AH3: 2027 | AI3: 2027 | AJ3: 2028 | AK3: 2028 | AL3: 2028 | AM3: 2028 | AN3: 2029 | AO3: 2029 | AP3: 2029 | AQ3: 2029 | AR3: 2030 | AS3: 2030 | AT3: 2030 | AU3: 2030 | AV3: 2031 | AW3: 2031 | AX3: 2031 | AY3: 2031 | AZ3: 2032 | BA3: 2032 | BB3: 2032 | BC3: 2032 | BD3: 2033 | BE3: 2033 | BF3: 2033 | BG3: 2033 | BH3: 2034 | BI3: 2034 | BJ3: 2034 | BK3: 2034 | BL3: 2035 | BM3: 2035 | BN3: 2035 | BO3: 2035 | BP3: 2036 | BQ3: =2020+ROUNDUP(BQ2/4,0)-1 -> 2036 | BR3: =2020+ROUNDUP(BR2/4,0)-1 -> 2036 | BS3: =2020+ROUNDUP(BS2/4,0)-1 -> 2036 | BT3: x
A4: Év / Negyedév | D4: =CONCATENATE(D$3," / ",IF(MOD(D$2,4)=0,4,(MOD(D$2,4)))) -> 2020 / 1 | E4: =CONCATENATE(E$3," / ",IF(MOD(E$2,4)=0,4,(MOD(E$2,4)))) -> 2020 / 2 | F4: 2020 / 3 | G4: 2020 / 4 | H4: 2021 / 1 | I4: 2021 / 2 | J4: 2021 / 3 | K4: 2021 / 4 | L4: 2022 / 1 | M4: 2022 / 2 | N4: 2022 / 3 | O4: 2022 / 4 | P4: 2023 / 1 | Q4: 2023 / 2 | R4: 2023 / 3 | S4: 2023 / 4 | T4: 2024 / 1 | U4: 2024 / 2 | V4: 2024 / 3 | W4: 2024 / 4 | X4: 2025 / 1 | Y4: 2025 / 2 | Z4: 2025 / 3 | AA4: 2025 / 4 | AB4: 2026 / 1 | AC4: 2026 / 2 | AD4: 2026 / 3 | AE4: 2026 / 4 | AF4: 2027 / 1 | AG4: 2027 / 2 | AH4: 2027 / 3 | AI4: 2027 / 4 | AJ4: 2028 / 1 | AK4: 2028 / 2 | AL4: 2028 / 3 | AM4: 2028 / 4 | AN4: 2029 / 1 | AO4: 2029 / 2 | AP4: 2029 / 3 | AQ4: 2029 / 4 | AR4: 2030 / 1 | AS4: 2030 / 2 | AT4: 2030 / 3 | AU4: 2030 / 4 | AV4: 2031 / 1 | AW4: 2031 / 2 | AX4: 2031 / 3 | AY4: 2031 / 4 | AZ4: 2032 / 1 | BA4: 2032 / 2 | BB4: 2032 / 3 | BC4: 2032 / 4 | BD4: 2033 / 1 | BE4: 2033 / 2 | BF4: 2033 / 3 | BG4: 2033 / 4 | BH4: 2034 / 1 | BI4: 2034 / 2 | BJ4: 2034 / 3 | BK4: 2034 / 4 | BL4: 2035 / 1 | BM4: 2035 / 2 | BN4: 2035 / 3 | BO4: 2035 / 4 | BP4: 2036 / 1 | BQ4: =CONCATENATE(BQ$3," / ",IF(MOD(BQ$2,4)=0,4,(MOD(BQ$2,4)))) -> 2036 / 2 | BR4: =CONCATENATE(BR$3," / ",IF(MOD(BR$2,4)=0,4,(MOD(BR$2,4)))) -> 2036 / 3 | BS4: =CONCATENATE(BS$3," / ",IF(MOD(BS$2,4)=0,4,(MOD(BS$2,4)))) -> 2036 / 4 | BT4: x
A5: Árfolyam | C5: =INDEX(Makroadatok!$B$15:$X$18,Paraméterek!$D$124,Negyedéves!C$2+2) -> 1 | D5: =INDEX(Makroadatok!$B$15:$X$18,Paraméterek!$D$124,ROUNDUP((D$1+4-Paraméterek!$C$52)/4,0)+2) -> 1 | E5: =INDEX(Makroadatok!$B$15:$X$18,Paraméterek!$D$124,ROUNDUP((E$1+4-Paraméterek!$C$52)/4,0)+2) -> 1 | F5: =INDEX(Makroadatok!$B$15:$X$18,Paraméterek!$D$124,ROUNDUP((F$1+4-Paraméterek!$C$52)/4,0)+2) -> 1 | G5: =INDEX(Makroadatok!$B$15:$X$18,Paraméterek!$D$124,ROUNDUP((G$1+4-Paraméterek!$C$52)/4,0)+2) -> 1 | H5: =INDEX(Makroadatok!$B$15:$X$18,Paraméterek!$D$124,ROUNDUP((H$1+4-Paraméterek!$C$52)/4,0)+2) -> 1 | I5: =INDEX(Makroadatok!$B$15:$X$18,Paraméterek!$D$124,ROUNDUP((I$1+4-Paraméterek!$C$52)/4,0)+2) -> 1 | J5: =INDEX(Makroadatok!$B$15:$X$18,Paraméterek!$D$124,ROUNDUP((J$1+4-Paraméterek!$C$52)/4,0)+2) -> 1 | K5: =INDEX(Makroadatok!$B$15:$X$18,Paraméterek!$D$124,ROUNDUP((K$1+4-Paraméterek!$C$52)/4,0)+2) -> 1 | L5: =INDEX(Makroadatok!$B$15:$X$18,Paraméterek!$D$124,ROUNDUP((L$1+4-Paraméterek!$C$52)/4,0)+2) -> 1 | M5: =INDEX(Makroadatok!$B$15:$X$18,Paraméterek!$D$124,ROUNDUP((M$1+4-Paraméterek!$C$52)/4,0)+2) -> 1 | N5: =INDEX(Makroadatok!$B$15:$X$18,Paraméterek!$D$124,ROUNDUP((N$1+4-Paraméterek!$C$52)/4,0)+2) -> 1 | O5: =INDEX(Makroadatok!$B$15:$X$18,Paraméterek!$D$124,ROUNDUP((O$1+4-Paraméterek!$C$52)/4,0)+2) -> 1 | P5: =INDEX(Makroadatok!$B$15:$X$18,Paraméterek!$D$124,ROUNDUP((P$1+4-Paraméterek!$C$52)/4,0)+2) -> 1 | Q5: =INDEX(Makroadatok!$B$15:$X$18,Paraméterek!$D$124,ROUNDUP((Q$1+4-Paraméterek!$C$52)/4,0)+2) -> 1 | R5: =INDEX(Makroadatok!$B$15:$X$18,Paraméterek!$D$124,ROUNDUP((R$1+4-Paraméterek!$C$52)/4,0)+2) -> 1 | S5: =INDEX(Makroadatok!$B$15:$X$18,Paraméterek!$D$124,ROUNDUP((S$1+4-Paraméterek!$C$52)/4,0)+2) -> 1 | T5: =INDEX(Makroadatok!$B$15:$X$18,Paraméterek!$D$124,ROUNDUP((T$1+4-Paraméterek!$C$52)/4,0)+2) -> 1 | U5: =INDEX(Makroadatok!$B$15:$X$18,Paraméterek!$D$124,ROUNDUP((U$1+4-Paraméterek!$C$52)/4,0)+2) -> 1 | V5: =INDEX(Makroadatok!$B$15:$X$18,Paraméterek!$D$124,ROUNDUP((V$1+4-Paraméterek!$C$52)/4,0)+2) -> 1 | W5: =INDEX(Makroadatok!$B$15:$X$18,Paraméterek!$D$124,ROUNDUP((W$1+4-Paraméterek!$C$52)/4,0)+2) -> 1 | X5: =INDEX(Makroadatok!$B$15:$X$18,Paraméterek!$D$124,ROUNDUP((X$1+4-Paraméterek!$C$52)/4,0)+2) -> 1 | Y5: =INDEX(Makroadatok!$B$15:$X$18,Paraméterek!$D$124,ROUNDUP((Y$1+4-Paraméterek!$C$52)/4,0)+2) -> 1 | Z5: =INDEX(Makroadatok!$B$15:$X$18,Paraméterek!$D$124,ROUNDUP((Z$1+4-Paraméterek!$C$52)/4,0)+2) -> 1 | AA5: =INDEX(Makroadatok!$B$15:$X$18,Paraméterek!$D$124,ROUNDUP((AA$1+4-Paraméterek!$C$52)/4,0)+2) -> 1 | AB5: =INDEX(Makroadatok!$B$15:$X$18,Paraméterek!$D$124,ROUNDUP((AB$1+4-Paraméterek!$C$52)/4,0)+2) -> 1 | AC5: =INDEX(Makroadatok!$B$15:$X$18,Paraméterek!$D$124,ROUNDUP((AC$1+4-Paraméterek!$C$52)/4,0)+2) -> 1 | AD5: =INDEX(Makroadatok!$B$15:$X$18,Paraméterek!$D$124,ROUNDUP((AD$1+4-Paraméterek!$C$52)/4,0)+2) -> 1 | AE5: =INDEX(Makroadatok!$B$15:$X$18,Paraméterek!$D$124,ROUNDUP((AE$1+4-Paraméterek!$C$52)/4,0)+2) -> 1 | AF5: =INDEX(Makroadatok!$B$15:$X$18,Paraméterek!$D$124,ROUNDUP((AF$1+4-Paraméterek!$C$52)/4,0)+2) -> 1 | AG5: =INDEX(Makroadatok!$B$15:$X$18,Paraméterek!$D$124,ROUNDUP((AG$1+4-Paraméterek!$C$52)/4,0)+2) -> 1 | AH5: =INDEX(Makroadatok!$B$15:$X$18,Paraméterek!$D$124,ROUNDUP((AH$1+4-Paraméterek!$C$52)/4,0)+2) -> 1 | AI5: =INDEX(Makroadatok!$B$15:$X$18,Paraméterek!$D$124,ROUNDUP((AI$1+4-Paraméterek!$C$52)/4,0)+2) -> 1 | AJ5: =INDEX(Makroadatok!$B$15:$X$18,Paraméterek!$D$124,ROUNDUP((AJ$1+4-Paraméterek!$C$52)/4,0)+2) -> 1 | AK5: =INDEX(Makroadatok!$B$15:$X$18,Paraméterek!$D$124,ROUNDUP((AK$1+4-Paraméterek!$C$52)/4,0)+2) -> 1 | AL5: =INDEX(Makroadatok!$B$15:$X$18,Paraméterek!$D$124,ROUNDUP((AL$1+4-Paraméterek!$C$52)/4,0)+2) -> 1 | AM5: =INDEX(Makroadatok!$B$15:$X$18,Paraméterek!$D$124,ROUNDUP((AM$1+4-Paraméterek!$C$52)/4,0)+2) -> 1 | AN5: =INDEX(Makroadatok!$B$15:$X$18,Paraméterek!$D$124,ROUNDUP((AN$1+4-Paraméterek!$C$52)/4,0)+2) -> 1 | AO5: =INDEX(Makroadatok!$B$15:$X$18,Paraméterek!$D$124,ROUNDUP((AO$1+4-Paraméterek!$C$52)/4,0)+2) -> 1 | AP5: =INDEX(Makroadatok!$B$15:$X$18,Paraméterek!$D$124,ROUNDUP((AP$1+4-Paraméterek!$C$52)/4,0)+2) -> 1 | AQ5: =INDEX(Makroadatok!$B$15:$X$18,Paraméterek!$D$124,ROUNDUP((AQ$1+4-Paraméterek!$C$52)/4,0)+2) -> 1 | AR5: =INDEX(Makroadatok!$B$15:$X$18,Paraméterek!$D$124,ROUNDUP((AR$1+4-Paraméterek!$C$52)/4,0)+2) -> 1 | AS5: =INDEX(Makroadatok!$B$15:$X$18,Paraméterek!$D$124,ROUNDUP((AS$1+4-Paraméterek!$C$52)/4,0)+2) -> 1 | AT5: =INDEX(Makroadatok!$B$15:$X$18,Paraméterek!$D$124,ROUNDUP((AT$1+4-Paraméterek!$C$52)/4,0)+2) -> 1 | AU5: =INDEX(Makroadatok!$B$15:$X$18,Paraméterek!$D$124,ROUNDUP((AU$1+4-Paraméterek!$C$52)/4,0)+2) -> 1 | AV5: =INDEX(Makroadatok!$B$15:$X$18,Paraméterek!$D$124,ROUNDUP((AV$1+4-Paraméterek!$C$52)/4,0)+2) -> 1 | AW5: =INDEX(Makroadatok!$B$15:$X$18,Paraméterek!$D$124,ROUNDUP((AW$1+4-Paraméterek!$C$52)/4,0)+2) -> 1 | AX5: =INDEX(Makroadatok!$B$15:$X$18,Paraméterek!$D$124,ROUNDUP((AX$1+4-Paraméterek!$C$52)/4,0)+2) -> 1 | AY5: =INDEX(Makroadatok!$B$15:$X$18,Paraméterek!$D$124,ROUNDUP((AY$1+4-Paraméterek!$C$52)/4,0)+2) -> 1 | AZ5: =INDEX(Makroadatok!$B$15:$X$18,Paraméterek!$D$124,ROUNDUP((AZ$1+4-Paraméterek!$C$52)/4,0)+2) -> 1 | BA5: =INDEX(Makroadatok!$B$15:$X$18,Paraméterek!$D$124,ROUNDUP((BA$1+4-Paraméterek!$C$52)/4,0)+2) -> 1 | BB5: =INDEX(Makroadatok!$B$15:$X$18,Paraméterek!$D$124,ROUNDUP((BB$1+4-Paraméterek!$C$52)/4,0)+2) -> 1 | BC5: =INDEX(Makroadatok!$B$15:$X$18,Paraméterek!$D$124,ROUNDUP((BC$1+4-Paraméterek!$C$52)/4,0)+2) -> 1 | BD5: =INDEX(Makroadatok!$B$15:$X$18,Paraméterek!$D$124,ROUNDUP((BD$1+4-Paraméterek!$C$52)/4,0)+2) -> 1 | BE5: =INDEX(Makroadatok!$B$15:$X$18,Paraméterek!$D$124,ROUNDUP((BE$1+4-Paraméterek!$C$52)/4,0)+2) -> 1 | BF5: =INDEX(Makroadatok!$B$15:$X$18,Paraméterek!$D$124,ROUNDUP((BF$1+4-Paraméterek!$C$52)/4,0)+2) -> 1 | BG5: =INDEX(Makroadatok!$B$15:$X$18,Paraméterek!$D$124,ROUNDUP((BG$1+4-Paraméterek!$C$52)/4,0)+2) -> 1 | BH5: =INDEX(Makroadatok!$B$15:$X$18,Paraméterek!$D$124,ROUNDUP((BH$1+4-Paraméterek!$C$52)/4,0)+2) -> 1 | BI5: =INDEX(Makroadatok!$B$15:$X$18,Paraméterek!$D$124,ROUNDUP((BI$1+4-Paraméterek!$C$52)/4,0)+2) -> 1 | BJ5: =INDEX(Makroadatok!$B$15:$X$18,Paraméterek!$D$124,ROUNDUP((BJ$1+4-Paraméterek!$C$52)/4,0)+2) -> 1 | BK5: =INDEX(Makroadatok!$B$15:$X$18,Paraméterek!$D$124,ROUNDUP((BK$1+4-Paraméterek!$C$52)/4,0)+2) -> 1 | BL5: =INDEX(Makroadatok!$B$15:$X$18,Paraméterek!$D$124,ROUNDUP((BL$1+4-Paraméterek!$C$52)/4,0)+2) -> 1 | BM5: =INDEX(Makroadatok!$B$15:$X$18,Paraméterek!$D$124,ROUNDUP((BM$1+4-Paraméterek!$C$52)/4,0)+2) -> 1 | BN5: =INDEX(Makroadatok!$B$15:$X$18,Paraméterek!$D$124,ROUNDUP((BN$1+4-Paraméterek!$C$52)/4,0)+2) -> 1 | BO5: =INDEX(Makroadatok!$B$15:$X$18,Paraméterek!$D$124,ROUNDUP((BO$1+4-Paraméterek!$C$52)/4,0)+2) -> 1 | BP5: =INDEX(Makroadatok!$B$15:$X$18,Paraméterek!$D$124,ROUNDUP((BP$1+4-Paraméterek!$C$52)/4,0)+2) -> 1 | BQ5: =INDEX(Makroadatok!$B$15:$X$18,Paraméterek!$D$124,ROUNDUP((BQ$1+4-Paraméterek!$C$52)/4,0)+2) -> 1 | BR5: =INDEX(Makroadatok!$B$15:$X$18,Paraméterek!$D$124,ROUNDUP((BR$1+4-Paraméterek!$C$52)/4,0)+2) -> 1 | BS5: =INDEX(Makroadatok!$B$15:$X$18,Paraméterek!$D$124,ROUNDUP((BS$1+4-Paraméterek!$C$52)/4,0)+2) -> 1 | BT5: x
A6: BUBOR | D6: =HLOOKUP(ROUNDUP((D$1+4-Paraméterek!$C$52)/4,0),Makroadatok!$B$4:$X$11,8,0)/4 -> 0.00625 | E6: =HLOOKUP(ROUNDUP((E$1+4-Paraméterek!$C$52)/4,0),Makroadatok!$B$4:$X$11,8,0)/4 -> 0.00625 | F6: =HLOOKUP(ROUNDUP((F$1+4-Paraméterek!$C$52)/4,0),Makroadatok!$B$4:$X$11,8,0)/4 -> 0.00625 | G6: =HLOOKUP(ROUNDUP((G$1+4-Paraméterek!$C$52)/4,0),Makroadatok!$B$4:$X$11,8,0)/4 -> 0.00625 | H6: =HLOOKUP(ROUNDUP((H$1+4-Paraméterek!$C$52)/4,0),Makroadatok!$B$4:$X$11,8,0)/4 -> 0.00625 | I6: =HLOOKUP(ROUNDUP((I$1+4-Paraméterek!$C$52)/4,0),Makroadatok!$B$4:$X$11,8,0)/4 -> 0.00625 | J6: =HLOOKUP(ROUNDUP((J$1+4-Paraméterek!$C$52)/4,0),Makroadatok!$B$4:$X$11,8,0)/4 -> 0.00625 | K6: =HLOOKUP(ROUNDUP((K$1+4-Paraméterek!$C$52)/4,0),Makroadatok!$B$4:$X$11,8,0)/4 -> 0.00625 | L6: =HLOOKUP(ROUNDUP((L$1+4-Paraméterek!$C$52)/4,0),Makroadatok!$B$4:$X$11,8,0)/4 -> 0.00625 | M6: =HLOOKUP(ROUNDUP((M$1+4-Paraméterek!$C$52)/4,0),Makroadatok!$B$4:$X$11,8,0)/4 -> 0.00625 | N6: =HLOOKUP(ROUNDUP((N$1+4-Paraméterek!$C$52)/4,0),Makroadatok!$B$4:$X$11,8,0)/4 -> 0.00625 | O6: =HLOOKUP(ROUNDUP((O$1+4-Paraméterek!$C$52)/4,0),Makroadatok!$B$4:$X$11,8,0)/4 -> 0.00625 | P6: =HLOOKUP(ROUNDUP((P$1+4-Paraméterek!$C$52)/4,0),Makroadatok!$B$4:$X$11,8,0)/4 -> 0.00625 | Q6: =HLOOKUP(ROUNDUP((Q$1+4-Paraméterek!$C$52)/4,0),Makroadatok!$B$4:$X$11,8,0)/4 -> 0.00625 | R6: =HLOOKUP(ROUNDUP((R$1+4-Paraméterek!$C$52)/4,0),Makroadatok!$B$4:$X$11,8,0)/4 -> 0.00625 | S6: =HLOOKUP(ROUNDUP((S$1+4-Paraméterek!$C$52)/4,0),Makroadatok!$B$4:$X$11,8,0)/4 -> 0.00625 | T6: =HLOOKUP(ROUNDUP((T$1+4-Paraméterek!$C$52)/4,0),Makroadatok!$B$4:$X$11,8,0)/4 -> 0.00625 | U6: =HLOOKUP(ROUNDUP((U$1+4-Paraméterek!$C$52)/4,0),Makroadatok!$B$4:$X$11,8,0)/4 -> 0.00625 | V6: =HLOOKUP(ROUNDUP((V$1+4-Paraméterek!$C$52)/4,0),Makroadatok!$B$4:$X$11,8,0)/4 -> 0.00625 | W6: =HLOOKUP(ROUNDUP((W$1+4-Paraméterek!$C$52)/4,0),Makroadatok!$B$4:$X$11,8,0)/4 -> 0.00625 | X6: =HLOOKUP(ROUNDUP((X$1+4-Paraméterek!$C$52)/4,0),Makroadatok!$B$4:$X$11,8,0)/4 -> 0.00625 | Y6: =HLOOKUP(ROUNDUP((Y$1+4-Paraméterek!$C$52)/4,0),Makroadatok!$B$4:$X$11,8,0)/4 -> 0.00625 | Z6: =HLOOKUP(ROUNDUP((Z$1+4-Paraméterek!$C$52)/4,0),Makroadatok!$B$4:$X$11,8,0)/4 -> 0.00625 | AA6: =HLOOKUP(ROUNDUP((AA$1+4-Paraméterek!$C$52)/4,0),Makroadatok!$B$4:$X$11,8,0)/4 -> 0.00625 | AB6: =HLOOKUP(ROUNDUP((AB$1+4-Paraméterek!$C$52)/4,0),Makroadatok!$B$4:$X$11,8,0)/4 -> 0.00625 | AC6: =HLOOKUP(ROUNDUP((AC$1+4-Paraméterek!$C$52)/4,0),Makroadatok!$B$4:$X$11,8,0)/4 -> 0.00625 | AD6: =HLOOKUP(ROUNDUP((AD$1+4-Paraméterek!$C$52)/4,0),Makroadatok!$B$4:$X$11,8,0)/4 -> 0.00625 | AE6: =HLOOKUP(ROUNDUP((AE$1+4-Paraméterek!$C$52)/4,0),Makroadatok!$B$4:$X$11,8,0)/4 -> 0.00625 | AF6: =HLOOKUP(ROUNDUP((AF$1+4-Paraméterek!$C$52)/4,0),Makroadatok!$B$4:$X$11,8,0)/4 -> 0.00625 | AG6: =HLOOKUP(ROUNDUP((AG$1+4-Paraméterek!$C$52)/4,0),Makroadatok!$B$4:$X$11,8,0)/4 -> 0.00625 | AH6: =HLOOKUP(ROUNDUP((AH$1+4-Paraméterek!$C$52)/4,0),Makroadatok!$B$4:$X$11,8,0)/4 -> 0.00625 | AI6: =HLOOKUP(ROUNDUP((AI$1+4-Paraméterek!$C$52)/4,0),Makroadatok!$B$4:$X$11,8,0)/4 -> 0.00625 | AJ6: =HLOOKUP(ROUNDUP((AJ$1+4-Paraméterek!$C$52)/4,0),Makroadatok!$B$4:$X$11,8,0)/4 -> 0.00625 | AK6: =HLOOKUP(ROUNDUP((AK$1+4-Paraméterek!$C$52)/4,0),Makroadatok!$B$4:$X$11,8,0)/4 -> 0.00625 | AL6: =HLOOKUP(ROUNDUP((AL$1+4-Paraméterek!$C$52)/4,0),Makroadatok!$B$4:$X$11,8,0)/4 -> 0.00625 | AM6: =HLOOKUP(ROUNDUP((AM$1+4-Paraméterek!$C$52)/4,0),Makroadatok!$B$4:$X$11,8,0)/4 -> 0.00625 | AN6: =HLOOKUP(ROUNDUP((AN$1+4-Paraméterek!$C$52)/4,0),Makroadatok!$B$4:$X$11,8,0)/4 -> 0.00625 | AO6: =HLOOKUP(ROUNDUP((AO$1+4-Paraméterek!$C$52)/4,0),Makroadatok!$B$4:$X$11,8,0)/4 -> 0.00625 | AP6: =HLOOKUP(ROUNDUP((AP$1+4-Paraméterek!$C$52)/4,0),Makroadatok!$B$4:$X$11,8,0)/4 -> 0.00625 | AQ6: =HLOOKUP(ROUNDUP((AQ$1+4-Paraméterek!$C$52)/4,0),Makroadatok!$B$4:$X$11,8,0)/4 -> 0.00625 | AR6: =HLOOKUP(ROUNDUP((AR$1+4-Paraméterek!$C$52)/4,0),Makroadatok!$B$4:$X$11,8,0)/4 -> 0.00625 | AS6: =HLOOKUP(ROUNDUP((AS$1+4-Paraméterek!$C$52)/4,0),Makroadatok!$B$4:$X$11,8,0)/4 -> 0.00625 | AT6: =HLOOKUP(ROUNDUP((AT$1+4-Paraméterek!$C$52)/4,0),Makroadatok!$B$4:$X$11,8,0)/4 -> 0.00625 | AU6: =HLOOKUP(ROUNDUP((AU$1+4-Paraméterek!$C$52)/4,0),Makroadatok!$B$4:$X$11,8,0)/4 -> 0.00625 | AV6: =HLOOKUP(ROUNDUP((AV$1+4-Paraméterek!$C$52)/4,0),Makroadatok!$B$4:$X$11,8,0)/4 -> 0.00625 | AW6: =HLOOKUP(ROUNDUP((AW$1+4-Paraméterek!$C$52)/4,0),Makroadatok!$B$4:$X$11,8,0)/4 -> 0.00625 | AX6: =HLOOKUP(ROUNDUP((AX$1+4-Paraméterek!$C$52)/4,0),Makroadatok!$B$4:$X$11,8,0)/4 -> 0.00625 | AY6: =HLOOKUP(ROUNDUP((AY$1+4-Paraméterek!$C$52)/4,0),Makroadatok!$B$4:$X$11,8,0)/4 -> 0.00625 | AZ6: =HLOOKUP(ROUNDUP((AZ$1+4-Paraméterek!$C$52)/4,0),Makroadatok!$B$4:$X$11,8,0)/4 -> 0.00625 | BA6: =HLOOKUP(ROUNDUP((BA$1+4-Paraméterek!$C$52)/4,0),Makroadatok!$B$4:$X$11,8,0)/4 -> 0.00625 | BB6: =HLOOKUP(ROUNDUP((BB$1+4-Paraméterek!$C$52)/4,0),Makroadatok!$B$4:$X$11,8,0)/4 -> 0.00625 | BC6: =HLOOKUP(ROUNDUP((BC$1+4-Paraméterek!$C$52)/4,0),Makroadatok!$B$4:$X$11,8,0)/4 -> 0.00625 | BD6: =HLOOKUP(ROUNDUP((BD$1+4-Paraméterek!$C$52)/4,0),Makroadatok!$B$4:$X$11,8,0)/4 -> 0.00625 | BE6: =HLOOKUP(ROUNDUP((BE$1+4-Paraméterek!$C$52)/4,0),Makroadatok!$B$4:$X$11,8,0)/4 -> 0.00625 | BF6: =HLOOKUP(ROUNDUP((BF$1+4-Paraméterek!$C$52)/4,0),Makroadatok!$B$4:$X$11,8,0)/4 -> 0.00625 | BG6: =HLOOKUP(ROUNDUP((BG$1+4-Paraméterek!$C$52)/4,0),Makroadatok!$B$4:$X$11,8,0)/4 -> 0.00625 | BH6: =HLOOKUP(ROUNDUP((BH$1+4-Paraméterek!$C$52)/4,0),Makroadatok!$B$4:$X$11,8,0)/4 -> 0.00625 | BI6: =HLOOKUP(ROUNDUP((BI$1+4-Paraméterek!$C$52)/4,0),Makroadatok!$B$4:$X$11,8,0)/4 -> 0.00625 | BJ6: =HLOOKUP(ROUNDUP((BJ$1+4-Paraméterek!$C$52)/4,0),Makroadatok!$B$4:$X$11,8,0)/4 -> 0.00625 | BK6: =HLOOKUP(ROUNDUP((BK$1+4-Paraméterek!$C$52)/4,0),Makroadatok!$B$4:$X$11,8,0)/4 -> 0.00625 | BL6: =HLOOKUP(ROUNDUP((BL$1+4-Paraméterek!$C$52)/4,0),Makroadatok!$B$4:$X$11,8,0)/4 -> 0.00625 | BM6: =HLOOKUP(ROUNDUP((BM$1+4-Paraméterek!$C$52)/4,0),Makroadatok!$B$4:$X$11,8,0)/4 -> 0.00625 | BN6: =HLOOKUP(ROUNDUP((BN$1+4-Paraméterek!$C$52)/4,0),Makroadatok!$B$4:$X$11,8,0)/4 -> 0.00625 | BO6: =HLOOKUP(ROUNDUP((BO$1+4-Paraméterek!$C$52)/4,0),Makroadatok!$B$4:$X$11,8,0)/4 -> 0.00625 | BP6: =HLOOKUP(ROUNDUP((BP$1+4-Paraméterek!$C$52)/4,0),Makroadatok!$B$4:$X$11,8,0)/4 -> 0.00625 | BQ6: =HLOOKUP(ROUNDUP((BQ$1+4-Paraméterek!$C$52)/4,0),Makroadatok!$B$4:$X$11,8,0)/4 -> 0.00625 | BR6: =HLOOKUP(ROUNDUP((BR$1+4-Paraméterek!$C$52)/4,0),Makroadatok!$B$4:$X$11,8,0)/4 -> 0.00625 | BS6: =HLOOKUP(ROUNDUP((BS$1+4-Paraméterek!$C$52)/4,0),Makroadatok!$B$4:$X$11,8,0)/4 -> 0.00625 | BT6: x
A7: Változó kamat | D7: =(INDEX(Makroadatok!$B$11:$X$14,Paraméterek!$D$124,ROUNDUP((D$1+4-Paraméterek!$C$52)/4,0)+2)+Paraméterek!$C$134)/4 -> 0.01125 | E7: =(INDEX(Makroadatok!$B$11:$X$14,Paraméterek!$D$124,ROUNDUP((E$1+4-Paraméterek!$C$52)/4,0)+2)+Paraméterek!$C$134)/4 -> 0.01125 | F7: =(INDEX(Makroadatok!$B$11:$X$14,Paraméterek!$D$124,ROUNDUP((F$1+4-Paraméterek!$C$52)/4,0)+2)+Paraméterek!$C$134)/4 -> 0.01125 | G7: =(INDEX(Makroadatok!$B$11:$X$14,Paraméterek!$D$124,ROUNDUP((G$1+4-Paraméterek!$C$52)/4,0)+2)+Paraméterek!$C$134)/4 -> 0.01125 | H7: =(INDEX(Makroadatok!$B$11:$X$14,Paraméterek!$D$124,ROUNDUP((H$1+4-Paraméterek!$C$52)/4,0)+2)+Paraméterek!$C$134)/4 -> 0.01125 | I7: =(INDEX(Makroadatok!$B$11:$X$14,Paraméterek!$D$124,ROUNDUP((I$1+4-Paraméterek!$C$52)/4,0)+2)+Paraméterek!$C$134)/4 -> 0.01125 | J7: =(INDEX(Makroadatok!$B$11:$X$14,Paraméterek!$D$124,ROUNDUP((J$1+4-Paraméterek!$C$52)/4,0)+2)+Paraméterek!$C$134)/4 -> 0.01125 | K7: =(INDEX(Makroadatok!$B$11:$X$14,Paraméterek!$D$124,ROUNDUP((K$1+4-Paraméterek!$C$52)/4,0)+2)+Paraméterek!$C$134)/4 -> 0.01125 | L7: =(INDEX(Makroadatok!$B$11:$X$14,Paraméterek!$D$124,ROUNDUP((L$1+4-Paraméterek!$C$52)/4,0)+2)+Paraméterek!$C$134)/4 -> 0.01125 | M7: =(INDEX(Makroadatok!$B$11:$X$14,Paraméterek!$D$124,ROUNDUP((M$1+4-Paraméterek!$C$52)/4,0)+2)+Paraméterek!$C$134)/4 -> 0.01125 | N7: =(INDEX(Makroadatok!$B$11:$X$14,Paraméterek!$D$124,ROUNDUP((N$1+4-Paraméterek!$C$52)/4,0)+2)+Paraméterek!$C$134)/4 -> 0.01125 | O7: =(INDEX(Makroadatok!$B$11:$X$14,Paraméterek!$D$124,ROUNDUP((O$1+4-Paraméterek!$C$52)/4,0)+2)+Paraméterek!$C$134)/4 -> 0.01125 | P7: =(INDEX(Makroadatok!$B$11:$X$14,Paraméterek!$D$124,ROUNDUP((P$1+4-Paraméterek!$C$52)/4,0)+2)+Paraméterek!$C$134)/4 -> 0.01125 | Q7: =(INDEX(Makroadatok!$B$11:$X$14,Paraméterek!$D$124,ROUNDUP((Q$1+4-Paraméterek!$C$52)/4,0)+2)+Paraméterek!$C$134)/4 -> 0.01125 | R7: =(INDEX(Makroadatok!$B$11:$X$14,Paraméterek!$D$124,ROUNDUP((R$1+4-Paraméterek!$C$52)/4,0)+2)+Paraméterek!$C$134)/4 -> 0.01125 | S7: =(INDEX(Makroadatok!$B$11:$X$14,Paraméterek!$D$124,ROUNDUP((S$1+4-Paraméterek!$C$52)/4,0)+2)+Paraméterek!$C$134)/4 -> 0.01125 | T7: =(INDEX(Makroadatok!$B$11:$X$14,Paraméterek!$D$124,ROUNDUP((T$1+4-Paraméterek!$C$52)/4,0)+2)+Paraméterek!$C$134)/4 -> 0.01125 | U7: =(INDEX(Makroadatok!$B$11:$X$14,Paraméterek!$D$124,ROUNDUP((U$1+4-Paraméterek!$C$52)/4,0)+2)+Paraméterek!$C$134)/4 -> 0.01125 | V7: =(INDEX(Makroadatok!$B$11:$X$14,Paraméterek!$D$124,ROUNDUP((V$1+4-Paraméterek!$C$52)/4,0)+2)+Paraméterek!$C$134)/4 -> 0.01125 | W7: =(INDEX(Makroadatok!$B$11:$X$14,Paraméterek!$D$124,ROUNDUP((W$1+4-Paraméterek!$C$52)/4,0)+2)+Paraméterek!$C$134)/4 -> 0.01125 | X7: =(INDEX(Makroadatok!$B$11:$X$14,Paraméterek!$D$124,ROUNDUP((X$1+4-Paraméterek!$C$52)/4,0)+2)+Paraméterek!$C$134)/4 -> 0.01125 | Y7: =(INDEX(Makroadatok!$B$11:$X$14,Paraméterek!$D$124,ROUNDUP((Y$1+4-Paraméterek!$C$52)/4,0)+2)+Paraméterek!$C$134)/4 -> 0.01125 | Z7: =(INDEX(Makroadatok!$B$11:$X$14,Paraméterek!$D$124,ROUNDUP((Z$1+4-Paraméterek!$C$52)/4,0)+2)+Paraméterek!$C$134)/4 -> 0.01125 | AA7: =(INDEX(Makroadatok!$B$11:$X$14,Paraméterek!$D$124,ROUNDUP((AA$1+4-Paraméterek!$C$52)/4,0)+2)+Paraméterek!$C$134)/4 -> 0.01125 | AB7: =(INDEX(Makroadatok!$B$11:$X$14,Paraméterek!$D$124,ROUNDUP((AB$1+4-Paraméterek!$C$52)/4,0)+2)+Paraméterek!$C$134)/4 -> 0.01125 | AC7: =(INDEX(Makroadatok!$B$11:$X$14,Paraméterek!$D$124,ROUNDUP((AC$1+4-Paraméterek!$C$52)/4,0)+2)+Paraméterek!$C$134)/4 -> 0.01125 | AD7: =(INDEX(Makroadatok!$B$11:$X$14,Paraméterek!$D$124,ROUNDUP((AD$1+4-Paraméterek!$C$52)/4,0)+2)+Paraméterek!$C$134)/4 -> 0.01125 | AE7: =(INDEX(Makroadatok!$B$11:$X$14,Paraméterek!$D$124,ROUNDUP((AE$1+4-Paraméterek!$C$52)/4,0)+2)+Paraméterek!$C$134)/4 -> 0.01125 | AF7: =(INDEX(Makroadatok!$B$11:$X$14,Paraméterek!$D$124,ROUNDUP((AF$1+4-Paraméterek!$C$52)/4,0)+2)+Paraméterek!$C$134)/4 -> 0.01125 | AG7: =(INDEX(Makroadatok!$B$11:$X$14,Paraméterek!$D$124,ROUNDUP((AG$1+4-Paraméterek!$C$52)/4,0)+2)+Paraméterek!$C$134)/4 -> 0.01125 | AH7: =(INDEX(Makroadatok!$B$11:$X$14,Paraméterek!$D$124,ROUNDUP((AH$1+4-Paraméterek!$C$52)/4,0)+2)+Paraméterek!$C$134)/4 -> 0.01125 | AI7: =(INDEX(Makroadatok!$B$11:$X$14,Paraméterek!$D$124,ROUNDUP((AI$1+4-Paraméterek!$C$52)/4,0)+2)+Paraméterek!$C$134)/4 -> 0.01125 | AJ7: =(INDEX(Makroadatok!$B$11:$X$14,Paraméterek!$D$124,ROUNDUP((AJ$1+4-Paraméterek!$C$52)/4,0)+2)+Paraméterek!$C$134)/4 -> 0.01125 | AK7: =(INDEX(Makroadatok!$B$11:$X$14,Paraméterek!$D$124,ROUNDUP((AK$1+4-Paraméterek!$C$52)/4,0)+2)+Paraméterek!$C$134)/4 -> 0.01125 | AL7: =(INDEX(Makroadatok!$B$11:$X$14,Paraméterek!$D$124,ROUNDUP((AL$1+4-Paraméterek!$C$52)/4,0)+2)+Paraméterek!$C$134)/4 -> 0.01125 | AM7: =(INDEX(Makroadatok!$B$11:$X$14,Paraméterek!$D$124,ROUNDUP((AM$1+4-Paraméterek!$C$52)/4,0)+2)+Paraméterek!$C$134)/4 -> 0.01125 | AN7: =(INDEX(Makroadatok!$B$11:$X$14,Paraméterek!$D$124,ROUNDUP((AN$1+4-Paraméterek!$C$52)/4,0)+2)+Paraméterek!$C$134)/4 -> 0.01125 | AO7: =(INDEX(Makroadatok!$B$11:$X$14,Paraméterek!$D$124,ROUNDUP((AO$1+4-Paraméterek!$C$52)/4,0)+2)+Paraméterek!$C$134)/4 -> 0.01125 | AP7: =(INDEX(Makroadatok!$B$11:$X$14,Paraméterek!$D$124,ROUNDUP((AP$1+4-Paraméterek!$C$52)/4,0)+2)+Paraméterek!$C$134)/4 -> 0.01125 | AQ7: =(INDEX(Makroadatok!$B$11:$X$14,Paraméterek!$D$124,ROUNDUP((AQ$1+4-Paraméterek!$C$52)/4,0)+2)+Paraméterek!$C$134)/4 -> 0.01125 | AR7: =(INDEX(Makroadatok!$B$11:$X$14,Paraméterek!$D$124,ROUNDUP((AR$1+4-Paraméterek!$C$52)/4,0)+2)+Paraméterek!$C$134)/4 -> 0.01125 | AS7: =(INDEX(Makroadatok!$B$11:$X$14,Paraméterek!$D$124,ROUNDUP((AS$1+4-Paraméterek!$C$52)/4,0)+2)+Paraméterek!$C$134)/4 -> 0.01125 | AT7: =(INDEX(Makroadatok!$B$11:$X$14,Paraméterek!$D$124,ROUNDUP((AT$1+4-Paraméterek!$C$52)/4,0)+2)+Paraméterek!$C$134)/4 -> 0.01125 | AU7: =(INDEX(Makroadatok!$B$11:$X$14,Paraméterek!$D$124,ROUNDUP((AU$1+4-Paraméterek!$C$52)/4,0)+2)+Paraméterek!$C$134)/4 -> 0.01125 | AV7: =(INDEX(Makroadatok!$B$11:$X$14,Paraméterek!$D$124,ROUNDUP((AV$1+4-Paraméterek!$C$52)/4,0)+2)+Paraméterek!$C$134)/4 -> 0.01125 | AW7: =(INDEX(Makroadatok!$B$11:$X$14,Paraméterek!$D$124,ROUNDUP((AW$1+4-Paraméterek!$C$52)/4,0)+2)+Paraméterek!$C$134)/4 -> 0.01125 | AX7: =(INDEX(Makroadatok!$B$11:$X$14,Paraméterek!$D$124,ROUNDUP((AX$1+4-Paraméterek!$C$52)/4,0)+2)+Paraméterek!$C$134)/4 -> 0.01125 | AY7: =(INDEX(Makroadatok!$B$11:$X$14,Paraméterek!$D$124,ROUNDUP((AY$1+4-Paraméterek!$C$52)/4,0)+2)+Paraméterek!$C$134)/4 -> 0.01125 | AZ7: =(INDEX(Makroadatok!$B$11:$X$14,Paraméterek!$D$124,ROUNDUP((AZ$1+4-Paraméterek!$C$52)/4,0)+2)+Paraméterek!$C$134)/4 -> 0.01125 | BA7: =(INDEX(Makroadatok!$B$11:$X$14,Paraméterek!$D$124,ROUNDUP((BA$1+4-Paraméterek!$C$52)/4,0)+2)+Paraméterek!$C$134)/4 -> 0.01125 | BB7: =(INDEX(Makroadatok!$B$11:$X$14,Paraméterek!$D$124,ROUNDUP((BB$1+4-Paraméterek!$C$52)/4,0)+2)+Paraméterek!$C$134)/4 -> 0.01125 | BC7: =(INDEX(Makroadatok!$B$11:$X$14,Paraméterek!$D$124,ROUNDUP((BC$1+4-Paraméterek!$C$52)/4,0)+2)+Paraméterek!$C$134)/4 -> 0.01125 | BD7: =(INDEX(Makroadatok!$B$11:$X$14,Paraméterek!$D$124,ROUNDUP((BD$1+4-Paraméterek!$C$52)/4,0)+2)+Paraméterek!$C$134)/4 -> 0.01125 | BE7: =(INDEX(Makroadatok!$B$11:$X$14,Paraméterek!$D$124,ROUNDUP((BE$1+4-Paraméterek!$C$52)/4,0)+2)+Paraméterek!$C$134)/4 -> 0.01125 | BF7: =(INDEX(Makroadatok!$B$11:$X$14,Paraméterek!$D$124,ROUNDUP((BF$1+4-Paraméterek!$C$52)/4,0)+2)+Paraméterek!$C$134)/4 -> 0.01125 | BG7: =(INDEX(Makroadatok!$B$11:$X$14,Paraméterek!$D$124,ROUNDUP((BG$1+4-Paraméterek!$C$52)/4,0)+2)+Paraméterek!$C$134)/4 -> 0.01125 | BH7: =(INDEX(Makroadatok!$B$11:$X$14,Paraméterek!$D$124,ROUNDUP((BH$1+4-Paraméterek!$C$52)/4,0)+2)+Paraméterek!$C$134)/4 -> 0.01125 | BI7: =(INDEX(Makroadatok!$B$11:$X$14,Paraméterek!$D$124,ROUNDUP((BI$1+4-Paraméterek!$C$52)/4,0)+2)+Paraméterek!$C$134)/4 -> 0.01125 | BJ7: =(INDEX(Makroadatok!$B$11:$X$14,Paraméterek!$D$124,ROUNDUP((BJ$1+4-Paraméterek!$C$52)/4,0)+2)+Paraméterek!$C$134)/4 -> 0.01125 | BK7: =(INDEX(Makroadatok!$B$11:$X$14,Paraméterek!$D$124,ROUNDUP((BK$1+4-Paraméterek!$C$52)/4,0)+2)+Paraméterek!$C$134)/4 -> 0.01125 | BL7: =(INDEX(Makroadatok!$B$11:$X$14,Paraméterek!$D$124,ROUNDUP((BL$1+4-Paraméterek!$C$52)/4,0)+2)+Paraméterek!$C$134)/4 -> 0.01125 | BM7: =(INDEX(Makroadatok!$B$11:$X$14,Paraméterek!$D$124,ROUNDUP((BM$1+4-Paraméterek!$C$52)/4,0)+2)+Paraméterek!$C$134)/4 -> 0.01125 | BN7: =(INDEX(Makroadatok!$B$11:$X$14,Paraméterek!$D$124,ROUNDUP((BN$1+4-Paraméterek!$C$52)/4,0)+2)+Paraméterek!$C$134)/4 -> 0.01125 | BO7: =(INDEX(Makroadatok!$B$11:$X$14,Paraméterek!$D$124,ROUNDUP((BO$1+4-Paraméterek!$C$52)/4,0)+2)+Paraméterek!$C$134)/4 -> 0.01125 | BP7: =(INDEX(Makroadatok!$B$11:$X$14,Paraméterek!$D$124,ROUNDUP((BP$1+4-Paraméterek!$C$52)/4,0)+2)+Paraméterek!$C$134)/4 -> 0.01125 | BQ7: =(INDEX(Makroadatok!$B$11:$X$14,Paraméterek!$D$124,ROUNDUP((BQ$1+4-Paraméterek!$C$52)/4,0)+2)+Paraméterek!$C$134)/4 -> 0.01125 | BR7: =(INDEX(Makroadatok!$B$11:$X$14,Paraméterek!$D$124,ROUNDUP((BR$1+4-Paraméterek!$C$52)/4,0)+2)+Paraméterek!$C$134)/4 -> 0.01125 | BS7: =(INDEX(Makroadatok!$B$11:$X$14,Paraméterek!$D$124,ROUNDUP((BS$1+4-Paraméterek!$C$52)/4,0)+2)+Paraméterek!$C$134)/4 -> 0.01125 | BT7: x
A8: Fix kamat | D8: =Paraméterek!$C$133/4 -> 0.00875 | E8: =Paraméterek!$C$133/4 -> 0.00875 | F8: =Paraméterek!$C$133/4 -> 0.00875 | G8: =Paraméterek!$C$133/4 -> 0.00875 | H8: =Paraméterek!$C$133/4 -> 0.00875 | I8: =Paraméterek!$C$133/4 -> 0.00875 | J8: =Paraméterek!$C$133/4 -> 0.00875 | K8: =Paraméterek!$C$133/4 -> 0.00875 | L8: =Paraméterek!$C$133/4 -> 0.00875 | M8: =Paraméterek!$C$133/4 -> 0.00875 | N8: =Paraméterek!$C$133/4 -> 0.00875 | O8: =Paraméterek!$C$133/4 -> 0.00875 | P8: =Paraméterek!$C$133/4 -> 0.00875 | Q8: =Paraméterek!$C$133/4 -> 0.00875 | R8: =Paraméterek!$C$133/4 -> 0.00875 | S8: =Paraméterek!$C$133/4 -> 0.00875 | T8: =Paraméterek!$C$133/4 -> 0.00875 | U8: =Paraméterek!$C$133/4 -> 0.00875 | V8: =Paraméterek!$C$133/4 -> 0.00875 | W8: =Paraméterek!$C$133/4 -> 0.00875 | X8: =Paraméterek!$C$133/4 -> 0.00875 | Y8: =Paraméterek!$C$133/4 -> 0.00875 | Z8: =Paraméterek!$C$133/4 -> 0.00875 | AA8: =Paraméterek!$C$133/4 -> 0.00875 | AB8: =Paraméterek!$C$133/4 -> 0.00875 | AC8: =Paraméterek!$C$133/4 -> 0.00875 | AD8: =Paraméterek!$C$133/4 -> 0.00875 | AE8: =Paraméterek!$C$133/4 -> 0.00875 | AF8: =Paraméterek!$C$133/4 -> 0.00875 | AG8: =Paraméterek!$C$133/4 -> 0.00875 | AH8: =Paraméterek!$C$133/4 -> 0.00875 | AI8: =Paraméterek!$C$133/4 -> 0.00875 | AJ8: =Paraméterek!$C$133/4 -> 0.00875 | AK8: =Paraméterek!$C$133/4 -> 0.00875 | AL8: =Paraméterek!$C$133/4 -> 0.00875 | AM8: =Paraméterek!$C$133/4 -> 0.00875 | AN8: =Paraméterek!$C$133/4 -> 0.00875 | AO8: =Paraméterek!$C$133/4 -> 0.00875 | AP8: =Paraméterek!$C$133/4 -> 0.00875 | AQ8: =Paraméterek!$C$133/4 -> 0.00875 | AR8: =Paraméterek!$C$133/4 -> 0.00875 | AS8: =Paraméterek!$C$133/4 -> 0.00875 | AT8: =Paraméterek!$C$133/4 -> 0.00875 | AU8: =Paraméterek!$C$133/4 -> 0.00875 | AV8: =Paraméterek!$C$133/4 -> 0.00875 | AW8: =Paraméterek!$C$133/4 -> 0.00875 | AX8: =Paraméterek!$C$133/4 -> 0.00875 | AY8: =Paraméterek!$C$133/4 -> 0.00875 | AZ8: =Paraméterek!$C$133/4 -> 0.00875 | BA8: =Paraméterek!$C$133/4 -> 0.00875 | BB8: =Paraméterek!$C$133/4 -> 0.00875 | BC8: =Paraméterek!$C$133/4 -> 0.00875 | BD8: =Paraméterek!$C$133/4 -> 0.00875 | BE8: =Paraméterek!$C$133/4 -> 0.00875 | BF8: =Paraméterek!$C$133/4 -> 0.00875 | BG8: =Paraméterek!$C$133/4 -> 0.00875 | BH8: =Paraméterek!$C$133/4 -> 0.00875 | BI8: =Paraméterek!$C$133/4 -> 0.00875 | BJ8: =Paraméterek!$C$133/4 -> 0.00875 | BK8: =Paraméterek!$C$133/4 -> 0.00875 | BL8: =Paraméterek!$C$133/4 -> 0.00875 | BM8: =Paraméterek!$C$133/4 -> 0.00875 | BN8: =Paraméterek!$C$133/4 -> 0.00875 | BO8: =Paraméterek!$C$133/4 -> 0.00875 | BP8: =Paraméterek!$C$133/4 -> 0.00875 | BQ8: =Paraméterek!$C$133/4 -> 0.00875 | BR8: =Paraméterek!$C$133/4 -> 0.00875 | BS8: =Paraméterek!$C$133/4 -> 0.00875 | BT8: x
A9: Árszínvonal-változás | C9: 1 | D9: =(HLOOKUP(ROUNDUP((D$1+4-Paraméterek!$C$52)/4,0),Makroadatok!$B$4:$X$6,3,0)+1)^(1/4) -> 1.004962932 | E9: =(HLOOKUP(ROUNDUP((E$1+4-Paraméterek!$C$52)/4,0),Makroadatok!$B$4:$X$6,3,0)+1)^(1/4) -> 1.004962932 | F9: =(HLOOKUP(ROUNDUP((F$1+4-Paraméterek!$C$52)/4,0),Makroadatok!$B$4:$X$6,3,0)+1)^(1/4) -> 1.004962932 | G9: =(HLOOKUP(ROUNDUP((G$1+4-Paraméterek!$C$52)/4,0),Makroadatok!$B$4:$X$6,3,0)+1)^(1/4) -> 1.004962932 | H9: =(HLOOKUP(ROUNDUP((H$1+4-Paraméterek!$C$52)/4,0),Makroadatok!$B$4:$X$6,3,0)+1)^(1/4) -> 1.004962932 | I9: =(HLOOKUP(ROUNDUP((I$1+4-Paraméterek!$C$52)/4,0),Makroadatok!$B$4:$X$6,3,0)+1)^(1/4) -> 1.004962932 | J9: =(HLOOKUP(ROUNDUP((J$1+4-Paraméterek!$C$52)/4,0),Makroadatok!$B$4:$X$6,3,0)+1)^(1/4) -> 1.004962932 | K9: =(HLOOKUP(ROUNDUP((K$1+4-Paraméterek!$C$52)/4,0),Makroadatok!$B$4:$X$6,3,0)+1)^(1/4) -> 1.004962932 | L9: =(HLOOKUP(ROUNDUP((L$1+4-Paraméterek!$C$52)/4,0),Makroadatok!$B$4:$X$6,3,0)+1)^(1/4) -> 1.004962932 | M9: =(HLOOKUP(ROUNDUP((M$1+4-Paraméterek!$C$52)/4,0),Makroadatok!$B$4:$X$6,3,0)+1)^(1/4) -> 1.004962932 | N9: =(HLOOKUP(ROUNDUP((N$1+4-Paraméterek!$C$52)/4,0),Makroadatok!$B$4:$X$6,3,0)+1)^(1/4) -> 1.004962932 | O9: =(HLOOKUP(ROUNDUP((O$1+4-Paraméterek!$C$52)/4,0),Makroadatok!$B$4:$X$6,3,0)+1)^(1/4) -> 1.004962932 | P9: =(HLOOKUP(ROUNDUP((P$1+4-Paraméterek!$C$52)/4,0),Makroadatok!$B$4:$X$6,3,0)+1)^(1/4) -> 1.004962932 | Q9: =(HLOOKUP(ROUNDUP((Q$1+4-Paraméterek!$C$52)/4,0),Makroadatok!$B$4:$X$6,3,0)+1)^(1/4) -> 1.004962932 | R9: =(HLOOKUP(ROUNDUP((R$1+4-Paraméterek!$C$52)/4,0),Makroadatok!$B$4:$X$6,3,0)+1)^(1/4) -> 1.004962932 | S9: =(HLOOKUP(ROUNDUP((S$1+4-Paraméterek!$C$52)/4,0),Makroadatok!$B$4:$X$6,3,0)+1)^(1/4) -> 1.004962932 | T9: =(HLOOKUP(ROUNDUP((T$1+4-Paraméterek!$C$52)/4,0),Makroadatok!$B$4:$X$6,3,0)+1)^(1/4) -> 1.004962932 | U9: =(HLOOKUP(ROUNDUP((U$1+4-Paraméterek!$C$52)/4,0),Makroadatok!$B$4:$X$6,3,0)+1)^(1/4) -> 1.004962932 | V9: =(HLOOKUP(ROUNDUP((V$1+4-Paraméterek!$C$52)/4,0),Makroadatok!$B$4:$X$6,3,0)+1)^(1/4) -> 1.004962932 | W9: =(HLOOKUP(ROUNDUP((W$1+4-Paraméterek!$C$52)/4,0),Makroadatok!$B$4:$X$6,3,0)+1)^(1/4) -> 1.004962932 | X9: =(HLOOKUP(ROUNDUP((X$1+4-Paraméterek!$C$52)/4,0),Makroadatok!$B$4:$X$6,3,0)+1)^(1/4) -> 1.004962932 | Y9: =(HLOOKUP(ROUNDUP((Y$1+4-Paraméterek!$C$52)/4,0),Makroadatok!$B$4:$X$6,3,0)+1)^(1/4) -> 1.004962932 | Z9: =(HLOOKUP(ROUNDUP((Z$1+4-Paraméterek!$C$52)/4,0),Makroadatok!$B$4:$X$6,3,0)+1)^(1/4) -> 1.004962932 | AA9: =(HLOOKUP(ROUNDUP((AA$1+4-Paraméterek!$C$52)/4,0),Makroadatok!$B$4:$X$6,3,0)+1)^(1/4) -> 1.004962932 | AB9: =(HLOOKUP(ROUNDUP((AB$1+4-Paraméterek!$C$52)/4,0),Makroadatok!$B$4:$X$6,3,0)+1)^(1/4) -> 1.004962932 | AC9: =(HLOOKUP(ROUNDUP((AC$1+4-Paraméterek!$C$52)/4,0),Makroadatok!$B$4:$X$6,3,0)+1)^(1/4) -> 1.004962932 | AD9: =(HLOOKUP(ROUNDUP((AD$1+4-Paraméterek!$C$52)/4,0),Makroadatok!$B$4:$X$6,3,0)+1)^(1/4) -> 1.004962932 | AE9: =(HLOOKUP(ROUNDUP((AE$1+4-Paraméterek!$C$52)/4,0),Makroadatok!$B$4:$X$6,3,0)+1)^(1/4) -> 1.004962932 | AF9: =(HLOOKUP(ROUNDUP((AF$1+4-Paraméterek!$C$52)/4,0),Makroadatok!$B$4:$X$6,3,0)+1)^(1/4) -> 1.004962932 | AG9: =(HLOOKUP(ROUNDUP((AG$1+4-Paraméterek!$C$52)/4,0),Makroadatok!$B$4:$X$6,3,0)+1)^(1/4) -> 1.004962932 | AH9: =(HLOOKUP(ROUNDUP((AH$1+4-Paraméterek!$C$52)/4,0),Makroadatok!$B$4:$X$6,3,0)+1)^(1/4) -> 1.004962932 | AI9: =(HLOOKUP(ROUNDUP((AI$1+4-Paraméterek!$C$52)/4,0),Makroadatok!$B$4:$X$6,3,0)+1)^(1/4) -> 1.004962932 | AJ9: =(HLOOKUP(ROUNDUP((AJ$1+4-Paraméterek!$C$52)/4,0),Makroadatok!$B$4:$X$6,3,0)+1)^(1/4) -> 1.004962932 | AK9: =(HLOOKUP(ROUNDUP((AK$1+4-Paraméterek!$C$52)/4,0),Makroadatok!$B$4:$X$6,3,0)+1)^(1/4) -> 1.004962932 | AL9: =(HLOOKUP(ROUNDUP((AL$1+4-Paraméterek!$C$52)/4,0),Makroadatok!$B$4:$X$6,3,0)+1)^(1/4) -> 1.004962932 | AM9: =(HLOOKUP(ROUNDUP((AM$1+4-Paraméterek!$C$52)/4,0),Makroadatok!$B$4:$X$6,3,0)+1)^(1/4) -> 1.004962932 | AN9: =(HLOOKUP(ROUNDUP((AN$1+4-Paraméterek!$C$52)/4,0),Makroadatok!$B$4:$X$6,3,0)+1)^(1/4) -> 1.004962932 | AO9: =(HLOOKUP(ROUNDUP((AO$1+4-Paraméterek!$C$52)/4,0),Makroadatok!$B$4:$X$6,3,0)+1)^(1/4) -> 1.004962932 | AP9: =(HLOOKUP(ROUNDUP((AP$1+4-Paraméterek!$C$52)/4,0),Makroadatok!$B$4:$X$6,3,0)+1)^(1/4) -> 1.004962932 | AQ9: =(HLOOKUP(ROUNDUP((AQ$1+4-Paraméterek!$C$52)/4,0),Makroadatok!$B$4:$X$6,3,0)+1)^(1/4) -> 1.004962932 | AR9: =(HLOOKUP(ROUNDUP((AR$1+4-Paraméterek!$C$52)/4,0),Makroadatok!$B$4:$X$6,3,0)+1)^(1/4) -> 1.004962932 | AS9: =(HLOOKUP(ROUNDUP((AS$1+4-Paraméterek!$C$52)/4,0),Makroadatok!$B$4:$X$6,3,0)+1)^(1/4) -> 1.004962932 | AT9: =(HLOOKUP(ROUNDUP((AT$1+4-Paraméterek!$C$52)/4,0),Makroadatok!$B$4:$X$6,3,0)+1)^(1/4) -> 1.004962932 | AU9: =(HLOOKUP(ROUNDUP((AU$1+4-Paraméterek!$C$52)/4,0),Makroadatok!$B$4:$X$6,3,0)+1)^(1/4) -> 1.004962932 | AV9: =(HLOOKUP(ROUNDUP((AV$1+4-Paraméterek!$C$52)/4,0),Makroadatok!$B$4:$X$6,3,0)+1)^(1/4) -> 1.004962932 | AW9: =(HLOOKUP(ROUNDUP((AW$1+4-Paraméterek!$C$52)/4,0),Makroadatok!$B$4:$X$6,3,0)+1)^(1/4) -> 1.004962932 | AX9: =(HLOOKUP(ROUNDUP((AX$1+4-Paraméterek!$C$52)/4,0),Makroadatok!$B$4:$X$6,3,0)+1)^(1/4) -> 1.004962932 | AY9: =(HLOOKUP(ROUNDUP((AY$1+4-Paraméterek!$C$52)/4,0),Makroadatok!$B$4:$X$6,3,0)+1)^(1/4) -> 1.004962932 | AZ9: =(HLOOKUP(ROUNDUP((AZ$1+4-Paraméterek!$C$52)/4,0),Makroadatok!$B$4:$X$6,3,0)+1)^(1/4) -> 1.004962932 | BA9: =(HLOOKUP(ROUNDUP((BA$1+4-Paraméterek!$C$52)/4,0),Makroadatok!$B$4:$X$6,3,0)+1)^(1/4) -> 1.004962932 | BB9: =(HLOOKUP(ROUNDUP((BB$1+4-Paraméterek!$C$52)/4,0),Makroadatok!$B$4:$X$6,3,0)+1)^(1/4) -> 1.004962932 | BC9: =(HLOOKUP(ROUNDUP((BC$1+4-Paraméterek!$C$52)/4,0),Makroadatok!$B$4:$X$6,3,0)+1)^(1/4) -> 1.004962932 | BD9: =(HLOOKUP(ROUNDUP((BD$1+4-Paraméterek!$C$52)/4,0),Makroadatok!$B$4:$X$6,3,0)+1)^(1/4) -> 1.004962932 | BE9: =(HLOOKUP(ROUNDUP((BE$1+4-Paraméterek!$C$52)/4,0),Makroadatok!$B$4:$X$6,3,0)+1)^(1/4) -> 1.004962932 | BF9: =(HLOOKUP(ROUNDUP((BF$1+4-Paraméterek!$C$52)/4,0),Makroadatok!$B$4:$X$6,3,0)+1)^(1/4) -> 1.004962932 | BG9: =(HLOOKUP(ROUNDUP((BG$1+4-Paraméterek!$C$52)/4,0),Makroadatok!$B$4:$X$6,3,0)+1)^(1/4) -> 1.004962932 | BH9: =(HLOOKUP(ROUNDUP((BH$1+4-Paraméterek!$C$52)/4,0),Makroadatok!$B$4:$X$6,3,0)+1)^(1/4) -> 1.004962932 | BI9: =(HLOOKUP(ROUNDUP((BI$1+4-Paraméterek!$C$52)/4,0),Makroadatok!$B$4:$X$6,3,0)+1)^(1/4) -> 1.004962932 | BJ9: =(HLOOKUP(ROUNDUP((BJ$1+4-Paraméterek!$C$52)/4,0),Makroadatok!$B$4:$X$6,3,0)+1)^(1/4) -> 1.004962932 | BK9: =(HLOOKUP(ROUNDUP((BK$1+4-Paraméterek!$C$52)/4,0),Makroadatok!$B$4:$X$6,3,0)+1)^(1/4) -> 1.004962932 | BL9: =(HLOOKUP(ROUNDUP((BL$1+4-Paraméterek!$C$52)/4,0),Makroadatok!$B$4:$X$6,3,0)+1)^(1/4) -> 1.004962932 | BM9: =(HLOOKUP(ROUNDUP((BM$1+4-Paraméterek!$C$52)/4,0),Makroadatok!$B$4:$X$6,3,0)+1)^(1/4) -> 1.004962932 | BN9: =(HLOOKUP(ROUNDUP((BN$1+4-Paraméterek!$C$52)/4,0),Makroadatok!$B$4:$X$6,3,0)+1)^(1/4) -> 1.004962932 | BO9: =(HLOOKUP(ROUNDUP((BO$1+4-Paraméterek!$C$52)/4,0),Makroadatok!$B$4:$X$6,3,0)+1)^(1/4) -> 1.004962932 | BP9: =(HLOOKUP(ROUNDUP((BP$1+4-Paraméterek!$C$52)/4,0),Makroadatok!$B$4:$X$6,3,0)+1)^(1/4) -> 1.004962932 | BQ9: =(HLOOKUP(ROUNDUP((BQ$1+4-Paraméterek!$C$52)/4,0),Makroadatok!$B$4:$X$6,3,0)+1)^(1/4) -> 1.004962932 | BR9: =(HLOOKUP(ROUNDUP((BR$1+4-Paraméterek!$C$52)/4,0),Makroadatok!$B$4:$X$6,3,0)+1)^(1/4) -> 1.004962932 | BS9: =(HLOOKUP(ROUNDUP((BS$1+4-Paraméterek!$C$52)/4,0),Makroadatok!$B$4:$X$6,3,0)+1)^(1/4) -> 1.004962932 | BT9: x
A10: Hitel CF | D10: =IF(Paraméterek!$D$129=1,Negyedéves!D$59,IF(Paraméterek!$D$129=4,Negyedéves!D$65,Negyedéves!D$70))+IF(Paraméterek!$D$137=1,Negyedéves!D$52,Negyedéves!D$47)+IF(Paraméterek!$D$143=1,Negyedéves!D$40,Negyedéves!D$35) -> 3639689.816 | E10: =IF(Paraméterek!$D$129=1,Negyedéves!E$59,IF(Paraméterek!$D$129=4,Negyedéves!E$65,Negyedéves!E$70))+IF(Paraméterek!$D$137=1,Negyedéves!E$52,Negyedéves!E$47)+IF(Paraméterek!$D$143=1,Negyedéves!E$40,Negyedéves!E$35) -> 131117820.8 | F10: =IF(Paraméterek!$D$129=1,Negyedéves!F$59,IF(Paraméterek!$D$129=4,Negyedéves!F$65,Negyedéves!F$70))+IF(Paraméterek!$D$137=1,Negyedéves!F$52,Negyedéves!F$47)+IF(Paraméterek!$D$143=1,Negyedéves!F$40,Negyedéves!F$35) -> 2484375 | G10: =IF(Paraméterek!$D$129=1,Negyedéves!G$59,IF(Paraméterek!$D$129=4,Negyedéves!G$65,Negyedéves!G$70))+IF(Paraméterek!$D$137=1,Negyedéves!G$52,Negyedéves!G$47)+IF(Paraméterek!$D$143=1,Negyedéves!G$40,Negyedéves!G$35) -> 2466145.833 | H10: =IF(Paraméterek!$D$129=1,Negyedéves!H$59,IF(Paraméterek!$D$129=4,Negyedéves!H$65,Negyedéves!H$70))+IF(Paraméterek!$D$137=1,Negyedéves!H$52,Negyedéves!H$47)+IF(Paraméterek!$D$143=1,Negyedéves!H$40,Negyedéves!H$35) -> 2447916.667 | I10: =IF(Paraméterek!$D$129=1,Negyedéves!I$59,IF(Paraméterek!$D$129=4,Negyedéves!I$65,Negyedéves!I$70))+IF(Paraméterek!$D$137=1,Negyedéves!I$52,Negyedéves!I$47)+IF(Paraméterek!$D$143=1,Negyedéves!I$40,Negyedéves!I$35) -> 2429687.5 | J10: =IF(Paraméterek!$D$129=1,Negyedéves!J$59,IF(Paraméterek!$D$129=4,Negyedéves!J$65,Negyedéves!J$70))+IF(Paraméterek!$D$137=1,Negyedéves!J$52,Negyedéves!J$47)+IF(Paraméterek!$D$143=1,Negyedéves!J$40,Negyedéves!J$35) -> 2411458.333 | K10: =IF(Paraméterek!$D$129=1,Negyedéves!K$59,IF(Paraméterek!$D$129=4,Negyedéves!K$65,Negyedéves!K$70))+IF(Paraméterek!$D$137=1,Negyedéves!K$52,Negyedéves!K$47)+IF(Paraméterek!$D$143=1,Negyedéves!K$40,Negyedéves!K$35) -> 2393229.167 | L10: =IF(Paraméterek!$D$129=1,Negyedéves!L$59,IF(Paraméterek!$D$129=4,Negyedéves!L$65,Negyedéves!L$70))+IF(Paraméterek!$D$137=1,Negyedéves!L$52,Negyedéves!L$47)+IF(Paraméterek!$D$143=1,Negyedéves!L$40,Negyedéves!L$35) -> 2375000 | M10: =IF(Paraméterek!$D$129=1,Negyedéves!M$59,IF(Paraméterek!$D$129=4,Negyedéves!M$65,Negyedéves!M$70))+IF(Paraméterek!$D$137=1,Negyedéves!M$52,Negyedéves!M$47)+IF(Paraméterek!$D$143=1,Negyedéves!M$40,Negyedéves!M$35) -> 2356770.833 | N10: =IF(Paraméterek!$D$129=1,Negyedéves!N$59,IF(Paraméterek!$D$129=4,Negyedéves!N$65,Negyedéves!N$70))+IF(Paraméterek!$D$137=1,Negyedéves!N$52,Negyedéves!N$47)+IF(Paraméterek!$D$143=1,Negyedéves!N$40,Negyedéves!N$35) -> 2338541.667 | O10: =IF(Paraméterek!$D$129=1,Negyedéves!O$59,IF(Paraméterek!$D$129=4,Negyedéves!O$65,Negyedéves!O$70))+IF(Paraméterek!$D$137=1,Negyedéves!O$52,Negyedéves!O$47)+IF(Paraméterek!$D$143=1,Negyedéves!O$40,Negyedéves!O$35) -> 2320312.5 | P10: =IF(Paraméterek!$D$129=1,Negyedéves!P$59,IF(Paraméterek!$D$129=4,Negyedéves!P$65,Negyedéves!P$70))+IF(Paraméterek!$D$137=1,Negyedéves!P$52,Negyedéves!P$47)+IF(Paraméterek!$D$143=1,Negyedéves!P$40,Negyedéves!P$35) -> 2302083.333 | Q10: =IF(Paraméterek!$D$129=1,Negyedéves!Q$59,IF(Paraméterek!$D$129=4,Negyedéves!Q$65,Negyedéves!Q$70))+IF(Paraméterek!$D$137=1,Negyedéves!Q$52,Negyedéves!Q$47)+IF(Paraméterek!$D$143=1,Negyedéves!Q$40,Negyedéves!Q$35) -> 2283854.167 | R10: =IF(Paraméterek!$D$129=1,Negyedéves!R$59,IF(Paraméterek!$D$129=4,Negyedéves!R$65,Negyedéves!R$70))+IF(Paraméterek!$D$137=1,Negyedéves!R$52,Negyedéves!R$47)+IF(Paraméterek!$D$143=1,Negyedéves!R$40,Negyedéves!R$35) -> 2265625 | S10: =IF(Paraméterek!$D$129=1,Negyedéves!S$59,IF(Paraméterek!$D$129=4,Negyedéves!S$65,Negyedéves!S$70))+IF(Paraméterek!$D$137=1,Negyedéves!S$52,Negyedéves!S$47)+IF(Paraméterek!$D$143=1,Negyedéves!S$40,Negyedéves!S$35) -> 2247395.833 | T10: =IF(Paraméterek!$D$129=1,Negyedéves!T$59,IF(Paraméterek!$D$129=4,Negyedéves!T$65,Negyedéves!T$70))+IF(Paraméterek!$D$137=1,Negyedéves!T$52,Negyedéves!T$47)+IF(Paraméterek!$D$143=1,Negyedéves!T$40,Negyedéves!T$35) -> 2229166.667 | U10: =IF(Paraméterek!$D$129=1,Negyedéves!U$59,IF(Paraméterek!$D$129=4,Negyedéves!U$65,Negyedéves!U$70))+IF(Paraméterek!$D$137=1,Negyedéves!U$52,Negyedéves!U$47)+IF(Paraméterek!$D$143=1,Negyedéves!U$40,Negyedéves!U$35) -> 2210937.5 | V10: =IF(Paraméterek!$D$129=1,Negyedéves!V$59,IF(Paraméterek!$D$129=4,Negyedéves!V$65,Negyedéves!V$70))+IF(Paraméterek!$D$137=1,Negyedéves!V$52,Negyedéves!V$47)+IF(Paraméterek!$D$143=1,Negyedéves!V$40,Negyedéves!V$35) -> 2192708.333 | W10: =IF(Paraméterek!$D$129=1,Negyedéves!W$59,IF(Paraméterek!$D$129=4,Negyedéves!W$65,Negyedéves!W$70))+IF(Paraméterek!$D$137=1,Negyedéves!W$52,Negyedéves!W$47)+IF(Paraméterek!$D$143=1,Negyedéves!W$40,Negyedéves!W$35) -> 2174479.167 | X10: =IF(Paraméterek!$D$129=1,Negyedéves!X$59,IF(Paraméterek!$D$129=4,Negyedéves!X$65,Negyedéves!X$70))+IF(Paraméterek!$D$137=1,Negyedéves!X$52,Negyedéves!X$47)+IF(Paraméterek!$D$143=1,Negyedéves!X$40,Negyedéves!X$35) -> 2156250 | Y10: =IF(Paraméterek!$D$129=1,Negyedéves!Y$59,IF(Paraméterek!$D$129=4,Negyedéves!Y$65,Negyedéves!Y$70))+IF(Paraméterek!$D$137=1,Negyedéves!Y$52,Negyedéves!Y$47)+IF(Paraméterek!$D$143=1,Negyedéves!Y$40,Negyedéves!Y$35) -> 2138020.833 | Z10: =IF(Paraméterek!$D$129=1,Negyedéves!Z$59,IF(Paraméterek!$D$129=4,Negyedéves!Z$65,Negyedéves!Z$70))+IF(Paraméterek!$D$137=1,Negyedéves!Z$52,Negyedéves!Z$47)+IF(Paraméterek!$D$143=1,Negyedéves!Z$40,Negyedéves!Z$35) -> 2119791.667 | AA10: =IF(Paraméterek!$D$129=1,Negyedéves!AA$59,IF(Paraméterek!$D$129=4,Negyedéves!AA$65,Negyedéves!AA$70))+IF(Paraméterek!$D$137=1,Negyedéves!AA$52,Negyedéves!AA$47)+IF(Paraméterek!$D$143=1,Negyedéves!AA$40,Negyedéves!AA$35) -> 2101562.5 | AB10: =IF(Paraméterek!$D$129=1,Negyedéves!AB$59,IF(Paraméterek!$D$129=4,Negyedéves!AB$65,Negyedéves!AB$70))+IF(Paraméterek!$D$137=1,Negyedéves!AB$52,Negyedéves!AB$47)+IF(Paraméterek!$D$143=1,Negyedéves!AB$40,Negyedéves!AB$35) -> -7.741618901e-11 | AC10: =IF(Paraméterek!$D$129=1,Negyedéves!AC$59,IF(Paraméterek!$D$129=4,Negyedéves!AC$65,Negyedéves!AC$70))+IF(Paraméterek!$D$137=1,Negyedéves!AC$52,Negyedéves!AC$47)+IF(Paraméterek!$D$143=1,Negyedéves!AC$40,Negyedéves!AC$35) -> -7.741618901e-11 | AD10: =IF(Paraméterek!$D$129=1,Negyedéves!AD$59,IF(Paraméterek!$D$129=4,Negyedéves!AD$65,Negyedéves!AD$70))+IF(Paraméterek!$D$137=1,Negyedéves!AD$52,Negyedéves!AD$47)+IF(Paraméterek!$D$143=1,Negyedéves!AD$40,Negyedéves!AD$35) -> -7.741618901e-11 | AE10: =IF(Paraméterek!$D$129=1,Negyedéves!AE$59,IF(Paraméterek!$D$129=4,Negyedéves!AE$65,Negyedéves!AE$70))+IF(Paraméterek!$D$137=1,Negyedéves!AE$52,Negyedéves!AE$47)+IF(Paraméterek!$D$143=1,Negyedéves!AE$40,Negyedéves!AE$35) -> -7.741618901e-11 | AF10: =IF(Paraméterek!$D$129=1,Negyedéves!AF$59,IF(Paraméterek!$D$129=4,Negyedéves!AF$65,Negyedéves!AF$70))+IF(Paraméterek!$D$137=1,Negyedéves!AF$52,Negyedéves!AF$47)+IF(Paraméterek!$D$143=1,Negyedéves!AF$40,Negyedéves!AF$35) -> -7.741618901e-11 | AG10: =IF(Paraméterek!$D$129=1,Negyedéves!AG$59,IF(Paraméterek!$D$129=4,Negyedéves!AG$65,Negyedéves!AG$70))+IF(Paraméterek!$D$137=1,Negyedéves!AG$52,Negyedéves!AG$47)+IF(Paraméterek!$D$143=1,Negyedéves!AG$40,Negyedéves!AG$35) -> -7.741618901e-11 | AH10: =IF(Paraméterek!$D$129=1,Negyedéves!AH$59,IF(Paraméterek!$D$129=4,Negyedéves!AH$65,Negyedéves!AH$70))+IF(Paraméterek!$D$137=1,Negyedéves!AH$52,Negyedéves!AH$47)+IF(Paraméterek!$D$143=1,Negyedéves!AH$40,Negyedéves!AH$35) -> -7.741618901e-11 | AI10: =IF(Paraméterek!$D$129=1,Negyedéves!AI$59,IF(Paraméterek!$D$129=4,Negyedéves!AI$65,Negyedéves!AI$70))+IF(Paraméterek!$D$137=1,Negyedéves!AI$52,Negyedéves!AI$47)+IF(Paraméterek!$D$143=1,Negyedéves!AI$40,Negyedéves!AI$35) -> -7.741618901e-11 | AJ10: =IF(Paraméterek!$D$129=1,Negyedéves!AJ$59,IF(Paraméterek!$D$129=4,Negyedéves!AJ$65,Negyedéves!AJ$70))+IF(Paraméterek!$D$137=1,Negyedéves!AJ$52,Negyedéves!AJ$47)+IF(Paraméterek!$D$143=1,Negyedéves!AJ$40,Negyedéves!AJ$35) -> -7.741618901e-11 | AK10: =IF(Paraméterek!$D$129=1,Negyedéves!AK$59,IF(Paraméterek!$D$129=4,Negyedéves!AK$65,Negyedéves!AK$70))+IF(Paraméterek!$D$137=1,Negyedéves!AK$52,Negyedéves!AK$47)+IF(Paraméterek!$D$143=1,Negyedéves!AK$40,Negyedéves!AK$35) -> -7.741618901e-11 | AL10: =IF(Paraméterek!$D$129=1,Negyedéves!AL$59,IF(Paraméterek!$D$129=4,Negyedéves!AL$65,Negyedéves!AL$70))+IF(Paraméterek!$D$137=1,Negyedéves!AL$52,Negyedéves!AL$47)+IF(Paraméterek!$D$143=1,Negyedéves!AL$40,Negyedéves!AL$35) -> -7.741618901e-11 | AM10: =IF(Paraméterek!$D$129=1,Negyedéves!AM$59,IF(Paraméterek!$D$129=4,Negyedéves!AM$65,Negyedéves!AM$70))+IF(Paraméterek!$D$137=1,Negyedéves!AM$52,Negyedéves!AM$47)+IF(Paraméterek!$D$143=1,Negyedéves!AM$40,Negyedéves!AM$35) -> -7.741618901e-11 | AN10: =IF(Paraméterek!$D$129=1,Negyedéves!AN$59,IF(Paraméterek!$D$129=4,Negyedéves!AN$65,Negyedéves!AN$70))+IF(Paraméterek!$D$137=1,Negyedéves!AN$52,Negyedéves!AN$47)+IF(Paraméterek!$D$143=1,Negyedéves!AN$40,Negyedéves!AN$35) -> -7.741618901e-11 | AO10: =IF(Paraméterek!$D$129=1,Negyedéves!AO$59,IF(Paraméterek!$D$129=4,Negyedéves!AO$65,Negyedéves!AO$70))+IF(Paraméterek!$D$137=1,Negyedéves!AO$52,Negyedéves!AO$47)+IF(Paraméterek!$D$143=1,Negyedéves!AO$40,Negyedéves!AO$35) -> -7.741618901e-11 | AP10: =IF(Paraméterek!$D$129=1,Negyedéves!AP$59,IF(Paraméterek!$D$129=4,Negyedéves!AP$65,Negyedéves!AP$70))+IF(Paraméterek!$D$137=1,Negyedéves!AP$52,Negyedéves!AP$47)+IF(Paraméterek!$D$143=1,Negyedéves!AP$40,Negyedéves!AP$35) -> -7.741618901e-11 | AQ10: =IF(Paraméterek!$D$129=1,Negyedéves!AQ$59,IF(Paraméterek!$D$129=4,Negyedéves!AQ$65,Negyedéves!AQ$70))+IF(Paraméterek!$D$137=1,Negyedéves!AQ$52,Negyedéves!AQ$47)+IF(Paraméterek!$D$143=1,Negyedéves!AQ$40,Negyedéves!AQ$35) -> -7.741618901e-11 | AR10: =IF(Paraméterek!$D$129=1,Negyedéves!AR$59,IF(Paraméterek!$D$129=4,Negyedéves!AR$65,Negyedéves!AR$70))+IF(Paraméterek!$D$137=1,Negyedéves!AR$52,Negyedéves!AR$47)+IF(Paraméterek!$D$143=1,Negyedéves!AR$40,Negyedéves!AR$35) -> -7.741618901e-11 | AS10: =IF(Paraméterek!$D$129=1,Negyedéves!AS$59,IF(Paraméterek!$D$129=4,Negyedéves!AS$65,Negyedéves!AS$70))+IF(Paraméterek!$D$137=1,Negyedéves!AS$52,Negyedéves!AS$47)+IF(Paraméterek!$D$143=1,Negyedéves!AS$40,Negyedéves!AS$35) -> -7.741618901e-11 | AT10: =IF(Paraméterek!$D$129=1,Negyedéves!AT$59,IF(Paraméterek!$D$129=4,Negyedéves!AT$65,Negyedéves!AT$70))+IF(Paraméterek!$D$137=1,Negyedéves!AT$52,Negyedéves!AT$47)+IF(Paraméterek!$D$143=1,Negyedéves!AT$40,Negyedéves!AT$35) -> -7.741618901e-11 | AU10: =IF(Paraméterek!$D$129=1,Negyedéves!AU$59,IF(Paraméterek!$D$129=4,Negyedéves!AU$65,Negyedéves!AU$70))+IF(Paraméterek!$D$137=1,Negyedéves!AU$52,Negyedéves!AU$47)+IF(Paraméterek!$D$143=1,Negyedéves!AU$40,Negyedéves!AU$35) -> -7.741618901e-11 | AV10: =IF(Paraméterek!$D$129=1,Negyedéves!AV$59,IF(Paraméterek!$D$129=4,Negyedéves!AV$65,Negyedéves!AV$70))+IF(Paraméterek!$D$137=1,Negyedéves!AV$52,Negyedéves!AV$47)+IF(Paraméterek!$D$143=1,Negyedéves!AV$40,Negyedéves!AV$35) -> -7.741618901e-11 | AW10: =IF(Paraméterek!$D$129=1,Negyedéves!AW$59,IF(Paraméterek!$D$129=4,Negyedéves!AW$65,Negyedéves!AW$70))+IF(Paraméterek!$D$137=1,Negyedéves!AW$52,Negyedéves!AW$47)+IF(Paraméterek!$D$143=1,Negyedéves!AW$40,Negyedéves!AW$35) -> -7.741618901e-11 | AX10: =IF(Paraméterek!$D$129=1,Negyedéves!AX$59,IF(Paraméterek!$D$129=4,Negyedéves!AX$65,Negyedéves!AX$70))+IF(Paraméterek!$D$137=1,Negyedéves!AX$52,Negyedéves!AX$47)+IF(Paraméterek!$D$143=1,Negyedéves!AX$40,Negyedéves!AX$35) -> -7.741618901e-11 | AY10: =IF(Paraméterek!$D$129=1,Negyedéves!AY$59,IF(Paraméterek!$D$129=4,Negyedéves!AY$65,Negyedéves!AY$70))+IF(Paraméterek!$D$137=1,Negyedéves!AY$52,Negyedéves!AY$47)+IF(Paraméterek!$D$143=1,Negyedéves!AY$40,Negyedéves!AY$35) -> -7.741618901e-11 | AZ10: =IF(Paraméterek!$D$129=1,Negyedéves!AZ$59,IF(Paraméterek!$D$129=4,Negyedéves!AZ$65,Negyedéves!AZ$70))+IF(Paraméterek!$D$137=1,Negyedéves!AZ$52,Negyedéves!AZ$47)+IF(Paraméterek!$D$143=1,Negyedéves!AZ$40,Negyedéves!AZ$35) -> -7.741618901e-11 | BA10: =IF(Paraméterek!$D$129=1,Negyedéves!BA$59,IF(Paraméterek!$D$129=4,Negyedéves!BA$65,Negyedéves!BA$70))+IF(Paraméterek!$D$137=1,Negyedéves!BA$52,Negyedéves!BA$47)+IF(Paraméterek!$D$143=1,Negyedéves!BA$40,Negyedéves!BA$35) -> -7.741618901e-11 | BB10: =IF(Paraméterek!$D$129=1,Negyedéves!BB$59,IF(Paraméterek!$D$129=4,Negyedéves!BB$65,Negyedéves!BB$70))+IF(Paraméterek!$D$137=1,Negyedéves!BB$52,Negyedéves!BB$47)+IF(Paraméterek!$D$143=1,Negyedéves!BB$40,Negyedéves!BB$35) -> -7.741618901e-11 | BC10: =IF(Paraméterek!$D$129=1,Negyedéves!BC$59,IF(Paraméterek!$D$129=4,Negyedéves!BC$65,Negyedéves!BC$70))+IF(Paraméterek!$D$137=1,Negyedéves!BC$52,Negyedéves!BC$47)+IF(Paraméterek!$D$143=1,Negyedéves!BC$40,Negyedéves!BC$35) -> -7.741618901e-11 | BD10: =IF(Paraméterek!$D$129=1,Negyedéves!BD$59,IF(Paraméterek!$D$129=4,Negyedéves!BD$65,Negyedéves!BD$70))+IF(Paraméterek!$D$137=1,Negyedéves!BD$52,Negyedéves!BD$47)+IF(Paraméterek!$D$143=1,Negyedéves!BD$40,Negyedéves!BD$35) -> -7.741618901e-11 | BE10: =IF(Paraméterek!$D$129=1,Negyedéves!BE$59,IF(Paraméterek!$D$129=4,Negyedéves!BE$65,Negyedéves!BE$70))+IF(Paraméterek!$D$137=1,Negyedéves!BE$52,Negyedéves!BE$47)+IF(Paraméterek!$D$143=1,Negyedéves!BE$40,Negyedéves!BE$35) -> -7.741618901e-11 | BF10: =IF(Paraméterek!$D$129=1,Negyedéves!BF$59,IF(Paraméterek!$D$129=4,Negyedéves!BF$65,Negyedéves!BF$70))+IF(Paraméterek!$D$137=1,Negyedéves!BF$52,Negyedéves!BF$47)+IF(Paraméterek!$D$143=1,Negyedéves!BF$40,Negyedéves!BF$35) -> -7.741618901e-11 | BG10: =IF(Paraméterek!$D$129=1,Negyedéves!BG$59,IF(Paraméterek!$D$129=4,Negyedéves!BG$65,Negyedéves!BG$70))+IF(Paraméterek!$D$137=1,Negyedéves!BG$52,Negyedéves!BG$47)+IF(Paraméterek!$D$143=1,Negyedéves!BG$40,Negyedéves!BG$35) -> -7.741618901e-11 | BH10: =IF(Paraméterek!$D$129=1,Negyedéves!BH$59,IF(Paraméterek!$D$129=4,Negyedéves!BH$65,Negyedéves!BH$70))+IF(Paraméterek!$D$137=1,Negyedéves!BH$52,Negyedéves!BH$47)+IF(Paraméterek!$D$143=1,Negyedéves!BH$40,Negyedéves!BH$35) -> -7.741618901e-11 | BI10: =IF(Paraméterek!$D$129=1,Negyedéves!BI$59,IF(Paraméterek!$D$129=4,Negyedéves!BI$65,Negyedéves!BI$70))+IF(Paraméterek!$D$137=1,Negyedéves!BI$52,Negyedéves!BI$47)+IF(Paraméterek!$D$143=1,Negyedéves!BI$40,Negyedéves!BI$35) -> -7.741618901e-11 | BJ10: =IF(Paraméterek!$D$129=1,Negyedéves!BJ$59,IF(Paraméterek!$D$129=4,Negyedéves!BJ$65,Negyedéves!BJ$70))+IF(Paraméterek!$D$137=1,Negyedéves!BJ$52,Negyedéves!BJ$47)+IF(Paraméterek!$D$143=1,Negyedéves!BJ$40,Negyedéves!BJ$35) -> -7.741618901e-11 | BK10: =IF(Paraméterek!$D$129=1,Negyedéves!BK$59,IF(Paraméterek!$D$129=4,Negyedéves!BK$65,Negyedéves!BK$70))+IF(Paraméterek!$D$137=1,Negyedéves!BK$52,Negyedéves!BK$47)+IF(Paraméterek!$D$143=1,Negyedéves!BK$40,Negyedéves!BK$35) -> -7.741618901e-11 | BL10: =IF(Paraméterek!$D$129=1,Negyedéves!BL$59,IF(Paraméterek!$D$129=4,Negyedéves!BL$65,Negyedéves!BL$70))+IF(Paraméterek!$D$137=1,Negyedéves!BL$52,Negyedéves!BL$47)+IF(Paraméterek!$D$143=1,Negyedéves!BL$40,Negyedéves!BL$35) -> -7.741618901e-11 | BM10: =IF(Paraméterek!$D$129=1,Negyedéves!BM$59,IF(Paraméterek!$D$129=4,Negyedéves!BM$65,Negyedéves!BM$70))+IF(Paraméterek!$D$137=1,Negyedéves!BM$52,Negyedéves!BM$47)+IF(Paraméterek!$D$143=1,Negyedéves!BM$40,Negyedéves!BM$35) -> -7.741618901e-11 | BN10: =IF(Paraméterek!$D$129=1,Negyedéves!BN$59,IF(Paraméterek!$D$129=4,Negyedéves!BN$65,Negyedéves!BN$70))+IF(Paraméterek!$D$137=1,Negyedéves!BN$52,Negyedéves!BN$47)+IF(Paraméterek!$D$143=1,Negyedéves!BN$40,Negyedéves!BN$35) -> -7.741618901e-11 | BO10: =IF(Paraméterek!$D$129=1,Negyedéves!BO$59,IF(Paraméterek!$D$129=4,Negyedéves!BO$65,Negyedéves!BO$70))+IF(Paraméterek!$D$137=1,Negyedéves!BO$52,Negyedéves!BO$47)+IF(Paraméterek!$D$143=1,Negyedéves!BO$40,Negyedéves!BO$35) -> -7.741618901e-11 | BP10: =IF(Paraméterek!$D$129=1,Negyedéves!BP$59,IF(Paraméterek!$D$129=4,Negyedéves!BP$65,Negyedéves!BP$70))+IF(Paraméterek!$D$137=1,Negyedéves!BP$52,Negyedéves!BP$47)+IF(Paraméterek!$D$143=1,Negyedéves!BP$40,Negyedéves!BP$35) -> -7.741618901e-11 | BQ10: =IF(Paraméterek!$D$129=1,Negyedéves!BQ$59,IF(Paraméterek!$D$129=4,Negyedéves!BQ$65,Negyedéves!BQ$70))+IF(Paraméterek!$D$137=1,Negyedéves!BQ$52,Negyedéves!BQ$47)+IF(Paraméterek!$D$143=1,Negyedéves!BQ$40,Negyedéves!BQ$35) -> -7.741618901e-11 | BR10: =IF(Paraméterek!$D$129=1,Negyedéves!BR$59,IF(Paraméterek!$D$129=4,Negyedéves!BR$65,Negyedéves!BR$70))+IF(Paraméterek!$D$137=1,Negyedéves!BR$52,Negyedéves!BR$47)+IF(Paraméterek!$D$143=1,Negyedéves!BR$40,Negyedéves!BR$35) ->  | BS10: =IF(Paraméterek!$D$129=1,Negyedéves!BS$59,IF(Paraméterek!$D$129=4,Negyedéves!BS$65,Negyedéves!BS$70))+IF(Paraméterek!$D$137=1,Negyedéves!BS$52,Negyedéves!BS$47)+IF(Paraméterek!$D$143=1,Negyedéves!BS$40,Negyedéves!BS$35) ->  | BT10: x
A11: Tőketörlesztés | D11: =IF(Paraméterek!$D$129=1,Negyedéves!D$60,IF(Paraméterek!$D$129=4,Negyedéves!D$66,Negyedéves!D$71))+IF(Paraméterek!$D$137=1,Negyedéves!D$53,Negyedéves!D$48)+IF(Paraméterek!$D$143=1,Negyedéves!D$41,Negyedéves!D$36) -> 2083333.333 | E11: =IF(Paraméterek!$D$129=1,Negyedéves!E$60,IF(Paraméterek!$D$129=4,Negyedéves!E$66,Negyedéves!E$71))+IF(Paraméterek!$D$137=1,Negyedéves!E$53,Negyedéves!E$48)+IF(Paraméterek!$D$143=1,Negyedéves!E$41,Negyedéves!E$36) -> 129952645.6 | F11: =IF(Paraméterek!$D$129=1,Negyedéves!F$60,IF(Paraméterek!$D$129=4,Negyedéves!F$66,Negyedéves!F$71))+IF(Paraméterek!$D$137=1,Negyedéves!F$53,Negyedéves!F$48)+IF(Paraméterek!$D$143=1,Negyedéves!F$41,Negyedéves!F$36) -> 2083333.333 | G11: =IF(Paraméterek!$D$129=1,Negyedéves!G$60,IF(Paraméterek!$D$129=4,Negyedéves!G$66,Negyedéves!G$71))+IF(Paraméterek!$D$137=1,Negyedéves!G$53,Negyedéves!G$48)+IF(Paraméterek!$D$143=1,Negyedéves!G$41,Negyedéves!G$36) -> 2083333.333 | H11: =IF(Paraméterek!$D$129=1,Negyedéves!H$60,IF(Paraméterek!$D$129=4,Negyedéves!H$66,Negyedéves!H$71))+IF(Paraméterek!$D$137=1,Negyedéves!H$53,Negyedéves!H$48)+IF(Paraméterek!$D$143=1,Negyedéves!H$41,Negyedéves!H$36) -> 2083333.333 | I11: =IF(Paraméterek!$D$129=1,Negyedéves!I$60,IF(Paraméterek!$D$129=4,Negyedéves!I$66,Negyedéves!I$71))+IF(Paraméterek!$D$137=1,Negyedéves!I$53,Negyedéves!I$48)+IF(Paraméterek!$D$143=1,Negyedéves!I$41,Negyedéves!I$36) -> 2083333.333 | J11: =IF(Paraméterek!$D$129=1,Negyedéves!J$60,IF(Paraméterek!$D$129=4,Negyedéves!J$66,Negyedéves!J$71))+IF(Paraméterek!$D$137=1,Negyedéves!J$53,Negyedéves!J$48)+IF(Paraméterek!$D$143=1,Negyedéves!J$41,Negyedéves!J$36) -> 2083333.333 | K11: =IF(Paraméterek!$D$129=1,Negyedéves!K$60,IF(Paraméterek!$D$129=4,Negyedéves!K$66,Negyedéves!K$71))+IF(Paraméterek!$D$137=1,Negyedéves!K$53,Negyedéves!K$48)+IF(Paraméterek!$D$143=1,Negyedéves!K$41,Negyedéves!K$36) -> 2083333.333 | L11: =IF(Paraméterek!$D$129=1,Negyedéves!L$60,IF(Paraméterek!$D$129=4,Negyedéves!L$66,Negyedéves!L$71))+IF(Paraméterek!$D$137=1,Negyedéves!L$53,Negyedéves!L$48)+IF(Paraméterek!$D$143=1,Negyedéves!L$41,Negyedéves!L$36) -> 2083333.333 | M11: =IF(Paraméterek!$D$129=1,Negyedéves!M$60,IF(Paraméterek!$D$129=4,Negyedéves!M$66,Negyedéves!M$71))+IF(Paraméterek!$D$137=1,Negyedéves!M$53,Negyedéves!M$48)+IF(Paraméterek!$D$143=1,Negyedéves!M$41,Negyedéves!M$36) -> 2083333.333 | N11: =IF(Paraméterek!$D$129=1,Negyedéves!N$60,IF(Paraméterek!$D$129=4,Negyedéves!N$66,Negyedéves!N$71))+IF(Paraméterek!$D$137=1,Negyedéves!N$53,Negyedéves!N$48)+IF(Paraméterek!$D$143=1,Negyedéves!N$41,Negyedéves!N$36) -> 2083333.333 | O11: =IF(Paraméterek!$D$129=1,Negyedéves!O$60,IF(Paraméterek!$D$129=4,Negyedéves!O$66,Negyedéves!O$71))+IF(Paraméterek!$D$137=1,Negyedéves!O$53,Negyedéves!O$48)+IF(Paraméterek!$D$143=1,Negyedéves!O$41,Negyedéves!O$36) -> 2083333.333 | P11: =IF(Paraméterek!$D$129=1,Negyedéves!P$60,IF(Paraméterek!$D$129=4,Negyedéves!P$66,Negyedéves!P$71))+IF(Paraméterek!$D$137=1,Negyedéves!P$53,Negyedéves!P$48)+IF(Paraméterek!$D$143=1,Negyedéves!P$41,Negyedéves!P$36) -> 2083333.333 | Q11: =IF(Paraméterek!$D$129=1,Negyedéves!Q$60,IF(Paraméterek!$D$129=4,Negyedéves!Q$66,Negyedéves!Q$71))+IF(Paraméterek!$D$137=1,Negyedéves!Q$53,Negyedéves!Q$48)+IF(Paraméterek!$D$143=1,Negyedéves!Q$41,Negyedéves!Q$36) -> 2083333.333 | R11: =IF(Paraméterek!$D$129=1,Negyedéves!R$60,IF(Paraméterek!$D$129=4,Negyedéves!R$66,Negyedéves!R$71))+IF(Paraméterek!$D$137=1,Negyedéves!R$53,Negyedéves!R$48)+IF(Paraméterek!$D$143=1,Negyedéves!R$41,Negyedéves!R$36) -> 2083333.333 | S11: =IF(Paraméterek!$D$129=1,Negyedéves!S$60,IF(Paraméterek!$D$129=4,Negyedéves!S$66,Negyedéves!S$71))+IF(Paraméterek!$D$137=1,Negyedéves!S$53,Negyedéves!S$48)+IF(Paraméterek!$D$143=1,Negyedéves!S$41,Negyedéves!S$36) -> 2083333.333 | T11: =IF(Paraméterek!$D$129=1,Negyedéves!T$60,IF(Paraméterek!$D$129=4,Negyedéves!T$66,Negyedéves!T$71))+IF(Paraméterek!$D$137=1,Negyedéves!T$53,Negyedéves!T$48)+IF(Paraméterek!$D$143=1,Negyedéves!T$41,Negyedéves!T$36) -> 2083333.333 | U11: =IF(Paraméterek!$D$129=1,Negyedéves!U$60,IF(Paraméterek!$D$129=4,Negyedéves!U$66,Negyedéves!U$71))+IF(Paraméterek!$D$137=1,Negyedéves!U$53,Negyedéves!U$48)+IF(Paraméterek!$D$143=1,Negyedéves!U$41,Negyedéves!U$36) -> 2083333.333 | V11: =IF(Paraméterek!$D$129=1,Negyedéves!V$60,IF(Paraméterek!$D$129=4,Negyedéves!V$66,Negyedéves!V$71))+IF(Paraméterek!$D$137=1,Negyedéves!V$53,Negyedéves!V$48)+IF(Paraméterek!$D$143=1,Negyedéves!V$41,Negyedéves!V$36) -> 2083333.333 | W11: =IF(Paraméterek!$D$129=1,Negyedéves!W$60,IF(Paraméterek!$D$129=4,Negyedéves!W$66,Negyedéves!W$71))+IF(Paraméterek!$D$137=1,Negyedéves!W$53,Negyedéves!W$48)+IF(Paraméterek!$D$143=1,Negyedéves!W$41,Negyedéves!W$36) -> 2083333.333 | X11: =IF(Paraméterek!$D$129=1,Negyedéves!X$60,IF(Paraméterek!$D$129=4,Negyedéves!X$66,Negyedéves!X$71))+IF(Paraméterek!$D$137=1,Negyedéves!X$53,Negyedéves!X$48)+IF(Paraméterek!$D$143=1,Negyedéves!X$41,Negyedéves!X$36) -> 2083333.333 | Y11: =IF(Paraméterek!$D$129=1,Negyedéves!Y$60,IF(Paraméterek!$D$129=4,Negyedéves!Y$66,Negyedéves!Y$71))+IF(Paraméterek!$D$137=1,Negyedéves!Y$53,Negyedéves!Y$48)+IF(Paraméterek!$D$143=1,Negyedéves!Y$41,Negyedéves!Y$36) -> 2083333.333 | Z11: =IF(Paraméterek!$D$129=1,Negyedéves!Z$60,IF(Paraméterek!$D$129=4,Negyedéves!Z$66,Negyedéves!Z$71))+IF(Paraméterek!$D$137=1,Negyedéves!Z$53,Negyedéves!Z$48)+IF(Paraméterek!$D$143=1,Negyedéves!Z$41,Negyedéves!Z$36) -> 2083333.333 | AA11: =IF(Paraméterek!$D$129=1,Negyedéves!AA$60,IF(Paraméterek!$D$129=4,Negyedéves!AA$66,Negyedéves!AA$71))+IF(Paraméterek!$D$137=1,Negyedéves!AA$53,Negyedéves!AA$48)+IF(Paraméterek!$D$143=1,Negyedéves!AA$41,Negyedéves!AA$36) -> 2083333.333 | AB11: =IF(Paraméterek!$D$129=1,Negyedéves!AB$60,IF(Paraméterek!$D$129=4,Negyedéves!AB$66,Negyedéves!AB$71))+IF(Paraméterek!$D$137=1,Negyedéves!AB$53,Negyedéves!AB$48)+IF(Paraméterek!$D$143=1,Negyedéves!AB$41,Negyedéves!AB$36) -> 0 | AC11: =IF(Paraméterek!$D$129=1,Negyedéves!AC$60,IF(Paraméterek!$D$129=4,Negyedéves!AC$66,Negyedéves!AC$71))+IF(Paraméterek!$D$137=1,Negyedéves!AC$53,Negyedéves!AC$48)+IF(Paraméterek!$D$143=1,Negyedéves!AC$41,Negyedéves!AC$36) -> 0 | AD11: =IF(Paraméterek!$D$129=1,Negyedéves!AD$60,IF(Paraméterek!$D$129=4,Negyedéves!AD$66,Negyedéves!AD$71))+IF(Paraméterek!$D$137=1,Negyedéves!AD$53,Negyedéves!AD$48)+IF(Paraméterek!$D$143=1,Negyedéves!AD$41,Negyedéves!AD$36) -> 0 | AE11: =IF(Paraméterek!$D$129=1,Negyedéves!AE$60,IF(Paraméterek!$D$129=4,Negyedéves!AE$66,Negyedéves!AE$71))+IF(Paraméterek!$D$137=1,Negyedéves!AE$53,Negyedéves!AE$48)+IF(Paraméterek!$D$143=1,Negyedéves!AE$41,Negyedéves!AE$36) -> 0 | AF11: =IF(Paraméterek!$D$129=1,Negyedéves!AF$60,IF(Paraméterek!$D$129=4,Negyedéves!AF$66,Negyedéves!AF$71))+IF(Paraméterek!$D$137=1,Negyedéves!AF$53,Negyedéves!AF$48)+IF(Paraméterek!$D$143=1,Negyedéves!AF$41,Negyedéves!AF$36) -> 0 | AG11: =IF(Paraméterek!$D$129=1,Negyedéves!AG$60,IF(Paraméterek!$D$129=4,Negyedéves!AG$66,Negyedéves!AG$71))+IF(Paraméterek!$D$137=1,Negyedéves!AG$53,Negyedéves!AG$48)+IF(Paraméterek!$D$143=1,Negyedéves!AG$41,Negyedéves!AG$36) -> 0 | AH11: =IF(Paraméterek!$D$129=1,Negyedéves!AH$60,IF(Paraméterek!$D$129=4,Negyedéves!AH$66,Negyedéves!AH$71))+IF(Paraméterek!$D$137=1,Negyedéves!AH$53,Negyedéves!AH$48)+IF(Paraméterek!$D$143=1,Negyedéves!AH$41,Negyedéves!AH$36) -> 0 | AI11: =IF(Paraméterek!$D$129=1,Negyedéves!AI$60,IF(Paraméterek!$D$129=4,Negyedéves!AI$66,Negyedéves!AI$71))+IF(Paraméterek!$D$137=1,Negyedéves!AI$53,Negyedéves!AI$48)+IF(Paraméterek!$D$143=1,Negyedéves!AI$41,Negyedéves!AI$36) -> 0 | AJ11: =IF(Paraméterek!$D$129=1,Negyedéves!AJ$60,IF(Paraméterek!$D$129=4,Negyedéves!AJ$66,Negyedéves!AJ$71))+IF(Paraméterek!$D$137=1,Negyedéves!AJ$53,Negyedéves!AJ$48)+IF(Paraméterek!$D$143=1,Negyedéves!AJ$41,Negyedéves!AJ$36) -> 0 | AK11: =IF(Paraméterek!$D$129=1,Negyedéves!AK$60,IF(Paraméterek!$D$129=4,Negyedéves!AK$66,Negyedéves!AK$71))+IF(Paraméterek!$D$137=1,Negyedéves!AK$53,Negyedéves!AK$48)+IF(Paraméterek!$D$143=1,Negyedéves!AK$41,Negyedéves!AK$36) -> 0 | AL11: =IF(Paraméterek!$D$129=1,Negyedéves!AL$60,IF(Paraméterek!$D$129=4,Negyedéves!AL$66,Negyedéves!AL$71))+IF(Paraméterek!$D$137=1,Negyedéves!AL$53,Negyedéves!AL$48)+IF(Paraméterek!$D$143=1,Negyedéves!AL$41,Negyedéves!AL$36) -> 0 | AM11: =IF(Paraméterek!$D$129=1,Negyedéves!AM$60,IF(Paraméterek!$D$129=4,Negyedéves!AM$66,Negyedéves!AM$71))+IF(Paraméterek!$D$137=1,Negyedéves!AM$53,Negyedéves!AM$48)+IF(Paraméterek!$D$143=1,Negyedéves!AM$41,Negyedéves!AM$36) -> 0 | AN11: =IF(Paraméterek!$D$129=1,Negyedéves!AN$60,IF(Paraméterek!$D$129=4,Negyedéves!AN$66,Negyedéves!AN$71))+IF(Paraméterek!$D$137=1,Negyedéves!AN$53,Negyedéves!AN$48)+IF(Paraméterek!$D$143=1,Negyedéves!AN$41,Negyedéves!AN$36) -> 0 | AO11: =IF(Paraméterek!$D$129=1,Negyedéves!AO$60,IF(Paraméterek!$D$129=4,Negyedéves!AO$66,Negyedéves!AO$71))+IF(Paraméterek!$D$137=1,Negyedéves!AO$53,Negyedéves!AO$48)+IF(Paraméterek!$D$143=1,Negyedéves!AO$41,Negyedéves!AO$36) -> 0 | AP11: =IF(Paraméterek!$D$129=1,Negyedéves!AP$60,IF(Paraméterek!$D$129=4,Negyedéves!AP$66,Negyedéves!AP$71))+IF(Paraméterek!$D$137=1,Negyedéves!AP$53,Negyedéves!AP$48)+IF(Paraméterek!$D$143=1,Negyedéves!AP$41,Negyedéves!AP$36) -> 0 | AQ11: =IF(Paraméterek!$D$129=1,Negyedéves!AQ$60,IF(Paraméterek!$D$129=4,Negyedéves!AQ$66,Negyedéves!AQ$71))+IF(Paraméterek!$D$137=1,Negyedéves!AQ$53,Negyedéves!AQ$48)+IF(Paraméterek!$D$143=1,Negyedéves!AQ$41,Negyedéves!AQ$36) -> 0 | AR11: =IF(Paraméterek!$D$129=1,Negyedéves!AR$60,IF(Paraméterek!$D$129=4,Negyedéves!AR$66,Negyedéves!AR$71))+IF(Paraméterek!$D$137=1,Negyedéves!AR$53,Negyedéves!AR$48)+IF(Paraméterek!$D$143=1,Negyedéves!AR$41,Negyedéves!AR$36) -> 0 | AS11: =IF(Paraméterek!$D$129=1,Negyedéves!AS$60,IF(Paraméterek!$D$129=4,Negyedéves!AS$66,Negyedéves!AS$71))+IF(Paraméterek!$D$137=1,Negyedéves!AS$53,Negyedéves!AS$48)+IF(Paraméterek!$D$143=1,Negyedéves!AS$41,Negyedéves!AS$36) -> 0 | AT11: =IF(Paraméterek!$D$129=1,Negyedéves!AT$60,IF(Paraméterek!$D$129=4,Negyedéves!AT$66,Negyedéves!AT$71))+IF(Paraméterek!$D$137=1,Negyedéves!AT$53,Negyedéves!AT$48)+IF(Paraméterek!$D$143=1,Negyedéves!AT$41,Negyedéves!AT$36) -> 0 | AU11: =IF(Paraméterek!$D$129=1,Negyedéves!AU$60,IF(Paraméterek!$D$129=4,Negyedéves!AU$66,Negyedéves!AU$71))+IF(Paraméterek!$D$137=1,Negyedéves!AU$53,Negyedéves!AU$48)+IF(Paraméterek!$D$143=1,Negyedéves!AU$41,Negyedéves!AU$36) -> 0 | AV11: =IF(Paraméterek!$D$129=1,Negyedéves!AV$60,IF(Paraméterek!$D$129=4,Negyedéves!AV$66,Negyedéves!AV$71))+IF(Paraméterek!$D$137=1,Negyedéves!AV$53,Negyedéves!AV$48)+IF(Paraméterek!$D$143=1,Negyedéves!AV$41,Negyedéves!AV$36) -> 0 | AW11: =IF(Paraméterek!$D$129=1,Negyedéves!AW$60,IF(Paraméterek!$D$129=4,Negyedéves!AW$66,Negyedéves!AW$71))+IF(Paraméterek!$D$137=1,Negyedéves!AW$53,Negyedéves!AW$48)+IF(Paraméterek!$D$143=1,Negyedéves!AW$41,Negyedéves!AW$36) -> 0 | AX11: =IF(Paraméterek!$D$129=1,Negyedéves!AX$60,IF(Paraméterek!$D$129=4,Negyedéves!AX$66,Negyedéves!AX$71))+IF(Paraméterek!$D$137=1,Negyedéves!AX$53,Negyedéves!AX$48)+IF(Paraméterek!$D$143=1,Negyedéves!AX$41,Negyedéves!AX$36) -> 0 | AY11: =IF(Paraméterek!$D$129=1,Negyedéves!AY$60,IF(Paraméterek!$D$129=4,Negyedéves!AY$66,Negyedéves!AY$71))+IF(Paraméterek!$D$137=1,Negyedéves!AY$53,Negyedéves!AY$48)+IF(Paraméterek!$D$143=1,Negyedéves!AY$41,Negyedéves!AY$36) -> 0 | AZ11: =IF(Paraméterek!$D$129=1,Negyedéves!AZ$60,IF(Paraméterek!$D$129=4,Negyedéves!AZ$66,Negyedéves!AZ$71))+IF(Paraméterek!$D$137=1,Negyedéves!AZ$53,Negyedéves!AZ$48)+IF(Paraméterek!$D$143=1,Negyedéves!AZ$41,Negyedéves!AZ$36) -> 0 | BA11: =IF(Paraméterek!$D$129=1,Negyedéves!BA$60,IF(Paraméterek!$D$129=4,Negyedéves!BA$66,Negyedéves!BA$71))+IF(Paraméterek!$D$137=1,Negyedéves!BA$53,Negyedéves!BA$48)+IF(Paraméterek!$D$143=1,Negyedéves!BA$41,Negyedéves!BA$36) -> 0 | BB11: =IF(Paraméterek!$D$129=1,Negyedéves!BB$60,IF(Paraméterek!$D$129=4,Negyedéves!BB$66,Negyedéves!BB$71))+IF(Paraméterek!$D$137=1,Negyedéves!BB$53,Negyedéves!BB$48)+IF(Paraméterek!$D$143=1,Negyedéves!BB$41,Negyedéves!BB$36) -> 0 | BC11: =IF(Paraméterek!$D$129=1,Negyedéves!BC$60,IF(Paraméterek!$D$129=4,Negyedéves!BC$66,Negyedéves!BC$71))+IF(Paraméterek!$D$137=1,Negyedéves!BC$53,Negyedéves!BC$48)+IF(Paraméterek!$D$143=1,Negyedéves!BC$41,Negyedéves!BC$36) -> 0 | BD11: =IF(Paraméterek!$D$129=1,Negyedéves!BD$60,IF(Paraméterek!$D$129=4,Negyedéves!BD$66,Negyedéves!BD$71))+IF(Paraméterek!$D$137=1,Negyedéves!BD$53,Negyedéves!BD$48)+IF(Paraméterek!$D$143=1,Negyedéves!BD$41,Negyedéves!BD$36) -> 0 | BE11: =IF(Paraméterek!$D$129=1,Negyedéves!BE$60,IF(Paraméterek!$D$129=4,Negyedéves!BE$66,Negyedéves!BE$71))+IF(Paraméterek!$D$137=1,Negyedéves!BE$53,Negyedéves!BE$48)+IF(Paraméterek!$D$143=1,Negyedéves!BE$41,Negyedéves!BE$36) -> 0 | BF11: =IF(Paraméterek!$D$129=1,Negyedéves!BF$60,IF(Paraméterek!$D$129=4,Negyedéves!BF$66,Negyedéves!BF$71))+IF(Paraméterek!$D$137=1,Negyedéves!BF$53,Negyedéves!BF$48)+IF(Paraméterek!$D$143=1,Negyedéves!BF$41,Negyedéves!BF$36) -> 0 | BG11: =IF(Paraméterek!$D$129=1,Negyedéves!BG$60,IF(Paraméterek!$D$129=4,Negyedéves!BG$66,Negyedéves!BG$71))+IF(Paraméterek!$D$137=1,Negyedéves!BG$53,Negyedéves!BG$48)+IF(Paraméterek!$D$143=1,Negyedéves!BG$41,Negyedéves!BG$36) -> 0 | BH11: =IF(Paraméterek!$D$129=1,Negyedéves!BH$60,IF(Paraméterek!$D$129=4,Negyedéves!BH$66,Negyedéves!BH$71))+IF(Paraméterek!$D$137=1,Negyedéves!BH$53,Negyedéves!BH$48)+IF(Paraméterek!$D$143=1,Negyedéves!BH$41,Negyedéves!BH$36) -> 0 | BI11: =IF(Paraméterek!$D$129=1,Negyedéves!BI$60,IF(Paraméterek!$D$129=4,Negyedéves!BI$66,Negyedéves!BI$71))+IF(Paraméterek!$D$137=1,Negyedéves!BI$53,Negyedéves!BI$48)+IF(Paraméterek!$D$143=1,Negyedéves!BI$41,Negyedéves!BI$36) -> 0 | BJ11: =IF(Paraméterek!$D$129=1,Negyedéves!BJ$60,IF(Paraméterek!$D$129=4,Negyedéves!BJ$66,Negyedéves!BJ$71))+IF(Paraméterek!$D$137=1,Negyedéves!BJ$53,Negyedéves!BJ$48)+IF(Paraméterek!$D$143=1,Negyedéves!BJ$41,Negyedéves!BJ$36) -> 0 | BK11: =IF(Paraméterek!$D$129=1,Negyedéves!BK$60,IF(Paraméterek!$D$129=4,Negyedéves!BK$66,Negyedéves!BK$71))+IF(Paraméterek!$D$137=1,Negyedéves!BK$53,Negyedéves!BK$48)+IF(Paraméterek!$D$143=1,Negyedéves!BK$41,Negyedéves!BK$36) -> 0 | BL11: =IF(Paraméterek!$D$129=1,Negyedéves!BL$60,IF(Paraméterek!$D$129=4,Negyedéves!BL$66,Negyedéves!BL$71))+IF(Paraméterek!$D$137=1,Negyedéves!BL$53,Negyedéves!BL$48)+IF(Paraméterek!$D$143=1,Negyedéves!BL$41,Negyedéves!BL$36) -> 0 | BM11: =IF(Paraméterek!$D$129=1,Negyedéves!BM$60,IF(Paraméterek!$D$129=4,Negyedéves!BM$66,Negyedéves!BM$71))+IF(Paraméterek!$D$137=1,Negyedéves!BM$53,Negyedéves!BM$48)+IF(Paraméterek!$D$143=1,Negyedéves!BM$41,Negyedéves!BM$36) -> 0 | BN11: =IF(Paraméterek!$D$129=1,Negyedéves!BN$60,IF(Paraméterek!$D$129=4,Negyedéves!BN$66,Negyedéves!BN$71))+IF(Paraméterek!$D$137=1,Negyedéves!BN$53,Negyedéves!BN$48)+IF(Paraméterek!$D$143=1,Negyedéves!BN$41,Negyedéves!BN$36) -> 0 | BO11: =IF(Paraméterek!$D$129=1,Negyedéves!BO$60,IF(Paraméterek!$D$129=4,Negyedéves!BO$66,Negyedéves!BO$71))+IF(Paraméterek!$D$137=1,Negyedéves!BO$53,Negyedéves!BO$48)+IF(Paraméterek!$D$143=1,Negyedéves!BO$41,Negyedéves!BO$36) -> 0 | BP11: =IF(Paraméterek!$D$129=1,Negyedéves!BP$60,IF(Paraméterek!$D$129=4,Negyedéves!BP$66,Negyedéves!BP$71))+IF(Paraméterek!$D$137=1,Negyedéves!BP$53,Negyedéves!BP$48)+IF(Paraméterek!$D$143=1,Negyedéves!BP$41,Negyedéves!BP$36) -> 0 | BQ11: =IF(Paraméterek!$D$129=1,Negyedéves!BQ$60,IF(Paraméterek!$D$129=4,Negyedéves!BQ$66,Negyedéves!BQ$71))+IF(Paraméterek!$D$137=1,Negyedéves!BQ$53,Negyedéves!BQ$48)+IF(Paraméterek!$D$143=1,Negyedéves!BQ$41,Negyedéves!BQ$36) -> 0 | BR11: =IF(Paraméterek!$D$129=1,Negyedéves!BR$60,IF(Paraméterek!$D$129=4,Negyedéves!BR$66,Negyedéves!BR$71))+IF(Paraméterek!$D$137=1,Negyedéves!BR$53,Negyedéves!BR$48)+IF(Paraméterek!$D$143=1,Negyedéves!BR$41,Negyedéves!BR$36) -> 0 | BS11: =IF(Paraméterek!$D$129=1,Negyedéves!BS$60,IF(Paraméterek!$D$129=4,Negyedéves!BS$66,Negyedéves!BS$71))+IF(Paraméterek!$D$137=1,Negyedéves!BS$53,Negyedéves!BS$48)+IF(Paraméterek!$D$143=1,Negyedéves!BS$41,Negyedéves!BS$36) ->  | BT11: x
A12: Kamattörlesztés | D12: =IF(Paraméterek!$D$129=1,Negyedéves!D$62,IF(Paraméterek!$D$129=4,Negyedéves!D$68,Negyedéves!D$73))+IF(Paraméterek!$D$137=1,Negyedéves!D$55,Negyedéves!D$50)+IF(Paraméterek!$D$143=1,Negyedéves!D$43,Negyedéves!D$38) -> 1556356.483 | E12: =IF(Paraméterek!$D$129=1,Negyedéves!E$62,IF(Paraméterek!$D$129=4,Negyedéves!E$68,Negyedéves!E$73))+IF(Paraméterek!$D$137=1,Negyedéves!E$55,Negyedéves!E$50)+IF(Paraméterek!$D$143=1,Negyedéves!E$43,Negyedéves!E$38) -> 1165175.155 | F12: =IF(Paraméterek!$D$129=1,Negyedéves!F$62,IF(Paraméterek!$D$129=4,Negyedéves!F$68,Negyedéves!F$73))+IF(Paraméterek!$D$137=1,Negyedéves!F$55,Negyedéves!F$50)+IF(Paraméterek!$D$143=1,Negyedéves!F$43,Negyedéves!F$38) -> 401041.6667 | G12: =IF(Paraméterek!$D$129=1,Negyedéves!G$62,IF(Paraméterek!$D$129=4,Negyedéves!G$68,Negyedéves!G$73))+IF(Paraméterek!$D$137=1,Negyedéves!G$55,Negyedéves!G$50)+IF(Paraméterek!$D$143=1,Negyedéves!G$43,Negyedéves!G$38) -> 382812.5 | H12: =IF(Paraméterek!$D$129=1,Negyedéves!H$62,IF(Paraméterek!$D$129=4,Negyedéves!H$68,Negyedéves!H$73))+IF(Paraméterek!$D$137=1,Negyedéves!H$55,Negyedéves!H$50)+IF(Paraméterek!$D$143=1,Negyedéves!H$43,Negyedéves!H$38) -> 364583.3333 | I12: =IF(Paraméterek!$D$129=1,Negyedéves!I$62,IF(Paraméterek!$D$129=4,Negyedéves!I$68,Negyedéves!I$73))+IF(Paraméterek!$D$137=1,Negyedéves!I$55,Negyedéves!I$50)+IF(Paraméterek!$D$143=1,Negyedéves!I$43,Negyedéves!I$38) -> 346354.1667 | J12: =IF(Paraméterek!$D$129=1,Negyedéves!J$62,IF(Paraméterek!$D$129=4,Negyedéves!J$68,Negyedéves!J$73))+IF(Paraméterek!$D$137=1,Negyedéves!J$55,Negyedéves!J$50)+IF(Paraméterek!$D$143=1,Negyedéves!J$43,Negyedéves!J$38) -> 328125 | K12: =IF(Paraméterek!$D$129=1,Negyedéves!K$62,IF(Paraméterek!$D$129=4,Negyedéves!K$68,Negyedéves!K$73))+IF(Paraméterek!$D$137=1,Negyedéves!K$55,Negyedéves!K$50)+IF(Paraméterek!$D$143=1,Negyedéves!K$43,Negyedéves!K$38) -> 309895.8333 | L12: =IF(Paraméterek!$D$129=1,Negyedéves!L$62,IF(Paraméterek!$D$129=4,Negyedéves!L$68,Negyedéves!L$73))+IF(Paraméterek!$D$137=1,Negyedéves!L$55,Negyedéves!L$50)+IF(Paraméterek!$D$143=1,Negyedéves!L$43,Negyedéves!L$38) -> 291666.6667 | M12: =IF(Paraméterek!$D$129=1,Negyedéves!M$62,IF(Paraméterek!$D$129=4,Negyedéves!M$68,Negyedéves!M$73))+IF(Paraméterek!$D$137=1,Negyedéves!M$55,Negyedéves!M$50)+IF(Paraméterek!$D$143=1,Negyedéves!M$43,Negyedéves!M$38) -> 273437.5 | N12: =IF(Paraméterek!$D$129=1,Negyedéves!N$62,IF(Paraméterek!$D$129=4,Negyedéves!N$68,Negyedéves!N$73))+IF(Paraméterek!$D$137=1,Negyedéves!N$55,Negyedéves!N$50)+IF(Paraméterek!$D$143=1,Negyedéves!N$43,Negyedéves!N$38) -> 255208.3333 | O12: =IF(Paraméterek!$D$129=1,Negyedéves!O$62,IF(Paraméterek!$D$129=4,Negyedéves!O$68,Negyedéves!O$73))+IF(Paraméterek!$D$137=1,Negyedéves!O$55,Negyedéves!O$50)+IF(Paraméterek!$D$143=1,Negyedéves!O$43,Negyedéves!O$38) -> 236979.1667 | P12: =IF(Paraméterek!$D$129=1,Negyedéves!P$62,IF(Paraméterek!$D$129=4,Negyedéves!P$68,Negyedéves!P$73))+IF(Paraméterek!$D$137=1,Negyedéves!P$55,Negyedéves!P$50)+IF(Paraméterek!$D$143=1,Negyedéves!P$43,Negyedéves!P$38) -> 218750 | Q12: =IF(Paraméterek!$D$129=1,Negyedéves!Q$62,IF(Paraméterek!$D$129=4,Negyedéves!Q$68,Negyedéves!Q$73))+IF(Paraméterek!$D$137=1,Negyedéves!Q$55,Negyedéves!Q$50)+IF(Paraméterek!$D$143=1,Negyedéves!Q$43,Negyedéves!Q$38) -> 200520.8333 | R12: =IF(Paraméterek!$D$129=1,Negyedéves!R$62,IF(Paraméterek!$D$129=4,Negyedéves!R$68,Negyedéves!R$73))+IF(Paraméterek!$D$137=1,Negyedéves!R$55,Negyedéves!R$50)+IF(Paraméterek!$D$143=1,Negyedéves!R$43,Negyedéves!R$38) -> 182291.6667 | S12: =IF(Paraméterek!$D$129=1,Negyedéves!S$62,IF(Paraméterek!$D$129=4,Negyedéves!S$68,Negyedéves!S$73))+IF(Paraméterek!$D$137=1,Negyedéves!S$55,Negyedéves!S$50)+IF(Paraméterek!$D$143=1,Negyedéves!S$43,Negyedéves!S$38) -> 164062.5 | T12: =IF(Paraméterek!$D$129=1,Negyedéves!T$62,IF(Paraméterek!$D$129=4,Negyedéves!T$68,Negyedéves!T$73))+IF(Paraméterek!$D$137=1,Negyedéves!T$55,Negyedéves!T$50)+IF(Paraméterek!$D$143=1,Negyedéves!T$43,Negyedéves!T$38) -> 145833.3333 | U12: =IF(Paraméterek!$D$129=1,Negyedéves!U$62,IF(Paraméterek!$D$129=4,Negyedéves!U$68,Negyedéves!U$73))+IF(Paraméterek!$D$137=1,Negyedéves!U$55,Negyedéves!U$50)+IF(Paraméterek!$D$143=1,Negyedéves!U$43,Negyedéves!U$38) -> 127604.1667 | V12: =IF(Paraméterek!$D$129=1,Negyedéves!V$62,IF(Paraméterek!$D$129=4,Negyedéves!V$68,Negyedéves!V$73))+IF(Paraméterek!$D$137=1,Negyedéves!V$55,Negyedéves!V$50)+IF(Paraméterek!$D$143=1,Negyedéves!V$43,Negyedéves!V$38) -> 109375 | W12: =IF(Paraméterek!$D$129=1,Negyedéves!W$62,IF(Paraméterek!$D$129=4,Negyedéves!W$68,Negyedéves!W$73))+IF(Paraméterek!$D$137=1,Negyedéves!W$55,Negyedéves!W$50)+IF(Paraméterek!$D$143=1,Negyedéves!W$43,Negyedéves!W$38) -> 91145.83333 | X12: =IF(Paraméterek!$D$129=1,Negyedéves!X$62,IF(Paraméterek!$D$129=4,Negyedéves!X$68,Negyedéves!X$73))+IF(Paraméterek!$D$137=1,Negyedéves!X$55,Negyedéves!X$50)+IF(Paraméterek!$D$143=1,Negyedéves!X$43,Negyedéves!X$38) -> 72916.66667 | Y12: =IF(Paraméterek!$D$129=1,Negyedéves!Y$62,IF(Paraméterek!$D$129=4,Negyedéves!Y$68,Negyedéves!Y$73))+IF(Paraméterek!$D$137=1,Negyedéves!Y$55,Negyedéves!Y$50)+IF(Paraméterek!$D$143=1,Negyedéves!Y$43,Negyedéves!Y$38) -> 54687.5 | Z12: =IF(Paraméterek!$D$129=1,Negyedéves!Z$62,IF(Paraméterek!$D$129=4,Negyedéves!Z$68,Negyedéves!Z$73))+IF(Paraméterek!$D$137=1,Negyedéves!Z$55,Negyedéves!Z$50)+IF(Paraméterek!$D$143=1,Negyedéves!Z$43,Negyedéves!Z$38) -> 36458.33333 | AA12: =IF(Paraméterek!$D$129=1,Negyedéves!AA$62,IF(Paraméterek!$D$129=4,Negyedéves!AA$68,Negyedéves!AA$73))+IF(Paraméterek!$D$137=1,Negyedéves!AA$55,Negyedéves!AA$50)+IF(Paraméterek!$D$143=1,Negyedéves!AA$43,Negyedéves!AA$38) -> 18229.16667 | AB12: =IF(Paraméterek!$D$129=1,Negyedéves!AB$62,IF(Paraméterek!$D$129=4,Negyedéves!AB$68,Negyedéves!AB$73))+IF(Paraméterek!$D$137=1,Negyedéves!AB$55,Negyedéves!AB$50)+IF(Paraméterek!$D$143=1,Negyedéves!AB$43,Negyedéves!AB$38) -> -7.741618901e-11 | AC12: =IF(Paraméterek!$D$129=1,Negyedéves!AC$62,IF(Paraméterek!$D$129=4,Negyedéves!AC$68,Negyedéves!AC$73))+IF(Paraméterek!$D$137=1,Negyedéves!AC$55,Negyedéves!AC$50)+IF(Paraméterek!$D$143=1,Negyedéves!AC$43,Negyedéves!AC$38) -> -7.741618901e-11 | AD12: =IF(Paraméterek!$D$129=1,Negyedéves!AD$62,IF(Paraméterek!$D$129=4,Negyedéves!AD$68,Negyedéves!AD$73))+IF(Paraméterek!$D$137=1,Negyedéves!AD$55,Negyedéves!AD$50)+IF(Paraméterek!$D$143=1,Negyedéves!AD$43,Negyedéves!AD$38) -> -7.741618901e-11 | AE12: =IF(Paraméterek!$D$129=1,Negyedéves!AE$62,IF(Paraméterek!$D$129=4,Negyedéves!AE$68,Negyedéves!AE$73))+IF(Paraméterek!$D$137=1,Negyedéves!AE$55,Negyedéves!AE$50)+IF(Paraméterek!$D$143=1,Negyedéves!AE$43,Negyedéves!AE$38) -> -7.741618901e-11 | AF12: =IF(Paraméterek!$D$129=1,Negyedéves!AF$62,IF(Paraméterek!$D$129=4,Negyedéves!AF$68,Negyedéves!AF$73))+IF(Paraméterek!$D$137=1,Negyedéves!AF$55,Negyedéves!AF$50)+IF(Paraméterek!$D$143=1,Negyedéves!AF$43,Negyedéves!AF$38) -> -7.741618901e-11 | AG12: =IF(Paraméterek!$D$129=1,Negyedéves!AG$62,IF(Paraméterek!$D$129=4,Negyedéves!AG$68,Negyedéves!AG$73))+IF(Paraméterek!$D$137=1,Negyedéves!AG$55,Negyedéves!AG$50)+IF(Paraméterek!$D$143=1,Negyedéves!AG$43,Negyedéves!AG$38) -> -7.741618901e-11 | AH12: =IF(Paraméterek!$D$129=1,Negyedéves!AH$62,IF(Paraméterek!$D$129=4,Negyedéves!AH$68,Negyedéves!AH$73))+IF(Paraméterek!$D$137=1,Negyedéves!AH$55,Negyedéves!AH$50)+IF(Paraméterek!$D$143=1,Negyedéves!AH$43,Negyedéves!AH$38) -> -7.741618901e-11 | AI12: =IF(Paraméterek!$D$129=1,Negyedéves!AI$62,IF(Paraméterek!$D$129=4,Negyedéves!AI$68,Negyedéves!AI$73))+IF(Paraméterek!$D$137=1,Negyedéves!AI$55,Negyedéves!AI$50)+IF(Paraméterek!$D$143=1,Negyedéves!AI$43,Negyedéves!AI$38) -> -7.741618901e-11 | AJ12: =IF(Paraméterek!$D$129=1,Negyedéves!AJ$62,IF(Paraméterek!$D$129=4,Negyedéves!AJ$68,Negyedéves!AJ$73))+IF(Paraméterek!$D$137=1,Negyedéves!AJ$55,Negyedéves!AJ$50)+IF(Paraméterek!$D$143=1,Negyedéves!AJ$43,Negyedéves!AJ$38) -> -7.741618901e-11 | AK12: =IF(Paraméterek!$D$129=1,Negyedéves!AK$62,IF(Paraméterek!$D$129=4,Negyedéves!AK$68,Negyedéves!AK$73))+IF(Paraméterek!$D$137=1,Negyedéves!AK$55,Negyedéves!AK$50)+IF(Paraméterek!$D$143=1,Negyedéves!AK$43,Negyedéves!AK$38) -> -7.741618901e-11 | AL12: =IF(Paraméterek!$D$129=1,Negyedéves!AL$62,IF(Paraméterek!$D$129=4,Negyedéves!AL$68,Negyedéves!AL$73))+IF(Paraméterek!$D$137=1,Negyedéves!AL$55,Negyedéves!AL$50)+IF(Paraméterek!$D$143=1,Negyedéves!AL$43,Negyedéves!AL$38) -> -7.741618901e-11 | AM12: =IF(Paraméterek!$D$129=1,Negyedéves!AM$62,IF(Paraméterek!$D$129=4,Negyedéves!AM$68,Negyedéves!AM$73))+IF(Paraméterek!$D$137=1,Negyedéves!AM$55,Negyedéves!AM$50)+IF(Paraméterek!$D$143=1,Negyedéves!AM$43,Negyedéves!AM$38) -> -7.741618901e-11 | AN12: =IF(Paraméterek!$D$129=1,Negyedéves!AN$62,IF(Paraméterek!$D$129=4,Negyedéves!AN$68,Negyedéves!AN$73))+IF(Paraméterek!$D$137=1,Negyedéves!AN$55,Negyedéves!AN$50)+IF(Paraméterek!$D$143=1,Negyedéves!AN$43,Negyedéves!AN$38) -> -7.741618901e-11 | AO12: =IF(Paraméterek!$D$129=1,Negyedéves!AO$62,IF(Paraméterek!$D$129=4,Negyedéves!AO$68,Negyedéves!AO$73))+IF(Paraméterek!$D$137=1,Negyedéves!AO$55,Negyedéves!AO$50)+IF(Paraméterek!$D$143=1,Negyedéves!AO$43,Negyedéves!AO$38) -> -7.741618901e-11 | AP12: =IF(Paraméterek!$D$129=1,Negyedéves!AP$62,IF(Paraméterek!$D$129=4,Negyedéves!AP$68,Negyedéves!AP$73))+IF(Paraméterek!$D$137=1,Negyedéves!AP$55,Negyedéves!AP$50)+IF(Paraméterek!$D$143=1,Negyedéves!AP$43,Negyedéves!AP$38) -> -7.741618901e-11 | AQ12: =IF(Paraméterek!$D$129=1,Negyedéves!AQ$62,IF(Paraméterek!$D$129=4,Negyedéves!AQ$68,Negyedéves!AQ$73))+IF(Paraméterek!$D$137=1,Negyedéves!AQ$55,Negyedéves!AQ$50)+IF(Paraméterek!$D$143=1,Negyedéves!AQ$43,Negyedéves!AQ$38) -> -7.741618901e-11 | AR12: =IF(Paraméterek!$D$129=1,Negyedéves!AR$62,IF(Paraméterek!$D$129=4,Negyedéves!AR$68,Negyedéves!AR$73))+IF(Paraméterek!$D$137=1,Negyedéves!AR$55,Negyedéves!AR$50)+IF(Paraméterek!$D$143=1,Negyedéves!AR$43,Negyedéves!AR$38) -> -7.741618901e-11 | AS12: =IF(Paraméterek!$D$129=1,Negyedéves!AS$62,IF(Paraméterek!$D$129=4,Negyedéves!AS$68,Negyedéves!AS$73))+IF(Paraméterek!$D$137=1,Negyedéves!AS$55,Negyedéves!AS$50)+IF(Paraméterek!$D$143=1,Negyedéves!AS$43,Negyedéves!AS$38) -> -7.741618901e-11 | AT12: =IF(Paraméterek!$D$129=1,Negyedéves!AT$62,IF(Paraméterek!$D$129=4,Negyedéves!AT$68,Negyedéves!AT$73))+IF(Paraméterek!$D$137=1,Negyedéves!AT$55,Negyedéves!AT$50)+IF(Paraméterek!$D$143=1,Negyedéves!AT$43,Negyedéves!AT$38) -> -7.741618901e-11 | AU12: =IF(Paraméterek!$D$129=1,Negyedéves!AU$62,IF(Paraméterek!$D$129=4,Negyedéves!AU$68,Negyedéves!AU$73))+IF(Paraméterek!$D$137=1,Negyedéves!AU$55,Negyedéves!AU$50)+IF(Paraméterek!$D$143=1,Negyedéves!AU$43,Negyedéves!AU$38) -> -7.741618901e-11 | AV12: =IF(Paraméterek!$D$129=1,Negyedéves!AV$62,IF(Paraméterek!$D$129=4,Negyedéves!AV$68,Negyedéves!AV$73))+IF(Paraméterek!$D$137=1,Negyedéves!AV$55,Negyedéves!AV$50)+IF(Paraméterek!$D$143=1,Negyedéves!AV$43,Negyedéves!AV$38) -> -7.741618901e-11 | AW12: =IF(Paraméterek!$D$129=1,Negyedéves!AW$62,IF(Paraméterek!$D$129=4,Negyedéves!AW$68,Negyedéves!AW$73))+IF(Paraméterek!$D$137=1,Negyedéves!AW$55,Negyedéves!AW$50)+IF(Paraméterek!$D$143=1,Negyedéves!AW$43,Negyedéves!AW$38) -> -7.741618901e-11 | AX12: =IF(Paraméterek!$D$129=1,Negyedéves!AX$62,IF(Paraméterek!$D$129=4,Negyedéves!AX$68,Negyedéves!AX$73))+IF(Paraméterek!$D$137=1,Negyedéves!AX$55,Negyedéves!AX$50)+IF(Paraméterek!$D$143=1,Negyedéves!AX$43,Negyedéves!AX$38) -> -7.741618901e-11 | AY12: =IF(Paraméterek!$D$129=1,Negyedéves!AY$62,IF(Paraméterek!$D$129=4,Negyedéves!AY$68,Negyedéves!AY$73))+IF(Paraméterek!$D$137=1,Negyedéves!AY$55,Negyedéves!AY$50)+IF(Paraméterek!$D$143=1,Negyedéves!AY$43,Negyedéves!AY$38) -> -7.741618901e-11 | AZ12: =IF(Paraméterek!$D$129=1,Negyedéves!AZ$62,IF(Paraméterek!$D$129=4,Negyedéves!AZ$68,Negyedéves!AZ$73))+IF(Paraméterek!$D$137=1,Negyedéves!AZ$55,Negyedéves!AZ$50)+IF(Paraméterek!$D$143=1,Negyedéves!AZ$43,Negyedéves!AZ$38) -> -7.741618901e-11 | BA12: =IF(Paraméterek!$D$129=1,Negyedéves!BA$62,IF(Paraméterek!$D$129=4,Negyedéves!BA$68,Negyedéves!BA$73))+IF(Paraméterek!$D$137=1,Negyedéves!BA$55,Negyedéves!BA$50)+IF(Paraméterek!$D$143=1,Negyedéves!BA$43,Negyedéves!BA$38) -> -7.741618901e-11 | BB12: =IF(Paraméterek!$D$129=1,Negyedéves!BB$62,IF(Paraméterek!$D$129=4,Negyedéves!BB$68,Negyedéves!BB$73))+IF(Paraméterek!$D$137=1,Negyedéves!BB$55,Negyedéves!BB$50)+IF(Paraméterek!$D$143=1,Negyedéves!BB$43,Negyedéves!BB$38) -> -7.741618901e-11 | BC12: =IF(Paraméterek!$D$129=1,Negyedéves!BC$62,IF(Paraméterek!$D$129=4,Negyedéves!BC$68,Negyedéves!BC$73))+IF(Paraméterek!$D$137=1,Negyedéves!BC$55,Negyedéves!BC$50)+IF(Paraméterek!$D$143=1,Negyedéves!BC$43,Negyedéves!BC$38) -> -7.741618901e-11 | BD12: =IF(Paraméterek!$D$129=1,Negyedéves!BD$62,IF(Paraméterek!$D$129=4,Negyedéves!BD$68,Negyedéves!BD$73))+IF(Paraméterek!$D$137=1,Negyedéves!BD$55,Negyedéves!BD$50)+IF(Paraméterek!$D$143=1,Negyedéves!BD$43,Negyedéves!BD$38) -> -7.741618901e-11 | BE12: =IF(Paraméterek!$D$129=1,Negyedéves!BE$62,IF(Paraméterek!$D$129=4,Negyedéves!BE$68,Negyedéves!BE$73))+IF(Paraméterek!$D$137=1,Negyedéves!BE$55,Negyedéves!BE$50)+IF(Paraméterek!$D$143=1,Negyedéves!BE$43,Negyedéves!BE$38) -> -7.741618901e-11 | BF12: =IF(Paraméterek!$D$129=1,Negyedéves!BF$62,IF(Paraméterek!$D$129=4,Negyedéves!BF$68,Negyedéves!BF$73))+IF(Paraméterek!$D$137=1,Negyedéves!BF$55,Negyedéves!BF$50)+IF(Paraméterek!$D$143=1,Negyedéves!BF$43,Negyedéves!BF$38) -> -7.741618901e-11 | BG12: =IF(Paraméterek!$D$129=1,Negyedéves!BG$62,IF(Paraméterek!$D$129=4,Negyedéves!BG$68,Negyedéves!BG$73))+IF(Paraméterek!$D$137=1,Negyedéves!BG$55,Negyedéves!BG$50)+IF(Paraméterek!$D$143=1,Negyedéves!BG$43,Negyedéves!BG$38) -> -7.741618901e-11 | BH12: =IF(Paraméterek!$D$129=1,Negyedéves!BH$62,IF(Paraméterek!$D$129=4,Negyedéves!BH$68,Negyedéves!BH$73))+IF(Paraméterek!$D$137=1,Negyedéves!BH$55,Negyedéves!BH$50)+IF(Paraméterek!$D$143=1,Negyedéves!BH$43,Negyedéves!BH$38) -> -7.741618901e-11 | BI12: =IF(Paraméterek!$D$129=1,Negyedéves!BI$62,IF(Paraméterek!$D$129=4,Negyedéves!BI$68,Negyedéves!BI$73))+IF(Paraméterek!$D$137=1,Negyedéves!BI$55,Negyedéves!BI$50)+IF(Paraméterek!$D$143=1,Negyedéves!BI$43,Negyedéves!BI$38) -> -7.741618901e-11 | BJ12: =IF(Paraméterek!$D$129=1,Negyedéves!BJ$62,IF(Paraméterek!$D$129=4,Negyedéves!BJ$68,Negyedéves!BJ$73))+IF(Paraméterek!$D$137=1,Negyedéves!BJ$55,Negyedéves!BJ$50)+IF(Paraméterek!$D$143=1,Negyedéves!BJ$43,Negyedéves!BJ$38) -> -7.741618901e-11 | BK12: =IF(Paraméterek!$D$129=1,Negyedéves!BK$62,IF(Paraméterek!$D$129=4,Negyedéves!BK$68,Negyedéves!BK$73))+IF(Paraméterek!$D$137=1,Negyedéves!BK$55,Negyedéves!BK$50)+IF(Paraméterek!$D$143=1,Negyedéves!BK$43,Negyedéves!BK$38) -> -7.741618901e-11 | BL12: =IF(Paraméterek!$D$129=1,Negyedéves!BL$62,IF(Paraméterek!$D$129=4,Negyedéves!BL$68,Negyedéves!BL$73))+IF(Paraméterek!$D$137=1,Negyedéves!BL$55,Negyedéves!BL$50)+IF(Paraméterek!$D$143=1,Negyedéves!BL$43,Negyedéves!BL$38) -> -7.741618901e-11 | BM12: =IF(Paraméterek!$D$129=1,Negyedéves!BM$62,IF(Paraméterek!$D$129=4,Negyedéves!BM$68,Negyedéves!BM$73))+IF(Paraméterek!$D$137=1,Negyedéves!BM$55,Negyedéves!BM$50)+IF(Paraméterek!$D$143=1,Negyedéves!BM$43,Negyedéves!BM$38) -> -7.741618901e-11 | BN12: =IF(Paraméterek!$D$129=1,Negyedéves!BN$62,IF(Paraméterek!$D$129=4,Negyedéves!BN$68,Negyedéves!BN$73))+IF(Paraméterek!$D$137=1,Negyedéves!BN$55,Negyedéves!BN$50)+IF(Paraméterek!$D$143=1,Negyedéves!BN$43,Negyedéves!BN$38) -> -7.741618901e-11 | BO12: =IF(Paraméterek!$D$129=1,Negyedéves!BO$62,IF(Paraméterek!$D$129=4,Negyedéves!BO$68,Negyedéves!BO$73))+IF(Paraméterek!$D$137=1,Negyedéves!BO$55,Negyedéves!BO$50)+IF(Paraméterek!$D$143=1,Negyedéves!BO$43,Negyedéves!BO$38) -> -7.741618901e-11 | BP12: =IF(Paraméterek!$D$129=1,Negyedéves!BP$62,IF(Paraméterek!$D$129=4,Negyedéves!BP$68,Negyedéves!BP$73))+IF(Paraméterek!$D$137=1,Negyedéves!BP$55,Negyedéves!BP$50)+IF(Paraméterek!$D$143=1,Negyedéves!BP$43,Negyedéves!BP$38) -> -7.741618901e-11 | BQ12: =IF(Paraméterek!$D$129=1,Negyedéves!BQ$62,IF(Paraméterek!$D$129=4,Negyedéves!BQ$68,Negyedéves!BQ$73))+IF(Paraméterek!$D$137=1,Negyedéves!BQ$55,Negyedéves!BQ$50)+IF(Paraméterek!$D$143=1,Negyedéves!BQ$43,Negyedéves!BQ$38) -> -7.741618901e-11 | BR12: =IF(Paraméterek!$D$129=1,Negyedéves!BR$62,IF(Paraméterek!$D$129=4,Negyedéves!BR$68,Negyedéves!BR$73))+IF(Paraméterek!$D$137=1,Negyedéves!BR$55,Negyedéves!BR$50)+IF(Paraméterek!$D$143=1,Negyedéves!BR$43,Negyedéves!BR$38) ->  | BS12: =IF(Paraméterek!$D$129=1,Negyedéves!BS$62,IF(Paraméterek!$D$129=4,Negyedéves!BS$68,Negyedéves!BS$73))+IF(Paraméterek!$D$137=1,Negyedéves!BS$55,Negyedéves!BS$50)+IF(Paraméterek!$D$143=1,Negyedéves!BS$43,Negyedéves!BS$38) ->  | BT12: x
A13: Fennálló tőketartozás | B13: 0 | C13: =Paraméterek!$C$128+Paraméterek!$C$138+Paraméterek!$C$144 -> 177869312.3 | D13: =IF(Paraméterek!$D$129=1,Negyedéves!D$61,IF(Paraméterek!$D$129=4,Negyedéves!D$67,Negyedéves!D$72))+IF(Paraméterek!$D$137=1,Negyedéves!D$54,Negyedéves!D$49)+IF(Paraméterek!$D$143=1,Negyedéves!D$42,Negyedéves!D$37) -> 175785979 | E13: =IF(Paraméterek!$D$129=1,Negyedéves!E$61,IF(Paraméterek!$D$129=4,Negyedéves!E$67,Negyedéves!E$72))+IF(Paraméterek!$D$137=1,Negyedéves!E$54,Negyedéves!E$49)+IF(Paraméterek!$D$143=1,Negyedéves!E$42,Negyedéves!E$37) -> 45833333.33 | F13: =IF(Paraméterek!$D$129=1,Negyedéves!F$61,IF(Paraméterek!$D$129=4,Negyedéves!F$67,Negyedéves!F$72))+IF(Paraméterek!$D$137=1,Negyedéves!F$54,Negyedéves!F$49)+IF(Paraméterek!$D$143=1,Negyedéves!F$42,Negyedéves!F$37) -> 43750000 | G13: =IF(Paraméterek!$D$129=1,Negyedéves!G$61,IF(Paraméterek!$D$129=4,Negyedéves!G$67,Negyedéves!G$72))+IF(Paraméterek!$D$137=1,Negyedéves!G$54,Negyedéves!G$49)+IF(Paraméterek!$D$143=1,Negyedéves!G$42,Negyedéves!G$37) -> 41666666.67 | H13: =IF(Paraméterek!$D$129=1,Negyedéves!H$61,IF(Paraméterek!$D$129=4,Negyedéves!H$67,Negyedéves!H$72))+IF(Paraméterek!$D$137=1,Negyedéves!H$54,Negyedéves!H$49)+IF(Paraméterek!$D$143=1,Negyedéves!H$42,Negyedéves!H$37) -> 39583333.33 | I13: =IF(Paraméterek!$D$129=1,Negyedéves!I$61,IF(Paraméterek!$D$129=4,Negyedéves!I$67,Negyedéves!I$72))+IF(Paraméterek!$D$137=1,Negyedéves!I$54,Negyedéves!I$49)+IF(Paraméterek!$D$143=1,Negyedéves!I$42,Negyedéves!I$37) -> 37500000 | J13: =IF(Paraméterek!$D$129=1,Negyedéves!J$61,IF(Paraméterek!$D$129=4,Negyedéves!J$67,Negyedéves!J$72))+IF(Paraméterek!$D$137=1,Negyedéves!J$54,Negyedéves!J$49)+IF(Paraméterek!$D$143=1,Negyedéves!J$42,Negyedéves!J$37) -> 35416666.67 | K13: =IF(Paraméterek!$D$129=1,Negyedéves!K$61,IF(Paraméterek!$D$129=4,Negyedéves!K$67,Negyedéves!K$72))+IF(Paraméterek!$D$137=1,Negyedéves!K$54,Negyedéves!K$49)+IF(Paraméterek!$D$143=1,Negyedéves!K$42,Negyedéves!K$37) -> 33333333.33 | L13: =IF(Paraméterek!$D$129=1,Negyedéves!L$61,IF(Paraméterek!$D$129=4,Negyedéves!L$67,Negyedéves!L$72))+IF(Paraméterek!$D$137=1,Negyedéves!L$54,Negyedéves!L$49)+IF(Paraméterek!$D$143=1,Negyedéves!L$42,Negyedéves!L$37) -> 31250000 | M13: =IF(Paraméterek!$D$129=1,Negyedéves!M$61,IF(Paraméterek!$D$129=4,Negyedéves!M$67,Negyedéves!M$72))+IF(Paraméterek!$D$137=1,Negyedéves!M$54,Negyedéves!M$49)+IF(Paraméterek!$D$143=1,Negyedéves!M$42,Negyedéves!M$37) -> 29166666.67 | N13: =IF(Paraméterek!$D$129=1,Negyedéves!N$61,IF(Paraméterek!$D$129=4,Negyedéves!N$67,Negyedéves!N$72))+IF(Paraméterek!$D$137=1,Negyedéves!N$54,Negyedéves!N$49)+IF(Paraméterek!$D$143=1,Negyedéves!N$42,Negyedéves!N$37) -> 27083333.33 | O13: =IF(Paraméterek!$D$129=1,Negyedéves!O$61,IF(Paraméterek!$D$129=4,Negyedéves!O$67,Negyedéves!O$72))+IF(Paraméterek!$D$137=1,Negyedéves!O$54,Negyedéves!O$49)+IF(Paraméterek!$D$143=1,Negyedéves!O$42,Negyedéves!O$37) -> 25000000 | P13: =IF(Paraméterek!$D$129=1,Negyedéves!P$61,IF(Paraméterek!$D$129=4,Negyedéves!P$67,Negyedéves!P$72))+IF(Paraméterek!$D$137=1,Negyedéves!P$54,Negyedéves!P$49)+IF(Paraméterek!$D$143=1,Negyedéves!P$42,Negyedéves!P$37) -> 22916666.67 | Q13: =IF(Paraméterek!$D$129=1,Negyedéves!Q$61,IF(Paraméterek!$D$129=4,Negyedéves!Q$67,Negyedéves!Q$72))+IF(Paraméterek!$D$137=1,Negyedéves!Q$54,Negyedéves!Q$49)+IF(Paraméterek!$D$143=1,Negyedéves!Q$42,Negyedéves!Q$37) -> 20833333.33 | R13: =IF(Paraméterek!$D$129=1,Negyedéves!R$61,IF(Paraméterek!$D$129=4,Negyedéves!R$67,Negyedéves!R$72))+IF(Paraméterek!$D$137=1,Negyedéves!R$54,Negyedéves!R$49)+IF(Paraméterek!$D$143=1,Negyedéves!R$42,Negyedéves!R$37) -> 18750000 | S13: =IF(Paraméterek!$D$129=1,Negyedéves!S$61,IF(Paraméterek!$D$129=4,Negyedéves!S$67,Negyedéves!S$72))+IF(Paraméterek!$D$137=1,Negyedéves!S$54,Negyedéves!S$49)+IF(Paraméterek!$D$143=1,Negyedéves!S$42,Negyedéves!S$37) -> 16666666.67 | T13: =IF(Paraméterek!$D$129=1,Negyedéves!T$61,IF(Paraméterek!$D$129=4,Negyedéves!T$67,Negyedéves!T$72))+IF(Paraméterek!$D$137=1,Negyedéves!T$54,Negyedéves!T$49)+IF(Paraméterek!$D$143=1,Negyedéves!T$42,Negyedéves!T$37) -> 14583333.33 | U13: =IF(Paraméterek!$D$129=1,Negyedéves!U$61,IF(Paraméterek!$D$129=4,Negyedéves!U$67,Negyedéves!U$72))+IF(Paraméterek!$D$137=1,Negyedéves!U$54,Negyedéves!U$49)+IF(Paraméterek!$D$143=1,Negyedéves!U$42,Negyedéves!U$37) -> 12500000 | V13: =IF(Paraméterek!$D$129=1,Negyedéves!V$61,IF(Paraméterek!$D$129=4,Negyedéves!V$67,Negyedéves!V$72))+IF(Paraméterek!$D$137=1,Negyedéves!V$54,Negyedéves!V$49)+IF(Paraméterek!$D$143=1,Negyedéves!V$42,Negyedéves!V$37) -> 10416666.67 | W13: =IF(Paraméterek!$D$129=1,Negyedéves!W$61,IF(Paraméterek!$D$129=4,Negyedéves!W$67,Negyedéves!W$72))+IF(Paraméterek!$D$137=1,Negyedéves!W$54,Negyedéves!W$49)+IF(Paraméterek!$D$143=1,Negyedéves!W$42,Negyedéves!W$37) -> 8333333.333 | X13: =IF(Paraméterek!$D$129=1,Negyedéves!X$61,IF(Paraméterek!$D$129=4,Negyedéves!X$67,Negyedéves!X$72))+IF(Paraméterek!$D$137=1,Negyedéves!X$54,Negyedéves!X$49)+IF(Paraméterek!$D$143=1,Negyedéves!X$42,Negyedéves!X$37) -> 6250000 | Y13: =IF(Paraméterek!$D$129=1,Negyedéves!Y$61,IF(Paraméterek!$D$129=4,Negyedéves!Y$67,Negyedéves!Y$72))+IF(Paraméterek!$D$137=1,Negyedéves!Y$54,Negyedéves!Y$49)+IF(Paraméterek!$D$143=1,Negyedéves!Y$42,Negyedéves!Y$37) -> 4166666.667 | Z13: =IF(Paraméterek!$D$129=1,Negyedéves!Z$61,IF(Paraméterek!$D$129=4,Negyedéves!Z$67,Negyedéves!Z$72))+IF(Paraméterek!$D$137=1,Negyedéves!Z$54,Negyedéves!Z$49)+IF(Paraméterek!$D$143=1,Negyedéves!Z$42,Negyedéves!Z$37) -> 2083333.333 | AA13: =IF(Paraméterek!$D$129=1,Negyedéves!AA$61,IF(Paraméterek!$D$129=4,Negyedéves!AA$67,Negyedéves!AA$72))+IF(Paraméterek!$D$137=1,Negyedéves!AA$54,Negyedéves!AA$49)+IF(Paraméterek!$D$143=1,Negyedéves!AA$42,Negyedéves!AA$37) -> -8.847564459e-09 | AB13: =IF(Paraméterek!$D$129=1,Negyedéves!AB$61,IF(Paraméterek!$D$129=4,Negyedéves!AB$67,Negyedéves!AB$72))+IF(Paraméterek!$D$137=1,Negyedéves!AB$54,Negyedéves!AB$49)+IF(Paraméterek!$D$143=1,Negyedéves!AB$42,Negyedéves!AB$37) -> -8.847564459e-09 | AC13: =IF(Paraméterek!$D$129=1,Negyedéves!AC$61,IF(Paraméterek!$D$129=4,Negyedéves!AC$67,Negyedéves!AC$72))+IF(Paraméterek!$D$137=1,Negyedéves!AC$54,Negyedéves!AC$49)+IF(Paraméterek!$D$143=1,Negyedéves!AC$42,Negyedéves!AC$37) -> -8.847564459e-09 | AD13: =IF(Paraméterek!$D$129=1,Negyedéves!AD$61,IF(Paraméterek!$D$129=4,Negyedéves!AD$67,Negyedéves!AD$72))+IF(Paraméterek!$D$137=1,Negyedéves!AD$54,Negyedéves!AD$49)+IF(Paraméterek!$D$143=1,Negyedéves!AD$42,Negyedéves!AD$37) -> -8.847564459e-09 | AE13: =IF(Paraméterek!$D$129=1,Negyedéves!AE$61,IF(Paraméterek!$D$129=4,Negyedéves!AE$67,Negyedéves!AE$72))+IF(Paraméterek!$D$137=1,Negyedéves!AE$54,Negyedéves!AE$49)+IF(Paraméterek!$D$143=1,Negyedéves!AE$42,Negyedéves!AE$37) -> -8.847564459e-09 | AF13: =IF(Paraméterek!$D$129=1,Negyedéves!AF$61,IF(Paraméterek!$D$129=4,Negyedéves!AF$67,Negyedéves!AF$72))+IF(Paraméterek!$D$137=1,Negyedéves!AF$54,Negyedéves!AF$49)+IF(Paraméterek!$D$143=1,Negyedéves!AF$42,Negyedéves!AF$37) -> -8.847564459e-09 | AG13: =IF(Paraméterek!$D$129=1,Negyedéves!AG$61,IF(Paraméterek!$D$129=4,Negyedéves!AG$67,Negyedéves!AG$72))+IF(Paraméterek!$D$137=1,Negyedéves!AG$54,Negyedéves!AG$49)+IF(Paraméterek!$D$143=1,Negyedéves!AG$42,Negyedéves!AG$37) -> -8.847564459e-09 | AH13: =IF(Paraméterek!$D$129=1,Negyedéves!AH$61,IF(Paraméterek!$D$129=4,Negyedéves!AH$67,Negyedéves!AH$72))+IF(Paraméterek!$D$137=1,Negyedéves!AH$54,Negyedéves!AH$49)+IF(Paraméterek!$D$143=1,Negyedéves!AH$42,Negyedéves!AH$37) -> -8.847564459e-09 | AI13: =IF(Paraméterek!$D$129=1,Negyedéves!AI$61,IF(Paraméterek!$D$129=4,Negyedéves!AI$67,Negyedéves!AI$72))+IF(Paraméterek!$D$137=1,Negyedéves!AI$54,Negyedéves!AI$49)+IF(Paraméterek!$D$143=1,Negyedéves!AI$42,Negyedéves!AI$37) -> -8.847564459e-09 | AJ13: =IF(Paraméterek!$D$129=1,Negyedéves!AJ$61,IF(Paraméterek!$D$129=4,Negyedéves!AJ$67,Negyedéves!AJ$72))+IF(Paraméterek!$D$137=1,Negyedéves!AJ$54,Negyedéves!AJ$49)+IF(Paraméterek!$D$143=1,Negyedéves!AJ$42,Negyedéves!AJ$37) -> -8.847564459e-09 | AK13: =IF(Paraméterek!$D$129=1,Negyedéves!AK$61,IF(Paraméterek!$D$129=4,Negyedéves!AK$67,Negyedéves!AK$72))+IF(Paraméterek!$D$137=1,Negyedéves!AK$54,Negyedéves!AK$49)+IF(Paraméterek!$D$143=1,Negyedéves!AK$42,Negyedéves!AK$37) -> -8.847564459e-09 | AL13: =IF(Paraméterek!$D$129=1,Negyedéves!AL$61,IF(Paraméterek!$D$129=4,Negyedéves!AL$67,Negyedéves!AL$72))+IF(Paraméterek!$D$137=1,Negyedéves!AL$54,Negyedéves!AL$49)+IF(Paraméterek!$D$143=1,Negyedéves!AL$42,Negyedéves!AL$37) -> -8.847564459e-09 | AM13: =IF(Paraméterek!$D$129=1,Negyedéves!AM$61,IF(Paraméterek!$D$129=4,Negyedéves!AM$67,Negyedéves!AM$72))+IF(Paraméterek!$D$137=1,Negyedéves!AM$54,Negyedéves!AM$49)+IF(Paraméterek!$D$143=1,Negyedéves!AM$42,Negyedéves!AM$37) -> -8.847564459e-09 | AN13: =IF(Paraméterek!$D$129=1,Negyedéves!AN$61,IF(Paraméterek!$D$129=4,Negyedéves!AN$67,Negyedéves!AN$72))+IF(Paraméterek!$D$137=1,Negyedéves!AN$54,Negyedéves!AN$49)+IF(Paraméterek!$D$143=1,Negyedéves!AN$42,Negyedéves!AN$37) -> -8.847564459e-09 | AO13: =IF(Paraméterek!$D$129=1,Negyedéves!AO$61,IF(Paraméterek!$D$129=4,Negyedéves!AO$67,Negyedéves!AO$72))+IF(Paraméterek!$D$137=1,Negyedéves!AO$54,Negyedéves!AO$49)+IF(Paraméterek!$D$143=1,Negyedéves!AO$42,Negyedéves!AO$37) -> -8.847564459e-09 | AP13: =IF(Paraméterek!$D$129=1,Negyedéves!AP$61,IF(Paraméterek!$D$129=4,Negyedéves!AP$67,Negyedéves!AP$72))+IF(Paraméterek!$D$137=1,Negyedéves!AP$54,Negyedéves!AP$49)+IF(Paraméterek!$D$143=1,Negyedéves!AP$42,Negyedéves!AP$37) -> -8.847564459e-09 | AQ13: =IF(Paraméterek!$D$129=1,Negyedéves!AQ$61,IF(Paraméterek!$D$129=4,Negyedéves!AQ$67,Negyedéves!AQ$72))+IF(Paraméterek!$D$137=1,Negyedéves!AQ$54,Negyedéves!AQ$49)+IF(Paraméterek!$D$143=1,Negyedéves!AQ$42,Negyedéves!AQ$37) -> -8.847564459e-09 | AR13: =IF(Paraméterek!$D$129=1,Negyedéves!AR$61,IF(Paraméterek!$D$129=4,Negyedéves!AR$67,Negyedéves!AR$72))+IF(Paraméterek!$D$137=1,Negyedéves!AR$54,Negyedéves!AR$49)+IF(Paraméterek!$D$143=1,Negyedéves!AR$42,Negyedéves!AR$37) -> -8.847564459e-09 | AS13: =IF(Paraméterek!$D$129=1,Negyedéves!AS$61,IF(Paraméterek!$D$129=4,Negyedéves!AS$67,Negyedéves!AS$72))+IF(Paraméterek!$D$137=1,Negyedéves!AS$54,Negyedéves!AS$49)+IF(Paraméterek!$D$143=1,Negyedéves!AS$42,Negyedéves!AS$37) -> -8.847564459e-09 | AT13: =IF(Paraméterek!$D$129=1,Negyedéves!AT$61,IF(Paraméterek!$D$129=4,Negyedéves!AT$67,Negyedéves!AT$72))+IF(Paraméterek!$D$137=1,Negyedéves!AT$54,Negyedéves!AT$49)+IF(Paraméterek!$D$143=1,Negyedéves!AT$42,Negyedéves!AT$37) -> -8.847564459e-09 | AU13: =IF(Paraméterek!$D$129=1,Negyedéves!AU$61,IF(Paraméterek!$D$129=4,Negyedéves!AU$67,Negyedéves!AU$72))+IF(Paraméterek!$D$137=1,Negyedéves!AU$54,Negyedéves!AU$49)+IF(Paraméterek!$D$143=1,Negyedéves!AU$42,Negyedéves!AU$37) -> -8.847564459e-09 | AV13: =IF(Paraméterek!$D$129=1,Negyedéves!AV$61,IF(Paraméterek!$D$129=4,Negyedéves!AV$67,Negyedéves!AV$72))+IF(Paraméterek!$D$137=1,Negyedéves!AV$54,Negyedéves!AV$49)+IF(Paraméterek!$D$143=1,Negyedéves!AV$42,Negyedéves!AV$37) -> -8.847564459e-09 | AW13: =IF(Paraméterek!$D$129=1,Negyedéves!AW$61,IF(Paraméterek!$D$129=4,Negyedéves!AW$67,Negyedéves!AW$72))+IF(Paraméterek!$D$137=1,Negyedéves!AW$54,Negyedéves!AW$49)+IF(Paraméterek!$D$143=1,Negyedéves!AW$42,Negyedéves!AW$37) -> -8.847564459e-09 | AX13: =IF(Paraméterek!$D$129=1,Negyedéves!AX$61,IF(Paraméterek!$D$129=4,Negyedéves!AX$67,Negyedéves!AX$72))+IF(Paraméterek!$D$137=1,Negyedéves!AX$54,Negyedéves!AX$49)+IF(Paraméterek!$D$143=1,Negyedéves!AX$42,Negyedéves!AX$37) -> -8.847564459e-09 | AY13: =IF(Paraméterek!$D$129=1,Negyedéves!AY$61,IF(Paraméterek!$D$129=4,Negyedéves!AY$67,Negyedéves!AY$72))+IF(Paraméterek!$D$137=1,Negyedéves!AY$54,Negyedéves!AY$49)+IF(Paraméterek!$D$143=1,Negyedéves!AY$42,Negyedéves!AY$37) -> -8.847564459e-09 | AZ13: =IF(Paraméterek!$D$129=1,Negyedéves!AZ$61,IF(Paraméterek!$D$129=4,Negyedéves!AZ$67,Negyedéves!AZ$72))+IF(Paraméterek!$D$137=1,Negyedéves!AZ$54,Negyedéves!AZ$49)+IF(Paraméterek!$D$143=1,Negyedéves!AZ$42,Negyedéves!AZ$37) -> -8.847564459e-09 | BA13: =IF(Paraméterek!$D$129=1,Negyedéves!BA$61,IF(Paraméterek!$D$129=4,Negyedéves!BA$67,Negyedéves!BA$72))+IF(Paraméterek!$D$137=1,Negyedéves!BA$54,Negyedéves!BA$49)+IF(Paraméterek!$D$143=1,Negyedéves!BA$42,Negyedéves!BA$37) -> -8.847564459e-09 | BB13: =IF(Paraméterek!$D$129=1,Negyedéves!BB$61,IF(Paraméterek!$D$129=4,Negyedéves!BB$67,Negyedéves!BB$72))+IF(Paraméterek!$D$137=1,Negyedéves!BB$54,Negyedéves!BB$49)+IF(Paraméterek!$D$143=1,Negyedéves!BB$42,Negyedéves!BB$37) -> -8.847564459e-09 | BC13: =IF(Paraméterek!$D$129=1,Negyedéves!BC$61,IF(Paraméterek!$D$129=4,Negyedéves!BC$67,Negyedéves!BC$72))+IF(Paraméterek!$D$137=1,Negyedéves!BC$54,Negyedéves!BC$49)+IF(Paraméterek!$D$143=1,Negyedéves!BC$42,Negyedéves!BC$37) -> -8.847564459e-09 | BD13: =IF(Paraméterek!$D$129=1,Negyedéves!BD$61,IF(Paraméterek!$D$129=4,Negyedéves!BD$67,Negyedéves!BD$72))+IF(Paraméterek!$D$137=1,Negyedéves!BD$54,Negyedéves!BD$49)+IF(Paraméterek!$D$143=1,Negyedéves!BD$42,Negyedéves!BD$37) -> -8.847564459e-09 | BE13: =IF(Paraméterek!$D$129=1,Negyedéves!BE$61,IF(Paraméterek!$D$129=4,Negyedéves!BE$67,Negyedéves!BE$72))+IF(Paraméterek!$D$137=1,Negyedéves!BE$54,Negyedéves!BE$49)+IF(Paraméterek!$D$143=1,Negyedéves!BE$42,Negyedéves!BE$37) -> -8.847564459e-09 | BF13: =IF(Paraméterek!$D$129=1,Negyedéves!BF$61,IF(Paraméterek!$D$129=4,Negyedéves!BF$67,Negyedéves!BF$72))+IF(Paraméterek!$D$137=1,Negyedéves!BF$54,Negyedéves!BF$49)+IF(Paraméterek!$D$143=1,Negyedéves!BF$42,Negyedéves!BF$37) -> -8.847564459e-09 | BG13: =IF(Paraméterek!$D$129=1,Negyedéves!BG$61,IF(Paraméterek!$D$129=4,Negyedéves!BG$67,Negyedéves!BG$72))+IF(Paraméterek!$D$137=1,Negyedéves!BG$54,Negyedéves!BG$49)+IF(Paraméterek!$D$143=1,Negyedéves!BG$42,Negyedéves!BG$37) -> -8.847564459e-09 | BH13: =IF(Paraméterek!$D$129=1,Negyedéves!BH$61,IF(Paraméterek!$D$129=4,Negyedéves!BH$67,Negyedéves!BH$72))+IF(Paraméterek!$D$137=1,Negyedéves!BH$54,Negyedéves!BH$49)+IF(Paraméterek!$D$143=1,Negyedéves!BH$42,Negyedéves!BH$37) -> -8.847564459e-09 | BI13: =IF(Paraméterek!$D$129=1,Negyedéves!BI$61,IF(Paraméterek!$D$129=4,Negyedéves!BI$67,Negyedéves!BI$72))+IF(Paraméterek!$D$137=1,Negyedéves!BI$54,Negyedéves!BI$49)+IF(Paraméterek!$D$143=1,Negyedéves!BI$42,Negyedéves!BI$37) -> -8.847564459e-09 | BJ13: =IF(Paraméterek!$D$129=1,Negyedéves!BJ$61,IF(Paraméterek!$D$129=4,Negyedéves!BJ$67,Negyedéves!BJ$72))+IF(Paraméterek!$D$137=1,Negyedéves!BJ$54,Negyedéves!BJ$49)+IF(Paraméterek!$D$143=1,Negyedéves!BJ$42,Negyedéves!BJ$37) -> -8.847564459e-09 | BK13: =IF(Paraméterek!$D$129=1,Negyedéves!BK$61,IF(Paraméterek!$D$129=4,Negyedéves!BK$67,Negyedéves!BK$72))+IF(Paraméterek!$D$137=1,Negyedéves!BK$54,Negyedéves!BK$49)+IF(Paraméterek!$D$143=1,Negyedéves!BK$42,Negyedéves!BK$37) -> -8.847564459e-09 | BL13: =IF(Paraméterek!$D$129=1,Negyedéves!BL$61,IF(Paraméterek!$D$129=4,Negyedéves!BL$67,Negyedéves!BL$72))+IF(Paraméterek!$D$137=1,Negyedéves!BL$54,Negyedéves!BL$49)+IF(Paraméterek!$D$143=1,Negyedéves!BL$42,Negyedéves!BL$37) -> -8.847564459e-09 | BM13: =IF(Paraméterek!$D$129=1,Negyedéves!BM$61,IF(Paraméterek!$D$129=4,Negyedéves!BM$67,Negyedéves!BM$72))+IF(Paraméterek!$D$137=1,Negyedéves!BM$54,Negyedéves!BM$49)+IF(Paraméterek!$D$143=1,Negyedéves!BM$42,Negyedéves!BM$37) -> -8.847564459e-09 | BN13: =IF(Paraméterek!$D$129=1,Negyedéves!BN$61,IF(Paraméterek!$D$129=4,Negyedéves!BN$67,Negyedéves!BN$72))+IF(Paraméterek!$D$137=1,Negyedéves!BN$54,Negyedéves!BN$49)+IF(Paraméterek!$D$143=1,Negyedéves!BN$42,Negyedéves!BN$37) -> -8.847564459e-09 | BO13: =IF(Paraméterek!$D$129=1,Negyedéves!BO$61,IF(Paraméterek!$D$129=4,Negyedéves!BO$67,Negyedéves!BO$72))+IF(Paraméterek!$D$137=1,Negyedéves!BO$54,Negyedéves!BO$49)+IF(Paraméterek!$D$143=1,Negyedéves!BO$42,Negyedéves!BO$37) -> -8.847564459e-09 | BP13: =IF(Paraméterek!$D$129=1,Negyedéves!BP$61,IF(Paraméterek!$D$129=4,Negyedéves!BP$67,Negyedéves!BP$72))+IF(Paraméterek!$D$137=1,Negyedéves!BP$54,Negyedéves!BP$49)+IF(Paraméterek!$D$143=1,Negyedéves!BP$42,Negyedéves!BP$37) -> -8.847564459e-09 | BQ13: =IF(Paraméterek!$D$129=1,Negyedéves!BQ$61,IF(Paraméterek!$D$129=4,Negyedéves!BQ$67,Negyedéves!BQ$72))+IF(Paraméterek!$D$137=1,Negyedéves!BQ$54,Negyedéves!BQ$49)+IF(Paraméterek!$D$143=1,Negyedéves!BQ$42,Negyedéves!BQ$37) -> -8.847564459e-09 | BR13: =IF(Paraméterek!$D$129=1,Negyedéves!BR$61,IF(Paraméterek!$D$129=4,Negyedéves!BR$67,Negyedéves!BR$72))+IF(Paraméterek!$D$137=1,Negyedéves!BR$54,Negyedéves!BR$49)+IF(Paraméterek!$D$143=1,Negyedéves!BR$42,Negyedéves!BR$37) -> -8.847564459e-09 | BS13: =IF(Paraméterek!$D$129=1,Negyedéves!BS$61,IF(Paraméterek!$D$129=4,Negyedéves!BS$67,Negyedéves!BS$72))+IF(Paraméterek!$D$137=1,Negyedéves!BS$54,Negyedéves!BS$49)+IF(Paraméterek!$D$143=1,Negyedéves!BS$42,Negyedéves!BS$37) ->  | BT13: x
BT14: x
A15: Beruházási hitel összegzés (Forrásdeviza) | BT15: x
A16: Hitel CF | D16: =IF(Paraméterek!$D$129=1,Negyedéves!D$59,IF(Paraméterek!$D$129=4,Negyedéves!D$65,Negyedéves!D$70)) -> 2520833.333 | E16: =IF(Paraméterek!$D$129=1,Negyedéves!E$59,IF(Paraméterek!$D$129=4,Negyedéves!E$65,Negyedéves!E$70)) -> 2502604.167 | F16: =IF(Paraméterek!$D$129=1,Negyedéves!F$59,IF(Paraméterek!$D$129=4,Negyedéves!F$65,Negyedéves!F$70)) -> 2484375 | G16: =IF(Paraméterek!$D$129=1,Negyedéves!G$59,IF(Paraméterek!$D$129=4,Negyedéves!G$65,Negyedéves!G$70)) -> 2466145.833 | H16: =IF(Paraméterek!$D$129=1,Negyedéves!H$59,IF(Paraméterek!$D$129=4,Negyedéves!H$65,Negyedéves!H$70)) -> 2447916.667 | I16: =IF(Paraméterek!$D$129=1,Negyedéves!I$59,IF(Paraméterek!$D$129=4,Negyedéves!I$65,Negyedéves!I$70)) -> 2429687.5 | J16: =IF(Paraméterek!$D$129=1,Negyedéves!J$59,IF(Paraméterek!$D$129=4,Negyedéves!J$65,Negyedéves!J$70)) -> 2411458.333 | K16: =IF(Paraméterek!$D$129=1,Negyedéves!K$59,IF(Paraméterek!$D$129=4,Negyedéves!K$65,Negyedéves!K$70)) -> 2393229.167 | L16: =IF(Paraméterek!$D$129=1,Negyedéves!L$59,IF(Paraméterek!$D$129=4,Negyedéves!L$65,Negyedéves!L$70)) -> 2375000 | M16: =IF(Paraméterek!$D$129=1,Negyedéves!M$59,IF(Paraméterek!$D$129=4,Negyedéves!M$65,Negyedéves!M$70)) -> 2356770.833 | N16: =IF(Paraméterek!$D$129=1,Negyedéves!N$59,IF(Paraméterek!$D$129=4,Negyedéves!N$65,Negyedéves!N$70)) -> 2338541.667 | O16: =IF(Paraméterek!$D$129=1,Negyedéves!O$59,IF(Paraméterek!$D$129=4,Negyedéves!O$65,Negyedéves!O$70)) -> 2320312.5 | P16: =IF(Paraméterek!$D$129=1,Negyedéves!P$59,IF(Paraméterek!$D$129=4,Negyedéves!P$65,Negyedéves!P$70)) -> 2302083.333 | Q16: =IF(Paraméterek!$D$129=1,Negyedéves!Q$59,IF(Paraméterek!$D$129=4,Negyedéves!Q$65,Negyedéves!Q$70)) -> 2283854.167 | R16: =IF(Paraméterek!$D$129=1,Negyedéves!R$59,IF(Paraméterek!$D$129=4,Negyedéves!R$65,Negyedéves!R$70)) -> 2265625 | S16: =IF(Paraméterek!$D$129=1,Negyedéves!S$59,IF(Paraméterek!$D$129=4,Negyedéves!S$65,Negyedéves!S$70)) -> 2247395.833 | T16: =IF(Paraméterek!$D$129=1,Negyedéves!T$59,IF(Paraméterek!$D$129=4,Negyedéves!T$65,Negyedéves!T$70)) -> 2229166.667 | U16: =IF(Paraméterek!$D$129=1,Negyedéves!U$59,IF(Paraméterek!$D$129=4,Negyedéves!U$65,Negyedéves!U$70)) -> 2210937.5 | V16: =IF(Paraméterek!$D$129=1,Negyedéves!V$59,IF(Paraméterek!$D$129=4,Negyedéves!V$65,Negyedéves!V$70)) -> 2192708.333 | W16: =IF(Paraméterek!$D$129=1,Negyedéves!W$59,IF(Paraméterek!$D$129=4,Negyedéves!W$65,Negyedéves!W$70)) -> 2174479.167 | X16: =IF(Paraméterek!$D$129=1,Negyedéves!X$59,IF(Paraméterek!$D$129=4,Negyedéves!X$65,Negyedéves!X$70)) -> 2156250 | Y16: =IF(Paraméterek!$D$129=1,Negyedéves!Y$59,IF(Paraméterek!$D$129=4,Negyedéves!Y$65,Negyedéves!Y$70)) -> 2138020.833 | Z16: =IF(Paraméterek!$D$129=1,Negyedéves!Z$59,IF(Paraméterek!$D$129=4,Negyedéves!Z$65,Negyedéves!Z$70)) -> 2119791.667 | AA16: =IF(Paraméterek!$D$129=1,Negyedéves!AA$59,IF(Paraméterek!$D$129=4,Negyedéves!AA$65,Negyedéves!AA$70)) -> 2101562.5 | AB16: =IF(Paraméterek!$D$129=1,Negyedéves!AB$59,IF(Paraméterek!$D$129=4,Negyedéves!AB$65,Negyedéves!AB$70)) -> -7.741618901e-11 | AC16: =IF(Paraméterek!$D$129=1,Negyedéves!AC$59,IF(Paraméterek!$D$129=4,Negyedéves!AC$65,Negyedéves!AC$70)) -> -7.741618901e-11 | AD16: =IF(Paraméterek!$D$129=1,Negyedéves!AD$59,IF(Paraméterek!$D$129=4,Negyedéves!AD$65,Negyedéves!AD$70)) -> -7.741618901e-11 | AE16: =IF(Paraméterek!$D$129=1,Negyedéves!AE$59,IF(Paraméterek!$D$129=4,Negyedéves!AE$65,Negyedéves!AE$70)) -> -7.741618901e-11 | AF16: =IF(Paraméterek!$D$129=1,Negyedéves!AF$59,IF(Paraméterek!$D$129=4,Negyedéves!AF$65,Negyedéves!AF$70)) -> -7.741618901e-11 | AG16: =IF(Paraméterek!$D$129=1,Negyedéves!AG$59,IF(Paraméterek!$D$129=4,Negyedéves!AG$65,Negyedéves!AG$70)) -> -7.741618901e-11 | AH16: =IF(Paraméterek!$D$129=1,Negyedéves!AH$59,IF(Paraméterek!$D$129=4,Negyedéves!AH$65,Negyedéves!AH$70)) -> -7.741618901e-11 | AI16: =IF(Paraméterek!$D$129=1,Negyedéves!AI$59,IF(Paraméterek!$D$129=4,Negyedéves!AI$65,Negyedéves!AI$70)) -> -7.741618901e-11 | AJ16: =IF(Paraméterek!$D$129=1,Negyedéves!AJ$59,IF(Paraméterek!$D$129=4,Negyedéves!AJ$65,Negyedéves!AJ$70)) -> -7.741618901e-11 | AK16: =IF(Paraméterek!$D$129=1,Negyedéves!AK$59,IF(Paraméterek!$D$129=4,Negyedéves!AK$65,Negyedéves!AK$70)) -> -7.741618901e-11 | AL16: =IF(Paraméterek!$D$129=1,Negyedéves!AL$59,IF(Paraméterek!$D$129=4,Negyedéves!AL$65,Negyedéves!AL$70)) -> -7.741618901e-11 | AM16: =IF(Paraméterek!$D$129=1,Negyedéves!AM$59,IF(Paraméterek!$D$129=4,Negyedéves!AM$65,Negyedéves!AM$70)) -> -7.741618901e-11 | AN16: =IF(Paraméterek!$D$129=1,Negyedéves!AN$59,IF(Paraméterek!$D$129=4,Negyedéves!AN$65,Negyedéves!AN$70)) -> -7.741618901e-11 | AO16: =IF(Paraméterek!$D$129=1,Negyedéves!AO$59,IF(Paraméterek!$D$129=4,Negyedéves!AO$65,Negyedéves!AO$70)) -> -7.741618901e-11 | AP16: =IF(Paraméterek!$D$129=1,Negyedéves!AP$59,IF(Paraméterek!$D$129=4,Negyedéves!AP$65,Negyedéves!AP$70)) -> -7.741618901e-11 | AQ16: =IF(Paraméterek!$D$129=1,Negyedéves!AQ$59,IF(Paraméterek!$D$129=4,Negyedéves!AQ$65,Negyedéves!AQ$70)) -> -7.741618901e-11 | AR16: =IF(Paraméterek!$D$129=1,Negyedéves!AR$59,IF(Paraméterek!$D$129=4,Negyedéves!AR$65,Negyedéves!AR$70)) -> -7.741618901e-11 | AS16: =IF(Paraméterek!$D$129=1,Negyedéves!AS$59,IF(Paraméterek!$D$129=4,Negyedéves!AS$65,Negyedéves!AS$70)) -> -7.741618901e-11 | AT16: =IF(Paraméterek!$D$129=1,Negyedéves!AT$59,IF(Paraméterek!$D$129=4,Negyedéves!AT$65,Negyedéves!AT$70)) -> -7.741618901e-11 | AU16: =IF(Paraméterek!$D$129=1,Negyedéves!AU$59,IF(Paraméterek!$D$129=4,Negyedéves!AU$65,Negyedéves!AU$70)) -> -7.741618901e-11 | AV16: =IF(Paraméterek!$D$129=1,Negyedéves!AV$59,IF(Paraméterek!$D$129=4,Negyedéves!AV$65,Negyedéves!AV$70)) -> -7.741618901e-11 | AW16: =IF(Paraméterek!$D$129=1,Negyedéves!AW$59,IF(Paraméterek!$D$129=4,Negyedéves!AW$65,Negyedéves!AW$70)) -> -7.741618901e-11 | AX16: =IF(Paraméterek!$D$129=1,Negyedéves!AX$59,IF(Paraméterek!$D$129=4,Negyedéves!AX$65,Negyedéves!AX$70)) -> -7.741618901e-11 | AY16: =IF(Paraméterek!$D$129=1,Negyedéves!AY$59,IF(Paraméterek!$D$129=4,Negyedéves!AY$65,Negyedéves!AY$70)) -> -7.741618901e-11 | AZ16: =IF(Paraméterek!$D$129=1,Negyedéves!AZ$59,IF(Paraméterek!$D$129=4,Negyedéves!AZ$65,Negyedéves!AZ$70)) -> -7.741618901e-11 | BA16: =IF(Paraméterek!$D$129=1,Negyedéves!BA$59,IF(Paraméterek!$D$129=4,Negyedéves!BA$65,Negyedéves!BA$70)) -> -7.741618901e-11 | BB16: =IF(Paraméterek!$D$129=1,Negyedéves!BB$59,IF(Paraméterek!$D$129=4,Negyedéves!BB$65,Negyedéves!BB$70)) -> -7.741618901e-11 | BC16: =IF(Paraméterek!$D$129=1,Negyedéves!BC$59,IF(Paraméterek!$D$129=4,Negyedéves!BC$65,Negyedéves!BC$70)) -> -7.741618901e-11 | BD16: =IF(Paraméterek!$D$129=1,Negyedéves!BD$59,IF(Paraméterek!$D$129=4,Negyedéves!BD$65,Negyedéves!BD$70)) -> -7.741618901e-11 | BE16: =IF(Paraméterek!$D$129=1,Negyedéves!BE$59,IF(Paraméterek!$D$129=4,Negyedéves!BE$65,Negyedéves!BE$70)) -> -7.741618901e-11 | BF16: =IF(Paraméterek!$D$129=1,Negyedéves!BF$59,IF(Paraméterek!$D$129=4,Negyedéves!BF$65,Negyedéves!BF$70)) -> -7.741618901e-11 | BG16: =IF(Paraméterek!$D$129=1,Negyedéves!BG$59,IF(Paraméterek!$D$129=4,Negyedéves!BG$65,Negyedéves!BG$70)) -> -7.741618901e-11 | BH16: =IF(Paraméterek!$D$129=1,Negyedéves!BH$59,IF(Paraméterek!$D$129=4,Negyedéves!BH$65,Negyedéves!BH$70)) -> -7.741618901e-11 | BI16: =IF(Paraméterek!$D$129=1,Negyedéves!BI$59,IF(Paraméterek!$D$129=4,Negyedéves!BI$65,Negyedéves!BI$70)) -> -7.741618901e-11 | BJ16: =IF(Paraméterek!$D$129=1,Negyedéves!BJ$59,IF(Paraméterek!$D$129=4,Negyedéves!BJ$65,Negyedéves!BJ$70)) -> -7.741618901e-11 | BK16: =IF(Paraméterek!$D$129=1,Negyedéves!BK$59,IF(Paraméterek!$D$129=4,Negyedéves!BK$65,Negyedéves!BK$70)) -> -7.741618901e-11 | BL16: =IF(Paraméterek!$D$129=1,Negyedéves!BL$59,IF(Paraméterek!$D$129=4,Negyedéves!BL$65,Negyedéves!BL$70)) -> -7.741618901e-11 | BM16: =IF(Paraméterek!$D$129=1,Negyedéves!BM$59,IF(Paraméterek!$D$129=4,Negyedéves!BM$65,Negyedéves!BM$70)) -> -7.741618901e-11 | BN16: =IF(Paraméterek!$D$129=1,Negyedéves!BN$59,IF(Paraméterek!$D$129=4,Negyedéves!BN$65,Negyedéves!BN$70)) -> -7.741618901e-11 | BO16: =IF(Paraméterek!$D$129=1,Negyedéves!BO$59,IF(Paraméterek!$D$129=4,Negyedéves!BO$65,Negyedéves!BO$70)) -> -7.741618901e-11 | BP16: =IF(Paraméterek!$D$129=1,Negyedéves!BP$59,IF(Paraméterek!$D$129=4,Negyedéves!BP$65,Negyedéves!BP$70)) -> -7.741618901e-11 | BQ16: =IF(Paraméterek!$D$129=1,Negyedéves!BQ$59,IF(Paraméterek!$D$129=4,Negyedéves!BQ$65,Negyedéves!BQ$70)) -> -7.741618901e-11 | BR16: =IF(Paraméterek!$D$129=1,Negyedéves!BR$59,IF(Paraméterek!$D$129=4,Negyedéves!BR$65,Negyedéves!BR$70)) -> -7.741618901e-11 | BS16: =IF(Paraméterek!$D$129=1,Negyedéves!BS$59,IF(Paraméterek!$D$129=4,Negyedéves!BS$65,Negyedéves!BS$70)) -> -7.741618901e-11 | BT16: x
A17: Tőketörlesztés | D17: =IF(Paraméterek!$D$129=1,Negyedéves!D$60,IF(Paraméterek!$D$129=4,Negyedéves!D$66,Negyedéves!D$71)) -> 2083333.333 | E17: =IF(Paraméterek!$D$129=1,Negyedéves!E$60,IF(Paraméterek!$D$129=4,Negyedéves!E$66,Negyedéves!E$71)) -> 2083333.333 | F17: =IF(Paraméterek!$D$129=1,Negyedéves!F$60,IF(Paraméterek!$D$129=4,Negyedéves!F$66,Negyedéves!F$71)) -> 2083333.333 | G17: =IF(Paraméterek!$D$129=1,Negyedéves!G$60,IF(Paraméterek!$D$129=4,Negyedéves!G$66,Negyedéves!G$71)) -> 2083333.333 | H17: =IF(Paraméterek!$D$129=1,Negyedéves!H$60,IF(Paraméterek!$D$129=4,Negyedéves!H$66,Negyedéves!H$71)) -> 2083333.333 | I17: =IF(Paraméterek!$D$129=1,Negyedéves!I$60,IF(Paraméterek!$D$129=4,Negyedéves!I$66,Negyedéves!I$71)) -> 2083333.333 | J17: =IF(Paraméterek!$D$129=1,Negyedéves!J$60,IF(Paraméterek!$D$129=4,Negyedéves!J$66,Negyedéves!J$71)) -> 2083333.333 | K17: =IF(Paraméterek!$D$129=1,Negyedéves!K$60,IF(Paraméterek!$D$129=4,Negyedéves!K$66,Negyedéves!K$71)) -> 2083333.333 | L17: =IF(Paraméterek!$D$129=1,Negyedéves!L$60,IF(Paraméterek!$D$129=4,Negyedéves!L$66,Negyedéves!L$71)) -> 2083333.333 | M17: =IF(Paraméterek!$D$129=1,Negyedéves!M$60,IF(Paraméterek!$D$129=4,Negyedéves!M$66,Negyedéves!M$71)) -> 2083333.333 | N17: =IF(Paraméterek!$D$129=1,Negyedéves!N$60,IF(Paraméterek!$D$129=4,Negyedéves!N$66,Negyedéves!N$71)) -> 2083333.333 | O17: =IF(Paraméterek!$D$129=1,Negyedéves!O$60,IF(Paraméterek!$D$129=4,Negyedéves!O$66,Negyedéves!O$71)) -> 2083333.333 | P17: =IF(Paraméterek!$D$129=1,Negyedéves!P$60,IF(Paraméterek!$D$129=4,Negyedéves!P$66,Negyedéves!P$71)) -> 2083333.333 | Q17: =IF(Paraméterek!$D$129=1,Negyedéves!Q$60,IF(Paraméterek!$D$129=4,Negyedéves!Q$66,Negyedéves!Q$71)) -> 2083333.333 | R17: =IF(Paraméterek!$D$129=1,Negyedéves!R$60,IF(Paraméterek!$D$129=4,Negyedéves!R$66,Negyedéves!R$71)) -> 2083333.333 | S17: =IF(Paraméterek!$D$129=1,Negyedéves!S$60,IF(Paraméterek!$D$129=4,Negyedéves!S$66,Negyedéves!S$71)) -> 2083333.333 | T17: =IF(Paraméterek!$D$129=1,Negyedéves!T$60,IF(Paraméterek!$D$129=4,Negyedéves!T$66,Negyedéves!T$71)) -> 2083333.333 | U17: =IF(Paraméterek!$D$129=1,Negyedéves!U$60,IF(Paraméterek!$D$129=4,Negyedéves!U$66,Negyedéves!U$71)) -> 2083333.333 | V17: =IF(Paraméterek!$D$129=1,Negyedéves!V$60,IF(Paraméterek!$D$129=4,Negyedéves!V$66,Negyedéves!V$71)) -> 2083333.333 | W17: =IF(Paraméterek!$D$129=1,Negyedéves!W$60,IF(Paraméterek!$D$129=4,Negyedéves!W$66,Negyedéves!W$71)) -> 2083333.333 | X17: =IF(Paraméterek!$D$129=1,Negyedéves!X$60,IF(Paraméterek!$D$129=4,Negyedéves!X$66,Negyedéves!X$71)) -> 2083333.333 | Y17: =IF(Paraméterek!$D$129=1,Negyedéves!Y$60,IF(Paraméterek!$D$129=4,Negyedéves!Y$66,Negyedéves!Y$71)) -> 2083333.333 | Z17: =IF(Paraméterek!$D$129=1,Negyedéves!Z$60,IF(Paraméterek!$D$129=4,Negyedéves!Z$66,Negyedéves!Z$71)) -> 2083333.333 | AA17: =IF(Paraméterek!$D$129=1,Negyedéves!AA$60,IF(Paraméterek!$D$129=4,Negyedéves!AA$66,Negyedéves!AA$71)) -> 2083333.333 | AB17: =IF(Paraméterek!$D$129=1,Negyedéves!AB$60,IF(Paraméterek!$D$129=4,Negyedéves!AB$66,Negyedéves!AB$71)) -> 0 | AC17: =IF(Paraméterek!$D$129=1,Negyedéves!AC$60,IF(Paraméterek!$D$129=4,Negyedéves!AC$66,Negyedéves!AC$71)) -> 0 | AD17: =IF(Paraméterek!$D$129=1,Negyedéves!AD$60,IF(Paraméterek!$D$129=4,Negyedéves!AD$66,Negyedéves!AD$71)) -> 0 | AE17: =IF(Paraméterek!$D$129=1,Negyedéves!AE$60,IF(Paraméterek!$D$129=4,Negyedéves!AE$66,Negyedéves!AE$71)) -> 0 | AF17: =IF(Paraméterek!$D$129=1,Negyedéves!AF$60,IF(Paraméterek!$D$129=4,Negyedéves!AF$66,Negyedéves!AF$71)) -> 0 | AG17: =IF(Paraméterek!$D$129=1,Negyedéves!AG$60,IF(Paraméterek!$D$129=4,Negyedéves!AG$66,Negyedéves!AG$71)) -> 0 | AH17: =IF(Paraméterek!$D$129=1,Negyedéves!AH$60,IF(Paraméterek!$D$129=4,Negyedéves!AH$66,Negyedéves!AH$71)) -> 0 | AI17: =IF(Paraméterek!$D$129=1,Negyedéves!AI$60,IF(Paraméterek!$D$129=4,Negyedéves!AI$66,Negyedéves!AI$71)) -> 0 | AJ17: =IF(Paraméterek!$D$129=1,Negyedéves!AJ$60,IF(Paraméterek!$D$129=4,Negyedéves!AJ$66,Negyedéves!AJ$71)) -> 0 | AK17: =IF(Paraméterek!$D$129=1,Negyedéves!AK$60,IF(Paraméterek!$D$129=4,Negyedéves!AK$66,Negyedéves!AK$71)) -> 0 | AL17: =IF(Paraméterek!$D$129=1,Negyedéves!AL$60,IF(Paraméterek!$D$129=4,Negyedéves!AL$66,Negyedéves!AL$71)) -> 0 | AM17: =IF(Paraméterek!$D$129=1,Negyedéves!AM$60,IF(Paraméterek!$D$129=4,Negyedéves!AM$66,Negyedéves!AM$71)) -> 0 | AN17: =IF(Paraméterek!$D$129=1,Negyedéves!AN$60,IF(Paraméterek!$D$129=4,Negyedéves!AN$66,Negyedéves!AN$71)) -> 0 | AO17: =IF(Paraméterek!$D$129=1,Negyedéves!AO$60,IF(Paraméterek!$D$129=4,Negyedéves!AO$66,Negyedéves!AO$71)) -> 0 | AP17: =IF(Paraméterek!$D$129=1,Negyedéves!AP$60,IF(Paraméterek!$D$129=4,Negyedéves!AP$66,Negyedéves!AP$71)) -> 0 | AQ17: =IF(Paraméterek!$D$129=1,Negyedéves!AQ$60,IF(Paraméterek!$D$129=4,Negyedéves!AQ$66,Negyedéves!AQ$71)) -> 0 | AR17: =IF(Paraméterek!$D$129=1,Negyedéves!AR$60,IF(Paraméterek!$D$129=4,Negyedéves!AR$66,Negyedéves!AR$71)) -> 0 | AS17: =IF(Paraméterek!$D$129=1,Negyedéves!AS$60,IF(Paraméterek!$D$129=4,Negyedéves!AS$66,Negyedéves!AS$71)) -> 0 | AT17: =IF(Paraméterek!$D$129=1,Negyedéves!AT$60,IF(Paraméterek!$D$129=4,Negyedéves!AT$66,Negyedéves!AT$71)) -> 0 | AU17: =IF(Paraméterek!$D$129=1,Negyedéves!AU$60,IF(Paraméterek!$D$129=4,Negyedéves!AU$66,Negyedéves!AU$71)) -> 0 | AV17: =IF(Paraméterek!$D$129=1,Negyedéves!AV$60,IF(Paraméterek!$D$129=4,Negyedéves!AV$66,Negyedéves!AV$71)) -> 0 | AW17: =IF(Paraméterek!$D$129=1,Negyedéves!AW$60,IF(Paraméterek!$D$129=4,Negyedéves!AW$66,Negyedéves!AW$71)) -> 0 | AX17: =IF(Paraméterek!$D$129=1,Negyedéves!AX$60,IF(Paraméterek!$D$129=4,Negyedéves!AX$66,Negyedéves!AX$71)) -> 0 | AY17: =IF(Paraméterek!$D$129=1,Negyedéves!AY$60,IF(Paraméterek!$D$129=4,Negyedéves!AY$66,Negyedéves!AY$71)) -> 0 | AZ17: =IF(Paraméterek!$D$129=1,Negyedéves!AZ$60,IF(Paraméterek!$D$129=4,Negyedéves!AZ$66,Negyedéves!AZ$71)) -> 0 | BA17: =IF(Paraméterek!$D$129=1,Negyedéves!BA$60,IF(Paraméterek!$D$129=4,Negyedéves!BA$66,Negyedéves!BA$71)) -> 0 | BB17: =IF(Paraméterek!$D$129=1,Negyedéves!BB$60,IF(Paraméterek!$D$129=4,Negyedéves!BB$66,Negyedéves!BB$71)) -> 0 | BC17: =IF(Paraméterek!$D$129=1,Negyedéves!BC$60,IF(Paraméterek!$D$129=4,Negyedéves!BC$66,Negyedéves!BC$71)) -> 0 | BD17: =IF(Paraméterek!$D$129=1,Negyedéves!BD$60,IF(Paraméterek!$D$129=4,Negyedéves!BD$66,Negyedéves!BD$71)) -> 0 | BE17: =IF(Paraméterek!$D$129=1,Negyedéves!BE$60,IF(Paraméterek!$D$129=4,Negyedéves!BE$66,Negyedéves!BE$71)) -> 0 | BF17: =IF(Paraméterek!$D$129=1,Negyedéves!BF$60,IF(Paraméterek!$D$129=4,Negyedéves!BF$66,Negyedéves!BF$71)) -> 0 | BG17: =IF(Paraméterek!$D$129=1,Negyedéves!BG$60,IF(Paraméterek!$D$129=4,Negyedéves!BG$66,Negyedéves!BG$71)) -> 0 | BH17: =IF(Paraméterek!$D$129=1,Negyedéves!BH$60,IF(Paraméterek!$D$129=4,Negyedéves!BH$66,Negyedéves!BH$71)) -> 0 | BI17: =IF(Paraméterek!$D$129=1,Negyedéves!BI$60,IF(Paraméterek!$D$129=4,Negyedéves!BI$66,Negyedéves!BI$71)) -> 0 | BJ17: =IF(Paraméterek!$D$129=1,Negyedéves!BJ$60,IF(Paraméterek!$D$129=4,Negyedéves!BJ$66,Negyedéves!BJ$71)) -> 0 | BK17: =IF(Paraméterek!$D$129=1,Negyedéves!BK$60,IF(Paraméterek!$D$129=4,Negyedéves!BK$66,Negyedéves!BK$71)) -> 0 | BL17: =IF(Paraméterek!$D$129=1,Negyedéves!BL$60,IF(Paraméterek!$D$129=4,Negyedéves!BL$66,Negyedéves!BL$71)) -> 0 | BM17: =IF(Paraméterek!$D$129=1,Negyedéves!BM$60,IF(Paraméterek!$D$129=4,Negyedéves!BM$66,Negyedéves!BM$71)) -> 0 | BN17: =IF(Paraméterek!$D$129=1,Negyedéves!BN$60,IF(Paraméterek!$D$129=4,Negyedéves!BN$66,Negyedéves!BN$71)) -> 0 | BO17: =IF(Paraméterek!$D$129=1,Negyedéves!BO$60,IF(Paraméterek!$D$129=4,Negyedéves!BO$66,Negyedéves!BO$71)) -> 0 | BP17: =IF(Paraméterek!$D$129=1,Negyedéves!BP$60,IF(Paraméterek!$D$129=4,Negyedéves!BP$66,Negyedéves!BP$71)) -> 0 | BQ17: =IF(Paraméterek!$D$129=1,Negyedéves!BQ$60,IF(Paraméterek!$D$129=4,Negyedéves!BQ$66,Negyedéves!BQ$71)) -> 0 | BR17: =IF(Paraméterek!$D$129=1,Negyedéves!BR$60,IF(Paraméterek!$D$129=4,Negyedéves!BR$66,Negyedéves!BR$71)) -> 0 | BS17: =IF(Paraméterek!$D$129=1,Negyedéves!BS$60,IF(Paraméterek!$D$129=4,Negyedéves!BS$66,Negyedéves!BS$71)) -> 0 | BT17: x
A18: Kamattörlesztés | D18: =IF(Paraméterek!$D$129=1,Negyedéves!D$62,IF(Paraméterek!$D$129=4,Negyedéves!D$68,Negyedéves!D$73)) -> 437500 | E18: =IF(Paraméterek!$D$129=1,Negyedéves!E$62,IF(Paraméterek!$D$129=4,Negyedéves!E$68,Negyedéves!E$73)) -> 419270.8333 | F18: =IF(Paraméterek!$D$129=1,Negyedéves!F$62,IF(Paraméterek!$D$129=4,Negyedéves!F$68,Negyedéves!F$73)) -> 401041.6667 | G18: =IF(Paraméterek!$D$129=1,Negyedéves!G$62,IF(Paraméterek!$D$129=4,Negyedéves!G$68,Negyedéves!G$73)) -> 382812.5 | H18: =IF(Paraméterek!$D$129=1,Negyedéves!H$62,IF(Paraméterek!$D$129=4,Negyedéves!H$68,Negyedéves!H$73)) -> 364583.3333 | I18: =IF(Paraméterek!$D$129=1,Negyedéves!I$62,IF(Paraméterek!$D$129=4,Negyedéves!I$68,Negyedéves!I$73)) -> 346354.1667 | J18: =IF(Paraméterek!$D$129=1,Negyedéves!J$62,IF(Paraméterek!$D$129=4,Negyedéves!J$68,Negyedéves!J$73)) -> 328125 | K18: =IF(Paraméterek!$D$129=1,Negyedéves!K$62,IF(Paraméterek!$D$129=4,Negyedéves!K$68,Negyedéves!K$73)) -> 309895.8333 | L18: =IF(Paraméterek!$D$129=1,Negyedéves!L$62,IF(Paraméterek!$D$129=4,Negyedéves!L$68,Negyedéves!L$73)) -> 291666.6667 | M18: =IF(Paraméterek!$D$129=1,Negyedéves!M$62,IF(Paraméterek!$D$129=4,Negyedéves!M$68,Negyedéves!M$73)) -> 273437.5 | N18: =IF(Paraméterek!$D$129=1,Negyedéves!N$62,IF(Paraméterek!$D$129=4,Negyedéves!N$68,Negyedéves!N$73)) -> 255208.3333 | O18: =IF(Paraméterek!$D$129=1,Negyedéves!O$62,IF(Paraméterek!$D$129=4,Negyedéves!O$68,Negyedéves!O$73)) -> 236979.1667 | P18: =IF(Paraméterek!$D$129=1,Negyedéves!P$62,IF(Paraméterek!$D$129=4,Negyedéves!P$68,Negyedéves!P$73)) -> 218750 | Q18: =IF(Paraméterek!$D$129=1,Negyedéves!Q$62,IF(Paraméterek!$D$129=4,Negyedéves!Q$68,Negyedéves!Q$73)) -> 200520.8333 | R18: =IF(Paraméterek!$D$129=1,Negyedéves!R$62,IF(Paraméterek!$D$129=4,Negyedéves!R$68,Negyedéves!R$73)) -> 182291.6667 | S18: =IF(Paraméterek!$D$129=1,Negyedéves!S$62,IF(Paraméterek!$D$129=4,Negyedéves!S$68,Negyedéves!S$73)) -> 164062.5 | T18: =IF(Paraméterek!$D$129=1,Negyedéves!T$62,IF(Paraméterek!$D$129=4,Negyedéves!T$68,Negyedéves!T$73)) -> 145833.3333 | U18: =IF(Paraméterek!$D$129=1,Negyedéves!U$62,IF(Paraméterek!$D$129=4,Negyedéves!U$68,Negyedéves!U$73)) -> 127604.1667 | V18: =IF(Paraméterek!$D$129=1,Negyedéves!V$62,IF(Paraméterek!$D$129=4,Negyedéves!V$68,Negyedéves!V$73)) -> 109375 | W18: =IF(Paraméterek!$D$129=1,Negyedéves!W$62,IF(Paraméterek!$D$129=4,Negyedéves!W$68,Negyedéves!W$73)) -> 91145.83333 | X18: =IF(Paraméterek!$D$129=1,Negyedéves!X$62,IF(Paraméterek!$D$129=4,Negyedéves!X$68,Negyedéves!X$73)) -> 72916.66667 | Y18: =IF(Paraméterek!$D$129=1,Negyedéves!Y$62,IF(Paraméterek!$D$129=4,Negyedéves!Y$68,Negyedéves!Y$73)) -> 54687.5 | Z18: =IF(Paraméterek!$D$129=1,Negyedéves!Z$62,IF(Paraméterek!$D$129=4,Negyedéves!Z$68,Negyedéves!Z$73)) -> 36458.33333 | AA18: =IF(Paraméterek!$D$129=1,Negyedéves!AA$62,IF(Paraméterek!$D$129=4,Negyedéves!AA$68,Negyedéves!AA$73)) -> 18229.16667 | AB18: =IF(Paraméterek!$D$129=1,Negyedéves!AB$62,IF(Paraméterek!$D$129=4,Negyedéves!AB$68,Negyedéves!AB$73)) -> -7.741618901e-11 | AC18: =IF(Paraméterek!$D$129=1,Negyedéves!AC$62,IF(Paraméterek!$D$129=4,Negyedéves!AC$68,Negyedéves!AC$73)) -> -7.741618901e-11 | AD18: =IF(Paraméterek!$D$129=1,Negyedéves!AD$62,IF(Paraméterek!$D$129=4,Negyedéves!AD$68,Negyedéves!AD$73)) -> -7.741618901e-11 | AE18: =IF(Paraméterek!$D$129=1,Negyedéves!AE$62,IF(Paraméterek!$D$129=4,Negyedéves!AE$68,Negyedéves!AE$73)) -> -7.741618901e-11 | AF18: =IF(Paraméterek!$D$129=1,Negyedéves!AF$62,IF(Paraméterek!$D$129=4,Negyedéves!AF$68,Negyedéves!AF$73)) -> -7.741618901e-11 | AG18: =IF(Paraméterek!$D$129=1,Negyedéves!AG$62,IF(Paraméterek!$D$129=4,Negyedéves!AG$68,Negyedéves!AG$73)) -> -7.741618901e-11 | AH18: =IF(Paraméterek!$D$129=1,Negyedéves!AH$62,IF(Paraméterek!$D$129=4,Negyedéves!AH$68,Negyedéves!AH$73)) -> -7.741618901e-11 | AI18: =IF(Paraméterek!$D$129=1,Negyedéves!AI$62,IF(Paraméterek!$D$129=4,Negyedéves!AI$68,Negyedéves!AI$73)) -> -7.741618901e-11 | AJ18: =IF(Paraméterek!$D$129=1,Negyedéves!AJ$62,IF(Paraméterek!$D$129=4,Negyedéves!AJ$68,Negyedéves!AJ$73)) -> -7.741618901e-11 | AK18: =IF(Paraméterek!$D$129=1,Negyedéves!AK$62,IF(Paraméterek!$D$129=4,Negyedéves!AK$68,Negyedéves!AK$73)) -> -7.741618901e-11 | AL18: =IF(Paraméterek!$D$129=1,Negyedéves!AL$62,IF(Paraméterek!$D$129=4,Negyedéves!AL$68,Negyedéves!AL$73)) -> -7.741618901e-11 | AM18: =IF(Paraméterek!$D$129=1,Negyedéves!AM$62,IF(Paraméterek!$D$129=4,Negyedéves!AM$68,Negyedéves!AM$73)) -> -7.741618901e-11 | AN18: =IF(Paraméterek!$D$129=1,Negyedéves!AN$62,IF(Paraméterek!$D$129=4,Negyedéves!AN$68,Negyedéves!AN$73)) -> -7.741618901e-11 | AO18: =IF(Paraméterek!$D$129=1,Negyedéves!AO$62,IF(Paraméterek!$D$129=4,Negyedéves!AO$68,Negyedéves!AO$73)) -> -7.741618901e-11 | AP18: =IF(Paraméterek!$D$129=1,Negyedéves!AP$62,IF(Paraméterek!$D$129=4,Negyedéves!AP$68,Negyedéves!AP$73)) -> -7.741618901e-11 | AQ18: =IF(Paraméterek!$D$129=1,Negyedéves!AQ$62,IF(Paraméterek!$D$129=4,Negyedéves!AQ$68,Negyedéves!AQ$73)) -> -7.741618901e-11 | AR18: =IF(Paraméterek!$D$129=1,Negyedéves!AR$62,IF(Paraméterek!$D$129=4,Negyedéves!AR$68,Negyedéves!AR$73)) -> -7.741618901e-11 | AS18: =IF(Paraméterek!$D$129=1,Negyedéves!AS$62,IF(Paraméterek!$D$129=4,Negyedéves!AS$68,Negyedéves!AS$73)) -> -7.741618901e-11 | AT18: =IF(Paraméterek!$D$129=1,Negyedéves!AT$62,IF(Paraméterek!$D$129=4,Negyedéves!AT$68,Negyedéves!AT$73)) -> -7.741618901e-11 | AU18: =IF(Paraméterek!$D$129=1,Negyedéves!AU$62,IF(Paraméterek!$D$129=4,Negyedéves!AU$68,Negyedéves!AU$73)) -> -7.741618901e-11 | AV18: =IF(Paraméterek!$D$129=1,Negyedéves!AV$62,IF(Paraméterek!$D$129=4,Negyedéves!AV$68,Negyedéves!AV$73)) -> -7.741618901e-11 | AW18: =IF(Paraméterek!$D$129=1,Negyedéves!AW$62,IF(Paraméterek!$D$129=4,Negyedéves!AW$68,Negyedéves!AW$73)) -> -7.741618901e-11 | AX18: =IF(Paraméterek!$D$129=1,Negyedéves!AX$62,IF(Paraméterek!$D$129=4,Negyedéves!AX$68,Negyedéves!AX$73)) -> -7.741618901e-11 | AY18: =IF(Paraméterek!$D$129=1,Negyedéves!AY$62,IF(Paraméterek!$D$129=4,Negyedéves!AY$68,Negyedéves!AY$73)) -> -7.741618901e-11 | AZ18: =IF(Paraméterek!$D$129=1,Negyedéves!AZ$62,IF(Paraméterek!$D$129=4,Negyedéves!AZ$68,Negyedéves!AZ$73)) -> -7.741618901e-11 | BA18: =IF(Paraméterek!$D$129=1,Negyedéves!BA$62,IF(Paraméterek!$D$129=4,Negyedéves!BA$68,Negyedéves!BA$73)) -> -7.741618901e-11 | BB18: =IF(Paraméterek!$D$129=1,Negyedéves!BB$62,IF(Paraméterek!$D$129=4,Negyedéves!BB$68,Negyedéves!BB$73)) -> -7.741618901e-11 | BC18: =IF(Paraméterek!$D$129=1,Negyedéves!BC$62,IF(Paraméterek!$D$129=4,Negyedéves!BC$68,Negyedéves!BC$73)) -> -7.741618901e-11 | BD18: =IF(Paraméterek!$D$129=1,Negyedéves!BD$62,IF(Paraméterek!$D$129=4,Negyedéves!BD$68,Negyedéves!BD$73)) -> -7.741618901e-11 | BE18: =IF(Paraméterek!$D$129=1,Negyedéves!BE$62,IF(Paraméterek!$D$129=4,Negyedéves!BE$68,Negyedéves!BE$73)) -> -7.741618901e-11 | BF18: =IF(Paraméterek!$D$129=1,Negyedéves!BF$62,IF(Paraméterek!$D$129=4,Negyedéves!BF$68,Negyedéves!BF$73)) -> -7.741618901e-11 | BG18: =IF(Paraméterek!$D$129=1,Negyedéves!BG$62,IF(Paraméterek!$D$129=4,Negyedéves!BG$68,Negyedéves!BG$73)) -> -7.741618901e-11 | BH18: =IF(Paraméterek!$D$129=1,Negyedéves!BH$62,IF(Paraméterek!$D$129=4,Negyedéves!BH$68,Negyedéves!BH$73)) -> -7.741618901e-11 | BI18: =IF(Paraméterek!$D$129=1,Negyedéves!BI$62,IF(Paraméterek!$D$129=4,Negyedéves!BI$68,Negyedéves!BI$73)) -> -7.741618901e-11 | BJ18: =IF(Paraméterek!$D$129=1,Negyedéves!BJ$62,IF(Paraméterek!$D$129=4,Negyedéves!BJ$68,Negyedéves!BJ$73)) -> -7.741618901e-11 | BK18: =IF(Paraméterek!$D$129=1,Negyedéves!BK$62,IF(Paraméterek!$D$129=4,Negyedéves!BK$68,Negyedéves!BK$73)) -> -7.741618901e-11 | BL18: =IF(Paraméterek!$D$129=1,Negyedéves!BL$62,IF(Paraméterek!$D$129=4,Negyedéves!BL$68,Negyedéves!BL$73)) -> -7.741618901e-11 | BM18: =IF(Paraméterek!$D$129=1,Negyedéves!BM$62,IF(Paraméterek!$D$129=4,Negyedéves!BM$68,Negyedéves!BM$73)) -> -7.741618901e-11 | BN18: =IF(Paraméterek!$D$129=1,Negyedéves!BN$62,IF(Paraméterek!$D$129=4,Negyedéves!BN$68,Negyedéves!BN$73)) -> -7.741618901e-11 | BO18: =IF(Paraméterek!$D$129=1,Negyedéves!BO$62,IF(Paraméterek!$D$129=4,Negyedéves!BO$68,Negyedéves!BO$73)) -> -7.741618901e-11 | BP18: =IF(Paraméterek!$D$129=1,Negyedéves!BP$62,IF(Paraméterek!$D$129=4,Negyedéves!BP$68,Negyedéves!BP$73)) -> -7.741618901e-11 | BQ18: =IF(Paraméterek!$D$129=1,Negyedéves!BQ$62,IF(Paraméterek!$D$129=4,Negyedéves!BQ$68,Negyedéves!BQ$73)) -> -7.741618901e-11 | BR18: =IF(Paraméterek!$D$129=1,Negyedéves!BR$62,IF(Paraméterek!$D$129=4,Negyedéves!BR$68,Negyedéves!BR$73)) -> -7.741618901e-11 | BS18: =IF(Paraméterek!$D$129=1,Negyedéves!BS$62,IF(Paraméterek!$D$129=4,Negyedéves!BS$68,Negyedéves!BS$73)) -> -7.741618901e-11 | BT18: x
A19: Fennálló tőketartozás | C19: =C61 -> 50000000 | D19: =IF(Paraméterek!$D$129=1,Negyedéves!D$61,IF(Paraméterek!$D$129=4,Negyedéves!D$67,Negyedéves!D$72)) -> 47916666.67 | E19: =IF(Paraméterek!$D$129=1,Negyedéves!E$61,IF(Paraméterek!$D$129=4,Negyedéves!E$67,Negyedéves!E$72)) -> 45833333.33 | F19: =IF(Paraméterek!$D$129=1,Negyedéves!F$61,IF(Paraméterek!$D$129=4,Negyedéves!F$67,Negyedéves!F$72)) -> 43750000 | G19: =IF(Paraméterek!$D$129=1,Negyedéves!G$61,IF(Paraméterek!$D$129=4,Negyedéves!G$67,Negyedéves!G$72)) -> 41666666.67 | H19: =IF(Paraméterek!$D$129=1,Negyedéves!H$61,IF(Paraméterek!$D$129=4,Negyedéves!H$67,Negyedéves!H$72)) -> 39583333.33 | I19: =IF(Paraméterek!$D$129=1,Negyedéves!I$61,IF(Paraméterek!$D$129=4,Negyedéves!I$67,Negyedéves!I$72)) -> 37500000 | J19: =IF(Paraméterek!$D$129=1,Negyedéves!J$61,IF(Paraméterek!$D$129=4,Negyedéves!J$67,Negyedéves!J$72)) -> 35416666.67 | K19: =IF(Paraméterek!$D$129=1,Negyedéves!K$61,IF(Paraméterek!$D$129=4,Negyedéves!K$67,Negyedéves!K$72)) -> 33333333.33 | L19: =IF(Paraméterek!$D$129=1,Negyedéves!L$61,IF(Paraméterek!$D$129=4,Negyedéves!L$67,Negyedéves!L$72)) -> 31250000 | M19: =IF(Paraméterek!$D$129=1,Negyedéves!M$61,IF(Paraméterek!$D$129=4,Negyedéves!M$67,Negyedéves!M$72)) -> 29166666.67 | N19: =IF(Paraméterek!$D$129=1,Negyedéves!N$61,IF(Paraméterek!$D$129=4,Negyedéves!N$67,Negyedéves!N$72)) -> 27083333.33 | O19: =IF(Paraméterek!$D$129=1,Negyedéves!O$61,IF(Paraméterek!$D$129=4,Negyedéves!O$67,Negyedéves!O$72)) -> 25000000 | P19: =IF(Paraméterek!$D$129=1,Negyedéves!P$61,IF(Paraméterek!$D$129=4,Negyedéves!P$67,Negyedéves!P$72)) -> 22916666.67 | Q19: =IF(Paraméterek!$D$129=1,Negyedéves!Q$61,IF(Paraméterek!$D$129=4,Negyedéves!Q$67,Negyedéves!Q$72)) -> 20833333.33 | R19: =IF(Paraméterek!$D$129=1,Negyedéves!R$61,IF(Paraméterek!$D$129=4,Negyedéves!R$67,Negyedéves!R$72)) -> 18750000 | S19: =IF(Paraméterek!$D$129=1,Negyedéves!S$61,IF(Paraméterek!$D$129=4,Negyedéves!S$67,Negyedéves!S$72)) -> 16666666.67 | T19: =IF(Paraméterek!$D$129=1,Negyedéves!T$61,IF(Paraméterek!$D$129=4,Negyedéves!T$67,Negyedéves!T$72)) -> 14583333.33 | U19: =IF(Paraméterek!$D$129=1,Negyedéves!U$61,IF(Paraméterek!$D$129=4,Negyedéves!U$67,Negyedéves!U$72)) -> 12500000 | V19: =IF(Paraméterek!$D$129=1,Negyedéves!V$61,IF(Paraméterek!$D$129=4,Negyedéves!V$67,Negyedéves!V$72)) -> 10416666.67 | W19: =IF(Paraméterek!$D$129=1,Negyedéves!W$61,IF(Paraméterek!$D$129=4,Negyedéves!W$67,Negyedéves!W$72)) -> 8333333.333 | X19: =IF(Paraméterek!$D$129=1,Negyedéves!X$61,IF(Paraméterek!$D$129=4,Negyedéves!X$67,Negyedéves!X$72)) -> 6250000 | Y19: =IF(Paraméterek!$D$129=1,Negyedéves!Y$61,IF(Paraméterek!$D$129=4,Negyedéves!Y$67,Negyedéves!Y$72)) -> 4166666.667 | Z19: =IF(Paraméterek!$D$129=1,Negyedéves!Z$61,IF(Paraméterek!$D$129=4,Negyedéves!Z$67,Negyedéves!Z$72)) -> 2083333.333 | AA19: =IF(Paraméterek!$D$129=1,Negyedéves!AA$61,IF(Paraméterek!$D$129=4,Negyedéves!AA$67,Negyedéves!AA$72)) -> -8.847564459e-09 | AB19: =IF(Paraméterek!$D$129=1,Negyedéves!AB$61,IF(Paraméterek!$D$129=4,Negyedéves!AB$67,Negyedéves!AB$72)) -> -8.847564459e-09 | AC19: =IF(Paraméterek!$D$129=1,Negyedéves!AC$61,IF(Paraméterek!$D$129=4,Negyedéves!AC$67,Negyedéves!AC$72)) -> -8.847564459e-09 | AD19: =IF(Paraméterek!$D$129=1,Negyedéves!AD$61,IF(Paraméterek!$D$129=4,Negyedéves!AD$67,Negyedéves!AD$72)) -> -8.847564459e-09 | AE19: =IF(Paraméterek!$D$129=1,Negyedéves!AE$61,IF(Paraméterek!$D$129=4,Negyedéves!AE$67,Negyedéves!AE$72)) -> -8.847564459e-09 | AF19: =IF(Paraméterek!$D$129=1,Negyedéves!AF$61,IF(Paraméterek!$D$129=4,Negyedéves!AF$67,Negyedéves!AF$72)) -> -8.847564459e-09 | AG19: =IF(Paraméterek!$D$129=1,Negyedéves!AG$61,IF(Paraméterek!$D$129=4,Negyedéves!AG$67,Negyedéves!AG$72)) -> -8.847564459e-09 | AH19: =IF(Paraméterek!$D$129=1,Negyedéves!AH$61,IF(Paraméterek!$D$129=4,Negyedéves!AH$67,Negyedéves!AH$72)) -> -8.847564459e-09 | AI19: =IF(Paraméterek!$D$129=1,Negyedéves!AI$61,IF(Paraméterek!$D$129=4,Negyedéves!AI$67,Negyedéves!AI$72)) -> -8.847564459e-09 | AJ19: =IF(Paraméterek!$D$129=1,Negyedéves!AJ$61,IF(Paraméterek!$D$129=4,Negyedéves!AJ$67,Negyedéves!AJ$72)) -> -8.847564459e-09 | AK19: =IF(Paraméterek!$D$129=1,Negyedéves!AK$61,IF(Paraméterek!$D$129=4,Negyedéves!AK$67,Negyedéves!AK$72)) -> -8.847564459e-09 | AL19: =IF(Paraméterek!$D$129=1,Negyedéves!AL$61,IF(Paraméterek!$D$129=4,Negyedéves!AL$67,Negyedéves!AL$72)) -> -8.847564459e-09 | AM19: =IF(Paraméterek!$D$129=1,Negyedéves!AM$61,IF(Paraméterek!$D$129=4,Negyedéves!AM$67,Negyedéves!AM$72)) -> -8.847564459e-09 | AN19: =IF(Paraméterek!$D$129=1,Negyedéves!AN$61,IF(Paraméterek!$D$129=4,Negyedéves!AN$67,Negyedéves!AN$72)) -> -8.847564459e-09 | AO19: =IF(Paraméterek!$D$129=1,Negyedéves!AO$61,IF(Paraméterek!$D$129=4,Negyedéves!AO$67,Negyedéves!AO$72)) -> -8.847564459e-09 | AP19: =IF(Paraméterek!$D$129=1,Negyedéves!AP$61,IF(Paraméterek!$D$129=4,Negyedéves!AP$67,Negyedéves!AP$72)) -> -8.847564459e-09 | AQ19: =IF(Paraméterek!$D$129=1,Negyedéves!AQ$61,IF(Paraméterek!$D$129=4,Negyedéves!AQ$67,Negyedéves!AQ$72)) -> -8.847564459e-09 | AR19: =IF(Paraméterek!$D$129=1,Negyedéves!AR$61,IF(Paraméterek!$D$129=4,Negyedéves!AR$67,Negyedéves!AR$72)) -> -8.847564459e-09 | AS19: =IF(Paraméterek!$D$129=1,Negyedéves!AS$61,IF(Paraméterek!$D$129=4,Negyedéves!AS$67,Negyedéves!AS$72)) -> -8.847564459e-09 | AT19: =IF(Paraméterek!$D$129=1,Negyedéves!AT$61,IF(Paraméterek!$D$129=4,Negyedéves!AT$67,Negyedéves!AT$72)) -> -8.847564459e-09 | AU19: =IF(Paraméterek!$D$129=1,Negyedéves!AU$61,IF(Paraméterek!$D$129=4,Negyedéves!AU$67,Negyedéves!AU$72)) -> -8.847564459e-09 | AV19: =IF(Paraméterek!$D$129=1,Negyedéves!AV$61,IF(Paraméterek!$D$129=4,Negyedéves!AV$67,Negyedéves!AV$72)) -> -8.847564459e-09 | AW19: =IF(Paraméterek!$D$129=1,Negyedéves!AW$61,IF(Paraméterek!$D$129=4,Negyedéves!AW$67,Negyedéves!AW$72)) -> -8.847564459e-09 | AX19: =IF(Paraméterek!$D$129=1,Negyedéves!AX$61,IF(Paraméterek!$D$129=4,Negyedéves!AX$67,Negyedéves!AX$72)) -> -8.847564459e-09 | AY19: =IF(Paraméterek!$D$129=1,Negyedéves!AY$61,IF(Paraméterek!$D$129=4,Negyedéves!AY$67,Negyedéves!AY$72)) -> -8.847564459e-09 | AZ19: =IF(Paraméterek!$D$129=1,Negyedéves!AZ$61,IF(Paraméterek!$D$129=4,Negyedéves!AZ$67,Negyedéves!AZ$72)) -> -8.847564459e-09 | BA19: =IF(Paraméterek!$D$129=1,Negyedéves!BA$61,IF(Paraméterek!$D$129=4,Negyedéves!BA$67,Negyedéves!BA$72)) -> -8.847564459e-09 | BB19: =IF(Paraméterek!$D$129=1,Negyedéves!BB$61,IF(Paraméterek!$D$129=4,Negyedéves!BB$67,Negyedéves!BB$72)) -> -8.847564459e-09 | BC19: =IF(Paraméterek!$D$129=1,Negyedéves!BC$61,IF(Paraméterek!$D$129=4,Negyedéves!BC$67,Negyedéves!BC$72)) -> -8.847564459e-09 | BD19: =IF(Paraméterek!$D$129=1,Negyedéves!BD$61,IF(Paraméterek!$D$129=4,Negyedéves!BD$67,Negyedéves!BD$72)) -> -8.847564459e-09 | BE19: =IF(Paraméterek!$D$129=1,Negyedéves!BE$61,IF(Paraméterek!$D$129=4,Negyedéves!BE$67,Negyedéves!BE$72)) -> -8.847564459e-09 | BF19: =IF(Paraméterek!$D$129=1,Negyedéves!BF$61,IF(Paraméterek!$D$129=4,Negyedéves!BF$67,Negyedéves!BF$72)) -> -8.847564459e-09 | BG19: =IF(Paraméterek!$D$129=1,Negyedéves!BG$61,IF(Paraméterek!$D$129=4,Negyedéves!BG$67,Negyedéves!BG$72)) -> -8.847564459e-09 | BH19: =IF(Paraméterek!$D$129=1,Negyedéves!BH$61,IF(Paraméterek!$D$129=4,Negyedéves!BH$67,Negyedéves!BH$72)) -> -8.847564459e-09 | BI19: =IF(Paraméterek!$D$129=1,Negyedéves!BI$61,IF(Paraméterek!$D$129=4,Negyedéves!BI$67,Negyedéves!BI$72)) -> -8.847564459e-09 | BJ19: =IF(Paraméterek!$D$129=1,Negyedéves!BJ$61,IF(Paraméterek!$D$129=4,Negyedéves!BJ$67,Negyedéves!BJ$72)) -> -8.847564459e-09 | BK19: =IF(Paraméterek!$D$129=1,Negyedéves!BK$61,IF(Paraméterek!$D$129=4,Negyedéves!BK$67,Negyedéves!BK$72)) -> -8.847564459e-09 | BL19: =IF(Paraméterek!$D$129=1,Negyedéves!BL$61,IF(Paraméterek!$D$129=4,Negyedéves!BL$67,Negyedéves!BL$72)) -> -8.847564459e-09 | BM19: =IF(Paraméterek!$D$129=1,Negyedéves!BM$61,IF(Paraméterek!$D$129=4,Negyedéves!BM$67,Negyedéves!BM$72)) -> -8.847564459e-09 | BN19: =IF(Paraméterek!$D$129=1,Negyedéves!BN$61,IF(Paraméterek!$D$129=4,Negyedéves!BN$67,Negyedéves!BN$72)) -> -8.847564459e-09 | BO19: =IF(Paraméterek!$D$129=1,Negyedéves!BO$61,IF(Paraméterek!$D$129=4,Negyedéves!BO$67,Negyedéves!BO$72)) -> -8.847564459e-09 | BP19: =IF(Paraméterek!$D$129=1,Negyedéves!BP$61,IF(Paraméterek!$D$129=4,Negyedéves!BP$67,Negyedéves!BP$72)) -> -8.847564459e-09 | BQ19: =IF(Paraméterek!$D$129=1,Negyedéves!BQ$61,IF(Paraméterek!$D$129=4,Negyedéves!BQ$67,Negyedéves!BQ$72)) -> -8.847564459e-09 | BR19: =IF(Paraméterek!$D$129=1,Negyedéves!BR$61,IF(Paraméterek!$D$129=4,Negyedéves!BR$67,Negyedéves!BR$72)) -> -8.847564459e-09 | BS19: =IF(Paraméterek!$D$129=1,Negyedéves!BS$61,IF(Paraméterek!$D$129=4,Negyedéves!BS$67,Negyedéves!BS$72)) -> -8.847564459e-09 | BT19: x
BT20: x
BT21: x
BT22: x
A23: Árfolyamkülönbözet (HUF) | BT23: x
A24: Tőketörlesztés árfolyamkülönbözete | D24: =IF(MOD(D$2,4)=0,($C$5-D$5)*($C$13-D$13),0) -> 0 | E24: =IF(MOD(E$2,4)=0,($C$5-E$5)*($C$13-E$13),0) -> 0 | F24: 0 | G24: 0 | H24: 0 | I24: 0 | J24: 0 | K24: 0 | L24: 0 | M24: 0 | N24: 0 | O24: 0 | P24: 0 | Q24: 0 | R24: 0 | S24: 0 | T24: 0 | U24: 0 | V24: 0 | W24: 0 | X24: 0 | Y24: 0 | Z24: 0 | AA24: 0 | AB24: 0 | AC24: 0 | AD24: 0 | AE24: 0 | AF24: 0 | AG24: 0 | AH24: 0 | AI24: 0 | AJ24: 0 | AK24: 0 | AL24: 0 | AM24: 0 | AN24: 0 | AO24: 0 | AP24: 0 | AQ24: 0 | AR24: 0 | AS24: 0 | AT24: 0 | AU24: 0 | AV24: 0 | AW24: 0 | AX24: 0 | AY24: 0 | AZ24: 0 | BA24: 0 | BB24: 0 | BC24: 0 | BD24: 0 | BE24: 0 | BF24: 0 | BG24: 0 | BH24: 0 | BI24: 0 | BJ24: 0 | BK24: 0 | BL24: 0 | BM24: 0 | BN24: 0 | BO24: 0 | BP24: 0 | BQ24: =IF(MOD(BQ$2,4)=0,($C$5-BQ$5)*($C$13-BQ$13),0) -> 0 | BR24: =IF(MOD(BR$2,4)=0,($C$5-BR$5)*($C$13-BR$13),0) -> 0 | BS24: =IF(MOD(BS$2,4)=0,($C$5-BS$5)*($C$13-BS$13),0) ->  | BT24: x
A25: Hitelátértékelésés árfolyamkülönbözete | D25: =IF(MOD(D$2,4)=0,($C$5-D$5)*D$13,0) -> 0 | E25: =IF(MOD(E$2,4)=0,($C$5-E$5)*E$13,0) -> 0 | F25: 0 | G25: 0 | H25: 0 | I25: 0 | J25: 0 | K25: 0 | L25: 0 | M25: 0 | N25: 0 | O25: 0 | P25: 0 | Q25: 0 | R25: 0 | S25: 0 | T25: 0 | U25: 0 | V25: 0 | W25: 0 | X25: 0 | Y25: 0 | Z25: 0 | AA25: 0 | AB25: 0 | AC25: 0 | AD25: 0 | AE25: 0 | AF25: 0 | AG25: 0 | AH25: 0 | AI25: 0 | AJ25: 0 | AK25: 0 | AL25: 0 | AM25: 0 | AN25: 0 | AO25: 0 | AP25: 0 | AQ25: 0 | AR25: 0 | AS25: 0 | AT25: 0 | AU25: 0 | AV25: 0 | AW25: 0 | AX25: 0 | AY25: 0 | AZ25: 0 | BA25: 0 | BB25: 0 | BC25: 0 | BD25: 0 | BE25: 0 | BF25: 0 | BG25: 0 | BH25: 0 | BI25: 0 | BJ25: 0 | BK25: 0 | BL25: 0 | BM25: 0 | BN25: 0 | BO25: 0 | BP25: 0 | BQ25: =IF(MOD(BQ$2,4)=0,($C$5-BQ$5)*BQ$13,0) -> 0 | BR25: =IF(MOD(BR$2,4)=0,($C$5-BR$5)*BR$13,0) -> 0 | BS25: =IF(MOD(BS$2,4)=0,($C$5-BS$5)*BS$13,0) ->  | BT25: x
A26: Garancia díja (HUF) | BT26: x
